Workbook

Sheet OCL_Accueil
B2: Observatoires des charges locatives récupérables
C5: Pour le fonctionnement du fichier, les macros doivent être activées :
C7: Sous Excel 2007 : Cliquez sur le bouton office en haut à gauche de l'écran : puis sur Option Excel en bas à droite :sur centre de gestion de la confidentialité : Paramètre (…) : Paramètre des Macros : sélectionner le niveau de sécurité.
C8: Sous Excel 2010 : ouvrir un onglet "développeur : puis sur Option Excel en bas à droite :sur centre de gestion de la confidentialité : Paramètre (…) : Paramètre des Macros : sélectionner le niveau de sécurité.
C9: Application développée sous EXCEL 2010 … et fonctionnant sous EXCEL 2007, 2010 ou 2013.
C10: pour les versions antérieures, transmettez à p.seon@eohs.fr les bases consommations, dépenses et paramètres
C11: Ne pas insérer ou interchanger les colonnes sur la base.
C17: Contacts :
F19: Nom Personne - Société | G19: Téléphone | H19: Mail
C20: Sur le contenu à transmettre : | F20: NADIA MONTANER - Habitat & Territoires Conseil | G20: 04 78 77 01 03 | H20: nadia.montaner@habitat-territoires.com
C21: Sur l'utilisation du logiciel : | F21: SEON PASCAL - eohs | G21: 04 72 85 67 31 | H21: p.seon@eohs.fr
C22: Pilote de l'étude pour l'USH : Denis Landart - denis.landart@union-habitat.org
C23: L'enquête est à retourner sous format EXCEL à l'adresse suivante : nadia.montaner@habitat-territoires.com avant le 13 novembre 2015
B25: Sommaire
B27: 1. Onglet "Nomenclature". Liste et information sur les variables à renseigner sur l'onglet "Saisie"
B29: 2. Onglet "Saisie". Ensemble des données Patrimoines, Dépenses et Consommations du bailleur à renseigner
B30: 3. Onglet "Champ renseignés". Information par variable du taux de renseignés sur les données patrimoines.
B31: 4. Onglet "Tests". Information sur les tests de cohérences entre variables (exemple : vérification d'existences d'ascenseurs si dépenses ascenseurs, etc …)
B32: 5. Onglet "Ratios". Informations détaillées par postes de dépenses et consommations des ratios calculés (dépenses et consommations par surface habitable)

Sheet OCL_Nomenclature
C2: * Nouvelles variables demandées
A4: N° colonne | B4: Variable | C4: Contenu de la variable* | D4: Exitence Test de contrôle | E4: Modalités de la variable | F4: FORMAT | G4: Exemple
A5: 1 | B5: Index | C5: Index de la résidence dans la base observatoire | E5: Ne pas remplir - calculé directement | F5: TEXTE | G5: 123456789/0003
A6: 2 | B6: COD_ORG | C6: Code SIREN du bailleur | F6: TEXTE | G6: 123456789
A7: 3 | B7: COD_TER | C7: Nom Direction Territoriale de rattachement | E7: Ou autre niveau de rattachement tel qu'utilisé dans l'outil de gestion locative | F7: TEXTE | G7: DT
A8: 4 | B8: COD_AGE | C8: Nom Agence de rattachement | E8: Ou autre niveau de rattachement tel qu'utilisé dans l'outil de gestion locative | F8: TEXTE | G8: AG1
A9: 5 | B9: COD_RES | C9: Code de la résidence | E9: Utilisé dans l'outil de gestion locative | F9: TEXTE | G9: 0003
A10: 6 | B10: LIB_RES | C10: Libellé de la résidence | E10: Tel qu'utilisé dans l'outil de gestion locative | F10: TEXTE | G10: 4 rue de Narvik
A11: 7 | B11: COM_RES | C11: Libellé de la commune de la résidence | F11: TEXTE | G11: LYON
A12: 8 | B12: CPO_RES | C12: Code POSTAL de la commune de la résidence | E12: Mettre 5 chiffres | F12: TEXTE | G12: 69008
A13: 9 | B13: CIN_RES | C13: Code INSEE de la commune de la résidence | D13: X | E13: Mettre 5 chiffres | F13: TEXTE | G13: 69388
A14: 10 | B14: CAT_RES | C14: Catégorie d'usage de la résidence (LOG/COM/BUR/MIX/PKG/AUT) | E14: LOG : logements y compris si quelques locaux commerciaux se trouvent en pied d'immeuble, COM : locaux commerciaux, BUR : Bureaux ou activités socio-culturelles, MIX : activités diverses, PKG : parking, AUT : autres usages | F14: Liste déroulante | G14: LOG
A15: =A14+1 -> 11 | B15: SU_HAB | C15: Surface habitable totale de la résidence | E15: Selon la définition légale. Si non renseigné ne rien mettre, pas mettre de 0. | F15: Nombre | G15: 3385.68
A16: =A15+1 -> 12 | B16: NB_LGT | C16: Nombre de logements de la résidence | E16: Nombre d'unités locatives (hors loges et locaux à usages spécifiques) Si non renseigné ne rien mettre, pas mettre de 0. | F16: Nombre | G16: 74
A17: =A16+1 -> 13 | B17: NB_PKG | C17: Nombres de places de stationnement de la résidence | E17: Nombre de places utilisées dans la répartition des charges de stationnement. Si non renseigné ou non concerné, ne rien mettre, pas mettre de 0. | F17: Nombre
A18: 14 | B18: TYP_BAT | C18: Type de bâtiment (IND/COL/MIX/IGH) | E18: IND : pavillons, COL : immeubles collectifs, MIX : en partie individuel et collectif, IGH : immeuble de grande hauteur | F18: Liste déroulante | G18: COL
A19: 15 | B19: TYP_ZUS | C19: Localisation géographique (ZUS/HZUS) | E19: ZUS : résidence située en ZUS, HZUS : résidence hors ZUS | F19: Liste déroulante | G19: HZUS
A20: =A19+1 -> 16 | B20: DT_CON | C20: Année de construction | D20: x | E20: Année de fin de la construction (ex :1965), Ne rien mettre si date inconnue . 4 Chiffres : AAAA | F20: Nombre | G20: 1965
A21: 17 | B21: DT_MES | C21: Année de mise en service du groupe | D21: x | E21: Année de première mise en location par le bailleur (idem année de construction, sauf rachat de la résidence) 4 Chiffres : AAAA | F21: Nombre | G21: 1965
A22: =A21+1 -> 18 | B22: DT_REHAB | C22: Année de la dernière réhabilitation* | E22: Année de la dernière réhabilitation 4 Chiffres : AAAA | F22: Liste déroulante | G22: 1995
A23: =A22+1 -> 19 | B23: SU_CHA | C23: Surface chauffée de la résidence | E23: Surface utilisée pour répartir les dépenses de chauffage | F23: Nombre
A24: 20 | B24: SU_ASC | C24: Surface des logements sur lesquels sont réparties les charges d'ascenseur | E24: Surface utilisée pour répartir les dépenses d'ascenseurs | F24: Nombre
A25: 21 | B25: SU_COR | C25: Surface corrigée totale de la résidence (avant 1998) | E25: Selon la définition légale | F25: Nombre
A26: 22 | B26: SU_UTI | C26: Surface utile totale de la résidence (à partir de 1998) | E26: Selon la définition légale | F26: Nombre
A27: 23 | B27: MOD_EFR | C27: Modalités de facturation de l'eau (IND/COL/MIX) | D27: x | E27: IND : le distributeur d'eau facture toute l'eau privative directement au locataire, COL : toute l'eau privative est facturée au bailleur qui la récupère auprès des locataires, MIX : une partie de l'eau privative est facturée au bailleur (ECS en général) | F27: Liste déroulante | G27: COL
A28: 24 | B28: EXP_ENE | C28: Existence d'une prestation d'entretien robinetterie (O/N) | E28: Existence d'une prestation répercutée dans les charges récupérables | F28: Liste déroulante | G28: N
A29: 25 | B29: EXP_CPE | C29: Existence d'une prestation comptage de l'eau froide (O/N) | E29: Existence d'une prestation répercutée dans les charges récupérables | F29: Liste déroulante | G29: O
A30: 26 | B30: MOD_ECH | C30: Modalités de production de l'eau chaude (IND/COL/MIX) | E30: IND : production indiviuelle de l'ECS, COL : production collective de l'ECS, MIX : Résidence qui comprend une partie des logements à production individuelle et une autre partie à production collective | F30: Liste déroulante | G30: COL
A31: 27 | B31: MOD_CHA | C31: Modalités de facturation du chauffage (IND/COL/CU/CEM/MIX/SANS) | E31: IND : chauffage individuel, COL : chauffage collectif, CU : chauffage urbain, CEM : chauffage électrique mixte, MIX : résidence comprenant du chauffage individuel et du chauffage collectif, SANS : Livré sans chauffage | F31: Liste déroulante | G31: COL
A32: 28 | B32: EXP_CHA | C32: Existence d'une prestation d'entretien du chauffage et ECS (O/N) | D32: x | E32: Existence d'une prestation répercutée dans les charges récupérables | F32: Liste déroulante | G32: O
A33: 29 | B33: EXP_CPC | C33: Existence d'une prestation de répartition des frais de chauffage [compteurs/répartiteurs] (O/N) | D33: x | E33: Existence d'une prestation répercutée dans les charges récupérables | F33: Liste déroulante | G33: N
A34: 30 | B34: EXP_CPS | C34: Existence d'une prestation comptage divisionnaire ECS (O/N) | D34: x | E34: Existence d'une prestation répercutée dans les charges récupérables | F34: Liste déroulante | G34: O
A35: 31 | B35: EXP_ASC | C35: Existence d'ascenseurs sur la résidence (O/N) | D35: x | E35: Existence d'une prestation répercutée dans les charges récupérables | F35: Liste déroulante | G35: O
A36: 32 | B36: PRS_ENM | C36: Prestations d'entretien de propreté [EM&OM] (O/N) (O/N) | E36: Existence d'une prestation répercutée dans les charges récupérables | F36: Liste déroulante | G36: O
A37: 33 | B37: PRS_EEX | C37: Prestations d'entretien des espaces verts et aires de jeux (O/N) | E37: Existence d'une prestation répercutée dans les charges récupérables | F37: Liste déroulante | G37: O
A38: 34 | B38: PRS_PSO | C38: Prestations d'entretien ménager et OM réalisées par personnel de proximité (O/N) | E38: Existence d'une prestation répercutée dans les charges récupérables | F38: Liste déroulante | G38: O
A39: 35 | B39: PRS_ENT | C39: Prestations d'entretien ménager et OM réalisées par entreprise extérieure (O/N) | E39: Existence d'une prestation répercutée dans les charges récupérables | F39: Liste déroulante | G39: O
A40: 36 | B40: MUS_ELC | C40: Modalités d'usage électricité commune (ECL/ASC/CHA/EQU) | D40: x | E40: ASC/CHA/ECL : Ascenseurs/Chauffage/Eclairage ; ASC/CHA/ECL/EQU : Ascenseurs/Chauffage/Eclairage/Autres équipements ; ASC/ECL : Ascenseurs/Eclairage ; ASC/ECL/EQU : Ascenseurs/Eclairage/Autres équipements ; CHA/ECL : Chauffage/Eclairage ; CHA/ECL/EQU : Chauffage/Eclairage/Autres équipements ; ECL : Eclairage uniquement ; ECL/EQU : Eclairage/Autres équipements | F40: Liste déroulante | G40: ASC/CHA/ECL
A41: 37 | B41: EXP_TAX | C41: Existence de taxes ou redevances récupérables (OM/BAL/SANS et OM/BAL) | D41: x | E41: SANS : si intégré à la taxe foncière et non récupéré, OM : si taxe ou redevance d'ordures ménagères, BAL : taxe de balayage, OM/BAL : si OM et taxe de balayage (Paris) | F41: Liste déroulante | G41: OM
A42: 38 | B42: NAT_CHA | C42: Nature de l'énergie chauffage (GN/FOD/FL/GPL/CH/BOIS/GEO/COGE/UIOM/MIX/ELEC/SOL/SANS/AUT) | E42: GN : gaz naturel, FOD : Fuel Oil Domestique, FL : Fuel lourd, GPL : Propane ou butane, CH : Charbon, BOIS : Bois - biomasse, GEO : Géothermie, COGE : cogénération, UIOM : Usine Incinération des Ordures Ménagères, MIX : chauffage urbain multi-énergie, ELEC : Electricité, SOL : ECS solaire, AUT : Autre énergie et Sans : Sans chauffage | F42: Liste déroulante | G42: GN
A43: 39 | B43: NAT_ECS | C43: Nature de l'énergie de production d'ECS (GN/FOD/FL/GPL/CH/BOIS/GEO/COGE/UIOM/MIX/ELEC/SOL/AUT/SANS) | E43: GN : gaz naturel, FOD : Fuel Oil Domestique, FL : Fuel lourd, GPL : Propane ou butane, CH : Charbon, BOIS : Bois - biomasse, GEO : Géothermie, COGE : cogénération, UIOM : Usine Incinération des Ordures Ménagères, MIX : chauffage urbain multi-énergie, ELEC : Electricité, SOL : ECS solaire, AUT : Autre énergie et Sans : Sans chauffage | F43: Liste déroulante | G43: AUT
A44: 40 | B44: CHA_DJU_C | C44: Degrés-jours contractuels (uniquement si contrat à intéressement) | E44: Sinon, ne pas oublier de renseigner le Code INSEE de la commune. | F44: Nombre | G44: 2279
A45: 41 | B45: CHA_QEB | C45: Qualité énergétique du bâti et de l'installation de chauffage [Classe de la résidence selon les DPE réalisés (de A à G)] | E45: Indiquer le repère moyen de A à G pour l'ensemble des bâtiments de la résidence | F45: Liste déroulante | G45: C
A46: 42 | B46: CHA_GES | C46: Qualité environnementale du bâti et de l'insatallation de chauffage [Etiquette GES de la résidence selon les DPE réalisés (de A à G)]* | E46: Indiquer le repère moyen de A à G pour l'ensemble des bâtiments de la résidence | F46: Liste déroulante | G46: C
A47: 43 | B47: CHA_TCEX | C47: Type de contrat d'exploitation du chauffage : (MF/MT/PF/MC/CP/CPI/REG/PFI/MCI/MFI/MTI/VGR/SYNDIC/AUT/SO) | E47: MF : Marché forfaitaire P1 +P2 (+P3 Non récupérable), MT : Marché forfaire corrigé température (DJU), PF : Prestations Forfaitaires (P2 seul) - P1 payé directement GDF-Suez ou …MC : Marché Comptage (P1 payé au compteur de calories - P2 forfaitaire), CP : Combustibles (P1) et prestations (P2), CPI : Combustibles avec intéressement (P1) et prestations (P2), REG : Régie , PFI : Prestations Forfaitaires avec Intéressement (P2 seul) - P1 payé directement GDF…, MCI : Marché Comptage avec Intéressement (P1 payé au compteur de calories), MFI : Marché forfaitaire avec Intéressement P1 +P2 (+P3 Non récupérable), MTI : Marché forfaire corrigé température (DJU) avec Intéressement, VGR : Vente de Gaz Réparti, SYNDIC : Syndic de copropriété - ASL, AUT : Autre et SO (ou vide) : sans objet | F47: Liste déroulante | G47: MCI
A48: 44 | B48: MD_TT_EAU | C48: Montant total des dépenses d'eau | D48: x | E48: Addition des variables suivantes : MD_FO_EAU + MD_CP_EAU+ MD_EN_EAU | F48: Nombre | G48: 7248.55
A49: 45 | B49: MD_FO_EAU | C49: Montant des dépenses de fourniture d'eau | F49: Nombre | G49: 6715.57
A50: 46 | B50: MD_CP_EAU | C50: Montant des dépenses de comptage de l'eau (eau froide & chaude) | F50: Nombre | G50: 184.1
A51: 47 | B51: MD_EN_EAU | C51: Montant des dépenses d'entretien des installations de distribution d'eau | F51: Nombre | G51: 348.88
A52: 48 | B52: MD_TT_CHA | C52: Montant total des dépenses totales pour le chauffage et l'ECS | D52: x | E52: Addition des variables suivantes : MD_FO_CHA+MD_CP_CHA+MD_EN_CHA | F52: Nombre | G52: 9890.03
A53: 49 | B53: MD_FO_CHA | C53: Montant des dépenses de fourniture d'énergie pour le chauffage et l'ECS | E53: Addition des variables suivantes : MD_FO_CHAUF+MD_FO_ECS | F53: Nombre | G53: 8346.11
A54: 50 | B54: MD_FO_CHAUF | C54: dont montant des dépenses de fourniture d'énergie pour le chauffage* | F54: Nombre | G54: 5564.073333
A55: 51 | B55: MD_FO_ECS | C55: dont montant des dépenses de fourniture d'énergie pour l'ECS* | F55: Nombre | G55: 2782.036667
A56: 52 | B56: MD_CP_CHA | C56: Montant des dépenses de comptage et de répartition des frais de chauffage | F56: Nombre
A57: 53 | B57: MD_EN_CHA | C57: Montant des dépenses d'entretien des installations de production-distribution d'énergie pour le chauffage et l'ECS | F57: Nombre | G57: 1543.92
A58: 54 | B58: MD_TT_ASC | C58: Montant des dépenses d'entretien des ascenseurs | F58: Nombre
A59: 55 | B59: MD_TT_EIM | C59: Montant total des dépenses d'entretien immobilier | D59: x | E59: Addition des variables suivantes : MD_PP_EOM+MD_PE_EOM+MD_EE_EOM+MD_EV_AIM+MD_AU_AIM | F59: Nombre | G59: 9143.01
A60: 56 | B60: MD_PP_EOM | C60: Montant des dépenses de personnel de proximité (salaires - interne)(1) | F60: Nombre | G60: 5209.38
A61: 57 | B61: MD_PE_EOM | C61: Montant des dépenses de produit d'entretien et petites fournitures(1) | F61: Nombre | G61: -187.37
A62: 58 | B62: MD_EE_EOM | C62: Montant des dépenses des entreprises d'entretien ménagers (contrats + prestations complémentaires et externes)(1) | F62: Nombre | G62: 1504.96
A63: 59 | B63: MD_EV_AIM | C63: Montant des dépenses d'entretien des espaces verts et aire de jeux | F63: Nombre | G63: 174
A64: 60 | B64: MD_AU_AIM | C64: Montant des autres dépenses générales (TOUT : VMC, TV, surpresseurs, réseaux, 3D) | F64: Nombre | G64: 2442.04
A65: 61 | B65: MD_TT_ELC | C65: Montant total des dépenses d'électricité des usages généraux | F65: Nombre | G65: 1377.18
A66: 62 | B66: MD_TT_TAX | C66: Montant total des dépenses de taxes récupérables (OM + balayage) | F66: Nombre | G66: 3231
A67: 63 | B67: MD_TT_PKG | C67: Montant total des dépenses affectées aux garages | F67: Nombre
A68: 64 | B68: VC_TT_EAU | C68: Volume total d'eau facturée par le distributeur pour l'eau froide et l'eau chaude sur la résidence | D68: Existence de test de contrôle sur VC_TT_EAU Généralement, en gestion collective de l'eau, les consommations globales comprenant les usages en eau froide et en eau chaude, sont mesurées à partir du branchement général abonné. Souvent, en production collective d'eau, un sous-comptage général de l'eau chaude est opéré pour faciliter la répartition des dépenses d'eau chaude. Dans ce cas, les 3 trois informations seront disponibles. Dans les autres cas, et notamment en production individuelle d'eau chaude, seul le poste global sera connu. | E68: Addition des variables suivantes =VC_EFR+VC_ECH+VC_COM | F68: Nombre (en m3) | G68: 10000
A69: 65 | B69: VC_EFR | C69: Volume d'eau privative consommée pour l'eau froide sur la résidence | F69: Nombre (en m3) | G69: 6500
A70: 66 | B70: VC_ECH | C70: Volume d'eau privative consommée pour l'eau chaude sur la résidence | F70: Nombre (en m3) | G70: 3000
A71: 67 | B71: VC_COM | C71: Eau résiduelle commune (différence : VC-TT-EAU - VC_EFR - VC_ECH) | E71: VC_COM n'est pas une nature de charges à analyser. Obtenu par différence entre le comptage général et la somme de toutes les consommations privatives. | F71: Nombre (en m3) | G71: 500
A72: 68 | B72: QE_TT_CHEC | C72: Energie totale consommée pour le chauffage et l'eau chaude sur la résidence | D72: Existence de test de contrôle sur QE_TT_CHEC En chauffage et production d'eau chaude collectifs, seule la consommation d'énergie globale est connue. Toutefois, pour des raisons d'affectation des dépenses, l'énergie globale est éclatée entre le chauffage et l'eau chaude à partir du volume d'eau chaude converti en énergie par un coefficient "petit q" correspondant à l'énergie réputée nécessaire pour produire un m3 d'eau chaude à 55° (~100 kWh PCS/m3 eau chaude). En production individuelle d'eau chaude, seule la consommation générale sera connue. | E72: Addition des variables suivante=QE_CHA+QE_ECH | F72: Nombre (en kWh) | G72: 219030
A73: 69 | B73: QE_CHA | C73: Energie consommée pour le chauffage sur la résidence | F73: Nombre (en kWh) | G73: 219030
A74: 70 | B74: QE_ECH | C74: Energie consommée pour l'eau chaude sur la résidence | F74: Nombre (en kWh)
A75: 71 | B75: QE_TT_ELC | C75: Electricité totale consommée sur la résidence (usages communs) | F75: Nombre (en kWh)
A76: 72 | B76: UN_CHA | C76: Unité des consommations de chauffage | E76: Indication pour les champs QU_TT_CHEC, QU_CHA et QE_ECH de l'unité de chauffage kWh PCI/kWh PCS/kWh TH./kWh él./MWh/M3GN/LITRES/HLFOD/M3FOD/KG/TONNES/TVAPEUR/M3GPL/Inconnu Unité d'énergie utilisée pour le chauffage. Il s'agit le plus fréquemment de kWhPCS pour le gaz naturel, de kWh thermique mesuré au compteur de calories pour chauffage urbain et de kWhPCI pour les autres combustibles fossiles. Si les consommations sont renseignées sous une autre unité, elles seront converties. | F76: Liste déroulante
A77: 73 | B77: CHA_DJU_R | C77: DJU de la période de chauffage (année civile) | E77: Cette valeur n'est utile que pour le chauffage collectif dès lors que les consommations d'énergie sont connues. Elle sera indiquée si elle est connue. | F77: Nombre (en °C.j)
A78: *l’ensemble des variables sont expliquées dans un guide en annexe du fichier

Sheet OCL_Saisie
B1: NETTOIE LA BASE SAISIE ET / OU IMPORTEE (enlève les 0 stricts, les espaces …). | AK1: 0.5 | AL1: Année N-1 | AM1: Total résidence : | AP1: Total charges- hors garage : | DV1: 1
B2: IDENTIFIE LES ERREURS DE SAISIES, CACULE LES RATIOS ET REPERE LES INCOHERENCES ENTRE VARIABLES | J2: Conversion : | AK2: 1.5 | AR2: =IF(ROUND(AS3+AT3+AU3,0)<>ROUND(AR3,0),"Attention somme des sous postes eau <>montant total eau","") ->  | AV2: =IF(ROUND(AX3+AY3,0)<>ROUND(AW3,0),"Attention somme des sous postes fourniture <>Montant total fourniture","") ->  | AY2: =IF(ROUND(AW3+BA3+AZ3,0)<>ROUND(AV3,0),"Attention somme des sous postes chauffage <>Montant total chauffage","") ->  | BC2: =IF(ROUND(BE3+BF3+BD3+BG3+BH3,0)<>ROUND(BC3,0),"Attention somme des sous postes entretien <>Montant total entretien","") ->  | BL2: =IF(ROUND(BN3+BO3+BM3,0)<>ROUND(BL3,0),"Attention somme des sous postes consommation eau <>Montant total eau","") ->  | BP2: =IF(ROUND(BR3+BQ3,0)<>ROUND(BP3,0),"Attention somme des sous postes consommation chauffage <>Montant total chauffage","") ->  | EH2: =SUM(OCL_Tests!C32:C45) -> 0
B3: AFFICHE OU ENLEVE LE FILTRE | AL3: Année N | AM3: Total résidence : | AN3: =COUNTA(E18:E444) -> 0 | AO3: ="Nb. de logements : " &SUM(L18:L444) -> Nb. de logements : 0 | AP3: Total charges- hors garage : | AQ3: =AR3+AV3+BB3+BC3+BI3+BJ3 -> 0 | AR3: =SUM(AR18:AR444) -> 0 | AS3: 0 | AT3: 0 | AU3: 0 | AV3: 0 | AW3: 0 | AX3: 0 | AY3: 0 | AZ3: 0 | BA3: 0 | BB3: 0 | BC3: 0 | BD3: 0 | BE3: 0 | BF3: 0 | BG3: 0 | BH3: 0 | BI3: 0 | BJ3: 0 | BK3: 0 | BL3: 0 | BM3: 0 | BN3: 0 | BO3: 0 | BP3: 0 | BQ3: 0 | BR3: 0 | BS3: 0
AN4: =IF(OR(AN1=0,AN3=0),"-",ROUND(AN3/AN1,2)) -> - | AQ4: =AR4+AV4+BB4+BC4+BI4+BJ4 ->  | AR4: =AR3/$AQ$3 ->  | BL4: =BM4+BN4+BO4 ->  | BM4: =BM3/$BL$3 ->  | BN4: =BN3/$BL$3 ->  | BO4: =BO3/$BL$3 ->  | BP4: =BQ4+BR4 ->  | BQ4: =BQ3/$BP$3 ->  | BR4: =BR3/$BP$3 -> 
AP5: Ratio année N/année N-1 : | AQ5: =IF(OR(AQ1=0,AQ3=0),"-",ROUND(AQ3/AQ1,2)) -> - | AR5: =IF(OR(AR1=0,AR3=0),"-",ROUND(AR3/AR1,2)) -> - | AS5: - | AT5: - | AU5: - | AV5: - | AW5: - | AX5: - | AY5: - | AZ5: - | BA5: - | BB5: - | BC5: - | BD5: - | BE5: - | BF5: - | BG5: - | BH5: - | BI5: - | BJ5: =IF(OR(BJ1=0,BJ3=0),"-",ROUND(BJ3/BJ1,2)) -> - | BK5: =IF(OR(BK1=0,BK3=0),"-",ROUND(BK3/BK1,2)) -> - | BL5: =IF(OR(BL1=0,BL3=0),"-",ROUND(BL3/BL1,2)) -> - | BM5: - | BN5: - | BO5: - | BP5: - | BQ5: - | BR5: - | BS5: - | BV5: test1 | BW5: test2 | BX5: test3 | BY5: test4 | BZ5: test5 | CA5: test6 | CB5: test7 | CC5: test8 | CD5: test9 | CE5: test10 | CF5: test11 | CG5: test12 | CH5: test13 | CI5: test14 | CJ5: test15 | CK5: test16 | CL5: test17 | CM5: test18 | CN5: test19 | CO5: test20 | CP5: test21 | CQ5: test22 | CR5: test23 | CS5: test24 | CT5: test25 | CU5: test26 | CW5: MD_FO_EAU | CX5: MD_CP_EAU | CY5: MD_EN_EAU | CZ5: MD_FO_CHA | DA5: MD_CP_CHA | DB5: MD_FO_CHAUF | DC5: MD_FO_ECS | DD5: MD_EN_CHA | DE5: MD_TT_ASC | DF5: MD_AU_AIM | DG5: MD_TT_EOM | DH5: MD_EV_AIM | DI5: MD_TT_ELC | DJ5: MD_TT_TAX | DK5: MD_TT_PKG | DM5: VC_TT_EAU | DN5: VC_EFR | DO5: VC_ECH | DP5: VC_COM | DQ5: QE_TT_CHEC | DR5: QE_CHA | DS5: QE_ECH | DT5: QE_TT_ELC | DU5: test
CX6: SI(V75="col";ET(AS75/K75<=0,8;AS75/K75>=0,05);SI(V75<>"col";et(AS75/K75<=0,7;AS75/K75>=0);"")))
CU8: nouvelles formules non appliquées sur validation hors 1er champ | CW8: =IF(W8="ind",AND(AS8/K8<=3,AS8/K8>=0),IF(W8="col",AND(AS8/K8<=11,AS8/K8>=0),IF(AND(W8<>"ind",W8<>"col"),AND(AS8/K8<=6,AS8/K8>=0),""))) ->  | CX8: =IF(W8="col",AND(AT8/K8<=0.8,AT8/K8>=0.05),IF(W8<>"col",AND((AT8/K8<=0.7),(AT8/K8>=0)),"")) ->  | CY8: =AND(AU8/K8<=0.7,AU8/K8>=0.1) ->  | CZ8: =IF(OR(AA8="col",AA8="cu",AA8="mix"),AND(AW8/K8<=18,AW8/K8>=3),IF(AND(AA8<>"col",AA8<>"cu",AA8<>"mix"),AND(AW8/K8<=20,AW8/K8>=0),"")) ->  | DD8: =IF(OR(AA8="col",AA8="cu"),AND(BA8/K8<=4,BA8/K8>=0.2),IF(AND(AA8<>"col",AA8<>"cu"),AND(BA8/K8<=2,BA8/K8>=0),"")) ->  | DE8: =AND(BB8/K8<=2.25,BB8/K8>=0.1) ->  | DF8: =AND(BH8/K8<=2,BH8/K8>=0) ->  | DG8: =AND(SUM(BD8:BF8/K8)<=11,SUM(BD8:BF8)/K8>=0) ->  | DI8: =AND(BI8/K8<=3,BI8/K8>=0.05) ->  | DJ8: =AND(BJ8/K8<=5,BJ8/K8>=0.5) ->  | DK8: =AND(BK8/M8<=90,BK8/M8>=3.8) ->  | DM8: =AND(BL8/K8<=3,BL8/K8>=0.01) ->  | DO8: =AND(BN8/K8<=1,BN8/K8>=0.15) ->  | DP8: =AND(BO8/K8<=1,BO8/K8>=-0.3) ->  | DQ8: =IF(OR(AA8="col",AA8="cu"),AND(BP8/K8<=400,BP8/K8>=75)) -> FALSE | DT8: =AND(BS8/K8<=18,BS8/K8>=0.2) -> 
CV9: =SUM(CW9:DT9) -> 0 | CW9: =COUNT(CW18:CW444) -> 0 | CX9: 0 | CY9: 0 | CZ9: 0 | DA9: 0 | DB9: 0 | DC9: 0 | DD9: 0 | DE9: 0 | DF9: 0 | DG9: 0 | DH9: 0 | DI9: 0 | DJ9: 0 | DK9: 0 | DM9: =COUNT(DM18:DM444) -> 0 | DN9: 0 | DO9: 0 | DP9: 0 | DQ9: 0 | DR9: 0 | DS9: 0 | DT9: 0
DG10: =COUNTIF(DG17:DG444,0) -> 0
J11: ancien numéro | K11: 12 | L11: 13 | M11: 14 | N11: 15 | O11: 16 | P11: 18 | Q11: 19 | R11: 20 | S11: 21 | T11: 22 | U11: 23 | V11: 24 | W11: 25 | X11: 26 | Y11: 27 | Z11: 28 | AA11: 29 | AB11: 30 | AC11: 31 | AD11: 32 | AE11: 33 | AF11: 34 | AG11: 35 | AH11: 36 | AI11: 37 | AJ11: 38 | AK11: 39 | AL11: 40 | AM11: 41 | AN11: 42 | AO11: 43 | AP11: 44 | AQ11: 45 | AR11: 46 | AS11: 47 | AT11: 48 | AU11: 49 | AV11: 50 | AW11: 51 | AX11: 52 | AY11: 53 | AZ11: 54 | BA11: 55 | BB11: 56 | BC11: 57 | BD11: 58 | BE11: 59 | BF11: 60 | BG11: 61 | BH11: 62 | BI11: 63 | BJ11: 64 | BK11: 65 | BL11: 66 | BM11: 67 | BN11: 68 | BO11: 69 | BP11: 70 | BQ11: 71 | BR11: 72 | BS11: 73 | BT11: 74 | BU11: 75 | BV11: 76 | BW11: 77 | BX11: 78 | BY11: 79 | BZ11: 80 | CA11: 81 | CB11: 82 | CC11: 83 | CD11: 84 | CE11: 85 | CF11: 86 | CG11: 87 | CH11: 88 | CI11: 89 | CJ11: 90 | CK11: 91 | CL11: 92 | CM11: 93 | CN11: 94 | CO11: 95 | CP11: 96 | CQ11: 97 | CR11: 98 | CS11: 99 | CT11: 100 | CU11: 101 | CV11: 102 | CW11: 103 | CX11: 104 | CY11: 105 | CZ11: 106 | DA11: 107 | DB11: 108 | DC11: 109 | DD11: 110 | DE11: 111 | DF11: 112 | DG11: 113 | DH11: 114 | DI11: 115 | DJ11: 116 | DK11: 117 | DL11: 118 | DM11: 119 | DN11: 120 | DO11: 121 | DP11: 122 | DQ11: 123 | DR11: 124 | DS11: 125 | DT11: 126 | DU11: 127 | DV11: 128
A12: 1 | B12: =+A12+1 -> 2 | C12: =+B12+1 -> 3 | D12: 4 | E12: 5 | F12: 6 | G12: 7 | H12: 8 | I12: 9 | J12: 10 | K12: =J12+1 -> 11 | L12: 12 | M12: 13 | N12: 14 | O12: 15 | P12: =O12+1 -> 16 | Q12: 17 | R12: =Q12+1 -> 18 | S12: =+R12+1 -> 19 | T12: 20 | U12: 21 | V12: 22 | W12: 23 | X12: 24 | Y12: 25 | Z12: 26 | AA12: 27 | AB12: 28 | AC12: 29 | AD12: 30 | AE12: 31 | AF12: 32 | AG12: 33 | AH12: 34 | AI12: 35 | AJ12: 36 | AK12: 37 | AL12: 38 | AM12: 39 | AN12: 40 | AO12: 41 | AP12: =AO12+1 -> 42 | AQ12: =+AP12+1 -> 43 | AR12: =AQ12+1 -> 44 | AS12: =+AR12+1 -> 45 | AT12: =+AS12+1 -> 46 | AU12: =+AT12+1 -> 47 | AV12: =+AU12+1 -> 48 | AW12: =+AV12+1 -> 49 | AX12: =+AW12+1 -> 50 | AY12: =+AX12+1 -> 51 | AZ12: =+AY12+1 -> 52 | BA12: =+AZ12+1 -> 53 | BB12: =+BA12+1 -> 54 | BC12: =+BB12+1 -> 55 | BD12: =+BC12+1 -> 56 | BE12: =+BD12+1 -> 57 | BF12: =+BE12+1 -> 58 | BG12: =+BF12+1 -> 59 | BH12: =+BG12+1 -> 60 | BI12: =+BH12+1 -> 61 | BJ12: =+BI12+1 -> 62 | BK12: =+BJ12+1 -> 63 | BL12: =BK12+1 -> 64 | BM12: =+BL12+1 -> 65 | BN12: =+BM12+1 -> 66 | BO12: =+BN12+1 -> 67 | BP12: =+BO12+1 -> 68 | BQ12: =+BP12+1 -> 69 | BR12: =+BQ12+1 -> 70 | BS12: =+BR12+1 -> 71 | BT12: =+BS12+1 -> 72 | BU12: =+BT12+1 -> 73 | BV12: =BU12+1 -> 74 | BW12: =BV12+1 -> 75 | BX12: 76 | BY12: 77 | BZ12: 78 | CA12: 79 | CB12: 80 | CC12: 81 | CD12: 82 | CE12: 83 | CF12: 84 | CG12: 85 | CH12: 86 | CI12: 87 | CJ12: 88 | CK12: 89 | CL12: 90 | CM12: 91 | CN12: 92 | CO12: 93 | CP12: 94 | CQ12: 95 | CR12: 96 | CS12: 97 | CT12: 98 | CU12: 99 | CV12: 100 | CW12: 101 | CX12: 102 | CY12: 103 | CZ12: 104 | DA12: 105 | DB12: 106 | DC12: 107 | DD12: 108 | DE12: 109 | DF12: 110 | DG12: 111 | DH12: 112 | DI12: 113 | DJ12: 114 | DK12: 115 | DL12: 116 | DM12: 117 | DN12: 118 | DO12: 119 | DP12: 120 | DQ12: 121 | DR12: 122 | DS12: 123 | DT12: 124 | DU12: 125 | DV12: 126
A13: 1 | BV13: 1 | BW13: 1 | BX13: 1 | BY13: 1 | BZ13: 1 | CA13: 1 | CB13: 1 | CC13: 1 | CD13: 1 | CE13: 1 | CF13: 1 | CG13: 1 | CH13: 1 | CI13: 1 | CJ13: 1 | CK13: 1 | CL13: 1 | CM13: 1 | CN13: 1 | CO13: 1 | CP13: 1 | CQ13: 1 | CR13: 1 | CS13: 1 | CT13: 1 | CU13: 1 | CV13: 1 | CW13: 1 | CX13: 1 | CY13: 1 | CZ13: 1 | DA13: 1 | DB13: 1 | DC13: 1 | DD13: 1 | DE13: 1 | DF13: 1 | DG13: 1 | DH13: 1 | DI13: 1 | DJ13: 1 | DK13: 1 | DM13: 1 | DN13: 1 | DO13: 1 | DP13: 1 | DQ13: 1 | DR13: 1 | DS13: 1 | DT13: 1
A14: =COUNTA(A18:A2444) -> 0 | B14: =COUNTA(B18:B2444) -> 0 | C14: 0 | D14: 0 | E14: 0 | F14: 0 | G14: 0 | H14: 0 | I14: 0 | J14: 0 | K14: 0 | L14: 0 | M14: 0 | N14: 0 | O14: 0 | P14: 0 | Q14: 0 | R14: =COUNTA(R18:R2444)-COUNTIF(R18:R2444,"Non renseigné") -> 0 | S14: 0 | T14: 0 | U14: 0 | V14: 0 | W14: 0 | X14: 0 | Y14: 0 | Z14: 0 | AA14: 0 | AB14: 0 | AC14: 0 | AD14: 0 | AE14: 0 | AF14: 0 | AG14: 0 | AH14: 0 | AI14: 0 | AJ14: 0 | AK14: 0 | AL14: 0 | AM14: 0 | AN14: 0 | AO14: 0 | AP14: 0 | AQ14: 0
A15: Index | B15: COD_DTR | C15: COD_TER | D15: COD_AGE | E15: COD_RES | F15: LIB_RES | G15: COM_RES | H15: CPO_RES | I15: CIN_RES | J15: CAT_RES | K15: SU_HAB | L15: NB_LGT | M15: NB_PKG | N15: TYP_BAT | O15: TYP_ZUS | P15: DT_CON | Q15: DT_MES | R15: DT_REHAB | S15: SU_CHA | T15: SU_ASC | U15: SU_COR | V15: SU_UTI | W15: MOD_EFR | X15: EXP_ENE | Y15: EXP_CPE | Z15: MOD_ECH | AA15: MOD_CHA | AB15: EXP_CHA | AC15: EXP_CPC | AD15: EXP_CPS | AE15: EXP_ASC | AF15: PRS_ENM | AG15: PRS_EEX | AH15: PRS_PSO | AI15: PRS_ENT | AJ15: MUS_ELC | AK15: EXP_TAX | AL15: NAT_CHA | AM15: NAT_ECS | AN15: CHA_DJU_C | AO15: CHA_QEB | AP15: CHA_GES | AQ15: CHA_TCEX | AR15: MD_TT_EAU | AS15: MD_FO_EAU | AT15: MD_CP_EAU | AU15: MD_EN_EAU | AV15: MD_TT_CHA | AW15: MD_FO_CHA | AX15: MD_FO_CHAUF | AY15: MD_FO_ECS | AZ15: MD_CP_CHA | BA15: MD_EN_CHA | BB15: MD_TT_ASC | BC15: MD_TT_EIM | BD15: MD_PP_EOM | BE15: MD_PE_EOM | BF15: MD_EE_EOM | BG15: MD_EV_AIM | BH15: MD_AU_AIM | BI15: MD_TT_ELC | BJ15: MD_TT_TAX | BK15: MD_TT_PKG | BL15: VC_TT_EAU | BM15: VC_EFR | BN15: VC_ECH | BO15: VC_COM | BP15: QE_TT_CHEC | BQ15: QE_CHA | BR15: QE_ECH | BS15: QE_TT_ELC | BT15: UN_CHA | BU15: CHA_DJU_R | BV15: TESTS DE COHERENCES ENTRE CHAMPS DE LA PARTIE PARAMETRE | CI15: TESTS DE COHERENCE ENTRE BASES PARAMETRE AVEC DEPENSES/CONSOMMATIONS | CW15: RATIO PAR RESIDENCE DES DEPENSES / SURFACE … et REPERAGE DES RATIOS "ANORMAUX" | DM15: RATIO PAR RESIDENCE DES CONSOMMATIONS/ SURFACE … et REPERAGE DES RATIOS "ANORMAUX"
A16: Index de la résidence dans la base observatoire NE PAS SAISIR SUR CE CHAMP | B16: Code Organisme (SIREN) | C16: Nom Direction Territoriale de rattachement | D16: Nom Agence de rattachement | E16: Code de la résidence dans la base de gestion locative | F16: Libellé de la résidence | G16: Libellé de la commune de la résidence | H16: Code POSTAL de la commune de la résidence | I16: Code INSEE de la commune de la résidence | J16: Catégorie d'usage de la résidence (LOG/COM/BUR/PKG/MIX) | K16: Surface habitable totale de la résidence | L16: Nombre de logements de la résidence | M16: Nombres de places de stationnement de la résidence | N16: Type de bâtiment (IND/COL/ MIX/IGH) | O16: Localisation géographique (ZUS/HZUS) | P16: Année de construction | Q16: Année de mise en service du groupe | R16: Année de la dernière réhabilitation | S16: Surface chauffée de la résidence | T16: Surface des logements sur lesquels sont réparties les charges d'ascenseur | U16: Surface corrigée totale de la résidence (avant 1998) | V16: Surface utile totale de la résidence (à partir de 1998) | W16: Modalités de facturation de l'eau (IND/COL/MIX) | X16: Existence d'une prestation d'entretien robinetterie (O/N) | Y16: Existence d'une prestation comptage de l'eau froide (O/N) | Z16: Modalités de production de l'eau chaude (IND/COL/MIX) | AA16: Modalités de facturation du chauffage (IND/COL /CU/CEM/MIX/SANS) | AB16: Existence d'une prestation d'entretien du chauffage et ECS (O/N) | AC16: Existence d'une prestation de répartition des frais de chauffage [compteurs/ répartiteurs] (O/N) | AD16: Existence d'une prestation comptage divisionnaire ECS (O/N) | AE16: Existence d'ascenseurs sur la résidence (O/N) | AF16: Prestations d'entretien de propreté [EM&OM] (O/N) | AG16: Prestations d'entretien des espaces verts et aires de jeux (O/N) | AH16: Prestations d'entretien ménager et OM réalisées par personnel de proximité (O/N) | AI16: Prestations d'entretien ménager et OM réalisées par entreprise extérieure (O/N) | AJ16: Modalités d'usage électricité commune (ECL/ASC/ CHA/EQU) | AK16: Existence de taxes ou redevances récupérables (OM/BAL/SANS et OM/BAL) | AL16: Nature de l'énergie chauffage (GN/FOD/FL/GPL/CH/BOIS/GEO/COGE/UIOM/MIX/ELEC/SOL/SANS/AUT) | AM16: Nature de l'énergie de production d'ECS (GN/FOD/FL/GPL/CH/BOIS/GEO/COGE/UIOM/MIX/ELEC/SOL/AUT/SANS) | AN16: Degrés-jours contractuels | AO16: Qualité énergétique du bâti et de l'installation de chauffage [Etiquette énergie de la résidence selon les DPE réalisés (de A à G)] | AP16: Qualité environnementale du bâti et de l'insatallation de chauffage [Etiquette GES de la résidence selon les DPE réalisés (de A à G)] | AQ16: Type de contrat d'exploitation du chauffage : (MF/MT/PF/MC/CP/CPI/REG/PFI/MCI/MFI/MTI/VGR/SYNDIC/AUT/SO) | AR16: Montant total des dépenses d'eau | AS16: Montant des dépenses de fourniture d'eau | AT16: Montant des dépenses de comptage de l'eau (eau froide & chaude) | AU16: Montant des dépenses d'entretien des installations de distribution d'eau | AV16: Montant total des dépenses totales pour le chauffage et l'ECS | AW16: Montant des dépenses de fourniture d'énergie pour le chauffage et l'ECS | AX16: dont montant des dépenses de fourniture d'énergie pour le chauffage | AY16: dont montant des dépenses de fourniture d'énergie pour l'ECS | AZ16: Montant des dépenses de comptage et de répartition des frais de chauffage | BA16: Montant des dépenses d'entretien des installations de production-distribution d'énergie pour le chauffage et l'ECS | BB16: Montant des dépenses d'entretien des ascenseurs | BC16: Montant total des dépenses d'entretien immobilier | BD16: Montant des dépenses de personnel de proximité (salaires - interne) | BE16: Montant des dépenses de produit d'entretien et petites fournitures | BF16: Montant des dépenses des entreprises d'entretien ménagers (contrats + prestations complémentaires et externes) | BG16: Montant des dépenses d'entretien des espaces verts et aire de jeux | BH16: Montant des autres dépenses générales (Tout : VMC, TV, surpresseurs, réseaux, 3D) | BI16: Montant total des dépenses d'électricité des usages généraux | BJ16: Montant total des dépenses de taxes récupérables (OM + balayage) | BK16: Montant total des dépenses affectées aux garages | BL16: Volume total d'eau facturée par le distributeur pour l'eau froide et l'eau chaude sur la résidence | BM16: Volume d'eau privative consommée pour l'eau froide sur la résidence | BN16: Volume d'eau privative consommée pour l'eau chaude sur la résidence | BO16: Eau résiduelle commune (différence : VC-TT-EAU - VC_EFR - VC_ECH) | BP16: Energie totale consommée pour le chauffage et l'eau chaude sur la résidence | BQ16: Energie consommée pour le chauffage sur la résidence | BR16: Energie consommée pour l'eau chaude sur la résidence | BS16: Electricité totale consommée sur la résidence (usages communs) | BT16: Unité des consommations de chauffage | BU16: DJU de la période de chauffage (année civile) | BV16: Test de cohérence du champ 11 (Surface habitable) et le champ 12 (Nombre de logements) selon le champ 14 (Type de bâtiment) (X marque une incohérence ) | BW16: Test de cohérence entre les champs 16 (Année de construction) et 17 (Année de location) (X marque l'incohérence entre les champs) | BX16: Test de cohérence entre les champs 16 (Année de construction) et 18 (Année de Réhabilitation) (X marque l'incohérence entre les champs) | BY16: Test de cohérence sur le champ 9 : code INSEE (X marque un code INSEE "non correct") | BZ16: Test de cohérence entre les champs 23 (Modalités de facturation de l'eau ), 25 (Existence d'une prestation comptage de l'eau froide ou chaude) et 26 (Modalités de production de l'eau chaude) | CA16: Test de cohérence entre les champs 27 (Modalités de facturation du chauffage ), 28 (Existence d'une prestation d'entretien du chauffage et ECS) et 38 (Nature de l'énergie chauffage) | CB16: Test de cohérence entre les champs 27 (Modalités de facturation du chauffage) et 29 (Existence d'une prestation de répartition des frais de chauffage ) (X marque l'incohérence entre les champs) | CC16: Test de cohérence entre les champs 26 (Modalités de production de l'eau chaude) et 30 (Existence d'une prestation comptage divisionnaire ECS) | CD16: Test de cohérence entre les champs 14 (Type de bâtiment) et 31 (Existence d'ascenseurs sur la résidence) (X marque l'incohérence entre les champs) | CE16: Test de cohérence entre les champs 31 (Existence d'ascenseurs sur la résidence) et 36 (Modalités d'usage électricité commune) (X marque l'incohérence entre les champs) | CF16: Test de cohérence entre les champs 8 ou 9 (Code Postal ou Insee) et 37 (Existence de taxes ou redevances récupérables) (X marque l'incohérence entre les champs) | CG16: Test de cohérence entre les champs 38 (Nature de l'énergie chauffage) et 39 (Nature de l'énergie de production d'ECS) et 26 (Modalités de production de l'eau chaude) et 27 (Modalités de facturation du chauffage) (X marque l'incohérence entre les champs) | CH16: Test de cohérence entre les champs 27 (Modalités de facturation du chauffage) et 38 (Nature de l'énergie chauffage) | CI16: Test de cohérence entre les champs 31 (Existence d'ascenseurs sur la résidence) et 54 (Montant des dépenses d'entretien des ascenseurs) | CJ16: Test de cohérence entre les champs 23 (Modalités de facturation de l'eau ) et 64 (Volume total d'eau facturée) et 67 (Eau résiduelle commune) (X marque l'incohérence entre les champs) | CK16: Test de cohérence entre les champs 24 (Existence d'une prestation d'entretien robinetterie) et 47 (Montant des dépenses d'entretien des installations de distribution d'eau) (X marque l'incohérence entre les champs) | CL16: Test de cohérence entre les champs 25 et 30(Existence d'une prestation comptage de l'eau froide ou chaude) et le champ 46 (Montant des dépenses de comptage de l'eau) (X marque l'incohérence entre les champs) | CM16: Test de cohérence entre les champs 26 (Modalités de production de l'eau chaude) et 66 (Volume d'eau privative consommée pour l'eau chaude sur la résidence) (X marque l'incohérence entre les champs) | CN16: Test de cohérence entre les champs 28 (Existence d'une prestation d'entretien du chauffage et ECS) et 53 (Dépenses d'entretien des installations de production-distribution d'énergie pour le chauffage et l'ECS) (X marque l'incohérence entre les champs) | CO16: Test de cohérence entre les champs 29 (Existence d'une prestation de répartition des frais de chauffage ) et 52 (Dépenses de comptage et de répartition des frais de chauffage) (X marque l'incohérence entre les champs) | CP16: Test de cohérence entre les champs 27 (Existence d'une prestation comptage de l'eau froide ou chaude ) et 32 (Existence d'une prestation comptage divisionnaire ECS) (X marque l'incohérence entre les champs) | CQ16: Test de cohérence entre les champs 32 (Prestations d'entretien ménager et d'évacuation des ordures ménagères) et 56(Dépenses de personnel de proximité) et 58 (Dépenses des entreprises d'entretien ménagers) (X marque l'incohérence entre les champs) | CR16: Test de cohérence entre les champs 33 (Prestations d'entretien des espaces verts et aires de jeux) et 59 (Dépenses d'entretien des espaces verts et aire de jeux) (X marque l'incohérence entre les champs) | CS16: Test de cohérence entre les champs 34 (Prestations entretien immobilier réalisées par personnel de proximité ) et 56 (Dépenses de personnel de proximité (salaires - interne)) (X marque l'incohérence entre les champs) | CT16: Test de cohérence entre les champs 35 (Prestations entretien immobilier réalisées par entreprise ) et 58 (Dépenses des entreprises d'entretien ménagers ) (X marque l'incohérence entre les champs) | CU16: Test de cohérence entre les champs 37 (Existence de taxes ou redevances récupérables ) et 62 (Dépenses de taxes récupérables) (X marque l'incohérence entre les champs) | CV16: x | CW16: MD_FO_EAU Montant des dépenses de fournitures d'eau (Champ 45) | CX16: MD_CP_EAU Montant des dépenses de comptage de l'eau (Champ 46) | CY16: MD_EN_EAU Montant des dépenses d'entretien des installations de distribution d'eau (champ 47) | CZ16: MD_FO_CHA Montant des dépenses de fourniture d'énergie pour le chauffage et l'ECS (champ 49) | DA16: MD_CP_CHA Montant des dépenses de comptage et de répartition des frais de chauffage (champ 52) | DB16: MD_FO_CHAUF Montant des dépenses de fourniture d'énergie pour le chauffage (Champ 50) | DC16: MD_FO_ECS Montant des dépenses de fourniture d'énergie pour l'ECS (Champ 51) | DD16: MD_EN_CHA Montant des dépenses d'entretien des installations de production-distribution d'énergie pour le chauffage et l'ECS (champ 53) | DE16: MD_TT_ASC Montant des dépenses d'entretien des ascenseurs (champ 54) | DF16: MD_AU_AIM Montant des autres dépenses générales (Tout : VMC, TV, surpresseurs, réseaux, 3D) (champ 60) | DG16: MD_TT_EOM (MD_PP_EOM+MD_PE_EOM+MD_EE_EOM) Montant total des dépenses de personnel + produit entretien+ entreprises entretien (Champ 56,57 et 58) | DH16: MD_EV_AIM Montant des dépenses d'entretien des espaces verts et aire de jeux (champ 59) | DI16: MD_TT_ELC Montant total des dépenses d'électricité des usages généraux (Champ 61) | DJ16: MD_TT_TAX Montant total des dépenses de taxes récupérables (OM + balayage) (Champ 62) | DK16: MD_TT_PKG Montant total des dépenses affectées aux garages (Champ 63) | DL16: x | DM16: VC_TT_EAU Volume total d'eau facturée par le distributeur (champ 64) | DN16: VC_EFR Volume d'eau privative consommée pour l'eau froide (champ 65) | DO16: VC_EFR Volume d'eau privative consommée pour l'eau chaude (champ 66) | DP16: VC_COM Eau résiduelle commune (champ 67) | DQ16: QE_TT_CHEC Energie total consommée pour le chauffage et l'eau chaude (champ 68) | DR16: QE_CHA Energie total consommée pour le chauffage (champ 69) | DS16: QE_ECH Energie total consommée pour l'eau chaude (champ 70) | DT16: QE_TT_ELC Electricité totale consommée (champ 71) | DU16: CONTRÔLE SAISIE-PARAMETRE | DV16: Contôle Ratio | EG16: CONTRÔLE SAISIE-PARAMETRE | EH16: Contôle Ratio
A17: =IF(AND(B17="",E17=""),"",B17&"/"&E17) -> x/x | B17: x | C17: x | D17: x | E17: x | F17: x | G17: x | H17: x | I17: x | J17: x | K17: x | L17: x | M17: x | N17: x | O17: x | P17: x | Q17: x | S17: x | T17: x | U17: x | V17: x | W17: x | X17: x | Y17: x | Z17: x | AA17: x | AB17: x | AC17: x | AD17: x | AE17: x | AF17: x | AG17: x | AH17: x | AI17: x | AJ17: x | AK17: x | AL17: x | AM17: x | AN17: x | AO17: x | AQ17: x | AR17: =IF(SUM(AS17:AU17)=0,"",SUM(AS17:AU17)) ->  | AS17: x | AT17: x | AU17: x | AV17: =IF((AW17+AZ17+BA17)=0,"",(AW17+AZ17+BA17)) ->  | AW17: =IF((AX17+AY17)=0,"",(AX17+AY17)) ->  | AX17: x | AY17: x | AZ17: x | BA17: x | BB17: x | BC17: =IF(SUM(BD17:BH17)=0,"",SUM(BD17:BH17)) ->  | BD17: x | BE17: x | BF17: x | BG17: x | BH17: x | BI17: x | BJ17: x | BK17: x | BL17: =IF(SUM(BM17:BO17)=0,"",SUM(BM17:BO17)) ->  | BM17: x | BN17: x | BO17: x | BP17: =IF(SUM(BQ17:BR17)=0,"",SUM(BQ17:BR17)) ->  | BQ17: x | BR17: x | BS17: x | BT17: x | BU17: x | BV17: =IF(OR(K17="",L17=""),"",IF(AND(N17="ind",OR(K17/L17<50,K17/L17>180)),"x",IF(AND(N17="col",OR(K17/L17<20,K17/L17>120)),"x",""))) ->  | BW17: =IF(OR(Q17="",P17=""),"",IF(P17>Q17,"x","")) ->  | BX17: =IF(OR(R17="",P17=""),"",IF(P17>R17,"x","")) ->  | BY17: =IF(OR(I17="x",I17=""),"",IF(I17*1=VLOOKUP(I17*1,insee,1),"","x")) ->  | BZ17: =IF(OR(W17="",AND(W17="ind",Y17="n",Z17="ind")),"",IF(AND(W17="IND",Y17<>"N"),"Attention normalement pas de comptage eau",IF(AND(W17="IND",Z17<>"IND"),"Attention normalement production eau chaude individuelle",IF(AND(W17="IND",Y17<>"n",Z17<>"INd"),"Attention normalement pas de comptage eau et production eau chaude individuelle")))) -> FALSE | CA17: =IF(OR(AA17="",AND(AA17="IND",AL17="ELEC")),"",IF(AND(OR(AA17="CU",AA17="CEM",AA17="COL"),AB17<>"O"),"Attention, normalement existence de prestation entretien du chauffage", IF(AND(AA17="IND",AL17="GN",AB17<>"o"),"Attention, normalement existence de prestation entretien du chauffage"))) -> FALSE | CB17: =IF(AND(AC17="O",AA17="IND"),"x","") ->  | CC17: =IF(AND(OR(Z17="col",Z17="mix"),AD17<>"o"),"Attention, il devrait y avoir une prestation comptage divisionnaire ECS",IF(AND(Z17="ind",AD17="o"),"attention chauffage individuelle et existence de prestation","")) ->  | CD17: =IF(AND(N17="ind",AE17="o"),"x","") ->  | CE17: =IF(AJ17="","",IF(AND(AE17="o",OR(AJ17="CHA/ECL",AJ17="CHA/ECL/EQU",AJ17="ecl",AJ17="ECL/EQU")),"x","")) ->  | CF17: =IF(AND(OR(LEFT(H17,2)="75",LEFT(I17,2)="75"),OR(AK17="bal",AK17="Om")),"x","") ->  | CG17: =IF(AND(Z17="col",OR(AA17="col",AA17="CU"),AL17<>AM17),"x","") ->  | CH17: =IF(AND(AA17="ind",OR(AL17="fl",AL17="geo",AL17="coge",AL17="uiom",AL17="mix",AL17="sol",AL17="aut",AL17="sans")),"Problème de nature d'énergie chauffage pour un chauffage de type individuel",IF(AND(AA17="cu",OR(AL17="fod",AL17="gpl",AL17="elec",AL17="sol",AL17="aut",AL17="sans")),"Problème de nature d'énergie chauffage pour un chauffage de type urbain","")) ->  | CI17: =IF(AND(AE17="O",BB17=""),"Existence d'ascenseurs sans dépenses",IF(AND(AE17="N",BB17>0),"Dépenses d'ascenseurs sans existence d'ascenseurs","")) ->  | CJ17: =IF(AND(W17="ind",BL17<>BO17),"X","") ->  | CK17: =IF(AND(X17="O",AU17=""),"X",IF(AND(X17="N",AU17<>""),"X","")) ->  | CL17: =IF(AND(Y17="O",AT17=""),"X",IF(AND(Y17="N",AT17<>"",AD17="N"),"X",IF(AND(AD17="O",AT17=""),"X",""))) ->  | CM17: =IF(AND(Z17="ind",BN17<>""),"X","") ->  | CN17: =IF(AND(AB17="o",BA17=""),"X",IF(AND(AB17="N",BA17<>""),"X","")) ->  | CO17: =IF(AND(AC17="o",AZ17=""),"X",IF(AND(AC17="N",AZ17<>""),"X","")) ->  | CQ17: =IF(AF17="x","",IF(AND(AF17="o",BD17+BF17=0),"X",IF(AND(AF17="N",BD17+BF17>0),"X",""))) ->  | CR17: =IF(AND(AG17="o",BG17=""),"X",IF(AND(AG17="N",BG17<>""),"X","")) ->  | CS17: =IF(AND(AH17="o",BD17=""),"X",IF(AND(AH17="N",BD17<>""),"X","")) ->  | CT17: =IF(AND(AI17="o",BF17=""),"X",IF(AND(AI17="N",BF17<>""),"X","")) ->  | CU17: =IF(AND(AK17="",BJ17=""),"",IF(AND(AK17="sans",BJ17>0),"X",IF(AND(AK17<>"sans",BJ17=""),"X",""))) ->  | CV17: =IF(A17="","",E17&" - "&F17) -> x - x | CW17: =IF(OR(K17="x",K17=0,K17="",AS17=""),"",AS17/K17) ->  | CX17: =IF(OR(K17="x",K17=0,K17="",AT17=""),"",AT17/K17) ->  | CY17: =IF(OR(K17="x",K17=0,K17="",AU17=""),"",AU17/K17) ->  | CZ17: =IF(OR(K17="x",K17=0,K17="",AW17=""),"",AW17/K17) ->  | DA17: =IF(OR(K17="x",K17=0,K17="",AZ17="",AA17="ind",AA17="CEM",AA17="mix",AA17="sans"),"",AZ17/K17) ->  | DB17: =IF(OR(K17="x",K17=0,K17="",AX17=""),"",AX17/K17) ->  | DC17: =IF(OR(K17="x",K17=0,K17="",AY17=""),"",AY17/K17) ->  | DD17: =IF(OR(K17="x",K17=0,K17="",BA17=""),"",BA17/K17) ->  | DE17: =IF(OR(K17="x",K17=0,K17="",BB17=""),"",BB17/K17) ->  | DF17: =IF(OR(K17="x",K17=0,K17="",BH17=""),"",BH17/K17) ->  | DG17: =IF(OR(K17="x",K17=0,K17="",AND(BE17="",BD17="",BF17="")),"",(SUM(BD17:BF17))/K17) ->  | DH17: =IF(OR(K17="x",K17=0,K17="",BG17=""),"",BG17/K17) ->  | DI17: =IF(OR(K17="x",K17=0,K17="",BI17=""),"",BI17/K17) ->  | DJ17: =IF(OR(K17="x",K17=0,K17="",BJ17=""),"",BJ17/K17) ->  | DK17: =IF(OR(M17="x",M17=0,M17="",BK17=""),"",BK17/M17) ->  | DM17: =IF(OR(K17="x",K17=0,K17="",BL17="",W17="IND"),"",BL17/K17) ->  | DN17: =IF(OR(K17="x",K17=0,K17="",BM17="",W17="IND"),"",BM17/K17) ->  | DO17: =IF(OR(K17="x",K17=0,K17="",BN17="",W17="IND"),"",BN17/K17) ->  | DP17: =IF(OR(K17="x",K17=0,K17="",BO17=""),"",BO17/K17) ->  | DQ17: =IF(OR(K17="x",K17=0,K17="",AND(AA17<>"col",AA17<>"cu"),BP17=""),100,BP17/K17) -> 100 | DR17: =IF(OR(K17="x",K17=0,K17="",AND(AA17<>"col",AA17<>"cu"),BQ17=""),100,BQ17/K17) -> 100 | DS17: =IF(OR(K17="x",K17=0,K17="",AND(AA17<>"col",AA17<>"cu"),BR17=""),50,BR17/K17) -> 50 | DT17: =IF(OR(K17="x",K17=0,K17="",BS17=""),"",BS17/K17) -> 
HJ18: CAT_RES | HK18: TYP_BAT | HL18: TYP_ZUS | HM18: MOD_EFR | HN18: OuiNOn | HO18: MOD_ECH | HP18: MOD_CHA | HQ18: MUS_ELC
HJ19: LOG | HK19: IND | HL19: ZUS | HM19: IND | HN19: O | HO19: IND | HP19: IND | HQ19: ASC/CHA/ECL | HR19: Ascenseurs/Chauffage/Eclairage | HU19: =HQ19& " : "&HR19 -> ASC/CHA/ECL : Ascenseurs/Chauffage/Eclairage | IF19: rehab | IJ19: kWh PCI | IK19: kWh
HJ20: COM | HK20: COL | HL20: HZUS | HM20: COL | HN20: N | HO20: COL | HP20: COL | HQ20: ASC/CHA/ECL/EQU | HR20: Ascenseurs/Chauffage/Eclairage/Autres équipements | HU20: ASC/CHA/ECL/EQU : Ascenseurs/Chauffage/Eclairage/Autres équipements | IF20: Non renseigné | IJ20: kWh PCS
HJ21: BUR | HK21: MIX | HM21: MIX | HO21: MIX | HP21: CU | HQ21: ASC/ECL | HR21: Ascenseurs/Eclairage | HU21: ASC/ECL : Ascenseurs/Eclairage | IF21: Non réhabilité | IJ21: kWh TH.
HJ22: PKG | HK22: IGH | HP22: CEM | HQ22: ASC/ECL/EQU | HR22: Ascenseurs/Eclairage/Autres équipements | HU22: ASC/ECL/EQU : Ascenseurs/Eclairage/Autres équipements | IF22: 1920 | IJ22: kWh él.
HJ23: MIX | HP23: MIX | HQ23: CHA/ECL | HR23: Chauffage/Eclairage | HU23: CHA/ECL : Chauffage/Eclairage | IF23: 1921 | IJ23: MWh | IK23: MWh
HP24: SANS | HQ24: CHA/ECL/EQU | HR24: Chauffage/Eclairage/Autres équipements | HU24: CHA/ECL/EQU : Chauffage/Eclairage/Autres équipements | IF24: 1922 | IJ24: M3GN | IK24: m3 (GN)
HQ25: ECL | HR25: Eclairage | HU25: ECL : Eclairage | IF25: 1923 | IJ25: LITRES | IK25: litres
HQ26: ECL/EQU | HR26: Eclairage/Autres équipements | HU26: ECL/EQU : Eclairage/Autres équipements | IF26: 1924 | IJ26: HLFOD | IK26: hectolitres
IF27: 1925 | IJ27: M3FOD | IK27: m3 (FOD)
IF28: 1926 | IJ28: KG | IK28: kg
IF29: 1927 | IJ29: TONNES | IK29: Tonnes
IF30: 1928 | IJ30: TVAPEUR | IK30: Tonnes-vapeur
HJ31: EXP_TAX | HK31: Nat_CHA | HN31: CHA_QEB | HP31: CHA_TCEX | IF31: 1929 | IJ31: M3GPL | IK31: m3 (GPL)
HJ32: OM | HK32: GN | HL32: Gaz naturel | HN32: A | HP32: MF | IF32: 1930 | IJ32: Inconnu
HJ33: BAL | HK33: FOD | HL33: Foil Oil Domestique | HN33: B | HP33: MT | IF33: 1931
HJ34: OM/Bal | HK34: FL | HL34: Fioul Lourd | HN34: c | HP34: PF | IF34: 1932
HJ35: Sans | HK35: GPL | HL35: Propane ou butane | HN35: D | HP35: MC | IF35: 1933
HK36: CH | HL36: Charbon | HN36: E | HP36: CP | IF36: 1934
HK37: BOIS | HL37: Biomasse | HN37: F | HP37: CPI | HT37: OuiNOn | IF37: 1935
HK38: GEO | HL38: Géoth. | HN38: G | HP38: REG | HT38: O | HV38: ANRU | IF38: 1936
HK39: COGE | HL39: Cogénération | HP39: PFI | HT39: N | HV39: HANRU | IF39: 1937
HK40: UIOM | HL40: Usine Incinération des Ordures Ménagères | HP40: MCI | IF40: 1938
HK41: MIX | HL41: Mix énergétique | HP41: MFI | IF41: 1939
HK42: ELEC | HL42: Elec Tarif Vert | HP42: MTI | IF42: 1940
HK43: SOL | HL43: ECS solaire | HP43: VGR | IF43: 1941
HK44: SANS | HL44: Sans chauffage | HP44: SYNDIC | IF44: 1942
HK45: AUT | HL45: Autre énergie | HP45: AUT | IF45: 1943
HP46: SO | IF46: 1944
IF47: 1945
IF48: 1946
IF49: 1947
IF50: 1948
IF51: 1949
IF52: 1950
IF53: 1951
IF54: 1952
IF55: 1953
IF56: 1954
IF57: 1955
IF58: 1956
IF59: 1957
IF60: 1958
IF61: 1959
IF62: 1960
IF63: 1961
IF64: 1962
IF65: 1963
IF66: 1964
IF67: 1965
IF68: 1966
IF69: 1967
IF70: 1968
IF71: 1969
IF72: 1970
IF73: 1971
IF74: 1972
IF75: 1973
IF76: 1974
IF77: 1975
IF78: 1976
IF79: 1977
IF80: 1978
IF81: 1979
IF82: 1980
IF83: 1981
IF84: 1982
IF85: 1983
IF86: 1984
IF87: 1985
IF88: 1986
IF89: 1987
IF90: 1988
IF91: 1989
IF92: 1990
IF93: 1991
IF94: 1992
IF95: 1993
IF96: 1994
IF97: 1995
IF98: 1996
IF99: 1997
IF100: 1998
IF101: 1999
IF102: 2000
IF103: 2001
IF104: 2002
IF105: 2003
IF106: 2004
IF107: 2005
IF108: 2006
IF109: 2007
IF110: 2008
IF111: 2009
IF112: 2010
IF113: 2011
IF114: 2012
IF115: 2013

Sheet OCL _Champs renseignés
A1: Code libéllé | B1: Libéllé champ | C1: Nombre d'itérations | D1: % de renseignés | E1: moyenne : | F1: =AVERAGE(D:D) -> 
A2: Index | B2: Index de la résidence dans la base observatoire | C2: =OCL_Saisie!A14 -> 0 | D2: -
A3: COD_DTR | B3: Code Organisme (SIREN) | C3: =OCL_Saisie!B14 -> 0 | D3: =IF($C$2=0,"-",C3/$C$2) -> -
A4: COD_DTR | B4: Code Direction territoriale dans la base de gestion locative | C4: =OCL_Saisie!C14 -> 0 | D4: -
A5: COD_GLT | B5: Code Gestion locale dans la base de gestion locative | C5: =OCL_Saisie!D14 -> 0 | D5: -
A6: COD_RES | B6: Code de la résidence dans la base de gestion locative | C6: =OCL_Saisie!E14 -> 0 | D6: -
A7: LIB_RES | B7: Libellé de la résidence | C7: =OCL_Saisie!F14 -> 0 | D7: -
A8: COM_RES | B8: Libellé de la commune de la résidence | C8: =OCL_Saisie!G14 -> 0 | D8: -
A9: CPO_RES | B9: Code POSTAL de la commune de la résidence | C9: =OCL_Saisie!H14 -> 0 | D9: -
A10: CIN_RES | B10: Code INSEE de la commune de la résidence | C10: =OCL_Saisie!I14 -> 0 | D10: -
A11: CAT_RES | B11: Catégorie d'usage de la résidence (LOG/COM/BUR/PKG/MIX) | C11: =OCL_Saisie!J14 -> 0 | D11: -
A12: SU_HAB | B12: Surface habitable totale de la résidence | C12: =OCL_Saisie!K14 -> 0 | D12: -
A13: NB_LGT | B13: Nombre de logements de la résidence | C13: =OCL_Saisie!L14 -> 0 | D13: -
A14: NB_PKG | B14: Nombres de places de stationnement de la résidence | C14: =OCL_Saisie!M14 -> 0 | D14: -
A15: TYP_BAT | B15: Type de bâtiment (IND/COL/ MIX/IGH) | C15: =OCL_Saisie!N14 -> 0 | D15: -
A16: TYP_ZUS | B16: Localisation géographique (ZUS/HZUS) | C16: =OCL_Saisie!O14 -> 0 | D16: =IF($C$2=0,"-",C16/$C$2) -> -
A17: DT_CON | B17: Année de construction | C17: =OCL_Saisie!P14 -> 0 | D17: -
A18: DT_MES | B18: Année de mise en service du groupe | C18: =OCL_Saisie!Q14 -> 0 | D18: -
A19: DT_REHAB | B19: Année de la dernière réhabilitation | C19: =OCL_Saisie!R14 -> 0 | D19: =IF($C$2=0,"-",C19/$C$2) -> -
A20: SU_CHA | B20: Surface chauffée de la résidence | C20: =OCL_Saisie!S14 -> 0 | D20: -
A21: SU_ASC | B21: Surface des logements sur lesquels sont réparties les charges d'ascenseur | C21: =OCL_Saisie!T14 -> 0 | D21: -
A22: SU_COR | B22: Surface corrigée totale de la résidence (avant 1998) | C22: =OCL_Saisie!U14 -> 0 | D22: -
A23: SU_UTI | B23: Surface utile totale de la résidence (à partir de 1998) | C23: =OCL_Saisie!V14 -> 0 | D23: -
A24: MOD_EFR | B24: Modalités de facturation de l'eau (IND/COL/MIX) | C24: =OCL_Saisie!W14 -> 0 | D24: -
A25: EXP_ENE | B25: Existence d'une prestation d'entretien robinetterie (O/N) | C25: =OCL_Saisie!X14 -> 0 | D25: -
A26: EXP_CPE | B26: Existence d'une prestation comptage de l'eau froide (O/N) | C26: =OCL_Saisie!Y14 -> 0 | D26: -
A27: MOD_ECH | B27: Modalités de production de l'eau chaude (IND/COL/MIX) | C27: =OCL_Saisie!Z14 -> 0 | D27: -
A28: MOD_CHA | B28: Modalités de facturation du chauffage (IND/COL /CU/CEM/MIX/SANS) | C28: =OCL_Saisie!AA14 -> 0 | D28: -
A29: EXP_CHA | B29: Existence d'une prestation d'entretien du chauffage et ECS (O/N) | C29: =OCL_Saisie!AB14 -> 0 | D29: -
A30: EXP_CPC | B30: Existence d'une prestation de répartition des frais de chauffage [compteurs/ répartiteurs] (O/N) | C30: =OCL_Saisie!AC14 -> 0 | D30: -
A31: EXP_CPS | B31: Existence d'une prestation comptage divisionnaire ECS (O/N) | C31: =OCL_Saisie!AD14 -> 0 | D31: -
A32: EXP_ASC | B32: Existence d'ascenseurs sur la résidence (O/N) | C32: =OCL_Saisie!AE14 -> 0 | D32: -
A33: PRS_ENM | B33: Prestations d'entretien de propreté [EM&OM] (O/N) (O/N) | C33: =OCL_Saisie!AF14 -> 0 | D33: -
A34: PRS_EEX | B34: Prestations d'entretien des espaces verts et aires de jeux (O/N) | C34: =OCL_Saisie!AG14 -> 0 | D34: -
A35: PRS_PSO | B35: Prestations d'entretien ménager et OM réalisées par personnel de proximité (O/N) | C35: =OCL_Saisie!AH14 -> 0 | D35: -
A36: PRS_ENT | B36: Prestations d'entretien ménager et OM réalisées par entreprise extérieure (O/N) | C36: =OCL_Saisie!AI14 -> 0 | D36: -
A37: MUS_ELC | B37: Modalités d'usage électricité commune (ECL/ASC/ CHA/EQU) | C37: =OCL_Saisie!AJ14 -> 0 | D37: -
A38: EXP_TAX | B38: Existence de taxes ou redevances récupérables (OM/BAL/SANS et OM/BAL) | C38: =OCL_Saisie!AK14 -> 0 | D38: -
A39: NAT_CHA | B39: Nature de l'énergie chauffage (GN/FOD/FL/GPL/CH/BOIS/GEO/COGE/UIOM/MIX/ELEC/SOL/SANS/AUT)* | C39: =OCL_Saisie!AL14 -> 0 | D39: =IF(OR(ISERROR(C39/(U39+V39+W39+X39))=TRUE,$C$2=0),"-",IF(C39/(U39+V39+W39+X39)>1,"100%",C39/(U39+V39+W39+X39))) -> - | U39: =COUNTIFS(OCL_Saisie!AA18:AA444,"CU") -> 0 | V39: =COUNTIF(OCL_Saisie!AA18:AA444,"COL") -> 0 | W39: =COUNTIF(OCL_Saisie!AA18:AA444,"MIX") -> 0 | X39: =COUNTIF(OCL_Saisie!AA18:AA444,"CEM") -> 0 | Y39: =COUNTIF(OCL_Saisie!AA18:AA444,"IND") -> 0 | Z39: =COUNTIF(OCL_Saisie!AA18:AA444,"SANS") -> 0
A40: NAT_ECS | B40: Nature de l'énergie de production d'ECS (GN/FOD/FL/GPL/CH/BOIS/GEO/COGE/UIOM/MIX/ELEC/SOL/AUT/SANS)** | C40: =OCL_Saisie!AM14 -> 0 | D40: =IF(OR(ISERROR(C40/(U40+V40))=TRUE,$C$2=0),"-",IF(C40/(U40+V40)>1,"100%",C40/(U40+V40))) -> - | U40: =COUNTIFS(OCL_Saisie!Z18:Z444,"COl") -> 0 | V40: =COUNTIFS(OCL_Saisie!Z18:Z444,"mix") -> 0 | Y40: =COUNTIFS(OCL_Saisie!Z18:Z444,"ind") -> 0
A41: CHA_DJU_C | B41: Degrés-jours contractuels | C41: =OCL_Saisie!AN14 -> 0 | D41: -
A42: CHA_QEB | B42: Qualité énergétique du bâti et de l'installation de chauffage [Etiquette énergie de la résidence selon les DPE réalisés (de A à G)] | C42: =OCL_Saisie!AO14 -> 0 | D42: -
A43: CHA_GES | B43: Qualité environnementale du bâti et de l'insatallation de chauffage [Etiquette GES de la résidence selon les DPE réalisés (de A à G)] | C43: =OCL_Saisie!AP14 -> 0 | D43: -
A44: CHA_TCEX | B44: Type de contrat d'exploitation du chauffage : (MF/MT/PF/MC/CP/CPI/REG/PFI/MCI/MFI/MTI/VGR/SYNDIC/AUT/SO) | C44: =OCL_Saisie!AQ14 -> 0 | D44: -
A47: * % de renseignés calculé sur nombre de résidences avec modalités de facturation du chauffage différent "Individuel" ou "Sans"
A48: ** % de renseignés calculé sur nombre de résidences avec modalités de production de l'eau chaude différent "Individuel"

Sheet OCL_Tests
G1: 0.33 | H1: =AVERAGE(F:F) -> 
N4: =lecture+C12+C13+C15+C17+C18+C19+C20+C21+C22+C23+C24+C25+C26+C27+C28+C29+C30 -> 0
B8: Mise en cohérence de certaines variables | C8: Nbre d'enregistrements | D8: Nature de l'incohérence | E8: Lien hyper texte | F8: % "d'incohérences" | G8: Exemple de lecture :
F9: trouvées
A10: TESTS DE COHERENCES ENTRE CHAMPS DE LA PARTIE PARAMETRE | B10: Contrôle de saisie | C10: =COUNTIF(OCL_Saisie!DU$1:DU$444,"Erreur de saisie") -> 0 | D10: Erreur de saisie | E10: Voir par filtre les "erreurs" trouvées | G10: =" Sur l'onglet <Tableau de Saisie>, il y a " & lecture2& " enregistrement(s) sur lesquel(s) il y a une <erreur> de saisie ...voir ce(s) enregistrement(s) sur l'onglet < Tableau de saisie> en sélectionnant " &" les <Erreur de saisie> par le filtre du champ <Contrôle de saisie>. Vous pouvez atteindre ce champ en cliquant sur le lien hyper texte." -> Sur l'onglet <Tableau de Saisie>, il y a 0 enregistrement(s) sur lesquel(s) il y a une <erreur> de saisie ...voir ce(s) enregistrement(s) sur l'onglet < Tableau de saisie> en sélectionnant les <Erreur de saisie> par le filtre du champ <Contrôle de saisie>. Vous pouvez atteindre ce champ en cliquant sur le lien hyper texte.
B11: Test de cohérence du champ 12 (Surface habitable) et le champ 13 (Nombre de logements) selon le champ 15 (Type de bâtiment) (X marque une incohérence ) | C11: =COUNTIF(OCL_Saisie!BV$1:BV$444,"X") -> 0 | D11: Si pour logement individuel ratio >180 ou < 50 Si pour logement collectif ratio > 120 ou < 20 | E11: Voir par filtre les "incohérences" trouvées | F11: =COUNTIF(OCL_Saisie!BV18:BV444,"x")/COUNTA(OCL_Saisie!K18:K444) ->  | G11: =" Sur l'onglet <Tableau de Saisie>, il y a " & lecture& " enregistrement(s) sur lesquel(s) le ratio Surface habitable/Nombre de logement peut paraître incohérent ...voir ce(s) enregistrement(s) sur l'onglet " &" < Tableau de saisie> en sélectionnant les <X>par le filtre de ce champ . Vous pouvez atteindre ce champ en cliquant sur le lien hyper texte." -> Sur l'onglet <Tableau de Saisie>, il y a 0 enregistrement(s) sur lesquel(s) le ratio Surface habitable/Nombre de logement peut paraître incohérent ...voir ce(s) enregistrement(s) sur l'onglet < Tableau de saisie> en sélectionnant les <X>par le filtre de ce champ . Vous pouvez atteindre ce champ en cliquant sur le lien hyper texte.
B12: Test de cohérence entre les champs 18 (Année de construction) et 20 (Année de Réhabilitation) (X marque l'incohérence entre les champs) | C12: =COUNTIF(OCL_Saisie!BX$1:BX$444,"X") -> 0 | D12: Attention problème car année de réhabilitation > Année de construction | E12: Voir par filtre les "incohérences" trouvées | F12: =COUNTIF(OCL_Saisie!BX18:BX444,"x")/COUNTA(OCL_Saisie!R18:R444) -> 
B13: Test de cohérence entre les champs 18 (Année de construction) et 19 (Année de location) (X marque l'incohérence entre les champs) | C13: =COUNTIF(OCL_Saisie!BW$1:BW$444,"X") -> 0 | D13: Attention problème car mise en location > Année de construction | E13: Voir par filtre les "incohérences" trouvées | F13: =COUNTIF(OCL_Saisie!BW18:BW444,"x")/COUNTA(OCL_Saisie!Q18:Q444) -> 
B14: Test de cohérence entre les champs 11 (Surface habitable) et 19 (Surface ascenseur) (X marque l'incohérence entre les champs) | D14: Attention problème car surface ascenseur > surface habitable | E14: Voir par filtre les "incohérences" trouvées | F14: =COUNTIF(OCL_Saisie!BB19:BB444,"x")/COUNTA(OCL_Saisie!S19:S444) -> 
B17: Test de cohérence entre les champs 25 (Modalités de facturation de l'eau ), 27 (Existence d'une prestation comptage de l'eau froide ou chaude) et 28 (Modalités de production de l'eau chaude) | C17: =COUNTIF(OCL_Saisie!BZ$1:BZ$444,"Attention normalement production eau chaude individuelle") -> 0 | D17: Attention normalement production eau chaude Individuelle | E17: Voir par filtre les "incohérences" trouvées | F17: =COUNTIF(OCL_Saisie!BZ18:BZ444,"Attention normalement production eau chaude individuelle")/COUNTA(OCL_Saisie!W18:W444) -> 
C18: =COUNTIF(OCL_Saisie!BZ$1:BZ$444,"Attention normalement pas de comptage eau") -> 0 | D18: Attention normalement pas de comptage eau | E18: Voir par filtre les "incohérences" trouvées | F18: =COUNTIF(OCL_Saisie!BZ18:BZ444,"Attention normalement pas de comptage eau")/COUNTA(OCL_Saisie!W18:W444) -> 
C19: =COUNTIF(OCL_Saisie!BZ$1:BZ$444,"Attention normalement pas de comptage eau et production eau chaude individuelle") -> 0 | D19: Attention normalement pas de comptage eau et production eau chaude individuelle | E19: Voir par filtre les "incohérences" trouvées | F19: =COUNTIF(OCL_Saisie!BZ18:BZ444,"Attention normalement pas de comptage eau et production eau chaude individuelle")/COUNTA(OCL_Saisie!W18:W444) -> 
B20: Test de cohérence entre les champs 29 (Modalités de facturation du chauffage ), 30 (Existence d'une prestation d'entretien du chauffage et ECS) et 40 (Nature de l'énergie chauffage) | C20: =COUNTIF(OCL_Saisie!CA$1:CA$444,"Attention, normalement existence de prestation entretien du chauffage") -> 0 | D20: Attention, normalement existence de prestation entretien du chauffage | E20: Voir par filtre les "incohérences" trouvées | F20: =COUNTIF(OCL_Saisie!CA18:CA444,"Attention, normalement existence de prestation entretien du chauffage")/COUNTA(OCL_Saisie!AA18:AA444) -> 
B22: Test de cohérence entre les champs 29 (Modalités de facturation du chauffage) et 31 (Existence d'une prestation de répartition des frais de chauffage ) (X marque l'incohérence entre les champs) | C22: =COUNTIF(OCL_Saisie!CB$1:CB$444,"x") -> 0 | D22: Il ne peut pas avoir production individuelle du chauffage et une prestation de répartition des frais de chauffage | E22: Voir par filtre les "incohérences" trouvées | F22: =COUNTIF(OCL_Saisie!CB18:CB444,"x")/COUNTA(OCL_Saisie!AC18:AC444) -> 
B23: Test de cohérence entre les champs 28 (Modalités de production de l'eau chaude) et 32 (Existence d'une prestation comptage divisionnaire ECS) | C23: =COUNTIF(OCL_Saisie!CC$1:CC$444,"Attention, il devrait y avoir une prestation comptage divisionnaire ECS") -> 0 | D23: Attention, il devrait y avoir une prestation comptage divisionnaire ECS | E23: Voir par filtre les "incohérences" trouvées | F23: =COUNTIF(OCL_Saisie!CC18:CC444,"Attention, il devrait y avoir une prestation comptage divisionnaire ECS")/COUNTA(OCL_Saisie!AD18:AD444) -> 
C24: =COUNTIF(OCL_Saisie!CC$1:CC$444,"Attention chauffage individuelle et existence de prestation") -> 0 | D24: Attention chauffage individuelle et existence de prestation | E24: Voir par filtre les "incohérences" trouvées | F24: =COUNTIF(OCL_Saisie!CC18:CC444,"attention chauffage individuelle et existence de prestation")/COUNTA(OCL_Saisie!AD18:AD444) -> 
B25: Test de cohérence entre les champs 15 (Type de bâtiment) et 33 (Existence d'ascenseurs sur la résidence) (X marque l'incohérence entre les champs) | C25: =COUNTIF(OCL_Saisie!CD$1:CD$444,"x") -> 0 | D25: Attention présence d'ascenseur dans logement individuel | E25: Voir par filtre les "incohérences" trouvées | F25: =COUNTIF(OCL_Saisie!CD18:CD444,"x")/COUNTA(OCL_Saisie!AE18:AE444) -> 
B26: Test de cohérence entre les champs 33 (Existence d'ascenseurs sur la résidence) et 38 (Modalités d'usage électricité commune) (X marque l'incohérence entre les champs) | C26: =COUNTIF(OCL_Saisie!CE$1:CE$444,"x") -> 0 | D26: Attention existence d'ascenseurs sans électricité pour les ascenseurs | E26: Voir par filtre les "incohérences" trouvées | F26: =COUNTIF(OCL_Saisie!CE18:CE444,"x")/COUNTA(OCL_Saisie!AJ18:AJ444) -> 
B27: Test de cohérence entre les champs 8 ou 9 (Code Postal ou Insee) et 39 (Existence de taxes ou redevances récupérables) (X marque l'incohérence entre les champs) | C27: =COUNTIF(OCL_Saisie!CF$1:CF$444,"x") -> 0 | D27: Attention résidence sur Paris, codage OM/BAL | E27: Voir par filtre les "incohérences" trouvées | F27: =COUNTIF(OCL_Saisie!CF18:CF444,"x")/COUNTA(OCL_Saisie!AK18:AK444) -> 
B28: Test de cohérence entre les champs 40 (Nature de l'énergie chauffage) et 41 (Nature de l'énergie de production d'ECS) et 28 (Modalités de production de l'eau chaude) et 29 (Modalités de facturation du chauffage) (X marque l'incohérence entre les champs) | C28: =COUNTIF(OCL_Saisie!CG$1:CG$444,"x") -> 0 | D28: Le champ 40 doit correspondre au champ 41 | E28: Voir par filtre les "incohérences" trouvées | F28: =COUNTIF(OCL_Saisie!CG18:CG444,"x")/COUNTA(OCL_Saisie!Z18:Z444) -> 
B29: Test de cohérence entre les champs 29 (Modalités de facturation du chauffage) et 40 (Nature de l'énergie chauffage) | C29: =COUNTIF(OCL_Saisie!CH$1:CH$444,"Problème de nature d'énergie chauffage pour un chauffage de type individuel") -> 0 | D29: Problème de nature d'énergie chauffage pour un chauffage de type individuel | E29: Voir par filtre les "incohérences" trouvées | F29: =(COUNTIF(OCL_Saisie!CH18:CH444,"Problème de nature d'énergie chauffage pour un chauffage de type individuel")/(COUNTA(OCL_Saisie!AA18:AA444))) -> 
C30: =COUNTIF(OCL_Saisie!CH$1:CH$444,"Problème de nature d'énergie chauffage pour un chauffage de type urbain") -> 0 | D30: Problème de nature d'énergie chauffage pour un chauffage de type urbain | E30: Voir par filtre les "incohérences" trouvées | F30: =(COUNTIF(OCL_Saisie!CH18:CH444,"Problème de nature d'énergie chauffage pour un chauffage de type urbainl")/(COUNTA(OCL_Saisie!AA18:AA444))) -> 
A32: TESTS DE COHERENCE ENTRE BASES PARAMETRE AVEC DEPENSES/CONSOMMATIONS | B32: Test de cohérence entre les champs 33 (Existence d'ascenseurs sur la résidence) et 56 (Montant des dépenses d'entretien des ascenseurs) | C32: =COUNTIF(OCL_Saisie!CI:CI,"Existence d'ascenseurs sans dépenses") -> 0 | D32: Existence d'ascenseurs sans dépenses | E32: Voir par filtre les "incohérences constatées" | F32: =IF(OR(COUNTIF(OCL_Saisie!CI18:CI444,"Existence d'ascenseurs sans dépenses")>COUNTA(OCL_Saisie!AE18:AE444),C32=0),"-",COUNTIF(OCL_Saisie!CI18:CI444,"Existence d'ascenseurs sans dépenses")/COUNTA(OCL_Saisie!AE18:AE444)) -> -
C33: =COUNTIF(OCL_Saisie!CI:CI,"Dépenses d'ascenseurs sans existence d'ascenseurs") -> 0 | D33: Dépenses d'ascenseurs sans existence d'ascenseurs | E33: Voir par filtre les "incohérences constatées" | F33: =IF(OR(COUNTIF(OCL_Saisie!CI18:CI444,"Dépenses d'ascenseurs sans existence d'ascenseurs")>COUNTA(OCL_Saisie!AE18:AE444),C33=0),"-",COUNTIF(OCL_Saisie!CI18:CI444,"Dépenses d'ascenseurs sans existence d'ascenseurs")/COUNTA(OCL_Saisie!AE18:AE444)) -> -
B34: Test de cohérence entre les champs 25 (Modalités de facturation de l'eau ) et 66 (Volume total d'eau facturée) et 69 (Eau résiduelle commune) (X marque l'incohérence entre les champs) | C34: =COUNTIF(OCL_Saisie!CJ:CJ,"x") -> 0 | D34: Facturation individuelle d'eau et consommation d'eau sur les parties communes différent de la consommation totale d'eau | E34: Voir par filtre les "incohérences constatées" | F34: =IF(OR(COUNTIF(OCL_Saisie!CJ18:CJ444,"x")>COUNTA(OCL_Saisie!W18:W444),C34=0),"-",COUNTIF(OCL_Saisie!CJ18:CJ444,"x")/COUNTA(OCL_Saisie!W18:W444)) -> -
B35: Test de cohérence entre les champs 26 (Existence d'une prestation d'entretien robinetterie) et 49 (Montant des dépenses d'entretien des installations de distribution d'eau) (X marque l'incohérence entre les champs) | C35: =COUNTIF(OCL_Saisie!CK:CK,"X") -> 0 | D35: Incohérence entre dépenses d'entretien des installations de distribution d'eau/Existence prestation entretien robinetterie | E35: Voir par filtre les "incohérences constatées" | F35: =IF(OR(COUNTIF(OCL_Saisie!CK18:CK444,"x")>COUNTA(OCL_Saisie!X18:X444),C35=0),"-",COUNTIF(OCL_Saisie!CK18:CK444,"x")/COUNTA(OCL_Saisie!X18:X444)) -> -
B36: Test de cohérence entre les champs 27 et 32(Existence d'une prestation comptage de l'eau froide ou chaude) et le champ 48 (Montant des dépenses de comptage de l'eau) (X marque l'incohérence entre les champs) | C36: =COUNTIF(OCL_Saisie!CL:CL,"X") -> 0 | D36: Incohérence entre dépenses de comptage de l'eau/Existence d'une prestation comptage de l'eau | E36: Voir par filtre les "incohérences constatées" | F36: =IF(OR(COUNTIF(OCL_Saisie!CL18:CL444,"x")>COUNTA(OCL_Saisie!Y18:Y444),C36=0),"-",COUNTIF(OCL_Saisie!CL18:CL444,"x")/COUNTA(OCL_Saisie!Y18:Y444)) -> -
B37: Test de cohérence entre les champs 28 (Modalités de production de l'eau chaude) et 68 (Volume d'eau privative consommée pour l'eau chaude sur la résidence) (X marque l'incohérence entre les champs) | C37: =COUNTIF(OCL_Saisie!CM:CM,"X") -> 0 | D37: Production d'eau chaude individuelle avec consommation d'eau chaude | E37: Voir par filtre les "incohérences constatées" | F37: =IF(OR(COUNTIF(OCL_Saisie!CM18:CM444,"x")>COUNTA(OCL_Saisie!Z18:Z444),C37=0),"-",COUNTIF(OCL_Saisie!CM18:CM444,"x")/COUNTA(OCL_Saisie!Z18:Z444)) -> -
B38: Test de cohérence entre les champs 30 (Existence d'une prestation d'entretien du chauffage et ECS) et 55 (Dépenses d'entretien des installations de production-distribution d'énergie pour le chauffage et l'ECS) (X marque l'incohérence entre les champs) | C38: =COUNTIF(OCL_Saisie!CN:CN,"X") -> 0 | D38: Incohérence entre prestation d'entretien de chauffage et ECS/dépenses d'entretien des installations de production/distribution d'énergie | E38: Voir par filtre les "incohérences constatées" | F38: =IF(OR(COUNTIF(OCL_Saisie!CN18:CN444,"x")>COUNTA(OCL_Saisie!AB18:AB444),C38=0),"-",COUNTIF(OCL_Saisie!CN18:CN444,"x")/COUNTA(OCL_Saisie!AB18:AB444)) -> -
B39: Test de cohérence entre les champs 31 (Existence d'une prestation de répartition des frais de chauffage ) et 54 (Dépenses de comptage et de répartition des frais de chauffage) (X marque l'incohérence entre les champs) | C39: =COUNTIF(OCL_Saisie!CO:CO,"X") -> 0 | D39: Incohérence entre prestation de répartition des frais de chauffage/dépenses de comptage et de répartition des frais de chauffage | E39: Voir par filtre les "incohérences constatées" | F39: =IF(OR(COUNTIF(OCL_Saisie!CO18:CO444,"x")>COUNTA(OCL_Saisie!AC18:AC444),C39=0),"-",COUNTIF(OCL_Saisie!CO18:CO444,"x")/COUNTA(OCL_Saisie!AC18:AC444)) -> -
B40: Test de cohérence entre les champs 27 (Existence d'une prestation comptage de l'eau froide ou chaude ) et 32 (Existence d'une prestation comptage divisionnaire ECS) (X marque l'incohérence entre les champs) | D40: Incohérence entre prestation comptage divisionnaire ECS/prestation comptage eau froide et eau chaude | E40: Voir par filtre les "incohérences constatées" | F40: =IF(OR(COUNTIF(OCL_Saisie!CP18:CP444,"x")>COUNTA(OCL_Saisie!AD18:AD444),C40=0),"-",COUNTIF(OCL_Saisie!CP18:CP444,"x")/COUNTA(OCL_Saisie!AD18:AD444)) -> -
B41: Test de cohérence entre les champs 34 (Prestations d'entretien ménager et d'évacuation des ordures ménagères) et 58(Dépenses de personnel de proximité) et 60 (Dépenses des entreprises d'entretien ménagers) (X marque l'incohérence entre les champs) | C41: =COUNTIF(OCL_Saisie!CQ:CQ,"X") -> 0 | D41: Incohérence entre prestations d'entretien ménager et d'évacuation des ordures ménagères/dépenses de personnel de proximité ou entreprises | E41: Voir par filtre les "incohérences constatées" | F41: =IF(OR(COUNTIF(OCL_Saisie!CQ18:CQ444,"x")>COUNTA(OCL_Saisie!AF18:AF444),C41=0),"-",COUNTIF(OCL_Saisie!CQ18:CQ444,"x")/COUNTA(OCL_Saisie!AF18:AF444)) -> -
B42: Test de cohérence entre les champs 35 (Prestations d'entretien des espaces verts et aires de jeux) et 61 (Dépenses d'entretien des espaces verts et aire de jeux) (X marque l'incohérence entre les champs) | C42: =COUNTIF(OCL_Saisie!CR:CR,"X") -> 0 | D42: Incohérence entre prestations d'entretien des espaces verts et aires de jeux/dépenses d'entretien des espaces verts et aire de jeux | E42: Voir par filtre les "incohérences constatées" | F42: =IF(OR(COUNTIF(OCL_Saisie!CR18:CR444,"x")>COUNTA(OCL_Saisie!AG18:AG444),C42=0),"-",COUNTIF(OCL_Saisie!CR18:CR444,"x")/COUNTA(OCL_Saisie!AG18:AG444)) -> -
B43: Test de cohérence entre les champs 36 (Prestations entretien immobilier réalisées par personnel de proximité ) et 58 (Dépenses de personnel de proximité (salaires - interne)) (X marque l'incohérence entre les champs) | C43: =COUNTIF(OCL_Saisie!CS:CS,"X") -> 0 | D43: Incohérence entre prestations entretien immobilier réalisées par personnel de proximité/dépenses de personnel de proximité | E43: Voir par filtre les "incohérences constatées" | F43: =IF(OR(COUNTIF(OCL_Saisie!CS18:CS444,"x")>COUNTA(OCL_Saisie!AH18:AH444),C43=0),"-",COUNTIF(OCL_Saisie!CS18:CS444,"x")/COUNTA(OCL_Saisie!AH18:AH444)) -> -
B44: Test de cohérence entre les champs 37 (Prestations entretien immobilier réalisées par entreprise ) et 60 (Dépenses des entreprises d'entretien ménagers ) (X marque l'incohérence entre les champs) | C44: =COUNTIF(OCL_Saisie!CT:CT,"X") -> 0 | D44: Incohérence entre prestations entretien immobilier réalisées par entreprise/dépenses des entreprises d'entretien ménagers | E44: Voir par filtre les "incohérences constatées" | F44: =IF(OR(COUNTIF(OCL_Saisie!CT18:CT444,"x")>COUNTA(OCL_Saisie!AI18:AI444),C44=0),"-",COUNTIF(OCL_Saisie!CT18:CT444,"x")/COUNTA(OCL_Saisie!AI18:AI444)) -> -
B45: Test de cohérence entre les champs 39 (Existence de taxes ou redevances récupérables ) et 64 (Dépenses de taxes récupérables) (X marque l'incohérence entre les champs) | C45: =COUNTIF(OCL_Saisie!CU:CU,"X") -> 0 | D45: Incohérences entre existences de taxes et dépenses de taxes récupérables | E45: Voir par filtre les "incohérences constatées" | F45: =IF(OR(COUNTIF(OCL_Saisie!CU18:CU444,"x")>COUNTA(OCL_Saisie!AK18:AK444),C45=0),"-",COUNTIF(OCL_Saisie!CU18:CU444,"x")/COUNTA(OCL_Saisie!AK18:AK444)) -> -

Sheet OCL_Ratios
C1: RATIO PAR RESIDENCES DES | F1: RATIO PAR RESIDENCES DES | J1: 0.25 | BD1: MD_FO_EAU | BE1: 3 | BF1: 10 | BG1: 7 | BR1: MD_CP_EAU | BS1: 0.8 | BT1: 0.7 | CB1: MD_EN_EAU | CC1: 0.7 | CH1: MD_FO_CHA | CI1: 18 | CJ1: 15 | CR1: MD_EN_CHA | CS1: 4 | CT1: 2 | DB1: MD_TT_ASC | DC1: 2.25 | DH1: MD_AU_AIM : | DI1: 2 | DN1: MD_TT_EOM : | DO1: 11 | DT1: MD_EV_AIM | DU1: 3 | DZ1: MD_TT_ELC | EA1: 3 | EF1: MD_TT_TAX | EG1: 5 | EL1: MD_TT_PKG | EM1: 90 | ER1: VC_TT_EAU | ES1: 3 | EX1: VC_ECH | EY1: 1 | FD1: VC_COM | FE1: 1 | FJ1: QE_TT_CHEC | FK1: 400 | FP1: QE_CHA | FQ1: =FK1*0.8 -> 320 | FV1: QE_ECH | FW1: =FK1*0.2 -> 80 | GB1: QE_TT_ELC | GC1: 18 | GI1: VC_EFR | GJ1: 2 | GO1: MD_FO_CHAUF : | GP1: 15 | GQ1: 12.5 | GY1: MD_FO_ECS : | GZ1: 3 | HA1: 2.5 | HI1: MD_CP_CHA : | HJ1: 0.9 | HK1: 0.9
C2: DEPENSES et CONSOMMATIONS/ SURF. HAB. THEORIQUES | F2: DEPENSES et CONSOMMATIONS/ SURF. HAB. OBSERVES | I2: ="*Exemple de lecture : en facturation collective de l'eau, la dépense minimum de fourniture observée sur le patrimoine est de " &ROUND(F6,2)& "€/m²SHAB. La dépense maximale est de " &ROUND(G6,2)&" €/m²SHAB. En comparaison, la fourchette de référence est comprise entre 0,5 et 10 €/m²SHAB." ->  | S2: DIFF PLAGE | BE2: 0 | BF2: 0.5 | BG2: 0 | BS2: 0.05 | BT2: 0 | CC2: 0.1 | CI2: 4 | CJ2: 0 | CS2: 0.2 | CT2: 0 | DC2: 0.1 | DI2: 0 | DO2: 1 | DU2: 0 | EA2: 0.05 | EG2: 0.5 | EM2: 3.8 | ES2: 0.01 | EY2: 0.15 | FE2: -0.3 | FK2: 75 | FQ2: =FK2*0.8 -> 60 | FW2: =FK2*0.2 -> 15 | GC2: 0.2 | GJ2: 0.5 | GP2: 2.5 | GQ2: 0 | GZ2: 0.5 | HA2: 0 | HJ2: 0.1 | HK2: 0.1
C3: LIMITE BORNE INFERIEURE RATIO THEORIQUE | D3: LIMITE BORNE SUPERIEURE RATIO THEORIQUE | E3: CONDITIONS | F3: RATIO MINIMUM OBSERVE | G3: RATIO MAXIMUM OBSERVE | H3: Nombre de ratios calculés | I3: NOMBRE DE RESIDENCES AVEC DES RATIOS "ANORMAUX" (en dehors de bornes théoriques) | J3: Dont écart faible par rapport au ratio théorique (25%) | K3: Dont écart moyen par rapport au ratio théorique (entre 25 et 100 %) | L3: Dont écart fort par rapport au ratio théorique (> 100 %) | M3: Codes des résidences dont écart ratio théorique/observé de plus de 100 % | N3: en % | O3: Atteindre les champs | BD3: Nbre de résidences en dessous de la borne inférieure | BE3: =COUNTIF(BE18:BE2039,"<"&BE2) -> 0 | BF3: =COUNTIF(BF18:BF2039,"<"&BF2) -> 0 | BG3: =COUNTIF(BG18:BG2039,"<"&BG2) -> 0 | BR3: Nbre de résidences en dessous de la borne inférieure | BS3: =COUNTIF(BS18:BS2039,"<"&BS2) -> 0 | BT3: =COUNTIF(BT18:BT2039,"<"&BT2) -> 0 | CB3: Nbre de résidences en dessous de la borne inférieure | CC3: =COUNTIF(CC18:CC2039,"<"&CC2) -> 0 | CH3: Nbre de résidences en dessous de la borne inférieure | CI3: =COUNTIF(CI18:CI2039,"<"&CI2) -> 0 | CJ3: =COUNTIF(CJ18:CJ2039,"<"&CJ2) -> 0 | CR3: Nbre de résidences en dessous de la borne inférieure | CS3: =COUNTIF(CS18:CS2039,"<"&CS2) -> 0 | CT3: =COUNTIF(CT18:CT2039,"<"&CT2) -> 0 | DB3: Nbre de résidences en dessous de la borne inférieure | DC3: =COUNTIF(DC18:DC2039,"<"&DC2) -> 0 | DH3: Nbre de résidences en dessous de la borne inférieure | DI3: =COUNTIF(DI18:DI2039,"<"&DI2) -> 0 | DN3: Nbre de résidences en dessous de la borne inférieure | DO3: =COUNTIF(DO18:DO2039,"<"&DO2) -> 0 | DT3: Nbre de résidences en dessous de la borne inférieure | DU3: =COUNTIF(DU18:DU2039,"<"&DU2) -> 0 | DZ3: Nbre de résidences en dessous de la borne inférieure | EA3: =COUNTIF(EA18:EA2039,"<"&EA2) -> 0 | EF3: Nbre de résidences en dessous de la borne inférieure | EG3: =COUNTIF(EG18:EG2039,"<"&EG2) -> 0 | EL3: Nbre de résidences en dessous de la borne inférieure | EM3: =COUNTIF(EM18:EM2039,"<"&EM2) -> 0 | ER3: Nbre de résidences en dessous de la borne inférieure | ES3: =COUNTIF(ES18:ES2039,"<"&ES2) -> 0 | EX3: Nbre de résidences en dessous de la borne inférieure | EY3: =COUNTIF(EY18:EY2039,"<"&EY2) -> 0 | FD3: Nbre de résidences en dessous de la borne inférieure | FE3: =COUNTIF(FE18:FE2039,"<"&FE2) -> 0 | FJ3: Nbre de résidences en dessous de la borne inférieure | FK3: =COUNTIF(FK18:FK2039,"<"&FK2) -> 0 | FP3: Nbre de résidences en dessous de la borne inférieure | FQ3: =COUNTIF(FQ18:FQ2039,"<"&FQ2) -> 0 | FV3: Nbre de résidences en dessous de la borne inférieure | FW3: =COUNTIF(FW18:FW2039,"<"&FW2) -> 0 | GB3: Nbre de résidences en dessous de la borne inférieure | GC3: =COUNTIF(GC18:GC2039,"<"&GC2) -> 0 | GI3: Nbre de résidences en dessous de la borne inférieure | GJ3: =COUNTIF(GJ18:GJ2039,"<"&GJ2) -> 0 | GO3: Nbre de résidences en dessous de la borne inférieure | GP3: =COUNTIF(GP18:GP2039,"<"&GP2) -> 0 | GQ3: =COUNTIF(GQ18:GQ2039,"<"&GQ2) -> 0 | GY3: Nbre de résidences en dessous de la borne inférieure | GZ3: =COUNTIF(GZ18:GZ2039,"<"&GZ2) -> 0 | HA3: =COUNTIF(HA18:HA2039,"<"&HA2) -> 0 | HI3: Nbre de résidences en dessous de la borne inférieure | HJ3: =COUNTIF(HJ18:HJ2029,"<"&HJ2) -> 0 | HK3: =COUNTIF(HK18:HK2029,"<"&HK2) -> 0
BD4: Nbre de résidences au dessus de la borne supérieure | BE4: =COUNTIF(BE18:BE2039,">"&BE1) -> 0 | BF4: =COUNTIF(BF18:BF2039,">"&BF1) -> 0 | BG4: =COUNTIF(BG18:BG2039,">"&BG1) -> 0 | BR4: Nbre de résidences au dessus de la borne supérieure | BS4: =COUNTIF(BS18:BS2039,">"&BS1) -> 0 | BT4: =COUNTIF(BT18:BT2039,">"&BT1) -> 0 | CB4: Nbre de résidences au dessus de la borne supérieure | CC4: =COUNTIF(CC18:CC2039,">"&CC1) -> 0 | CH4: Nbre de résidences au dessus de la borne supérieure | CI4: =COUNTIF(CI18:CI2039,">"&CI1) -> 0 | CJ4: =COUNTIF(CJ18:CJ2039,">"&CJ1) -> 0 | CR4: Nbre de résidences au dessus de la borne supérieure | CS4: =COUNTIF(CS18:CS2039,">"&CS1) -> 0 | CT4: =COUNTIF(CT18:CT2039,">"&CT1) -> 0 | DB4: Nbre de résidences au dessus de la borne supérieure | DC4: =COUNTIF(DC18:DC2039,">"&DC1) -> 0 | DH4: Nbre de résidences au dessus de la borne supérieure | DI4: =COUNTIF(DI18:DI2039,">"&DI1) -> 0 | DN4: Nbre de résidences au dessus de la borne supérieure | DO4: =COUNTIF(DO18:DO2039,">"&DO1) -> 0 | DT4: Nbre de résidences au dessus de la borne supérieure | DU4: =COUNTIF(DU18:DU2039,">"&DU1) -> 0 | DZ4: Nbre de résidences au dessus de la borne supérieure | EA4: =COUNTIF(EA18:EA2039,">"&EA1) -> 0 | EF4: Nbre de résidences au dessus de la borne supérieure | EG4: =COUNTIF(EG18:EG2039,">"&EG1) -> 0 | EL4: Nbre de résidences au dessus de la borne supérieure | EM4: =COUNTIF(EM18:EM2039,">"&EM1) -> 0 | ER4: Nbre de résidences au dessus de la borne supérieure | ES4: =COUNTIF(ES18:ES2039,">"&ES1) -> 0 | EX4: Nbre de résidences au dessus de la borne supérieure | EY4: =COUNTIF(EY18:EY2039,">"&EY1) -> 0 | FD4: Nbre de résidences au dessus de la borne supérieure | FE4: =COUNTIF(FE18:FE2039,">"&FE1) -> 0 | FJ4: Nbre de résidences au dessus de la borne supérieure | FK4: =COUNTIF(FK18:FK2039,">"&FK1) -> 0 | FP4: Nbre de résidences au dessus de la borne supérieure | FQ4: =COUNTIF(FQ18:FQ2039,">"&FQ1) -> 0 | FV4: Nbre de résidences au dessus de la borne supérieure | FW4: =COUNTIF(FW18:FW2039,">"&FW1) -> 0 | GB4: Nbre de résidences au dessus de la borne supérieure | GC4: =COUNTIF(GC18:GC2039,">"&GC1) -> 0 | GI4: Nbre de résidences au dessus de la borne supérieure | GJ4: =COUNTIF(GJ18:GJ2039,">"&GJ1) -> 0 | GO4: Nbre de résidences au dessus de la borne supérieure | GP4: =COUNTIF(GP18:GP2039,">"&GP1) -> 0 | GQ4: =COUNTIF(GQ18:GQ2039,">"&GQ1) -> 0 | GY4: Nbre de résidences au dessus de la borne supérieure | GZ4: =COUNTIF(GZ18:GZ2039,">"&GZ1) -> 0 | HA4: =COUNTIF(HA18:HA2039,">"&HA1) -> 0 | HI4: Nbre de résidences au dessus de la borne supérieure | HJ4: =COUNTIF(HJ18:HJ2029,">"&HJ1) -> 0 | HK4: =COUNTIF(HK18:HK2029,">"&HK1) -> 0
A5: Dépenses du poste EAU | B5: MD_FO_EAU* : Montant des dépenses de fourniture d'eau | C5: =BE2 -> 0 | D5: =BE1 -> 3 | E5: Si facturation de l'eau individuelle | F5: =BE6 -> - | G5: =BE7 -> - | H5: =COUNTIF(BE18:BE2040,">-100") -> 0 | I5: =BE4+BE3 -> 0 | J5: =COUNTIF(BH18:BH2039,"<"&$J$1) -> 0 | K5: =I5-L5-J5 -> 0 | L5: =COUNTIF(BH18:BH2039,">1") -> 0 | M5: =IF(BN16="","-",BN16) -> - | N5: =BE5 -> 0 | S5: =D5-C5 -> 3 | BD5: en % résidences "anormales" (sur les renseignées) | BE5: =IF((BE3+BE4)=0,,(BE3+BE4)/COUNTIF(BE18:BE2040,">-10")) -> 0 | BF5: =IF((BF3+BF4)=0,,(BF3+BF4)/COUNTIF(BF18:BF2040,">-10")) -> 0 | BG5: =IF((BG3+BG4)=0,,(BG3+BG4)/COUNTIF(BG18:BG2040,">-10")) -> 0 | BR5: en % résidences "anormales" (sur les renseignées) | BS5: =IF((BS3+BS4)=0,,(BS3+BS4)/COUNTIF(BS18:BS2040,">-10")) -> 0 | BT5: =IF((BT3+BT4)=0,,(BT3+BT4)/COUNTIF(BT18:BT2040,">-10")) -> 0 | CB5: en % résidences "anormales" (sur les renseignées) | CC5: =IF((CC3+CC4)=0,,(CC3+CC4)/COUNTIF(CC18:CC2040,">-10")) -> 0 | CH5: en % résidences "anormales" (sur les renseignées) | CI5: =IF((CI3+CI4)=0,,(CI3+CI4)/COUNTIF(CI18:CI2040,">-10")) -> 0 | CJ5: =IF((CJ3+CJ4)=0,,(CJ3+CJ4)/COUNTIF(CJ18:CJ2040,">-10")) -> 0 | CR5: en % résidences "anormales" (sur les renseignées) | CS5: =IF((CS3+CS4)=0,,(CS3+CS4)/COUNTIF(CS18:CS2040,">-10")) -> 0 | CT5: =IF((CT3+CT4)=0,,(CT3+CT4)/COUNTIF(CT18:CT2040,">-10")) -> 0 | DB5: en % résidences "anormales" (sur les renseignées) | DC5: =IF((DC3+DC4)=0,,(DC3+DC4)/COUNTIF(DC18:DC2040,">-10")) -> 0 | DH5: en % résidences "anormales" (sur les renseignées) | DI5: =IF((DI3+DI4)=0,,(DI3+DI4)/COUNTIF(DI18:DI2040,">-10")) -> 0 | DN5: en % résidences "anormales" (sur les renseignées) | DO5: =IF((DO3+DO4)=0,,(DO3+DO4)/COUNTIF(DO18:DO2040,">-10")) -> 0 | DT5: en % résidences "anormales" (sur les renseignées) | DU5: =IF((DU3+DU4)=0,,(DU3+DU4)/COUNTIF(DU18:DU2040,">-10")) -> 0 | DZ5: en % résidences "anormales" (sur les renseignées) | EA5: =IF((EA3+EA4)=0,,(EA3+EA4)/COUNTIF(EA18:EA2040,">-10")) -> 0 | EF5: en % résidences "anormales" (sur les renseignées) | EG5: =IF((EG3+EG4)=0,,(EG3+EG4)/COUNTIF(EG18:EG2040,">-10")) -> 0 | EL5: en % résidences "anormales" (sur les renseignées) | EM5: =IF((EM3+EM4)=0,,(EM3+EM4)/COUNTIF(EM18:EM2040,">-10")) -> 0 | ER5: en % résidences "anormales" (sur les renseignées) | ES5: =IF((ES3+ES4)=0,,(ES3+ES4)/COUNTIF(ES18:ES2040,">-10")) -> 0 | EX5: en % résidences "anormales" (sur les renseignées) | EY5: =IF((EY3+EY4)=0,,(EY3+EY4)/COUNTIF(EY18:EY2040,">-10")) -> 0 | FD5: en % résidences "anormales" (sur les renseignées) | FE5: =IF((FE3+FE4)=0,,(FE3+FE4)/COUNTIF(FE18:FE2040,">-10")) -> 0 | FJ5: en % résidences "anormales" (sur les renseignées) | FK5: =IF((FK3+FK4)=0,,(FK3+FK4)/COUNTIF(FK18:FK2040,">-10")) -> 0 | FP5: en % résidences "anormales" (sur les renseignées) | FQ5: =IF((FQ3+FQ4)=0,,(FQ3+FQ4)/COUNTIF(FQ18:FQ2040,">-10")) -> 0 | FV5: en % résidences "anormales" (sur les renseignées) | FW5: =IF((FW3+FW4)=0,,(FW3+FW4)/COUNTIF(FW18:FW2040,">-10")) -> 0 | GB5: en % résidences "anormales" (sur les renseignées) | GC5: =IF((GC3+GC4)=0,,(GC3+GC4)/COUNTIF(GC18:GC2040,">-10")) -> 0 | GI5: en % résidences "anormales" (sur les renseignées) | GJ5: =IF((GJ3+GJ4)=0,,(GJ3+GJ4)/COUNTIF(GJ18:GJ2039,">-10")) -> 0 | GO5: en % résidences "anormales" (sur les renseignées) | GP5: =IF((GP3+GP4)=0,,(GP3+GP4)/COUNTIF(GP18:GP2039,">-10")) -> 0 | GQ5: =IF((GQ3+GQ4)=0,,(GQ3+GQ4)/COUNTIF(GQ18:GQ2039,">-10")) -> 0 | GY5: en % résidences "anormales" (sur les renseignées) | GZ5: =IF((GZ3+GZ4)=0,,(GZ3+GZ4)/COUNTIF(GZ18:GZ2039,">-10")) -> 0 | HA5: =IF((HA3+HA4)=0,,(HA3+HA4)/COUNTIF(HA18:HA2039,">-10")) -> 0 | HI5: en % résidences "anormales" (sur les renseignées) | HJ5: =IF((HJ3+HJ4)=0,,(HJ3+HJ4)/COUNTIF(HJ18:HJ2030,">-10")) -> 0 | HK5: =IF((HK3+HK4)=0,,(HK3+HK4)/COUNTIF(HK18:HK2030,">-10")) -> 0
C6: =BF2 -> 0.5 | D6: =BF1 -> 10 | E6: Si facturation de l'eau collective | F6: =BF6 -> - | G6: =BF7 -> - | H6: =COUNTIF(BF18:BF2040,">-100") -> 0 | I6: =BF4+BF3 -> 0 | J6: =COUNTIF(BI18:BI2039,"<"&$J$1) -> 0 | K6: =I6-L6-J6 -> 0 | L6: =COUNTIF(BI18:BI2039,">1") -> 0 | M6: =IF(BO16="","-",BO16) -> - | N6: =BF5 -> 0 | S6: =D6-C6 -> 9.5 | BD6: VALEUR MIN | BE6: =IF(BE17=0,"-",MIN(BE18:BE2040)) -> - | BF6: =IF(BF17=0,"-",MIN(BF18:BF2040)) -> - | BG6: =IF(BG17=0,"-",MIN(BG18:BG2040)) -> - | BR6: VALEUR MIN | BS6: =IF(BS17=0,"-",MIN(BS18:BS2040)) -> - | BT6: =IF(BT17=0,"-",MIN(BT18:BT2040)) -> - | CB6: VALEUR MIN | CC6: =IF(CC17=0,"-",MIN(CC18:CC2040)) -> - | CH6: VALEUR MIN | CI6: =IF(CI17=0,"-",MIN(CI18:CI2040)) -> - | CJ6: =IF(CJ17=0,"-",MIN(CJ18:CJ2040)) -> - | CR6: VALEUR MIN | CS6: =IF(CS17=0,"-",MIN(CS18:CS2040)) -> - | CT6: =IF(CT17=0,"-",MIN(CT18:CT2040)) -> - | DB6: VALEUR MIN | DC6: =IF(DC17=0,"-",MIN(DC18:DC2040)) -> - | DH6: VALEUR MIN | DI6: =IF(DI17=0,"-",MIN(DI18:DI2040)) -> - | DN6: VALEUR MIN | DO6: =IF(DO17=0,"-",MIN(DO18:DO2040)) -> - | DT6: VALEUR MIN | DU6: =IF(DU17=0,"-",MIN(DU18:DU2040)) -> - | DZ6: VALEUR MIN | EA6: =IF(EA17=0,"-",MIN(EA18:EA2040)) -> - | EF6: VALEUR MIN | EG6: =IF(EG17=0,"-",MIN(EG18:EG2040)) -> - | EL6: VALEUR MIN | EM6: =IF(EM17=0,"-",MIN(EM18:EM2040)) -> - | ER6: VALEUR MIN | ES6: =IF(ES17=0,"-",MIN(ES18:ES2040)) -> - | EX6: VALEUR MIN | EY6: =IF(EY17=0,"-",MIN(EY18:EY2040)) -> - | FD6: VALEUR MIN | FE6: =IF(FE17=0,"-",MIN(FE18:FE2040)) -> - | FJ6: VALEUR MIN | FK6: =IF(FK17=0,"-",MIN(FK18:FK2040)) -> - | FP6: VALEUR MIN | FQ6: =IF(FQ17=0,"-",MIN(FQ18:FQ2040)) -> - | FV6: VALEUR MIN | FW6: =IF(FW17=0,"-",MIN(FW18:FW2040)) -> - | GB6: VALEUR MIN | GC6: =IF(GC17=0,"-",MIN(GC18:GC2040)) -> - | GI6: VALEUR MIN | GJ6: =IF(GJ17=0,"-",MIN(GJ18:GJ2039)) -> - | GO6: VALEUR MIN | GP6: =IF(GP17=0,"-",MIN(GP18:GP2039)) -> - | GQ6: =IF(GQ17=0,"-",MIN(GQ18:GQ2039)) -> - | GY6: VALEUR MIN | GZ6: =IF(GZ17=0,"-",MIN(GZ18:GZ2039)) -> - | HA6: =IF(HA17=0,"-",MIN(HA18:HA2039)) -> - | HI6: VALEUR MIN | HJ6: =IF(HJ17=0,"-",MIN(HJ18:HJ2030)) -> - | HK6: =IF(HK17=0,"-",MIN(HK18:HK2030)) -> -
C7: =BG2 -> 0 | D7: =BG1 -> 7 | E7: Si facturation de l'eau ni indi. ni collec. | F7: =BG6 -> - | G7: =BG7 -> - | H7: =COUNTIF(BG18:BG2040,">-100") -> 0 | I7: =BG4+BG3 -> 0 | J7: =COUNTIF(BJ18:BJ2039,"<"&$J$1) -> 0 | K7: =I7-L7-J7 -> 0 | L7: =COUNTIF(BJ18:BJ2039,">1") -> 0 | M7: =IF(BP16="","-",BP16) -> - | N7: =BG5 -> 0 | S7: =D7-C7 -> 7 | BD7: VALEUR MAX | BE7: =IF(BE17=0,"-",MAX(BE18:BE2040)) -> - | BF7: =IF(BF17=0,"-",MAX(BF18:BF2040)) -> - | BG7: =IF(BG17=0,"-",MAX(BG18:BG2040)) -> - | BR7: VALEUR MAX | BS7: =IF(BS17=0,"-",MAX(BS18:BS2040)) -> - | BT7: =IF(BT17=0,"-",MAX(BT18:BT2040)) -> - | CB7: VALEUR MAX | CC7: =IF(CC17=0,"-",MAX(CC18:CC2040)) -> - | CH7: VALEUR MAX | CI7: =IF(CI17=0,"-",MAX(CI18:CI2040)) -> - | CJ7: =IF(CJ17=0,"-",MAX(CJ18:CJ2040)) -> - | CR7: VALEUR MAX | CS7: =IF(CS17=0,"-",MAX(CS18:CS2040)) -> - | CT7: =IF(CT17=0,"-",MAX(CT18:CT2040)) -> - | DB7: VALEUR MAX | DC7: =IF(DC17=0,"-",MAX(DC18:DC2040)) -> - | DH7: VALEUR MAX | DI7: =IF(DI17=0,"-",MAX(DI18:DI2040)) -> - | DN7: VALEUR MAX | DO7: =IF(DO17=0,"-",MAX(DO18:DO2040)) -> - | DT7: VALEUR MAX | DU7: =IF(DU17=0,"-",MAX(DU18:DU2040)) -> - | DZ7: VALEUR MAX | EA7: =IF(EA17=0,"-",MAX(EA18:EA2040)) -> - | EF7: VALEUR MAX | EG7: =IF(EG17=0,"-",MAX(EG18:EG2040)) -> - | EL7: VALEUR MAX | EM7: =IF(EM17=0,"-",MAX(EM18:EM2040)) -> - | ER7: VALEUR MAX | ES7: =IF(ES17=0,"-",MAX(ES18:ES2040)) -> - | EX7: VALEUR MAX | EY7: =IF(EY17=0,"-",MAX(EY18:EY2040)) -> - | FD7: VALEUR MAX | FE7: =IF(FE17=0,"-",MAX(FE18:FE2040)) -> - | FJ7: VALEUR MAX | FK7: =IF(FK17=0,"-",MAX(FK18:FK2040)) -> - | FP7: VALEUR MAX | FQ7: =IF(FQ17=0,"-",MAX(FQ18:FQ2040)) -> - | FV7: VALEUR MAX | FW7: =IF(FW17=0,"-",MAX(FW18:FW2040)) -> - | GB7: VALEUR MAX | GC7: =IF(GC17=0,"-",MAX(GC18:GC2040)) -> - | GI7: VALEUR MAX | GJ7: =IF(GJ17=0,"-",MAX(GJ18:GJ2039)) -> - | GO7: VALEUR MAX | GP7: =IF(GP17=0,"-",MAX(GP18:GP2039)) -> - | GQ7: =IF(GQ17=0,"-",MAX(GQ18:GQ2039)) -> - | GY7: VALEUR MAX | GZ7: =IF(GZ17=0,"-",MAX(GZ18:GZ2039)) -> - | HA7: =IF(HA17=0,"-",MAX(HA18:HA2039)) -> - | HI7: VALEUR MAX | HJ7: =IF(HJ17=0,"-",MAX(HJ18:HJ2030)) -> - | HK7: =IF(HK17=0,"-",MAX(HK18:HK2030)) -> -
E8: TOTAL | H8: =H7+H6+H5 -> 0 | I8: =BE4+BE3+BF3+BF4+BG3+BG4 -> 0 | N8: =IF(I8=0,,I8/COUNTIF(OCL_Saisie!CW18:CW444,">-10")) -> 0
B10: MD_CP_EAU : Montant des dépenses de comptage de l'eau (eau froide & chaude) | C10: =BS2 -> 0.05 | D10: =BS1 -> 0.8 | E10: Si facturation de l'eau collective | F10: =BS6 -> - | G10: =BS7 -> - | H10: =COUNTIF(BS18:BS2040,">-100") -> 0 | I10: =BS3+BS4 -> 0 | J10: =COUNTIF(BU18:BU2039,"<"&$J$1) -> 0 | K10: =I10-L10-J10 -> 0 | L10: =COUNTIF(BU18:BU2039,">1") -> 0 | M10: =IF(BY16="","-",BY16) -> - | N10: =BS5 -> 0 | S10: =D10-C10 -> 0.75
C11: =BT2 -> 0 | D11: =BT1 -> 0.7 | E11: Si facturation de l'eau non collective | F11: =BT6 -> - | G11: =BT7 -> - | H11: =COUNTIF(BT18:BT2040,">-100") -> 0 | I11: =BT3+BT4 -> 0 | J11: =COUNTIF(BV18:BV2039,"<"&$J$1) -> 0 | K11: =I11-L11-J11 -> 0 | L11: =COUNTIF(BV18:BV2039,">1") -> 0 | M11: =IF(BZ16="","-",BZ16) -> - | N11: =BT5 -> 0 | S11: =D11-C11 -> 0.7
E12: TOTAL | H12: =H11+H10 -> 0 | I12: =BS3+BS4+BT3+BT4 -> 0 | N12: =IF(I12=0,,I12/COUNTIF(OCL_Saisie!CX18:CX444,">-10")) -> 0
GP13: =GP11*GP2 -> 0 | GQ13: 0
B14: MD_EN_EAU : Montant des dépenses d'entretien des installations de distribution d'eau | C14: =CC2 -> 0.1 | D14: =CC1 -> 0.7 | E14: - | F14: =CC6 -> - | G14: =CC7 -> - | H14: =COUNTIF(CC18:CC2040,">-100") -> 0 | I14: =CC3+CC4 -> 0 | J14: =COUNTIF(CD18:CD2039,"<"&$J$1) -> 0 | K14: =I14-L14-J14 -> 0 | L14: =COUNTIF(CD18:CD2039,">1") -> 0 | M14: =IF(CF16="","-",CF16) -> - | N14: =CC5 -> 0 | S14: =D14-C14 -> 0.6
A16: Dépenses du poste CHAUFFAGE | B16: MD_FO_CHA : Montant des dépenses de fourniture d'énergie pour le chauffage et l'ECS | C16: =CI2 -> 4 | D16: =CI1 -> 18 | E16: Si facturation du chauffage collective ou chauffage urbain ou mixte | F16: =CI6 -> - | G16: =CI7 -> - | H16: =COUNTIF(CI18:CI2040,">-100") -> 0 | I16: =CI3+CI4 -> 0 | J16: =COUNTIF(CK18:CK2039,"<"&$J$1) -> 0 | K16: =I16-L16-J16 -> 0 | L16: =COUNTIF(CK18:CK2039,">1") -> 0 | M16: =IF(CO16="","-",CO16) -> - | N16: =CI5 -> 0 | S16: =D16-C16 -> 14 | BN16: =BN2040 ->  | BO16: =BO2040 ->  | BP16: =BP2040 ->  | BY16: =BY2040 ->  | BZ16: =BZ2040 ->  | CF16: =CF2040 ->  | CO16: =CO2040 ->  | CP16: =CP2040 ->  | CY16: =CY2040 ->  | CZ16: =CZ2040 ->  | DF16: =DF2040 ->  | DL16: =DL2040 ->  | DR16: =DR2040 ->  | DX16: =DX2040 ->  | ED16: =ED2040 ->  | EJ16: =EJ2040 ->  | EP16: =EP2040 ->  | EV16: =EV2040 ->  | FB16: =FB2040 ->  | FH16: =FH2040 ->  | FN16: =FN2040 ->  | FT16: =FT2040 ->  | FZ16: =FZ2040 ->  | GF16: =GF2040 ->  | GM16: =GM2040 ->  | GV16: =GV2040 ->  | GW16: =GW2040 ->  | HF16: =HF2040 ->  | HG16: =HG2040 ->  | HP16: =HP2040 ->  | HQ16: =HQ2040 -> 
C17: =CJ2 -> 0 | D17: =CJ1 -> 15 | E17: - | F17: =CJ6 -> - | G17: =CJ7 -> - | H17: =COUNTIF(CJ18:CJ2040,">-100") -> 0 | I17: =CJ3+CJ4 -> 0 | J17: =COUNTIF(CL18:CL2039,"<"&$J$1) -> 0 | K17: =I17-L17-J17 -> 0 | L17: =COUNTIF(CL18:CL2039,">1") -> 0 | M17: =IF(CP16="","-",CP16) -> - | N17: =CJ5 -> 0 | S17: =D17-C17 -> 15 | BD17: =SUM(BD18:BD2040) -> 0 | BE17: =SUM(BE18:BE2040) -> 0 | BF17: =SUM(BF18:BF2040) -> 0 | BG17: =SUM(BG18:BG2039) -> 0 | BS17: =SUM(BS18:BS2040) -> 0 | BT17: =SUM(BT18:BT2040) -> 0 | CC17: =SUM(CC18:CC2040) -> 0 | CI17: =SUM(CI18:CI2040) -> 0 | CJ17: =SUM(CJ18:CJ2040) -> 0 | CS17: =SUM(CS18:CS2040) -> 0 | CT17: =SUM(CT18:CT2040) -> 0 | DC17: =SUM(DC18:DC2040) -> 0 | DI17: =SUM(DI18:DI2040) -> 0 | DO17: =SUM(DO18:DO2040) -> 0 | DU17: =SUM(DU18:DU2040) -> 0 | EA17: =SUM(EA18:EA2040) -> 0 | EG17: =SUM(EG18:EG2040) -> 0 | EM17: =SUM(EM18:EM2040) -> 0 | ES17: =SUM(ES18:ES2040) -> 0 | EY17: =SUM(EY18:EY2040) -> 0 | FE17: =SUM(FE18:FE2040) -> 0 | FK17: =SUM(FK18:FK2040) -> 0 | FQ17: =SUM(FQ18:FQ2040) -> 0 | FW17: =SUM(FW18:FW2040) -> 0 | GC17: =SUM(GC18:GC2040) -> 0 | GJ17: =SUM(GJ18:GJ2040) -> 0 | GP17: =SUM(GP18:GP2040) -> 0 | GQ17: =SUM(GQ18:GQ2040) -> 0 | GZ17: =SUM(GZ18:GZ2040) -> 0 | HA17: =SUM(HA18:HA2040) -> 0 | HJ17: =SUM(HJ18:HJ2040) -> 0 | HK17: =SUM(HK18:HK2040) -> 0
E18: TOTAL | H18: =H17+H16 -> 0 | I18: =SUM(I16:I17) -> 0 | N18: =IF(I18=0,,I18/COUNTIF(OCL_Saisie!CZ18:CZ444,">-10")) -> 0
BE19: =IF(OCL_Saisie!W18="IND",OCL_Saisie!CW18,"") ->  | BF19: =IF(OCL_Saisie!W18="col",OCL_Saisie!CW18,"") ->  | BG19: =IF(OCL_Saisie!W18="mix",OCL_Saisie!CW18,"") ->  | BH19: =IF(OR(BE19="",AND(BE19<=$D$5,BE19>=$C$5)),"",IF(BE19<$C$5,($C$5-BE19)/$S$5,((BE19-$D$5)/$S$5))) ->  | BI19: =IF(OR(BF19="",AND(BF19<=$D$6,BF19>=$C$6)),"",IF(BF19<$C$6,($C$6-BF19)/$S$6,((BF19-$D$6)/$S$6))) ->  | BJ19: =IF(OR(BG19="",AND(BG19<=$D$7,BG19>=$C$7)),"",IF(BG19<$C$7,($C$7-BG19)/$S$7,((BG19-$D$7)/$S$7))) ->  | BK19: =IF(AND(BH19>100%,BH19<>""),OCL_Saisie!E18&"/","") ->  | BL19: =IF(AND(BI19>100%,BI19<>""),OCL_Saisie!E18&"/","") ->  | BM19: =IF(AND(BJ19>100%,BJ19<>""),OCL_Saisie!E18&"/","") ->  | BN19: =BN18&BK19 ->  | BO19: =BO18&BL19 ->  | BP19: =BP18&BM19 ->  | BS19: =IF(OCL_Saisie!W18="col",OCL_Saisie!CX18,"") ->  | BT19: =IF(AND(OCL_Saisie!W18<>"col",OCL_Saisie!W18<>""),OCL_Saisie!CX18,"") ->  | BU19: =IF(OR(BS19="",AND(BS19<=$D$10,BS19>=$C$10)),"",IF(BS19<$C$10,($C$10-BS19)/$S$10,((BS19-$D$10)/$S$10))) ->  | BV19: =IF(OR(BT19="",AND(BT19<=$D$11,BT19>=$C$11)),"",IF(BT19<$C$11,($C$11-BT19)/$S$11,((BT19-$D$11)/$S$11))) ->  | BW19: =IF(AND(BU19>100%,BU19<>""),OCL_Saisie!E18&"/","") ->  | BX19: =IF(AND(BV19>100%,BV19<>""),OCL_Saisie!E18&"/","") ->  | BY19: =BY18&BW19 ->  | BZ19: =BZ18&BX19 ->  | CC19: =IF(OCL_Saisie!CY18="","",OCL_Saisie!CY18) ->  | CD19: =IF(OR(CC19="",AND(CC19<=$D$14,CC19>=$C$14)),"",IF(CC19<$C$14,($C$14-CC19)/$S$14,((CC19-$D$14)/$S$14))) ->  | CE19: =IF(AND(CD19>100%,CD19<>""),OCL_Saisie!E18&"/","") ->  | CF19: =CF18&CE19 ->  | CI19: =IF(OR(OCL_Saisie!AA18="col",OCL_Saisie!AA18="cu",OCL_Saisie!AA18="mix"),OCL_Saisie!CZ18,"") ->  | CJ19: =IF(AND(OCL_Saisie!AA18<>"col",OCL_Saisie!AA18<>"cu",OCL_Saisie!AA18<>"mix",OCL_Saisie!AA18<>""),OCL_Saisie!CZ18,"") ->  | CK19: =IF(OR(CI19="",AND(CI19<=$D$16,CI19>=$C$16)),"",IF(CI19<$C$16,($C$16-CI19)/$S$16,(CI19-$D$16)/$S$16)) ->  | CL19: =IF(OR(CJ19="",AND(CJ19<=$D$17,CJ19>=$C$17)),"",IF(CJ19<$C$17,($C$17-CJ19)/$S$17,((CJ19-$D$17)/$S$17))) ->  | CM19: =IF(AND(CK19>100%,CK19<>""),OCL_Saisie!E18&"/","") ->  | CN19: =IF(AND(CL19>100%,CL19<>""),OCL_Saisie!E18&"/","") ->  | CO19: =CO18&CM19 ->  | CP19: =CP18&CN19 ->  | CS19: =IF(OR(OCL_Saisie!AA18="col",OCL_Saisie!AA18="cu",OCL_Saisie!AA18="mix"),OCL_Saisie!DD18,"") ->  | CT19: =IF(AND(OCL_Saisie!AA18<>"col",OCL_Saisie!AA18<>"cu",OCL_Saisie!AA18<>"mix",OCL_Saisie!AA18<>""),OCL_Saisie!DD18,"") ->  | CU19: =IF(OR(CS19="",AND(CS19<=$D$29,CS19>=$C$29)),"",IF(CS19<$C$29,($C$29-CS19)/$S$29,((CS19-$D$29)/$S$29))) ->  | CV19: =IF(OR(CT19="",AND(CT19<=$D$30,CT19>=$C$30)),"",IF(CT19<$C$30,($C$30-CT19)/$S$30,((CT19-$D$30)/$S$30))) ->  | CW19: =IF(AND(CU19>100%,CU19<>""),OCL_Saisie!E18&"/","") ->  | CX19: =IF(AND(CV19>100%,CV19<>""),OCL_Saisie!E18&"/","") ->  | CY19: =CY18&CW19 ->  | CZ19: =CZ18&CX19 ->  | DC19: =IF(OCL_Saisie!DE18="","",OCL_Saisie!DE18) ->  | DD19: =IF(OR(DC19="",AND(DC19<=$D$41,DC19>=$C$41)),"",IF(DC19<$C$41,($C$41-DC19)/$S$41,((DC19-$D$41)/$S$41))) ->  | DE19: =IF(AND(DD19>100%,DD19<>""),OCL_Saisie!E18&"/","") ->  | DF19: =DF18&DE19 ->  | DI19: =IF(OCL_Saisie!DF18="","",OCL_Saisie!DF18) ->  | DJ19: =IF(OR(DI19="",AND(DI19<=$D$47,DI19>=$C$47)),"",IF(DI19<$C$47,($C$47-DI19)/$S$43,((DI19-$D$47)/$S$43))) ->  | DK19: =IF(AND(DJ19>100%,DJ19<>""),OCL_Saisie!E18&"/","") ->  | DL19: =DL18&DK19 ->  | DO19: =IF(OCL_Saisie!DG18="","",OCL_Saisie!DG18) ->  | DP19: =IF(OR(DO19="",AND(DO19<=$D$45,DO19>=$C$45)),"",IF(DO19<$C$45,($C$45-DO19)/$S$45,((DO19-$D$45)/$S$45))) ->  | DQ19: =IF(AND(DP19>100%,DP19<>""),OCL_Saisie!E18&"/","") ->  | DR19: =DR18&DQ19 ->  | DU19: =IF(OCL_Saisie!DH18="","",OCL_Saisie!DH18) ->  | DV19: =IF(OR(DU19="",AND(DU19<=$D$43,DU19>=$C$43)),"",IF(DU19<$C$43,($C$43-DU19)/$S$47,((DU19-$D$43)/$S$47))) ->  | DW19: =IF(AND(DV19>100%,DV19<>""),OCL_Saisie!E18&"/","") ->  | DX19: =DX18&DW19 ->  | EA19: =IF(OCL_Saisie!DI18="","",OCL_Saisie!DI18) ->  | EB19: =IF(OR(EA19="",AND(EA19<=$D$49,EA19>=$C$49)),"",IF(EA19<$C$49,($C$49-EA19)/$S$49,((EA19-$D$49)/$S$49))) ->  | EC19: =IF(AND(EB19>100%,EB19<>""),OCL_Saisie!E18&"/","") ->  | ED19: =ED18&EC19 ->  | EG19: =IF(OCL_Saisie!DJ18="","",OCL_Saisie!DJ18) ->  | EH19: =IF(OR(EG19="",AND(EG19<=$D$51,EG19>=$C$51)),"",IF(EG19<$C$51,($C$51-EG19)/$S$51,((EG19-$D$51)/$S$51))) ->  | EI19: =IF(AND(EH19>100%,EH19<>""),OCL_Saisie!E18&"/","") ->  | EJ19: =EJ18&EI19 ->  | EM19: =IF(OCL_Saisie!DK18="","",OCL_Saisie!DK18) ->  | EN19: =IF(OR(EM19="",AND(EM19<=$D$53,EM19>=$C$53)),"",IF(EM19<$C$53,($C$53-EM19)*45/$S$53,(EM19-$D$53)/$S$53)) ->  | EO19: =IF(AND(EN19>100%,EN19<>""),OCL_Saisie!E18&"/","") ->  | EP19: =EP18&EO19 ->  | ES19: =IF(OCL_Saisie!DM18="","",OCL_Saisie!DM18) ->  | ET19: =IF(OR(ES19="",AND(ES19<=$D$56,ES19>=$C$56)),"",IF(ES19<$C$56,($C$56-ES19)/$S$56,((ES19-$D$56)/$S$56))) ->  | EU19: =IF(AND(ET19>100%,ET19<>""),OCL_Saisie!E18&"/","") ->  | EV19: =EV18&EU19 ->  | EY19: =IF(OCL_Saisie!DO18="","",OCL_Saisie!DO18) ->  | EZ19: =IF(OR(EY19="",AND(EY19<=$D$60,EY19>=$C$60)),"",IF(EY19<$C$60,($C$60-EY19)/$S$60,((EY19-$D$60)/$S$60))) ->  | FA19: =IF(AND(EZ19>100%,EZ19<>""),OCL_Saisie!E18&"/","") ->  | FB19: =FB18&FA19 ->  | FE19: =IF(OCL_Saisie!DP18="","",OCL_Saisie!DP18) ->  | FF19: =IF(OR(FE19="",AND(FE19<=$D$62,FE19>=$C$62)),"",IF(FE19<$C$62,($C$62-FE19)/$S$62,((FE19-$D$62)/$S$62))) ->  | FG19: =IF(AND(FF19>100%,FF19<>""),OCL_Saisie!E18&"/","") ->  | FH19: =FH18&FG19 ->  | FK19: =IF(OR(OCL_Saisie!AA18="col",OCL_Saisie!AA18="cu"),OCL_Saisie!DQ18,"") ->  | FL19: =IF(OR(FK19="",AND(FK19<=$D$64,FK19>=$C$64)),"",IF(FK19>$C$64,(FK19-$D$64)/$S$64,IF(FK19<30,101%,IF(FK19<50,55%,20%)))) ->  | FM19: =IF(AND(FL19>100%,FL19<>""),OCL_Saisie!E18&"/","") ->  | FN19: =FN18&FM19 ->  | FQ19: =IF(OR(OCL_Saisie!AA18="col",OCL_Saisie!AA18="cu"),OCL_Saisie!DR18,"") ->  | FR19: =IF(OR(FQ19="",AND(FQ19<=$D$66,FQ19>=$C$66)),"",IF(FQ19>$C$66,(FQ19-$D$66)/$S$66,IF(FQ19<30*0.8,101%,IF(FQ19<50*0.8,55%,20%)))) ->  | FS19: =IF(AND(FR19>100%,FR19<>""),OCL_Saisie!E18&"/","") ->  | FT19: =FT18&FS19 ->  | FW19: =IF(OR(OCL_Saisie!AA18="col",OCL_Saisie!AA18="cu"),OCL_Saisie!DS18,"") ->  | FX19: =IF(OR(FW19="",AND(FW19<=$D$67,FW19>=$C$67)),"",IF(FW19>$C$67,(FW19-$D$67)/$S$67,IF(FW19<30*0.2,101%,IF(FW19<50*0.2,55%,20%)))) ->  | FY19: =IF(AND(FX19>100%,FX19<>""),OCL_Saisie!E18&"/","") ->  | FZ19: =FZ18&FY19 ->  | GC19: =IF(OCL_Saisie!DT18="","",OCL_Saisie!DT18) ->  | GD19: =IF(OR(GC19="",AND(GC19<=$D$69,GC19>=$C$69)),"",IF(GC19<$C$69,($C$69-GC19)/$S$69,((GC19-$D$69)/$S$69))) ->  | GE19: =IF(AND(GD19>100%,GD19<>""),OCL_Saisie!E18&"/","") ->  | GF19: =GF18&GE19 ->  | GJ19: =IF(OCL_Saisie!DN18="","",OCL_Saisie!DN18) ->  | GK19: =IF(OR(GJ19="",AND(GJ19<=$D$58,GJ19>=$C$58)),"",IF(GJ19<$C$58,($C$58-GJ19)/$S$58,((GJ19-$D$58)/$S$58))) ->  | GL19: =IF(AND(GK19>100%,GK19<>""),OCL_Saisie!E18&"/","") ->  | GM19: =GM18&GL19 ->  | GP19: =IF(OR(OCL_Saisie!AA18="col",OCL_Saisie!AA18="cu",OCL_Saisie!AA18="mix"),OCL_Saisie!DB18,"") ->  | GQ19: =IF(AND(OCL_Saisie!AA18<>"col",OCL_Saisie!AA18<>"cu",OCL_Saisie!AA18<>"mix",OCL_Saisie!AA18<>""),OCL_Saisie!DB18,"") ->  | GR19: =IF(OR(GP19="",AND(GP19<=$D$20,GP19>=$C$20)),"",IF(GP19<$C$20,($C$20-GP19)/$S$20,(GP19-$D$20)/$S$20)) ->  | GS19: =IF(OR(GQ19="",AND(GQ19<=$D$21,GQ19>=$C$21)),"",IF(GQ19<$C$21,($C$21-GQ19)/$S$21,((GQ19-$D$21)/$S$21))) ->  | GT19: =IF(AND(GR19>100%,GR19<>""),OCL_Saisie!E18&"/","") ->  | GU19: =IF(AND(GS19>100%,GS19<>""),OCL_Saisie!E18&"/","") ->  | GV19: =GV18&GT19 ->  | GW19: =GW18&GU19 ->  | GZ19: =IF(OR(OCL_Saisie!AA18="col",OCL_Saisie!AA18="cu",OCL_Saisie!AA18="mix"),OCL_Saisie!DC18,"") ->  | HA19: =IF(AND(OCL_Saisie!AA18<>"col",OCL_Saisie!AA18<>"cu",OCL_Saisie!AA18<>"mix",OCL_Saisie!AA18<>""),OCL_Saisie!DC18,"") ->  | HB19: =IF(OR(GZ19="",AND(GZ19<=$D$24,GZ19>=$C$24)),"",IF(GZ19<$C$24,($C$24-GZ19)/$S$24,(GZ19-$D$24)/$S$24)) ->  | HC19: =IF(OR(HA19="",AND(HA19<=$D$25,HA19>=$C$25)),"",IF(HA19<$C$25,($C$25-HA19)/$S$25,((HA19-$D$25)/$S$25))) ->  | HD19: =IF(AND(HB19>100%,HB19<>""),OCL_Saisie!E18&"/","") ->  | HE19: =IF(AND(HC19>100%,HC19<>""),OCL_Saisie!E18&"/","") ->  | HF19: =HF18&HD19 ->  | HG19: =HG18&HE19 ->  | HJ19: =IF(OR(OCL_Saisie!AA18="col",OCL_Saisie!AA18="cu"),OCL_Saisie!DA18,"") ->  | HK19: =IF(AND(OCL_Saisie!AA18<>"col",OCL_Saisie!AA18<>"cu",OCL_Saisie!AA18<>""),OCL_Saisie!DA18,"") ->  | HL19: =IF(OR(HJ19="",AND(HJ19<=$D$34,HJ19>=$C$34)),"",IF(HJ19<$C$34,($C$34-HJ19)/$S$29,((HJ19-$D$34)/$S$29))) ->  | HM19: =IF(OR(HK19="",AND(HK19<=$D$35,HK19>=$C$35)),"",IF(HK19<$C$35,($C$35-HK19)/$S$30,((HK19-$D$35)/$S$30))) ->  | HN19: =IF(AND(HL19>100%,HL19<>""),OCL_Saisie!E18&"/","") ->  | HO19: =IF(AND(HM19>100%,HM19<>""),OCL_Saisie!E18&"/","") ->  | HP19: =HP18&HN19 ->  | HQ19: =HQ18&HO19 -> 
B20: MD_FO_CHAUF : Montant des dépenses de fourniture d'énergie pour le chauffage | C20: =GP2 -> 2.5 | D20: =GP1 -> 15 | E20: Si facturation du chauffage collective ou chauffage urbain ou mixte | F20: =GP6 -> - | G20: =GP7 -> - | H20: =COUNTIF(GP18:GP2040,">-100") -> 0 | I20: =GP3+GP4 -> 0 | J20: =COUNTIF(GR18:GR531,"<"&$J$1) -> 0 | K20: =I20-L20-J20 -> 0 | L20: =COUNTIF(GR18:GR531,">1") -> 0 | M20: =IF(GV16="","-",GV16) -> - | N20: =GP5 -> 0 | S20: =D20-C20 -> 12.5 | BD20: =IF(ISERROR(BE20)=TRUE,1,0) -> 0 | BE20: =IF(OCL_Saisie!W19="IND",OCL_Saisie!CW19,"") ->  | BF20: =IF(OCL_Saisie!W19="col",OCL_Saisie!CW19,"") ->  | BG20: =IF(OCL_Saisie!W19="mix",OCL_Saisie!CW19,"") ->  | BH20: =IF(OR(BE20="",AND(BE20<=$D$5,BE20>=$C$5)),"",IF(BE20<$C$5,($C$5-BE20)/$S$5,((BE20-$D$5)/$S$5))) ->  | BI20: =IF(OR(BF20="",AND(BF20<=$D$6,BF20>=$C$6)),"",IF(BF20<$C$6,($C$6-BF20)/$S$6,((BF20-$D$6)/$S$6))) ->  | BJ20: =IF(OR(BG20="",AND(BG20<=$D$7,BG20>=$C$7)),"",IF(BG20<$C$7,($C$7-BG20)/$S$7,((BG20-$D$7)/$S$7))) ->  | BK20: =IF(AND(BH20>100%,BH20<>""),OCL_Saisie!E19&"/","") ->  | BL20: =IF(AND(BI20>100%,BI20<>""),OCL_Saisie!E19&"/","") ->  | BM20: =IF(AND(BJ20>100%,BJ20<>""),OCL_Saisie!E19&"/","") ->  | BN20: =BN19&BK20 ->  | BO20: =BO19&BL20 ->  | BP20: =BP19&BM20 ->  | BS20: =IF(OCL_Saisie!W19="col",OCL_Saisie!CX19,"") ->  | BT20: =IF(AND(OCL_Saisie!W19<>"col",OCL_Saisie!W19<>""),OCL_Saisie!CX19,"") ->  | BU20: =IF(OR(BS20="",AND(BS20<=$D$10,BS20>=$C$10)),"",IF(BS20<$C$10,($C$10-BS20)/$S$10,((BS20-$D$10)/$S$10))) ->  | BV20: =IF(OR(BT20="",AND(BT20<=$D$11,BT20>=$C$11)),"",IF(BT20<$C$11,($C$11-BT20)/$S$11,((BT20-$D$11)/$S$11))) ->  | BW20: =IF(AND(BU20>100%,BU20<>""),OCL_Saisie!E19&"/","") ->  | BX20: =IF(AND(BV20>100%,BV20<>""),OCL_Saisie!E19&"/","") ->  | BY20: =BY19&BW20 ->  | BZ20: =BZ19&BX20 ->  | CC20: =IF(OCL_Saisie!CY19="","",OCL_Saisie!CY19) ->  | CD20: =IF(OR(CC20="",AND(CC20<=$D$14,CC20>=$C$14)),"",IF(CC20<$C$14,($C$14-CC20)/$S$14,((CC20-$D$14)/$S$14))) ->  | CE20: =IF(AND(CD20>100%,CD20<>""),OCL_Saisie!E19&"/","") ->  | CF20: =CF19&CE20 ->  | CI20: =IF(OR(OCL_Saisie!AA19="col",OCL_Saisie!AA19="cu",OCL_Saisie!AA19="mix"),OCL_Saisie!CZ19,"") ->  | CJ20: =IF(AND(OCL_Saisie!AA19<>"col",OCL_Saisie!AA19<>"cu",OCL_Saisie!AA19<>"mix",OCL_Saisie!AA19<>""),OCL_Saisie!CZ19,"") ->  | CK20: =IF(OR(CI20="",AND(CI20<=$D$16,CI20>=$C$16)),"",IF(CI20<$C$16,($C$16-CI20)/$S$16,(CI20-$D$16)/$S$16)) ->  | CL20: =IF(OR(CJ20="",AND(CJ20<=$D$17,CJ20>=$C$17)),"",IF(CJ20<$C$17,($C$17-CJ20)/$S$17,((CJ20-$D$17)/$S$17))) ->  | CM20: =IF(AND(CK20>100%,CK20<>""),OCL_Saisie!E19&"/","") ->  | CN20: =IF(AND(CL20>100%,CL20<>""),OCL_Saisie!E19&"/","") ->  | CO20: =CO19&CM20 ->  | CP20: =CP19&CN20 ->  | CS20: =IF(OR(OCL_Saisie!AA19="col",OCL_Saisie!AA19="cu",OCL_Saisie!AA19="mix"),OCL_Saisie!DD19,"") ->  | CT20: =IF(AND(OCL_Saisie!AA19<>"col",OCL_Saisie!AA19<>"cu",OCL_Saisie!AA19<>"mix",OCL_Saisie!AA19<>""),OCL_Saisie!DD19,"") ->  | CU20: =IF(OR(CS20="",AND(CS20<=$D$29,CS20>=$C$29)),"",IF(CS20<$C$29,($C$29-CS20)/$S$29,((CS20-$D$29)/$S$29))) ->  | CV20: =IF(OR(CT20="",AND(CT20<=$D$30,CT20>=$C$30)),"",IF(CT20<$C$30,($C$30-CT20)/$S$30,((CT20-$D$30)/$S$30))) ->  | CW20: =IF(AND(CU20>100%,CU20<>""),OCL_Saisie!E19&"/","") ->  | CX20: =IF(AND(CV20>100%,CV20<>""),OCL_Saisie!E19&"/","") ->  | CY20: =CY19&CW20 ->  | CZ20: =CZ19&CX20 ->  | DC20: =IF(OCL_Saisie!DE19="","",OCL_Saisie!DE19) ->  | DD20: =IF(OR(DC20="",AND(DC20<=$D$41,DC20>=$C$41)),"",IF(DC20<$C$41,($C$41-DC20)/$S$41,((DC20-$D$41)/$S$41))) ->  | DE20: =IF(AND(DD20>100%,DD20<>""),OCL_Saisie!E19&"/","") ->  | DF20: =DF19&DE20 ->  | DI20: =IF(OCL_Saisie!DF19="","",OCL_Saisie!DF19) ->  | DJ20: =IF(OR(DI20="",AND(DI20<=$D$47,DI20>=$C$47)),"",IF(DI20<$C$47,($C$47-DI20)/$S$43,((DI20-$D$47)/$S$43))) ->  | DK20: =IF(AND(DJ20>100%,DJ20<>""),OCL_Saisie!E19&"/","") ->  | DL20: =DL19&DK20 ->  | DO20: =IF(OCL_Saisie!DG19="","",OCL_Saisie!DG19) ->  | DP20: =IF(OR(DO20="",AND(DO20<=$D$45,DO20>=$C$45)),"",IF(DO20<$C$45,($C$45-DO20)/$S$45,((DO20-$D$45)/$S$45))) ->  | DQ20: =IF(AND(DP20>100%,DP20<>""),OCL_Saisie!E19&"/","") ->  | DR20: =DR19&DQ20 ->  | DU20: =IF(OCL_Saisie!DH19="","",OCL_Saisie!DH19) ->  | DV20: =IF(OR(DU20="",AND(DU20<=$D$43,DU20>=$C$43)),"",IF(DU20<$C$43,($C$43-DU20)/$S$47,((DU20-$D$43)/$S$47))) ->  | DW20: =IF(AND(DV20>100%,DV20<>""),OCL_Saisie!E19&"/","") ->  | DX20: =DX19&DW20 ->  | EA20: =IF(OCL_Saisie!DI19="","",OCL_Saisie!DI19) ->  | EB20: =IF(OR(EA20="",AND(EA20<=$D$49,EA20>=$C$49)),"",IF(EA20<$C$49,($C$49-EA20)/$S$49,((EA20-$D$49)/$S$49))) ->  | EC20: =IF(AND(EB20>100%,EB20<>""),OCL_Saisie!E19&"/","") ->  | ED20: =ED19&EC20 ->  | EG20: =IF(OCL_Saisie!DJ19="","",OCL_Saisie!DJ19) ->  | EH20: =IF(OR(EG20="",AND(EG20<=$D$51,EG20>=$C$51)),"",IF(EG20<$C$51,($C$51-EG20)/$S$51,((EG20-$D$51)/$S$51))) ->  | EI20: =IF(AND(EH20>100%,EH20<>""),OCL_Saisie!E19&"/","") ->  | EJ20: =EJ19&EI20 ->  | EM20: =IF(OCL_Saisie!DK19="","",OCL_Saisie!DK19) ->  | EN20: =IF(OR(EM20="",AND(EM20<=$D$53,EM20>=$C$53)),"",IF(EM20<$C$53,($C$53-EM20)*45/$S$53,(EM20-$D$53)/$S$53)) ->  | EO20: =IF(AND(EN20>100%,EN20<>""),OCL_Saisie!E19&"/","") ->  | EP20: =EP19&EO20 ->  | ES20: =IF(OCL_Saisie!DM19="","",OCL_Saisie!DM19) ->  | ET20: =IF(OR(ES20="",AND(ES20<=$D$56,ES20>=$C$56)),"",IF(ES20<$C$56,($C$56-ES20)/$S$56,((ES20-$D$56)/$S$56))) ->  | EU20: =IF(AND(ET20>100%,ET20<>""),OCL_Saisie!E19&"/","") ->  | EV20: =EV19&EU20 ->  | EY20: =IF(OCL_Saisie!DO19="","",OCL_Saisie!DO19) ->  | EZ20: =IF(OR(EY20="",AND(EY20<=$D$60,EY20>=$C$60)),"",IF(EY20<$C$60,($C$60-EY20)/$S$60,((EY20-$D$60)/$S$60))) ->  | FA20: =IF(AND(EZ20>100%,EZ20<>""),OCL_Saisie!E19&"/","") ->  | FB20: =FB19&FA20 ->  | FE20: =IF(OCL_Saisie!DP19="","",OCL_Saisie!DP19) ->  | FF20: =IF(OR(FE20="",AND(FE20<=$D$62,FE20>=$C$62)),"",IF(FE20<$C$62,($C$62-FE20)/$S$62,((FE20-$D$62)/$S$62))) ->  | FG20: =IF(AND(FF20>100%,FF20<>""),OCL_Saisie!E19&"/","") ->  | FH20: =FH19&FG20 ->  | FK20: =IF(OR(OCL_Saisie!AA19="col",OCL_Saisie!AA19="cu"),OCL_Saisie!DQ19,"") ->  | FL20: =IF(OR(FK20="",AND(FK20<=$D$64,FK20>=$C$64)),"",IF(FK20>$C$64,(FK20-$D$64)/$S$64,IF(FK20<30,101%,IF(FK20<50,55%,20%)))) ->  | FM20: =IF(AND(FL20>100%,FL20<>""),OCL_Saisie!E19&"/","") ->  | FN20: =FN19&FM20 ->  | FQ20: =IF(OR(OCL_Saisie!AA19="col",OCL_Saisie!AA19="cu"),OCL_Saisie!DR19,"") ->  | FR20: =IF(OR(FQ20="",AND(FQ20<=$D$66,FQ20>=$C$66)),"",IF(FQ20>$C$66,(FQ20-$D$66)/$S$66,IF(FQ20<30*0.8,101%,IF(FQ20<50*0.8,55%,20%)))) ->  | FS20: =IF(AND(FR20>100%,FR20<>""),OCL_Saisie!E19&"/","") ->  | FT20: =FT19&FS20 ->  | FW20: =IF(OR(OCL_Saisie!AA19="col",OCL_Saisie!AA19="cu"),OCL_Saisie!DS19,"") ->  | FX20: =IF(OR(FW20="",AND(FW20<=$D$67,FW20>=$C$67)),"",IF(FW20>$C$67,(FW20-$D$67)/$S$67,IF(FW20<30*0.2,101%,IF(FW20<50*0.2,55%,20%)))) ->  | FY20: =IF(AND(FX20>100%,FX20<>""),OCL_Saisie!E19&"/","") ->  | FZ20: =FZ19&FY20 ->  | GC20: =IF(OCL_Saisie!DT19="","",OCL_Saisie!DT19) ->  | GD20: =IF(OR(GC20="",AND(GC20<=$D$69,GC20>=$C$69)),"",IF(GC20<$C$69,($C$69-GC20)/$S$69,((GC20-$D$69)/$S$69))) ->  | GE20: =IF(AND(GD20>100%,GD20<>""),OCL_Saisie!E19&"/","") ->  | GF20: =GF19&GE20 ->  | GJ20: =IF(OCL_Saisie!DN19="","",OCL_Saisie!DN19) ->  | GK20: =IF(OR(GJ20="",AND(GJ20<=$D$58,GJ20>=$C$58)),"",IF(GJ20<$C$58,($C$58-GJ20)/$S$58,((GJ20-$D$58)/$S$58))) ->  | GL20: =IF(AND(GK20>100%,GK20<>""),OCL_Saisie!E19&"/","") ->  | GM20: =GM19&GL20 ->  | GP20: =IF(OR(OCL_Saisie!AA19="col",OCL_Saisie!AA19="cu",OCL_Saisie!AA19="mix"),OCL_Saisie!DB19,"") ->  | GQ20: =IF(AND(OCL_Saisie!AA19<>"col",OCL_Saisie!AA19<>"cu",OCL_Saisie!AA19<>"mix",OCL_Saisie!AA19<>""),OCL_Saisie!DB19,"") ->  | GR20: =IF(OR(GP20="",AND(GP20<=$D$20,GP20>=$C$20)),"",IF(GP20<$C$20,($C$20-GP20)/$S$20,(GP20-$D$20)/$S$20)) ->  | GS20: =IF(OR(GQ20="",AND(GQ20<=$D$21,GQ20>=$C$21)),"",IF(GQ20<$C$21,($C$21-GQ20)/$S$21,((GQ20-$D$21)/$S$21))) ->  | GT20: =IF(AND(GR20>100%,GR20<>""),OCL_Saisie!E19&"/","") ->  | GU20: =IF(AND(GS20>100%,GS20<>""),OCL_Saisie!E19&"/","") ->  | GV20: =GV19&GT20 ->  | GW20: =GW19&GU20 ->  | GZ20: =IF(OR(OCL_Saisie!AA19="col",OCL_Saisie!AA19="cu",OCL_Saisie!AA19="mix"),OCL_Saisie!DC19,"") ->  | HA20: =IF(AND(OCL_Saisie!AA19<>"col",OCL_Saisie!AA19<>"cu",OCL_Saisie!AA19<>"mix",OCL_Saisie!AA19<>""),OCL_Saisie!DC19,"") ->  | HB20: =IF(OR(GZ20="",AND(GZ20<=$D$24,GZ20>=$C$24)),"",IF(GZ20<$C$24,($C$24-GZ20)/$S$24,(GZ20-$D$24)/$S$24)) ->  | HC20: =IF(OR(HA20="",AND(HA20<=$D$25,HA20>=$C$25)),"",IF(HA20<$C$25,($C$25-HA20)/$S$25,((HA20-$D$25)/$S$25))) ->  | HD20: =IF(AND(HB20>100%,HB20<>""),OCL_Saisie!E19&"/","") ->  | HE20: =IF(AND(HC20>100%,HC20<>""),OCL_Saisie!E19&"/","") ->  | HF20: =HF19&HD20 ->  | HG20: =HG19&HE20 ->  | HJ20: =IF(OR(OCL_Saisie!AA19="col",OCL_Saisie!AA19="cu"),OCL_Saisie!DA19,"") ->  | HK20: =IF(AND(OCL_Saisie!AA19<>"col",OCL_Saisie!AA19<>"cu",OCL_Saisie!AA19<>""),OCL_Saisie!DA19,"") ->  | HL20: =IF(OR(HJ20="",AND(HJ20<=$D$34,HJ20>=$C$34)),"",IF(HJ20<$C$34,($C$34-HJ20)/$S$29,((HJ20-$D$34)/$S$29))) ->  | HM20: =IF(OR(HK20="",AND(HK20<=$D$35,HK20>=$C$35)),"",IF(HK20<$C$35,($C$35-HK20)/$S$30,((HK20-$D$35)/$S$30))) ->  | HN20: =IF(AND(HL20>100%,HL20<>""),OCL_Saisie!E19&"/","") ->  | HO20: =IF(AND(HM20>100%,HM20<>""),OCL_Saisie!E19&"/","") ->  | HP20: =HP19&HN20 ->  | HQ20: =HQ19&HO20 -> 
C21: =GQ2 -> 0 | D21: =GQ1 -> 12.5 | E21: - | F21: =GQ6 -> - | G21: =GQ7 -> - | H21: =COUNTIF(GQ18:GQ2040,">-100") -> 0 | I21: =GQ3+GQ4 -> 0 | J21: =COUNTIF(GS18:GS531,"<"&$J$1) -> 0 | K21: =I21-L21-J21 -> 0 | L21: =COUNTIF(GS18:GS531,">1") -> 0 | M21: =IF(GW16="","-",GW16) -> - | N21: =GQ5 -> 0 | S21: =D21-C21 -> 12.5 | BD21: 0 | BE21: =IF(OCL_Saisie!W20="IND",OCL_Saisie!CW20,"") ->  | BF21: =IF(OCL_Saisie!W20="col",OCL_Saisie!CW20,"") ->  | BG21: =IF(OCL_Saisie!W20="mix",OCL_Saisie!CW20,"") ->  | BK21: =IF(AND(BH21>100%,BH21<>""),OCL_Saisie!E20&"/","") ->  | BL21: =IF(AND(BI21>100%,BI21<>""),OCL_Saisie!E20&"/","") ->  | BM21: =IF(AND(BJ21>100%,BJ21<>""),OCL_Saisie!E20&"/","") ->  | BS21: =IF(OCL_Saisie!W20="col",OCL_Saisie!CX20,"") ->  | BT21: =IF(AND(OCL_Saisie!W20<>"col",OCL_Saisie!W20<>""),OCL_Saisie!CX20,"") ->  | BW21: =IF(AND(BU21>100%,BU21<>""),OCL_Saisie!E20&"/","") ->  | BX21: =IF(AND(BV21>100%,BV21<>""),OCL_Saisie!E20&"/","") ->  | CC21: =IF(OCL_Saisie!CY20="","",OCL_Saisie!CY20) ->  | CE21: =IF(AND(CD21>100%,CD21<>""),OCL_Saisie!E20&"/","") ->  | CI21: =IF(OR(OCL_Saisie!AA20="col",OCL_Saisie!AA20="cu",OCL_Saisie!AA20="mix"),OCL_Saisie!CZ20,"") ->  | CJ21: =IF(AND(OCL_Saisie!AA20<>"col",OCL_Saisie!AA20<>"cu",OCL_Saisie!AA20<>"mix",OCL_Saisie!AA20<>""),OCL_Saisie!CZ20,"") ->  | CM21: =IF(AND(CK21>100%,CK21<>""),OCL_Saisie!E20&"/","") ->  | CN21: =IF(AND(CL21>100%,CL21<>""),OCL_Saisie!E20&"/","") ->  | CS21: =IF(OR(OCL_Saisie!AA20="col",OCL_Saisie!AA20="cu",OCL_Saisie!AA20="mix"),OCL_Saisie!DD20,"") ->  | CT21: =IF(AND(OCL_Saisie!AA20<>"col",OCL_Saisie!AA20<>"cu",OCL_Saisie!AA20<>"mix",OCL_Saisie!AA20<>""),OCL_Saisie!DD20,"") ->  | CW21: =IF(AND(CU21>100%,CU21<>""),OCL_Saisie!E20&"/","") ->  | CX21: =IF(AND(CV21>100%,CV21<>""),OCL_Saisie!E20&"/","") ->  | DC21: =IF(OCL_Saisie!DE20="","",OCL_Saisie!DE20) ->  | DE21: =IF(AND(DD21>100%,DD21<>""),OCL_Saisie!E20&"/","") ->  | DI21: =IF(OCL_Saisie!DF20="","",OCL_Saisie!DF20) ->  | DK21: =IF(AND(DJ21>100%,DJ21<>""),OCL_Saisie!E20&"/","") ->  | DO21: =IF(OCL_Saisie!DG20="","",OCL_Saisie!DG20) ->  | DQ21: =IF(AND(DP21>100%,DP21<>""),OCL_Saisie!E20&"/","") ->  | DU21: =IF(OCL_Saisie!DH20="","",OCL_Saisie!DH20) ->  | DW21: =IF(AND(DV21>100%,DV21<>""),OCL_Saisie!E20&"/","") ->  | EA21: =IF(OCL_Saisie!DI20="","",OCL_Saisie!DI20) ->  | EC21: =IF(AND(EB21>100%,EB21<>""),OCL_Saisie!E20&"/","") ->  | EG21: =IF(OCL_Saisie!DJ20="","",OCL_Saisie!DJ20) ->  | EI21: =IF(AND(EH21>100%,EH21<>""),OCL_Saisie!E20&"/","") ->  | EM21: =IF(OCL_Saisie!DK20="","",OCL_Saisie!DK20) ->  | EO21: =IF(AND(EN21>100%,EN21<>""),OCL_Saisie!E20&"/","") ->  | ES21: =IF(OCL_Saisie!DM20="","",OCL_Saisie!DM20) ->  | EU21: =IF(AND(ET21>100%,ET21<>""),OCL_Saisie!E20&"/","") ->  | EY21: =IF(OCL_Saisie!DO20="","",OCL_Saisie!DO20) ->  | FA21: =IF(AND(EZ21>100%,EZ21<>""),OCL_Saisie!E20&"/","") ->  | FE21: =IF(OCL_Saisie!DP20="","",OCL_Saisie!DP20) ->  | FG21: =IF(AND(FF21>100%,FF21<>""),OCL_Saisie!E20&"/","") ->  | FK21: =IF(OR(OCL_Saisie!AA20="col",OCL_Saisie!AA20="cu"),OCL_Saisie!DQ20,"") ->  | FM21: =IF(AND(FL21>100%,FL21<>""),OCL_Saisie!E20&"/","") ->  | FQ21: =IF(OR(OCL_Saisie!AA20="col",OCL_Saisie!AA20="cu"),OCL_Saisie!DR20,"") ->  | FS21: =IF(AND(FR21>100%,FR21<>""),OCL_Saisie!E20&"/","") ->  | FW21: =IF(OR(OCL_Saisie!AA20="col",OCL_Saisie!AA20="cu"),OCL_Saisie!DS20,"") ->  | FY21: =IF(AND(FX21>100%,FX21<>""),OCL_Saisie!E20&"/","") ->  | GC21: =IF(OCL_Saisie!DT20="","",OCL_Saisie!DT20) ->  | GE21: =IF(AND(GD21>100%,GD21<>""),OCL_Saisie!E20&"/","") ->  | GJ21: =IF(OCL_Saisie!DN20="","",OCL_Saisie!DN20) ->  | GL21: =IF(AND(GK21>100%,GK21<>""),OCL_Saisie!E20&"/","") ->  | GP21: =IF(OR(OCL_Saisie!AA20="col",OCL_Saisie!AA20="cu",OCL_Saisie!AA20="mix"),OCL_Saisie!DB20,"") ->  | GQ21: =IF(AND(OCL_Saisie!AA20<>"col",OCL_Saisie!AA20<>"cu",OCL_Saisie!AA20<>"mix",OCL_Saisie!AA20<>""),OCL_Saisie!DB20,"") ->  | GT21: =IF(AND(GR21>100%,GR21<>""),OCL_Saisie!E20&"/","") ->  | GU21: =IF(AND(GS21>100%,GS21<>""),OCL_Saisie!E20&"/","") ->  | GZ21: =IF(OR(OCL_Saisie!AA20="col",OCL_Saisie!AA20="cu",OCL_Saisie!AA20="mix"),OCL_Saisie!DC20,"") ->  | HA21: =IF(AND(OCL_Saisie!AA20<>"col",OCL_Saisie!AA20<>"cu",OCL_Saisie!AA20<>"mix",OCL_Saisie!AA20<>""),OCL_Saisie!DC20,"") ->  | HD21: =IF(AND(HB21>100%,HB21<>""),OCL_Saisie!E20&"/","") ->  | HE21: =IF(AND(HC21>100%,HC21<>""),OCL_Saisie!E20&"/","") ->  | HJ21: =IF(OR(OCL_Saisie!AA20="col",OCL_Saisie!AA20="cu"),OCL_Saisie!DA20,"") ->  | HK21: =IF(AND(OCL_Saisie!AA20<>"col",OCL_Saisie!AA20<>"cu",OCL_Saisie!AA20<>""),OCL_Saisie!DA20,"") ->  | HN21: =IF(AND(HL21>100%,HL21<>""),OCL_Saisie!E20&"/","") ->  | HO21: =IF(AND(HM21>100%,HM21<>""),OCL_Saisie!E20&"/","") -> 
E22: TOTAL | H22: =H21+H20 -> 0 | I22: =I21+I20 -> 0 | N22: =IF(I22=0,,I22/COUNTIF(OCL_Saisie!DB18:DB444,">-10")) -> 0 | BD22: 0 | BE22: =IF(OCL_Saisie!W21="IND",OCL_Saisie!CW21,"") ->  | BF22: =IF(OCL_Saisie!W21="col",OCL_Saisie!CW21,"") ->  | BG22: =IF(OCL_Saisie!W21="mix",OCL_Saisie!CW21,"") ->  | BK22: =IF(AND(BH22>100%,BH22<>""),OCL_Saisie!E21&"/","") ->  | BL22: =IF(AND(BI22>100%,BI22<>""),OCL_Saisie!E21&"/","") ->  | BM22: =IF(AND(BJ22>100%,BJ22<>""),OCL_Saisie!E21&"/","") ->  | BS22: =IF(OCL_Saisie!W21="col",OCL_Saisie!CX21,"") ->  | BT22: =IF(AND(OCL_Saisie!W21<>"col",OCL_Saisie!W21<>""),OCL_Saisie!CX21,"") ->  | BW22: =IF(AND(BU22>100%,BU22<>""),OCL_Saisie!E21&"/","") ->  | BX22: =IF(AND(BV22>100%,BV22<>""),OCL_Saisie!E21&"/","") ->  | CC22: =IF(OCL_Saisie!CY21="","",OCL_Saisie!CY21) ->  | CE22: =IF(AND(CD22>100%,CD22<>""),OCL_Saisie!E21&"/","") ->  | CI22: =IF(OR(OCL_Saisie!AA21="col",OCL_Saisie!AA21="cu",OCL_Saisie!AA21="mix"),OCL_Saisie!CZ21,"") ->  | CJ22: =IF(AND(OCL_Saisie!AA21<>"col",OCL_Saisie!AA21<>"cu",OCL_Saisie!AA21<>"mix",OCL_Saisie!AA21<>""),OCL_Saisie!CZ21,"") ->  | CM22: =IF(AND(CK22>100%,CK22<>""),OCL_Saisie!E21&"/","") ->  | CN22: =IF(AND(CL22>100%,CL22<>""),OCL_Saisie!E21&"/","") ->  | CS22: =IF(OR(OCL_Saisie!AA21="col",OCL_Saisie!AA21="cu",OCL_Saisie!AA21="mix"),OCL_Saisie!DD21,"") ->  | CT22: =IF(AND(OCL_Saisie!AA21<>"col",OCL_Saisie!AA21<>"cu",OCL_Saisie!AA21<>"mix",OCL_Saisie!AA21<>""),OCL_Saisie!DD21,"") ->  | CW22: =IF(AND(CU22>100%,CU22<>""),OCL_Saisie!E21&"/","") ->  | CX22: =IF(AND(CV22>100%,CV22<>""),OCL_Saisie!E21&"/","") ->  | DC22: =IF(OCL_Saisie!DE21="","",OCL_Saisie!DE21) ->  | DE22: =IF(AND(DD22>100%,DD22<>""),OCL_Saisie!E21&"/","") ->  | DI22: =IF(OCL_Saisie!DF21="","",OCL_Saisie!DF21) ->  | DK22: =IF(AND(DJ22>100%,DJ22<>""),OCL_Saisie!E21&"/","") ->  | DO22: =IF(OCL_Saisie!DG21="","",OCL_Saisie!DG21) ->  | DQ22: =IF(AND(DP22>100%,DP22<>""),OCL_Saisie!E21&"/","") ->  | DU22: =IF(OCL_Saisie!DH21="","",OCL_Saisie!DH21) ->  | DW22: =IF(AND(DV22>100%,DV22<>""),OCL_Saisie!E21&"/","") ->  | EA22: =IF(OCL_Saisie!DI21="","",OCL_Saisie!DI21) ->  | EC22: =IF(AND(EB22>100%,EB22<>""),OCL_Saisie!E21&"/","") ->  | EG22: =IF(OCL_Saisie!DJ21="","",OCL_Saisie!DJ21) ->  | EI22: =IF(AND(EH22>100%,EH22<>""),OCL_Saisie!E21&"/","") ->  | EM22: =IF(OCL_Saisie!DK21="","",OCL_Saisie!DK21) ->  | EO22: =IF(AND(EN22>100%,EN22<>""),OCL_Saisie!E21&"/","") ->  | ES22: =IF(OCL_Saisie!DM21="","",OCL_Saisie!DM21) ->  | ET22: =IF(OR(ES22="",AND(ES22<=$D$56,ES22>=$C$56)),"",IF(ES22<$C$56,($C$56-ES22)/$S$56,((ES22-$D$56)/$S$56))) ->  | EU22: =IF(AND(ET22>100%,ET22<>""),OCL_Saisie!E21&"/","") ->  | EV22: =EV21&EU22 ->  | EY22: =IF(OCL_Saisie!DO21="","",OCL_Saisie!DO21) ->  | FA22: =IF(AND(EZ22>100%,EZ22<>""),OCL_Saisie!E21&"/","") ->  | FE22: =IF(OCL_Saisie!DP21="","",OCL_Saisie!DP21) ->  | FG22: =IF(AND(FF22>100%,FF22<>""),OCL_Saisie!E21&"/","") ->  | FK22: =IF(OR(OCL_Saisie!AA21="col",OCL_Saisie!AA21="cu"),OCL_Saisie!DQ21,"") ->  | FM22: =IF(AND(FL22>100%,FL22<>""),OCL_Saisie!E21&"/","") ->  | FQ22: =IF(OR(OCL_Saisie!AA21="col",OCL_Saisie!AA21="cu"),OCL_Saisie!DR21,"") ->  | FS22: =IF(AND(FR22>100%,FR22<>""),OCL_Saisie!E21&"/","") ->  | FW22: =IF(OR(OCL_Saisie!AA21="col",OCL_Saisie!AA21="cu"),OCL_Saisie!DS21,"") ->  | FY22: =IF(AND(FX22>100%,FX22<>""),OCL_Saisie!E21&"/","") ->  | GC22: =IF(OCL_Saisie!DT21="","",OCL_Saisie!DT21) ->  | GE22: =IF(AND(GD22>100%,GD22<>""),OCL_Saisie!E21&"/","") ->  | GJ22: =IF(OCL_Saisie!DN21="","",OCL_Saisie!DN21) ->  | GL22: =IF(AND(GK22>100%,GK22<>""),OCL_Saisie!E21&"/","") ->  | GP22: =IF(OR(OCL_Saisie!AA21="col",OCL_Saisie!AA21="cu",OCL_Saisie!AA21="mix"),OCL_Saisie!DB21,"") ->  | GQ22: =IF(AND(OCL_Saisie!AA21<>"col",OCL_Saisie!AA21<>"cu",OCL_Saisie!AA21<>"mix",OCL_Saisie!AA21<>""),OCL_Saisie!DB21,"") ->  | GT22: =IF(AND(GR22>100%,GR22<>""),OCL_Saisie!E21&"/","") ->  | GU22: =IF(AND(GS22>100%,GS22<>""),OCL_Saisie!E21&"/","") ->  | GZ22: =IF(OR(OCL_Saisie!AA21="col",OCL_Saisie!AA21="cu",OCL_Saisie!AA21="mix"),OCL_Saisie!DC21,"") ->  | HA22: =IF(AND(OCL_Saisie!AA21<>"col",OCL_Saisie!AA21<>"cu",OCL_Saisie!AA21<>"mix",OCL_Saisie!AA21<>""),OCL_Saisie!DC21,"") ->  | HD22: =IF(AND(HB22>100%,HB22<>""),OCL_Saisie!E21&"/","") ->  | HE22: =IF(AND(HC22>100%,HC22<>""),OCL_Saisie!E21&"/","") ->  | HJ22: =IF(OR(OCL_Saisie!AA21="col",OCL_Saisie!AA21="cu"),OCL_Saisie!DA21,"") ->  | HK22: =IF(AND(OCL_Saisie!AA21<>"col",OCL_Saisie!AA21<>"cu",OCL_Saisie!AA21<>""),OCL_Saisie!DA21,"") ->  | HN22: =IF(AND(HL22>100%,HL22<>""),OCL_Saisie!E21&"/","") ->  | HO22: =IF(AND(HM22>100%,HM22<>""),OCL_Saisie!E21&"/","") -> 
BD23: 0 | BE23: =IF(OCL_Saisie!W22="IND",OCL_Saisie!CW22,"") ->  | BF23: =IF(OCL_Saisie!W22="col",OCL_Saisie!CW22,"") ->  | BG23: =IF(OCL_Saisie!W22="mix",OCL_Saisie!CW22,"") ->  | BK23: =IF(AND(BH23>100%,BH23<>""),OCL_Saisie!E22&"/","") ->  | BL23: =IF(AND(BI23>100%,BI23<>""),OCL_Saisie!E22&"/","") ->  | BM23: =IF(AND(BJ23>100%,BJ23<>""),OCL_Saisie!E22&"/","") ->  | BS23: =IF(OCL_Saisie!W22="col",OCL_Saisie!CX22,"") ->  | BT23: =IF(AND(OCL_Saisie!W22<>"col",OCL_Saisie!W22<>""),OCL_Saisie!CX22,"") ->  | BW23: =IF(AND(BU23>100%,BU23<>""),OCL_Saisie!E22&"/","") ->  | BX23: =IF(AND(BV23>100%,BV23<>""),OCL_Saisie!E22&"/","") ->  | CC23: =IF(OCL_Saisie!CY22="","",OCL_Saisie!CY22) ->  | CE23: =IF(AND(CD23>100%,CD23<>""),OCL_Saisie!E22&"/","") ->  | CI23: =IF(OR(OCL_Saisie!AA22="col",OCL_Saisie!AA22="cu",OCL_Saisie!AA22="mix"),OCL_Saisie!CZ22,"") ->  | CJ23: =IF(AND(OCL_Saisie!AA22<>"col",OCL_Saisie!AA22<>"cu",OCL_Saisie!AA22<>"mix",OCL_Saisie!AA22<>""),OCL_Saisie!CZ22,"") ->  | CM23: =IF(AND(CK23>100%,CK23<>""),OCL_Saisie!E22&"/","") ->  | CN23: =IF(AND(CL23>100%,CL23<>""),OCL_Saisie!E22&"/","") ->  | CS23: =IF(OR(OCL_Saisie!AA22="col",OCL_Saisie!AA22="cu",OCL_Saisie!AA22="mix"),OCL_Saisie!DD22,"") ->  | CT23: =IF(AND(OCL_Saisie!AA22<>"col",OCL_Saisie!AA22<>"cu",OCL_Saisie!AA22<>"mix",OCL_Saisie!AA22<>""),OCL_Saisie!DD22,"") ->  | CW23: =IF(AND(CU23>100%,CU23<>""),OCL_Saisie!E22&"/","") ->  | CX23: =IF(AND(CV23>100%,CV23<>""),OCL_Saisie!E22&"/","") ->  | DC23: =IF(OCL_Saisie!DE22="","",OCL_Saisie!DE22) ->  | DE23: =IF(AND(DD23>100%,DD23<>""),OCL_Saisie!E22&"/","") ->  | DI23: =IF(OCL_Saisie!DF22="","",OCL_Saisie!DF22) ->  | DK23: =IF(AND(DJ23>100%,DJ23<>""),OCL_Saisie!E22&"/","") ->  | DO23: =IF(OCL_Saisie!DG22="","",OCL_Saisie!DG22) ->  | DQ23: =IF(AND(DP23>100%,DP23<>""),OCL_Saisie!E22&"/","") ->  | DU23: =IF(OCL_Saisie!DH22="","",OCL_Saisie!DH22) ->  | DW23: =IF(AND(DV23>100%,DV23<>""),OCL_Saisie!E22&"/","") ->  | EA23: =IF(OCL_Saisie!DI22="","",OCL_Saisie!DI22) ->  | EC23: =IF(AND(EB23>100%,EB23<>""),OCL_Saisie!E22&"/","") ->  | EG23: =IF(OCL_Saisie!DJ22="","",OCL_Saisie!DJ22) ->  | EI23: =IF(AND(EH23>100%,EH23<>""),OCL_Saisie!E22&"/","") ->  | EM23: =IF(OCL_Saisie!DK22="","",OCL_Saisie!DK22) ->  | EO23: =IF(AND(EN23>100%,EN23<>""),OCL_Saisie!E22&"/","") ->  | ES23: =IF(OCL_Saisie!DM22="","",OCL_Saisie!DM22) ->  | EU23: =IF(AND(ET23>100%,ET23<>""),OCL_Saisie!E22&"/","") ->  | EY23: =IF(OCL_Saisie!DO22="","",OCL_Saisie!DO22) ->  | FA23: =IF(AND(EZ23>100%,EZ23<>""),OCL_Saisie!E22&"/","") ->  | FE23: =IF(OCL_Saisie!DP22="","",OCL_Saisie!DP22) ->  | FG23: =IF(AND(FF23>100%,FF23<>""),OCL_Saisie!E22&"/","") ->  | FK23: =IF(OR(OCL_Saisie!AA22="col",OCL_Saisie!AA22="cu"),OCL_Saisie!DQ22,"") ->  | FM23: =IF(AND(FL23>100%,FL23<>""),OCL_Saisie!E22&"/","") ->  | FQ23: =IF(OR(OCL_Saisie!AA22="col",OCL_Saisie!AA22="cu"),OCL_Saisie!DR22,"") ->  | FS23: =IF(AND(FR23>100%,FR23<>""),OCL_Saisie!E22&"/","") ->  | FW23: =IF(OR(OCL_Saisie!AA22="col",OCL_Saisie!AA22="cu"),OCL_Saisie!DS22,"") ->  | FY23: =IF(AND(FX23>100%,FX23<>""),OCL_Saisie!E22&"/","") ->  | GC23: =IF(OCL_Saisie!DT22="","",OCL_Saisie!DT22) ->  | GE23: =IF(AND(GD23>100%,GD23<>""),OCL_Saisie!E22&"/","") ->  | GJ23: =IF(OCL_Saisie!DN22="","",OCL_Saisie!DN22) ->  | GL23: =IF(AND(GK23>100%,GK23<>""),OCL_Saisie!E22&"/","") ->  | GP23: =IF(OR(OCL_Saisie!AA22="col",OCL_Saisie!AA22="cu",OCL_Saisie!AA22="mix"),OCL_Saisie!DB22,"") ->  | GQ23: =IF(AND(OCL_Saisie!AA22<>"col",OCL_Saisie!AA22<>"cu",OCL_Saisie!AA22<>"mix",OCL_Saisie!AA22<>""),OCL_Saisie!DB22,"") ->  | GT23: =IF(AND(GR23>100%,GR23<>""),OCL_Saisie!E22&"/","") ->  | GU23: =IF(AND(GS23>100%,GS23<>""),OCL_Saisie!E22&"/","") ->  | GZ23: =IF(OR(OCL_Saisie!AA22="col",OCL_Saisie!AA22="cu",OCL_Saisie!AA22="mix"),OCL_Saisie!DC22,"") ->  | HA23: =IF(AND(OCL_Saisie!AA22<>"col",OCL_Saisie!AA22<>"cu",OCL_Saisie!AA22<>"mix",OCL_Saisie!AA22<>""),OCL_Saisie!DC22,"") ->  | HD23: =IF(AND(HB23>100%,HB23<>""),OCL_Saisie!E22&"/","") ->  | HE23: =IF(AND(HC23>100%,HC23<>""),OCL_Saisie!E22&"/","") ->  | HJ23: =IF(OR(OCL_Saisie!AA22="col",OCL_Saisie!AA22="cu"),OCL_Saisie!DA22,"") ->  | HK23: =IF(AND(OCL_Saisie!AA22<>"col",OCL_Saisie!AA22<>"cu",OCL_Saisie!AA22<>""),OCL_Saisie!DA22,"") ->  | HN23: =IF(AND(HL23>100%,HL23<>""),OCL_Saisie!E22&"/","") ->  | HO23: =IF(AND(HM23>100%,HM23<>""),OCL_Saisie!E22&"/","") -> 
B24: MD_FO_ECS : Montant des dépenses de fourniture d'énergie pour l'ECS | C24: =GZ2 -> 0.5 | D24: =GZ1 -> 3 | E24: Si facturation du chauffage collective ou chauffage urbain ou mixte | F24: =GZ6 -> - | G24: =GZ7 -> - | H24: =COUNTIF(GZ18:GZ2040,">-100") -> 0 | I24: =GZ3+GZ4 -> 0 | J24: =COUNTIF(HB18:HB531,"<"&$J$1) -> 0 | K24: =I24-L24-J24 -> 0 | L24: =COUNTIF(HB18:HB531,">1") -> 0 | M24: =IF(HF16="","-",HF16) -> - | N24: =GZ5 -> 0 | S24: =D24-C24 -> 2.5 | BD24: 0 | BE24: =IF(OCL_Saisie!W23="IND",OCL_Saisie!CW23,"") ->  | BF24: =IF(OCL_Saisie!W23="col",OCL_Saisie!CW23,"") ->  | BG24: =IF(OCL_Saisie!W23="mix",OCL_Saisie!CW23,"") ->  | BK24: =IF(AND(BH24>100%,BH24<>""),OCL_Saisie!E23&"/","") ->  | BL24: =IF(AND(BI24>100%,BI24<>""),OCL_Saisie!E23&"/","") ->  | BM24: =IF(AND(BJ24>100%,BJ24<>""),OCL_Saisie!E23&"/","") ->  | BS24: =IF(OCL_Saisie!W23="col",OCL_Saisie!CX23,"") ->  | BT24: =IF(AND(OCL_Saisie!W23<>"col",OCL_Saisie!W23<>""),OCL_Saisie!CX23,"") ->  | BW24: =IF(AND(BU24>100%,BU24<>""),OCL_Saisie!E23&"/","") ->  | BX24: =IF(AND(BV24>100%,BV24<>""),OCL_Saisie!E23&"/","") ->  | CC24: =IF(OCL_Saisie!CY23="","",OCL_Saisie!CY23) ->  | CE24: =IF(AND(CD24>100%,CD24<>""),OCL_Saisie!E23&"/","") ->  | CI24: =IF(OR(OCL_Saisie!AA23="col",OCL_Saisie!AA23="cu",OCL_Saisie!AA23="mix"),OCL_Saisie!CZ23,"") ->  | CJ24: =IF(AND(OCL_Saisie!AA23<>"col",OCL_Saisie!AA23<>"cu",OCL_Saisie!AA23<>"mix",OCL_Saisie!AA23<>""),OCL_Saisie!CZ23,"") ->  | CM24: =IF(AND(CK24>100%,CK24<>""),OCL_Saisie!E23&"/","") ->  | CN24: =IF(AND(CL24>100%,CL24<>""),OCL_Saisie!E23&"/","") ->  | CS24: =IF(OR(OCL_Saisie!AA23="col",OCL_Saisie!AA23="cu",OCL_Saisie!AA23="mix"),OCL_Saisie!DD23,"") ->  | CT24: =IF(AND(OCL_Saisie!AA23<>"col",OCL_Saisie!AA23<>"cu",OCL_Saisie!AA23<>"mix",OCL_Saisie!AA23<>""),OCL_Saisie!DD23,"") ->  | CW24: =IF(AND(CU24>100%,CU24<>""),OCL_Saisie!E23&"/","") ->  | CX24: =IF(AND(CV24>100%,CV24<>""),OCL_Saisie!E23&"/","") ->  | DC24: =IF(OCL_Saisie!DE23="","",OCL_Saisie!DE23) ->  | DE24: =IF(AND(DD24>100%,DD24<>""),OCL_Saisie!E23&"/","") ->  | DI24: =IF(OCL_Saisie!DF23="","",OCL_Saisie!DF23) ->  | DK24: =IF(AND(DJ24>100%,DJ24<>""),OCL_Saisie!E23&"/","") ->  | DO24: =IF(OCL_Saisie!DG23="","",OCL_Saisie!DG23) ->  | DQ24: =IF(AND(DP24>100%,DP24<>""),OCL_Saisie!E23&"/","") ->  | DU24: =IF(OCL_Saisie!DH23="","",OCL_Saisie!DH23) ->  | DW24: =IF(AND(DV24>100%,DV24<>""),OCL_Saisie!E23&"/","") ->  | EA24: =IF(OCL_Saisie!DI23="","",OCL_Saisie!DI23) ->  | EC24: =IF(AND(EB24>100%,EB24<>""),OCL_Saisie!E23&"/","") ->  | EG24: =IF(OCL_Saisie!DJ23="","",OCL_Saisie!DJ23) ->  | EI24: =IF(AND(EH24>100%,EH24<>""),OCL_Saisie!E23&"/","") ->  | EM24: =IF(OCL_Saisie!DK23="","",OCL_Saisie!DK23) ->  | EO24: =IF(AND(EN24>100%,EN24<>""),OCL_Saisie!E23&"/","") ->  | ES24: =IF(OCL_Saisie!DM23="","",OCL_Saisie!DM23) ->  | EU24: =IF(AND(ET24>100%,ET24<>""),OCL_Saisie!E23&"/","") ->  | EY24: =IF(OCL_Saisie!DO23="","",OCL_Saisie!DO23) ->  | FA24: =IF(AND(EZ24>100%,EZ24<>""),OCL_Saisie!E23&"/","") ->  | FE24: =IF(OCL_Saisie!DP23="","",OCL_Saisie!DP23) ->  | FG24: =IF(AND(FF24>100%,FF24<>""),OCL_Saisie!E23&"/","") ->  | FK24: =IF(OR(OCL_Saisie!AA23="col",OCL_Saisie!AA23="cu"),OCL_Saisie!DQ23,"") ->  | FM24: =IF(AND(FL24>100%,FL24<>""),OCL_Saisie!E23&"/","") ->  | FQ24: =IF(OR(OCL_Saisie!AA23="col",OCL_Saisie!AA23="cu"),OCL_Saisie!DR23,"") ->  | FS24: =IF(AND(FR24>100%,FR24<>""),OCL_Saisie!E23&"/","") ->  | FW24: =IF(OR(OCL_Saisie!AA23="col",OCL_Saisie!AA23="cu"),OCL_Saisie!DS23,"") ->  | FY24: =IF(AND(FX24>100%,FX24<>""),OCL_Saisie!E23&"/","") ->  | GC24: =IF(OCL_Saisie!DT23="","",OCL_Saisie!DT23) ->  | GE24: =IF(AND(GD24>100%,GD24<>""),OCL_Saisie!E23&"/","") ->  | GJ24: =IF(OCL_Saisie!DN23="","",OCL_Saisie!DN23) ->  | GL24: =IF(AND(GK24>100%,GK24<>""),OCL_Saisie!E23&"/","") ->  | GP24: =IF(OR(OCL_Saisie!AA23="col",OCL_Saisie!AA23="cu",OCL_Saisie!AA23="mix"),OCL_Saisie!DB23,"") ->  | GQ24: =IF(AND(OCL_Saisie!AA23<>"col",OCL_Saisie!AA23<>"cu",OCL_Saisie!AA23<>"mix",OCL_Saisie!AA23<>""),OCL_Saisie!DB23,"") ->  | GT24: =IF(AND(GR24>100%,GR24<>""),OCL_Saisie!E23&"/","") ->  | GU24: =IF(AND(GS24>100%,GS24<>""),OCL_Saisie!E23&"/","") ->  | GZ24: =IF(OR(OCL_Saisie!AA23="col",OCL_Saisie!AA23="cu",OCL_Saisie!AA23="mix"),OCL_Saisie!DC23,"") ->  | HA24: =IF(AND(OCL_Saisie!AA23<>"col",OCL_Saisie!AA23<>"cu",OCL_Saisie!AA23<>"mix",OCL_Saisie!AA23<>""),OCL_Saisie!DC23,"") ->  | HD24: =IF(AND(HB24>100%,HB24<>""),OCL_Saisie!E23&"/","") ->  | HE24: =IF(AND(HC24>100%,HC24<>""),OCL_Saisie!E23&"/","") ->  | HJ24: =IF(OR(OCL_Saisie!AA23="col",OCL_Saisie!AA23="cu"),OCL_Saisie!DA23,"") ->  | HK24: =IF(AND(OCL_Saisie!AA23<>"col",OCL_Saisie!AA23<>"cu",OCL_Saisie!AA23<>""),OCL_Saisie!DA23,"") ->  | HN24: =IF(AND(HL24>100%,HL24<>""),OCL_Saisie!E23&"/","") ->  | HO24: =IF(AND(HM24>100%,HM24<>""),OCL_Saisie!E23&"/","") -> 
C25: =HA2 -> 0 | D25: =HA1 -> 2.5 | E25: - | F25: =HA6 -> - | G25: =HA7 -> - | H25: =COUNTIF(HA18:HA2040,">-100") -> 0 | I25: =HA3+HA4 -> 0 | J25: =COUNTIF(HC18:HC531,"<"&$J$1) -> 0 | K25: =I25-L25-J25 -> 0 | L25: =COUNTIF(HC18:HC531,">1") -> 0 | M25: =IF(HG16="","-",HG16) -> - | N25: =HA5 -> 0 | S25: =D25-C25 -> 2.5 | BD25: 0 | BE25: =IF(OCL_Saisie!W24="IND",OCL_Saisie!CW24,"") ->  | BF25: =IF(OCL_Saisie!W24="col",OCL_Saisie!CW24,"") ->  | BG25: =IF(OCL_Saisie!W24="mix",OCL_Saisie!CW24,"") ->  | BK25: =IF(AND(BH25>100%,BH25<>""),OCL_Saisie!E24&"/","") ->  | BL25: =IF(AND(BI25>100%,BI25<>""),OCL_Saisie!E24&"/","") ->  | BM25: =IF(AND(BJ25>100%,BJ25<>""),OCL_Saisie!E24&"/","") ->  | BS25: =IF(OCL_Saisie!W24="col",OCL_Saisie!CX24,"") ->  | BT25: =IF(AND(OCL_Saisie!W24<>"col",OCL_Saisie!W24<>""),OCL_Saisie!CX24,"") ->  | BW25: =IF(AND(BU25>100%,BU25<>""),OCL_Saisie!E24&"/","") ->  | BX25: =IF(AND(BV25>100%,BV25<>""),OCL_Saisie!E24&"/","") ->  | CC25: =IF(OCL_Saisie!CY24="","",OCL_Saisie!CY24) ->  | CE25: =IF(AND(CD25>100%,CD25<>""),OCL_Saisie!E24&"/","") ->  | CI25: =IF(OR(OCL_Saisie!AA24="col",OCL_Saisie!AA24="cu",OCL_Saisie!AA24="mix"),OCL_Saisie!CZ24,"") ->  | CJ25: =IF(AND(OCL_Saisie!AA24<>"col",OCL_Saisie!AA24<>"cu",OCL_Saisie!AA24<>"mix",OCL_Saisie!AA24<>""),OCL_Saisie!CZ24,"") ->  | CM25: =IF(AND(CK25>100%,CK25<>""),OCL_Saisie!E24&"/","") ->  | CN25: =IF(AND(CL25>100%,CL25<>""),OCL_Saisie!E24&"/","") ->  | CS25: =IF(OR(OCL_Saisie!AA24="col",OCL_Saisie!AA24="cu",OCL_Saisie!AA24="mix"),OCL_Saisie!DD24,"") ->  | CT25: =IF(AND(OCL_Saisie!AA24<>"col",OCL_Saisie!AA24<>"cu",OCL_Saisie!AA24<>"mix",OCL_Saisie!AA24<>""),OCL_Saisie!DD24,"") ->  | CW25: =IF(AND(CU25>100%,CU25<>""),OCL_Saisie!E24&"/","") ->  | CX25: =IF(AND(CV25>100%,CV25<>""),OCL_Saisie!E24&"/","") ->  | DC25: =IF(OCL_Saisie!DE24="","",OCL_Saisie!DE24) ->  | DE25: =IF(AND(DD25>100%,DD25<>""),OCL_Saisie!E24&"/","") ->  | DI25: =IF(OCL_Saisie!DF24="","",OCL_Saisie!DF24) ->  | DK25: =IF(AND(DJ25>100%,DJ25<>""),OCL_Saisie!E24&"/","") ->  | DO25: =IF(OCL_Saisie!DG24="","",OCL_Saisie!DG24) ->  | DQ25: =IF(AND(DP25>100%,DP25<>""),OCL_Saisie!E24&"/","") ->  | DU25: =IF(OCL_Saisie!DH24="","",OCL_Saisie!DH24) ->  | DW25: =IF(AND(DV25>100%,DV25<>""),OCL_Saisie!E24&"/","") ->  | EA25: =IF(OCL_Saisie!DI24="","",OCL_Saisie!DI24) ->  | EC25: =IF(AND(EB25>100%,EB25<>""),OCL_Saisie!E24&"/","") ->  | EG25: =IF(OCL_Saisie!DJ24="","",OCL_Saisie!DJ24) ->  | EI25: =IF(AND(EH25>100%,EH25<>""),OCL_Saisie!E24&"/","") ->  | EM25: =IF(OCL_Saisie!DK24="","",OCL_Saisie!DK24) ->  | EO25: =IF(AND(EN25>100%,EN25<>""),OCL_Saisie!E24&"/","") ->  | ES25: =IF(OCL_Saisie!DM24="","",OCL_Saisie!DM24) ->  | EU25: =IF(AND(ET25>100%,ET25<>""),OCL_Saisie!E24&"/","") ->  | EY25: =IF(OCL_Saisie!DO24="","",OCL_Saisie!DO24) ->  | FA25: =IF(AND(EZ25>100%,EZ25<>""),OCL_Saisie!E24&"/","") ->  | FE25: =IF(OCL_Saisie!DP24="","",OCL_Saisie!DP24) ->  | FG25: =IF(AND(FF25>100%,FF25<>""),OCL_Saisie!E24&"/","") ->  | FK25: =IF(OR(OCL_Saisie!AA24="col",OCL_Saisie!AA24="cu"),OCL_Saisie!DQ24,"") ->  | FM25: =IF(AND(FL25>100%,FL25<>""),OCL_Saisie!E24&"/","") ->  | FQ25: =IF(OR(OCL_Saisie!AA24="col",OCL_Saisie!AA24="cu"),OCL_Saisie!DR24,"") ->  | FS25: =IF(AND(FR25>100%,FR25<>""),OCL_Saisie!E24&"/","") ->  | FW25: =IF(OR(OCL_Saisie!AA24="col",OCL_Saisie!AA24="cu"),OCL_Saisie!DS24,"") ->  | FY25: =IF(AND(FX25>100%,FX25<>""),OCL_Saisie!E24&"/","") ->  | GC25: =IF(OCL_Saisie!DT24="","",OCL_Saisie!DT24) ->  | GE25: =IF(AND(GD25>100%,GD25<>""),OCL_Saisie!E24&"/","") ->  | GJ25: =IF(OCL_Saisie!DN24="","",OCL_Saisie!DN24) ->  | GL25: =IF(AND(GK25>100%,GK25<>""),OCL_Saisie!E24&"/","") ->  | GP25: =IF(OR(OCL_Saisie!AA24="col",OCL_Saisie!AA24="cu",OCL_Saisie!AA24="mix"),OCL_Saisie!DB24,"") ->  | GQ25: =IF(AND(OCL_Saisie!AA24<>"col",OCL_Saisie!AA24<>"cu",OCL_Saisie!AA24<>"mix",OCL_Saisie!AA24<>""),OCL_Saisie!DB24,"") ->  | GT25: =IF(AND(GR25>100%,GR25<>""),OCL_Saisie!E24&"/","") ->  | GU25: =IF(AND(GS25>100%,GS25<>""),OCL_Saisie!E24&"/","") ->  | GZ25: =IF(OR(OCL_Saisie!AA24="col",OCL_Saisie!AA24="cu",OCL_Saisie!AA24="mix"),OCL_Saisie!DC24,"") ->  | HA25: =IF(AND(OCL_Saisie!AA24<>"col",OCL_Saisie!AA24<>"cu",OCL_Saisie!AA24<>"mix",OCL_Saisie!AA24<>""),OCL_Saisie!DC24,"") ->  | HD25: =IF(AND(HB25>100%,HB25<>""),OCL_Saisie!E24&"/","") ->  | HE25: =IF(AND(HC25>100%,HC25<>""),OCL_Saisie!E24&"/","") ->  | HJ25: =IF(OR(OCL_Saisie!AA24="col",OCL_Saisie!AA24="cu"),OCL_Saisie!DA24,"") ->  | HK25: =IF(AND(OCL_Saisie!AA24<>"col",OCL_Saisie!AA24<>"cu",OCL_Saisie!AA24<>""),OCL_Saisie!DA24,"") ->  | HN25: =IF(AND(HL25>100%,HL25<>""),OCL_Saisie!E24&"/","") ->  | HO25: =IF(AND(HM25>100%,HM25<>""),OCL_Saisie!E24&"/","") -> 
E26: TOTAL | H26: =H25+H24 -> 0 | I26: =I25+I24 -> 0 | N26: =IF(I26=0,,I26/COUNTIF(OCL_Saisie!DC18:DC444,">-10")) -> 0 | BD26: 0 | BE26: =IF(OCL_Saisie!W25="IND",OCL_Saisie!CW25,"") ->  | BF26: =IF(OCL_Saisie!W25="col",OCL_Saisie!CW25,"") ->  | BG26: =IF(OCL_Saisie!W25="mix",OCL_Saisie!CW25,"") ->  | BK26: =IF(AND(BH26>100%,BH26<>""),OCL_Saisie!E25&"/","") ->  | BL26: =IF(AND(BI26>100%,BI26<>""),OCL_Saisie!E25&"/","") ->  | BM26: =IF(AND(BJ26>100%,BJ26<>""),OCL_Saisie!E25&"/","") ->  | BS26: =IF(OCL_Saisie!W25="col",OCL_Saisie!CX25,"") ->  | BT26: =IF(AND(OCL_Saisie!W25<>"col",OCL_Saisie!W25<>""),OCL_Saisie!CX25,"") ->  | BW26: =IF(AND(BU26>100%,BU26<>""),OCL_Saisie!E25&"/","") ->  | BX26: =IF(AND(BV26>100%,BV26<>""),OCL_Saisie!E25&"/","") ->  | CC26: =IF(OCL_Saisie!CY25="","",OCL_Saisie!CY25) ->  | CE26: =IF(AND(CD26>100%,CD26<>""),OCL_Saisie!E25&"/","") ->  | CI26: =IF(OR(OCL_Saisie!AA25="col",OCL_Saisie!AA25="cu",OCL_Saisie!AA25="mix"),OCL_Saisie!CZ25,"") ->  | CJ26: =IF(AND(OCL_Saisie!AA25<>"col",OCL_Saisie!AA25<>"cu",OCL_Saisie!AA25<>"mix",OCL_Saisie!AA25<>""),OCL_Saisie!CZ25,"") ->  | CM26: =IF(AND(CK26>100%,CK26<>""),OCL_Saisie!E25&"/","") ->  | CN26: =IF(AND(CL26>100%,CL26<>""),OCL_Saisie!E25&"/","") ->  | CS26: =IF(OR(OCL_Saisie!AA25="col",OCL_Saisie!AA25="cu",OCL_Saisie!AA25="mix"),OCL_Saisie!DD25,"") ->  | CT26: =IF(AND(OCL_Saisie!AA25<>"col",OCL_Saisie!AA25<>"cu",OCL_Saisie!AA25<>"mix",OCL_Saisie!AA25<>""),OCL_Saisie!DD25,"") ->  | CW26: =IF(AND(CU26>100%,CU26<>""),OCL_Saisie!E25&"/","") ->  | CX26: =IF(AND(CV26>100%,CV26<>""),OCL_Saisie!E25&"/","") ->  | DC26: =IF(OCL_Saisie!DE25="","",OCL_Saisie!DE25) ->  | DE26: =IF(AND(DD26>100%,DD26<>""),OCL_Saisie!E25&"/","") ->  | DI26: =IF(OCL_Saisie!DF25="","",OCL_Saisie!DF25) ->  | DK26: =IF(AND(DJ26>100%,DJ26<>""),OCL_Saisie!E25&"/","") ->  | DO26: =IF(OCL_Saisie!DG25="","",OCL_Saisie!DG25) ->  | DQ26: =IF(AND(DP26>100%,DP26<>""),OCL_Saisie!E25&"/","") ->  | DU26: =IF(OCL_Saisie!DH25="","",OCL_Saisie!DH25) ->  | DW26: =IF(AND(DV26>100%,DV26<>""),OCL_Saisie!E25&"/","") ->  | EA26: =IF(OCL_Saisie!DI25="","",OCL_Saisie!DI25) ->  | EC26: =IF(AND(EB26>100%,EB26<>""),OCL_Saisie!E25&"/","") ->  | EG26: =IF(OCL_Saisie!DJ25="","",OCL_Saisie!DJ25) ->  | EI26: =IF(AND(EH26>100%,EH26<>""),OCL_Saisie!E25&"/","") ->  | EM26: =IF(OCL_Saisie!DK25="","",OCL_Saisie!DK25) ->  | EO26: =IF(AND(EN26>100%,EN26<>""),OCL_Saisie!E25&"/","") ->  | ES26: =IF(OCL_Saisie!DM25="","",OCL_Saisie!DM25) ->  | EU26: =IF(AND(ET26>100%,ET26<>""),OCL_Saisie!E25&"/","") ->  | EY26: =IF(OCL_Saisie!DO25="","",OCL_Saisie!DO25) ->  | FA26: =IF(AND(EZ26>100%,EZ26<>""),OCL_Saisie!E25&"/","") ->  | FE26: =IF(OCL_Saisie!DP25="","",OCL_Saisie!DP25) ->  | FG26: =IF(AND(FF26>100%,FF26<>""),OCL_Saisie!E25&"/","") ->  | FK26: =IF(OR(OCL_Saisie!AA25="col",OCL_Saisie!AA25="cu"),OCL_Saisie!DQ25,"") ->  | FM26: =IF(AND(FL26>100%,FL26<>""),OCL_Saisie!E25&"/","") ->  | FQ26: =IF(OR(OCL_Saisie!AA25="col",OCL_Saisie!AA25="cu"),OCL_Saisie!DR25,"") ->  | FS26: =IF(AND(FR26>100%,FR26<>""),OCL_Saisie!E25&"/","") ->  | FW26: =IF(OR(OCL_Saisie!AA25="col",OCL_Saisie!AA25="cu"),OCL_Saisie!DS25,"") ->  | FY26: =IF(AND(FX26>100%,FX26<>""),OCL_Saisie!E25&"/","") ->  | GC26: =IF(OCL_Saisie!DT25="","",OCL_Saisie!DT25) ->  | GE26: =IF(AND(GD26>100%,GD26<>""),OCL_Saisie!E25&"/","") ->  | GJ26: =IF(OCL_Saisie!DN25="","",OCL_Saisie!DN25) ->  | GL26: =IF(AND(GK26>100%,GK26<>""),OCL_Saisie!E25&"/","") ->  | GP26: =IF(OR(OCL_Saisie!AA25="col",OCL_Saisie!AA25="cu",OCL_Saisie!AA25="mix"),OCL_Saisie!DB25,"") ->  | GQ26: =IF(AND(OCL_Saisie!AA25<>"col",OCL_Saisie!AA25<>"cu",OCL_Saisie!AA25<>"mix",OCL_Saisie!AA25<>""),OCL_Saisie!DB25,"") ->  | GT26: =IF(AND(GR26>100%,GR26<>""),OCL_Saisie!E25&"/","") ->  | GU26: =IF(AND(GS26>100%,GS26<>""),OCL_Saisie!E25&"/","") ->  | GZ26: =IF(OR(OCL_Saisie!AA25="col",OCL_Saisie!AA25="cu",OCL_Saisie!AA25="mix"),OCL_Saisie!DC25,"") ->  | HA26: =IF(AND(OCL_Saisie!AA25<>"col",OCL_Saisie!AA25<>"cu",OCL_Saisie!AA25<>"mix",OCL_Saisie!AA25<>""),OCL_Saisie!DC25,"") ->  | HD26: =IF(AND(HB26>100%,HB26<>""),OCL_Saisie!E25&"/","") ->  | HE26: =IF(AND(HC26>100%,HC26<>""),OCL_Saisie!E25&"/","") ->  | HJ26: =IF(OR(OCL_Saisie!AA25="col",OCL_Saisie!AA25="cu"),OCL_Saisie!DA25,"") ->  | HK26: =IF(AND(OCL_Saisie!AA25<>"col",OCL_Saisie!AA25<>"cu",OCL_Saisie!AA25<>""),OCL_Saisie!DA25,"") ->  | HN26: =IF(AND(HL26>100%,HL26<>""),OCL_Saisie!E25&"/","") ->  | HO26: =IF(AND(HM26>100%,HM26<>""),OCL_Saisie!E25&"/","") -> 
BD27: 0 | BE27: =IF(OCL_Saisie!W26="IND",OCL_Saisie!CW26,"") ->  | BF27: =IF(OCL_Saisie!W26="col",OCL_Saisie!CW26,"") ->  | BG27: =IF(OCL_Saisie!W26="mix",OCL_Saisie!CW26,"") ->  | BK27: =IF(AND(BH27>100%,BH27<>""),OCL_Saisie!E26&"/","") ->  | BL27: =IF(AND(BI27>100%,BI27<>""),OCL_Saisie!E26&"/","") ->  | BM27: =IF(AND(BJ27>100%,BJ27<>""),OCL_Saisie!E26&"/","") ->  | BS27: =IF(OCL_Saisie!W26="col",OCL_Saisie!CX26,"") ->  | BT27: =IF(AND(OCL_Saisie!W26<>"col",OCL_Saisie!W26<>""),OCL_Saisie!CX26,"") ->  | BW27: =IF(AND(BU27>100%,BU27<>""),OCL_Saisie!E26&"/","") ->  | BX27: =IF(AND(BV27>100%,BV27<>""),OCL_Saisie!E26&"/","") ->  | CC27: =IF(OCL_Saisie!CY26="","",OCL_Saisie!CY26) ->  | CE27: =IF(AND(CD27>100%,CD27<>""),OCL_Saisie!E26&"/","") ->  | CI27: =IF(OR(OCL_Saisie!AA26="col",OCL_Saisie!AA26="cu",OCL_Saisie!AA26="mix"),OCL_Saisie!CZ26,"") ->  | CJ27: =IF(AND(OCL_Saisie!AA26<>"col",OCL_Saisie!AA26<>"cu",OCL_Saisie!AA26<>"mix",OCL_Saisie!AA26<>""),OCL_Saisie!CZ26,"") ->  | CM27: =IF(AND(CK27>100%,CK27<>""),OCL_Saisie!E26&"/","") ->  | CN27: =IF(AND(CL27>100%,CL27<>""),OCL_Saisie!E26&"/","") ->  | CS27: =IF(OR(OCL_Saisie!AA26="col",OCL_Saisie!AA26="cu",OCL_Saisie!AA26="mix"),OCL_Saisie!DD26,"") ->  | CT27: =IF(AND(OCL_Saisie!AA26<>"col",OCL_Saisie!AA26<>"cu",OCL_Saisie!AA26<>"mix",OCL_Saisie!AA26<>""),OCL_Saisie!DD26,"") ->  | CW27: =IF(AND(CU27>100%,CU27<>""),OCL_Saisie!E26&"/","") ->  | CX27: =IF(AND(CV27>100%,CV27<>""),OCL_Saisie!E26&"/","") ->  | DC27: =IF(OCL_Saisie!DE26="","",OCL_Saisie!DE26) ->  | DE27: =IF(AND(DD27>100%,DD27<>""),OCL_Saisie!E26&"/","") ->  | DI27: =IF(OCL_Saisie!DF26="","",OCL_Saisie!DF26) ->  | DK27: =IF(AND(DJ27>100%,DJ27<>""),OCL_Saisie!E26&"/","") ->  | DO27: =IF(OCL_Saisie!DG26="","",OCL_Saisie!DG26) ->  | DQ27: =IF(AND(DP27>100%,DP27<>""),OCL_Saisie!E26&"/","") ->  | DU27: =IF(OCL_Saisie!DH26="","",OCL_Saisie!DH26) ->  | DW27: =IF(AND(DV27>100%,DV27<>""),OCL_Saisie!E26&"/","") ->  | EA27: =IF(OCL_Saisie!DI26="","",OCL_Saisie!DI26) ->  | EC27: =IF(AND(EB27>100%,EB27<>""),OCL_Saisie!E26&"/","") ->  | EG27: =IF(OCL_Saisie!DJ26="","",OCL_Saisie!DJ26) ->  | EI27: =IF(AND(EH27>100%,EH27<>""),OCL_Saisie!E26&"/","") ->  | EM27: =IF(OCL_Saisie!DK26="","",OCL_Saisie!DK26) ->  | EO27: =IF(AND(EN27>100%,EN27<>""),OCL_Saisie!E26&"/","") ->  | ES27: =IF(OCL_Saisie!DM26="","",OCL_Saisie!DM26) ->  | EU27: =IF(AND(ET27>100%,ET27<>""),OCL_Saisie!E26&"/","") ->  | EY27: =IF(OCL_Saisie!DO26="","",OCL_Saisie!DO26) ->  | FA27: =IF(AND(EZ27>100%,EZ27<>""),OCL_Saisie!E26&"/","") ->  | FE27: =IF(OCL_Saisie!DP26="","",OCL_Saisie!DP26) ->  | FG27: =IF(AND(FF27>100%,FF27<>""),OCL_Saisie!E26&"/","") ->  | FK27: =IF(OR(OCL_Saisie!AA26="col",OCL_Saisie!AA26="cu"),OCL_Saisie!DQ26,"") ->  | FM27: =IF(AND(FL27>100%,FL27<>""),OCL_Saisie!E26&"/","") ->  | FQ27: =IF(OR(OCL_Saisie!AA26="col",OCL_Saisie!AA26="cu"),OCL_Saisie!DR26,"") ->  | FS27: =IF(AND(FR27>100%,FR27<>""),OCL_Saisie!E26&"/","") ->  | FW27: =IF(OR(OCL_Saisie!AA26="col",OCL_Saisie!AA26="cu"),OCL_Saisie!DS26,"") ->  | FY27: =IF(AND(FX27>100%,FX27<>""),OCL_Saisie!E26&"/","") ->  | GC27: =IF(OCL_Saisie!DT26="","",OCL_Saisie!DT26) ->  | GE27: =IF(AND(GD27>100%,GD27<>""),OCL_Saisie!E26&"/","") ->  | GJ27: =IF(OCL_Saisie!DN26="","",OCL_Saisie!DN26) ->  | GL27: =IF(AND(GK27>100%,GK27<>""),OCL_Saisie!E26&"/","") ->  | GP27: =IF(OR(OCL_Saisie!AA26="col",OCL_Saisie!AA26="cu",OCL_Saisie!AA26="mix"),OCL_Saisie!DB26,"") ->  | GQ27: =IF(AND(OCL_Saisie!AA26<>"col",OCL_Saisie!AA26<>"cu",OCL_Saisie!AA26<>"mix",OCL_Saisie!AA26<>""),OCL_Saisie!DB26,"") ->  | GT27: =IF(AND(GR27>100%,GR27<>""),OCL_Saisie!E26&"/","") ->  | GU27: =IF(AND(GS27>100%,GS27<>""),OCL_Saisie!E26&"/","") ->  | GZ27: =IF(OR(OCL_Saisie!AA26="col",OCL_Saisie!AA26="cu",OCL_Saisie!AA26="mix"),OCL_Saisie!DC26,"") ->  | HA27: =IF(AND(OCL_Saisie!AA26<>"col",OCL_Saisie!AA26<>"cu",OCL_Saisie!AA26<>"mix",OCL_Saisie!AA26<>""),OCL_Saisie!DC26,"") ->  | HD27: =IF(AND(HB27>100%,HB27<>""),OCL_Saisie!E26&"/","") ->  | HE27: =IF(AND(HC27>100%,HC27<>""),OCL_Saisie!E26&"/","") ->  | HJ27: =IF(OR(OCL_Saisie!AA26="col",OCL_Saisie!AA26="cu"),OCL_Saisie!DA26,"") ->  | HK27: =IF(AND(OCL_Saisie!AA26<>"col",OCL_Saisie!AA26<>"cu",OCL_Saisie!AA26<>""),OCL_Saisie!DA26,"") ->  | HN27: =IF(AND(HL27>100%,HL27<>""),OCL_Saisie!E26&"/","") ->  | HO27: =IF(AND(HM27>100%,HM27<>""),OCL_Saisie!E26&"/","") -> 
BD28: 0 | BE28: =IF(OCL_Saisie!W27="IND",OCL_Saisie!CW27,"") ->  | BF28: =IF(OCL_Saisie!W27="col",OCL_Saisie!CW27,"") ->  | BG28: =IF(OCL_Saisie!W27="mix",OCL_Saisie!CW27,"") ->  | BK28: =IF(AND(BH28>100%,BH28<>""),OCL_Saisie!E27&"/","") ->  | BL28: =IF(AND(BI28>100%,BI28<>""),OCL_Saisie!E27&"/","") ->  | BM28: =IF(AND(BJ28>100%,BJ28<>""),OCL_Saisie!E27&"/","") ->  | BS28: =IF(OCL_Saisie!W27="col",OCL_Saisie!CX27,"") ->  | BT28: =IF(AND(OCL_Saisie!W27<>"col",OCL_Saisie!W27<>""),OCL_Saisie!CX27,"") ->  | BW28: =IF(AND(BU28>100%,BU28<>""),OCL_Saisie!E27&"/","") ->  | BX28: =IF(AND(BV28>100%,BV28<>""),OCL_Saisie!E27&"/","") ->  | CC28: =IF(OCL_Saisie!CY27="","",OCL_Saisie!CY27) ->  | CE28: =IF(AND(CD28>100%,CD28<>""),OCL_Saisie!E27&"/","") ->  | CI28: =IF(OR(OCL_Saisie!AA27="col",OCL_Saisie!AA27="cu",OCL_Saisie!AA27="mix"),OCL_Saisie!CZ27,"") ->  | CJ28: =IF(AND(OCL_Saisie!AA27<>"col",OCL_Saisie!AA27<>"cu",OCL_Saisie!AA27<>"mix",OCL_Saisie!AA27<>""),OCL_Saisie!CZ27,"") ->  | CM28: =IF(AND(CK28>100%,CK28<>""),OCL_Saisie!E27&"/","") ->  | CN28: =IF(AND(CL28>100%,CL28<>""),OCL_Saisie!E27&"/","") ->  | CS28: =IF(OR(OCL_Saisie!AA27="col",OCL_Saisie!AA27="cu",OCL_Saisie!AA27="mix"),OCL_Saisie!DD27,"") ->  | CT28: =IF(AND(OCL_Saisie!AA27<>"col",OCL_Saisie!AA27<>"cu",OCL_Saisie!AA27<>"mix",OCL_Saisie!AA27<>""),OCL_Saisie!DD27,"") ->  | CW28: =IF(AND(CU28>100%,CU28<>""),OCL_Saisie!E27&"/","") ->  | CX28: =IF(AND(CV28>100%,CV28<>""),OCL_Saisie!E27&"/","") ->  | DC28: =IF(OCL_Saisie!DE27="","",OCL_Saisie!DE27) ->  | DE28: =IF(AND(DD28>100%,DD28<>""),OCL_Saisie!E27&"/","") ->  | DI28: =IF(OCL_Saisie!DF27="","",OCL_Saisie!DF27) ->  | DK28: =IF(AND(DJ28>100%,DJ28<>""),OCL_Saisie!E27&"/","") ->  | DO28: =IF(OCL_Saisie!DG27="","",OCL_Saisie!DG27) ->  | DQ28: =IF(AND(DP28>100%,DP28<>""),OCL_Saisie!E27&"/","") ->  | DU28: =IF(OCL_Saisie!DH27="","",OCL_Saisie!DH27) ->  | DW28: =IF(AND(DV28>100%,DV28<>""),OCL_Saisie!E27&"/","") ->  | EA28: =IF(OCL_Saisie!DI27="","",OCL_Saisie!DI27) ->  | EC28: =IF(AND(EB28>100%,EB28<>""),OCL_Saisie!E27&"/","") ->  | EG28: =IF(OCL_Saisie!DJ27="","",OCL_Saisie!DJ27) ->  | EI28: =IF(AND(EH28>100%,EH28<>""),OCL_Saisie!E27&"/","") ->  | EM28: =IF(OCL_Saisie!DK27="","",OCL_Saisie!DK27) ->  | EO28: =IF(AND(EN28>100%,EN28<>""),OCL_Saisie!E27&"/","") ->  | ES28: =IF(OCL_Saisie!DM27="","",OCL_Saisie!DM27) ->  | EU28: =IF(AND(ET28>100%,ET28<>""),OCL_Saisie!E27&"/","") ->  | EY28: =IF(OCL_Saisie!DO27="","",OCL_Saisie!DO27) ->  | FA28: =IF(AND(EZ28>100%,EZ28<>""),OCL_Saisie!E27&"/","") ->  | FE28: =IF(OCL_Saisie!DP27="","",OCL_Saisie!DP27) ->  | FG28: =IF(AND(FF28>100%,FF28<>""),OCL_Saisie!E27&"/","") ->  | FK28: =IF(OR(OCL_Saisie!AA27="col",OCL_Saisie!AA27="cu"),OCL_Saisie!DQ27,"") ->  | FM28: =IF(AND(FL28>100%,FL28<>""),OCL_Saisie!E27&"/","") ->  | FQ28: =IF(OR(OCL_Saisie!AA27="col",OCL_Saisie!AA27="cu"),OCL_Saisie!DR27,"") ->  | FS28: =IF(AND(FR28>100%,FR28<>""),OCL_Saisie!E27&"/","") ->  | FW28: =IF(OR(OCL_Saisie!AA27="col",OCL_Saisie!AA27="cu"),OCL_Saisie!DS27,"") ->  | FY28: =IF(AND(FX28>100%,FX28<>""),OCL_Saisie!E27&"/","") ->  | GC28: =IF(OCL_Saisie!DT27="","",OCL_Saisie!DT27) ->  | GE28: =IF(AND(GD28>100%,GD28<>""),OCL_Saisie!E27&"/","") ->  | GJ28: =IF(OCL_Saisie!DN27="","",OCL_Saisie!DN27) ->  | GL28: =IF(AND(GK28>100%,GK28<>""),OCL_Saisie!E27&"/","") ->  | GP28: =IF(OR(OCL_Saisie!AA27="col",OCL_Saisie!AA27="cu",OCL_Saisie!AA27="mix"),OCL_Saisie!DB27,"") ->  | GQ28: =IF(AND(OCL_Saisie!AA27<>"col",OCL_Saisie!AA27<>"cu",OCL_Saisie!AA27<>"mix",OCL_Saisie!AA27<>""),OCL_Saisie!DB27,"") ->  | GT28: =IF(AND(GR28>100%,GR28<>""),OCL_Saisie!E27&"/","") ->  | GU28: =IF(AND(GS28>100%,GS28<>""),OCL_Saisie!E27&"/","") ->  | GZ28: =IF(OR(OCL_Saisie!AA27="col",OCL_Saisie!AA27="cu",OCL_Saisie!AA27="mix"),OCL_Saisie!DC27,"") ->  | HA28: =IF(AND(OCL_Saisie!AA27<>"col",OCL_Saisie!AA27<>"cu",OCL_Saisie!AA27<>"mix",OCL_Saisie!AA27<>""),OCL_Saisie!DC27,"") ->  | HD28: =IF(AND(HB28>100%,HB28<>""),OCL_Saisie!E27&"/","") ->  | HE28: =IF(AND(HC28>100%,HC28<>""),OCL_Saisie!E27&"/","") ->  | HJ28: =IF(OR(OCL_Saisie!AA27="col",OCL_Saisie!AA27="cu"),OCL_Saisie!DA27,"") ->  | HK28: =IF(AND(OCL_Saisie!AA27<>"col",OCL_Saisie!AA27<>"cu",OCL_Saisie!AA27<>""),OCL_Saisie!DA27,"") ->  | HN28: =IF(AND(HL28>100%,HL28<>""),OCL_Saisie!E27&"/","") ->  | HO28: =IF(AND(HM28>100%,HM28<>""),OCL_Saisie!E27&"/","") -> 
B29: MD_EN_CHA : Montant des dépenses d'entretien des installations de production-distribution d'énergie pour le chauffage et l'ECS | C29: =CS2 -> 0.2 | D29: =CS1 -> 4 | E29: Si facturation du chauffage collective ou chauffage urbain ou mixte | F29: =CS6 -> - | G29: =CS7 -> - | H29: =COUNTIF(CS18:CS2040,">-100") -> 0 | I29: =CS3+CS4 -> 0 | J29: =COUNTIF(CU18:CU2039,"<"&$J$1) -> 0 | K29: =I29-L29-J29 -> 0 | L29: =COUNTIF(CU18:CU2039,">1") -> 0 | M29: =IF(CY16="","-",CY16) -> - | N29: =CS5 -> 0 | S29: =D29-C29 -> 3.8 | BD29: 0 | BE29: =IF(OCL_Saisie!W28="IND",OCL_Saisie!CW28,"") ->  | BF29: =IF(OCL_Saisie!W28="col",OCL_Saisie!CW28,"") ->  | BG29: =IF(OCL_Saisie!W28="mix",OCL_Saisie!CW28,"") ->  | BK29: =IF(AND(BH29>100%,BH29<>""),OCL_Saisie!E28&"/","") ->  | BL29: =IF(AND(BI29>100%,BI29<>""),OCL_Saisie!E28&"/","") ->  | BM29: =IF(AND(BJ29>100%,BJ29<>""),OCL_Saisie!E28&"/","") ->  | BS29: =IF(OCL_Saisie!W28="col",OCL_Saisie!CX28,"") ->  | BT29: =IF(AND(OCL_Saisie!W28<>"col",OCL_Saisie!W28<>""),OCL_Saisie!CX28,"") ->  | BW29: =IF(AND(BU29>100%,BU29<>""),OCL_Saisie!E28&"/","") ->  | BX29: =IF(AND(BV29>100%,BV29<>""),OCL_Saisie!E28&"/","") ->  | CC29: =IF(OCL_Saisie!CY28="","",OCL_Saisie!CY28) ->  | CE29: =IF(AND(CD29>100%,CD29<>""),OCL_Saisie!E28&"/","") ->  | CI29: =IF(OR(OCL_Saisie!AA28="col",OCL_Saisie!AA28="cu",OCL_Saisie!AA28="mix"),OCL_Saisie!CZ28,"") ->  | CJ29: =IF(AND(OCL_Saisie!AA28<>"col",OCL_Saisie!AA28<>"cu",OCL_Saisie!AA28<>"mix",OCL_Saisie!AA28<>""),OCL_Saisie!CZ28,"") ->  | CM29: =IF(AND(CK29>100%,CK29<>""),OCL_Saisie!E28&"/","") ->  | CN29: =IF(AND(CL29>100%,CL29<>""),OCL_Saisie!E28&"/","") ->  | CS29: =IF(OR(OCL_Saisie!AA28="col",OCL_Saisie!AA28="cu",OCL_Saisie!AA28="mix"),OCL_Saisie!DD28,"") ->  | CT29: =IF(AND(OCL_Saisie!AA28<>"col",OCL_Saisie!AA28<>"cu",OCL_Saisie!AA28<>"mix",OCL_Saisie!AA28<>""),OCL_Saisie!DD28,"") ->  | CW29: =IF(AND(CU29>100%,CU29<>""),OCL_Saisie!E28&"/","") ->  | CX29: =IF(AND(CV29>100%,CV29<>""),OCL_Saisie!E28&"/","") ->  | DC29: =IF(OCL_Saisie!DE28="","",OCL_Saisie!DE28) ->  | DE29: =IF(AND(DD29>100%,DD29<>""),OCL_Saisie!E28&"/","") ->  | DI29: =IF(OCL_Saisie!DF28="","",OCL_Saisie!DF28) ->  | DK29: =IF(AND(DJ29>100%,DJ29<>""),OCL_Saisie!E28&"/","") ->  | DO29: =IF(OCL_Saisie!DG28="","",OCL_Saisie!DG28) ->  | DQ29: =IF(AND(DP29>100%,DP29<>""),OCL_Saisie!E28&"/","") ->  | DU29: =IF(OCL_Saisie!DH28="","",OCL_Saisie!DH28) ->  | DW29: =IF(AND(DV29>100%,DV29<>""),OCL_Saisie!E28&"/","") ->  | EA29: =IF(OCL_Saisie!DI28="","",OCL_Saisie!DI28) ->  | EC29: =IF(AND(EB29>100%,EB29<>""),OCL_Saisie!E28&"/","") ->  | EG29: =IF(OCL_Saisie!DJ28="","",OCL_Saisie!DJ28) ->  | EI29: =IF(AND(EH29>100%,EH29<>""),OCL_Saisie!E28&"/","") ->  | EM29: =IF(OCL_Saisie!DK28="","",OCL_Saisie!DK28) ->  | EO29: =IF(AND(EN29>100%,EN29<>""),OCL_Saisie!E28&"/","") ->  | ES29: =IF(OCL_Saisie!DM28="","",OCL_Saisie!DM28) ->  | EU29: =IF(AND(ET29>100%,ET29<>""),OCL_Saisie!E28&"/","") ->  | EY29: =IF(OCL_Saisie!DO28="","",OCL_Saisie!DO28) ->  | FA29: =IF(AND(EZ29>100%,EZ29<>""),OCL_Saisie!E28&"/","") ->  | FE29: =IF(OCL_Saisie!DP28="","",OCL_Saisie!DP28) ->  | FG29: =IF(AND(FF29>100%,FF29<>""),OCL_Saisie!E28&"/","") ->  | FK29: =IF(OR(OCL_Saisie!AA28="col",OCL_Saisie!AA28="cu"),OCL_Saisie!DQ28,"") ->  | FM29: =IF(AND(FL29>100%,FL29<>""),OCL_Saisie!E28&"/","") ->  | FQ29: =IF(OR(OCL_Saisie!AA28="col",OCL_Saisie!AA28="cu"),OCL_Saisie!DR28,"") ->  | FS29: =IF(AND(FR29>100%,FR29<>""),OCL_Saisie!E28&"/","") ->  | FW29: =IF(OR(OCL_Saisie!AA28="col",OCL_Saisie!AA28="cu"),OCL_Saisie!DS28,"") ->  | FY29: =IF(AND(FX29>100%,FX29<>""),OCL_Saisie!E28&"/","") ->  | GC29: =IF(OCL_Saisie!DT28="","",OCL_Saisie!DT28) ->  | GE29: =IF(AND(GD29>100%,GD29<>""),OCL_Saisie!E28&"/","") ->  | GJ29: =IF(OCL_Saisie!DN28="","",OCL_Saisie!DN28) ->  | GL29: =IF(AND(GK29>100%,GK29<>""),OCL_Saisie!E28&"/","") ->  | GP29: =IF(OR(OCL_Saisie!AA28="col",OCL_Saisie!AA28="cu",OCL_Saisie!AA28="mix"),OCL_Saisie!DB28,"") ->  | GQ29: =IF(AND(OCL_Saisie!AA28<>"col",OCL_Saisie!AA28<>"cu",OCL_Saisie!AA28<>"mix",OCL_Saisie!AA28<>""),OCL_Saisie!DB28,"") ->  | GT29: =IF(AND(GR29>100%,GR29<>""),OCL_Saisie!E28&"/","") ->  | GU29: =IF(AND(GS29>100%,GS29<>""),OCL_Saisie!E28&"/","") ->  | GZ29: =IF(OR(OCL_Saisie!AA28="col",OCL_Saisie!AA28="cu",OCL_Saisie!AA28="mix"),OCL_Saisie!DC28,"") ->  | HA29: =IF(AND(OCL_Saisie!AA28<>"col",OCL_Saisie!AA28<>"cu",OCL_Saisie!AA28<>"mix",OCL_Saisie!AA28<>""),OCL_Saisie!DC28,"") ->  | HD29: =IF(AND(HB29>100%,HB29<>""),OCL_Saisie!E28&"/","") ->  | HE29: =IF(AND(HC29>100%,HC29<>""),OCL_Saisie!E28&"/","") ->  | HJ29: =IF(OR(OCL_Saisie!AA28="col",OCL_Saisie!AA28="cu"),OCL_Saisie!DA28,"") ->  | HK29: =IF(AND(OCL_Saisie!AA28<>"col",OCL_Saisie!AA28<>"cu",OCL_Saisie!AA28<>""),OCL_Saisie!DA28,"") ->  | HN29: =IF(AND(HL29>100%,HL29<>""),OCL_Saisie!E28&"/","") ->  | HO29: =IF(AND(HM29>100%,HM29<>""),OCL_Saisie!E28&"/","") -> 
C30: =CT2 -> 0 | D30: =CT1 -> 2 | E30: - | F30: =CT6 -> - | G30: =CT7 -> - | H30: =COUNTIF(CT18:CT2040,">-100") -> 0 | I30: =CT3+CT4 -> 0 | J30: =COUNTIF(CV18:CV2039,"<"&$J$1) -> 0 | K30: =I30-L30-J30 -> 0 | L30: =COUNTIF(CV18:CV2039,">1") -> 0 | M30: =IF(CZ16="","-",CZ16) -> - | N30: =CT5 -> 0 | S30: =D30-C30 -> 2 | BD30: 0 | BE30: =IF(OCL_Saisie!W29="IND",OCL_Saisie!CW29,"") ->  | BF30: =IF(OCL_Saisie!W29="col",OCL_Saisie!CW29,"") ->  | BG30: =IF(OCL_Saisie!W29="mix",OCL_Saisie!CW29,"") ->  | BK30: =IF(AND(BH30>100%,BH30<>""),OCL_Saisie!E29&"/","") ->  | BL30: =IF(AND(BI30>100%,BI30<>""),OCL_Saisie!E29&"/","") ->  | BM30: =IF(AND(BJ30>100%,BJ30<>""),OCL_Saisie!E29&"/","") ->  | BS30: =IF(OCL_Saisie!W29="col",OCL_Saisie!CX29,"") ->  | BT30: =IF(AND(OCL_Saisie!W29<>"col",OCL_Saisie!W29<>""),OCL_Saisie!CX29,"") ->  | BW30: =IF(AND(BU30>100%,BU30<>""),OCL_Saisie!E29&"/","") ->  | BX30: =IF(AND(BV30>100%,BV30<>""),OCL_Saisie!E29&"/","") ->  | CC30: =IF(OCL_Saisie!CY29="","",OCL_Saisie!CY29) ->  | CE30: =IF(AND(CD30>100%,CD30<>""),OCL_Saisie!E29&"/","") ->  | CI30: =IF(OR(OCL_Saisie!AA29="col",OCL_Saisie!AA29="cu",OCL_Saisie!AA29="mix"),OCL_Saisie!CZ29,"") ->  | CJ30: =IF(AND(OCL_Saisie!AA29<>"col",OCL_Saisie!AA29<>"cu",OCL_Saisie!AA29<>"mix",OCL_Saisie!AA29<>""),OCL_Saisie!CZ29,"") ->  | CM30: =IF(AND(CK30>100%,CK30<>""),OCL_Saisie!E29&"/","") ->  | CN30: =IF(AND(CL30>100%,CL30<>""),OCL_Saisie!E29&"/","") ->  | CS30: =IF(OR(OCL_Saisie!AA29="col",OCL_Saisie!AA29="cu",OCL_Saisie!AA29="mix"),OCL_Saisie!DD29,"") ->  | CT30: =IF(AND(OCL_Saisie!AA29<>"col",OCL_Saisie!AA29<>"cu",OCL_Saisie!AA29<>"mix",OCL_Saisie!AA29<>""),OCL_Saisie!DD29,"") ->  | CW30: =IF(AND(CU30>100%,CU30<>""),OCL_Saisie!E29&"/","") ->  | CX30: =IF(AND(CV30>100%,CV30<>""),OCL_Saisie!E29&"/","") ->  | DC30: =IF(OCL_Saisie!DE29="","",OCL_Saisie!DE29) ->  | DE30: =IF(AND(DD30>100%,DD30<>""),OCL_Saisie!E29&"/","") ->  | DI30: =IF(OCL_Saisie!DF29="","",OCL_Saisie!DF29) ->  | DK30: =IF(AND(DJ30>100%,DJ30<>""),OCL_Saisie!E29&"/","") ->  | DO30: =IF(OCL_Saisie!DG29="","",OCL_Saisie!DG29) ->  | DQ30: =IF(AND(DP30>100%,DP30<>""),OCL_Saisie!E29&"/","") ->  | DU30: =IF(OCL_Saisie!DH29="","",OCL_Saisie!DH29) ->  | DW30: =IF(AND(DV30>100%,DV30<>""),OCL_Saisie!E29&"/","") ->  | EA30: =IF(OCL_Saisie!DI29="","",OCL_Saisie!DI29) ->  | EC30: =IF(AND(EB30>100%,EB30<>""),OCL_Saisie!E29&"/","") ->  | EG30: =IF(OCL_Saisie!DJ29="","",OCL_Saisie!DJ29) ->  | EI30: =IF(AND(EH30>100%,EH30<>""),OCL_Saisie!E29&"/","") ->  | EM30: =IF(OCL_Saisie!DK29="","",OCL_Saisie!DK29) ->  | EO30: =IF(AND(EN30>100%,EN30<>""),OCL_Saisie!E29&"/","") ->  | ES30: =IF(OCL_Saisie!DM29="","",OCL_Saisie!DM29) ->  | EU30: =IF(AND(ET30>100%,ET30<>""),OCL_Saisie!E29&"/","") ->  | EY30: =IF(OCL_Saisie!DO29="","",OCL_Saisie!DO29) ->  | FA30: =IF(AND(EZ30>100%,EZ30<>""),OCL_Saisie!E29&"/","") ->  | FE30: =IF(OCL_Saisie!DP29="","",OCL_Saisie!DP29) ->  | FG30: =IF(AND(FF30>100%,FF30<>""),OCL_Saisie!E29&"/","") ->  | FK30: =IF(OR(OCL_Saisie!AA29="col",OCL_Saisie!AA29="cu"),OCL_Saisie!DQ29,"") ->  | FM30: =IF(AND(FL30>100%,FL30<>""),OCL_Saisie!E29&"/","") ->  | FQ30: =IF(OR(OCL_Saisie!AA29="col",OCL_Saisie!AA29="cu"),OCL_Saisie!DR29,"") ->  | FS30: =IF(AND(FR30>100%,FR30<>""),OCL_Saisie!E29&"/","") ->  | FW30: =IF(OR(OCL_Saisie!AA29="col",OCL_Saisie!AA29="cu"),OCL_Saisie!DS29,"") ->  | FY30: =IF(AND(FX30>100%,FX30<>""),OCL_Saisie!E29&"/","") ->  | GC30: =IF(OCL_Saisie!DT29="","",OCL_Saisie!DT29) ->  | GE30: =IF(AND(GD30>100%,GD30<>""),OCL_Saisie!E29&"/","") ->  | GJ30: =IF(OCL_Saisie!DN29="","",OCL_Saisie!DN29) ->  | GL30: =IF(AND(GK30>100%,GK30<>""),OCL_Saisie!E29&"/","") ->  | GP30: =IF(OR(OCL_Saisie!AA29="col",OCL_Saisie!AA29="cu",OCL_Saisie!AA29="mix"),OCL_Saisie!DB29,"") ->  | GQ30: =IF(AND(OCL_Saisie!AA29<>"col",OCL_Saisie!AA29<>"cu",OCL_Saisie!AA29<>"mix",OCL_Saisie!AA29<>""),OCL_Saisie!DB29,"") ->  | GT30: =IF(AND(GR30>100%,GR30<>""),OCL_Saisie!E29&"/","") ->  | GU30: =IF(AND(GS30>100%,GS30<>""),OCL_Saisie!E29&"/","") ->  | GZ30: =IF(OR(OCL_Saisie!AA29="col",OCL_Saisie!AA29="cu",OCL_Saisie!AA29="mix"),OCL_Saisie!DC29,"") ->  | HA30: =IF(AND(OCL_Saisie!AA29<>"col",OCL_Saisie!AA29<>"cu",OCL_Saisie!AA29<>"mix",OCL_Saisie!AA29<>""),OCL_Saisie!DC29,"") ->  | HD30: =IF(AND(HB30>100%,HB30<>""),OCL_Saisie!E29&"/","") ->  | HE30: =IF(AND(HC30>100%,HC30<>""),OCL_Saisie!E29&"/","") ->  | HJ30: =IF(OR(OCL_Saisie!AA29="col",OCL_Saisie!AA29="cu"),OCL_Saisie!DA29,"") ->  | HK30: =IF(AND(OCL_Saisie!AA29<>"col",OCL_Saisie!AA29<>"cu",OCL_Saisie!AA29<>""),OCL_Saisie!DA29,"") ->  | HN30: =IF(AND(HL30>100%,HL30<>""),OCL_Saisie!E29&"/","") ->  | HO30: =IF(AND(HM30>100%,HM30<>""),OCL_Saisie!E29&"/","") -> 
E31: TOTAL | H31: =H30+H29 -> 0 | I31: =SUM(I29:I30) -> 0 | N31: =IF(I31=0,,I31/COUNTIF(OCL_Saisie!DD18:DD444,">-10")) -> 0 | BD31: 0 | BE31: =IF(OCL_Saisie!W30="IND",OCL_Saisie!CW30,"") ->  | BF31: =IF(OCL_Saisie!W30="col",OCL_Saisie!CW30,"") ->  | BG31: =IF(OCL_Saisie!W30="mix",OCL_Saisie!CW30,"") ->  | BK31: =IF(AND(BH31>100%,BH31<>""),OCL_Saisie!E30&"/","") ->  | BL31: =IF(AND(BI31>100%,BI31<>""),OCL_Saisie!E30&"/","") ->  | BM31: =IF(AND(BJ31>100%,BJ31<>""),OCL_Saisie!E30&"/","") ->  | BS31: =IF(OCL_Saisie!W30="col",OCL_Saisie!CX30,"") ->  | BT31: =IF(AND(OCL_Saisie!W30<>"col",OCL_Saisie!W30<>""),OCL_Saisie!CX30,"") ->  | BW31: =IF(AND(BU31>100%,BU31<>""),OCL_Saisie!E30&"/","") ->  | BX31: =IF(AND(BV31>100%,BV31<>""),OCL_Saisie!E30&"/","") ->  | CC31: =IF(OCL_Saisie!CY30="","",OCL_Saisie!CY30) ->  | CE31: =IF(AND(CD31>100%,CD31<>""),OCL_Saisie!E30&"/","") ->  | CI31: =IF(OR(OCL_Saisie!AA30="col",OCL_Saisie!AA30="cu",OCL_Saisie!AA30="mix"),OCL_Saisie!CZ30,"") ->  | CJ31: =IF(AND(OCL_Saisie!AA30<>"col",OCL_Saisie!AA30<>"cu",OCL_Saisie!AA30<>"mix",OCL_Saisie!AA30<>""),OCL_Saisie!CZ30,"") ->  | CM31: =IF(AND(CK31>100%,CK31<>""),OCL_Saisie!E30&"/","") ->  | CN31: =IF(AND(CL31>100%,CL31<>""),OCL_Saisie!E30&"/","") ->  | CS31: =IF(OR(OCL_Saisie!AA30="col",OCL_Saisie!AA30="cu",OCL_Saisie!AA30="mix"),OCL_Saisie!DD30,"") ->  | CT31: =IF(AND(OCL_Saisie!AA30<>"col",OCL_Saisie!AA30<>"cu",OCL_Saisie!AA30<>"mix",OCL_Saisie!AA30<>""),OCL_Saisie!DD30,"") ->  | CW31: =IF(AND(CU31>100%,CU31<>""),OCL_Saisie!E30&"/","") ->  | CX31: =IF(AND(CV31>100%,CV31<>""),OCL_Saisie!E30&"/","") ->  | DC31: =IF(OCL_Saisie!DE30="","",OCL_Saisie!DE30) ->  | DE31: =IF(AND(DD31>100%,DD31<>""),OCL_Saisie!E30&"/","") ->  | DI31: =IF(OCL_Saisie!DF30="","",OCL_Saisie!DF30) ->  | DK31: =IF(AND(DJ31>100%,DJ31<>""),OCL_Saisie!E30&"/","") ->  | DO31: =IF(OCL_Saisie!DG30="","",OCL_Saisie!DG30) ->  | DQ31: =IF(AND(DP31>100%,DP31<>""),OCL_Saisie!E30&"/","") ->  | DU31: =IF(OCL_Saisie!DH30="","",OCL_Saisie!DH30) ->  | DW31: =IF(AND(DV31>100%,DV31<>""),OCL_Saisie!E30&"/","") ->  | EA31: =IF(OCL_Saisie!DI30="","",OCL_Saisie!DI30) ->  | EC31: =IF(AND(EB31>100%,EB31<>""),OCL_Saisie!E30&"/","") ->  | EG31: =IF(OCL_Saisie!DJ30="","",OCL_Saisie!DJ30) ->  | EI31: =IF(AND(EH31>100%,EH31<>""),OCL_Saisie!E30&"/","") ->  | EM31: =IF(OCL_Saisie!DK30="","",OCL_Saisie!DK30) ->  | EO31: =IF(AND(EN31>100%,EN31<>""),OCL_Saisie!E30&"/","") ->  | ES31: =IF(OCL_Saisie!DM30="","",OCL_Saisie!DM30) ->  | EU31: =IF(AND(ET31>100%,ET31<>""),OCL_Saisie!E30&"/","") ->  | EY31: =IF(OCL_Saisie!DO30="","",OCL_Saisie!DO30) ->  | FA31: =IF(AND(EZ31>100%,EZ31<>""),OCL_Saisie!E30&"/","") ->  | FE31: =IF(OCL_Saisie!DP30="","",OCL_Saisie!DP30) ->  | FG31: =IF(AND(FF31>100%,FF31<>""),OCL_Saisie!E30&"/","") ->  | FK31: =IF(OR(OCL_Saisie!AA30="col",OCL_Saisie!AA30="cu"),OCL_Saisie!DQ30,"") ->  | FM31: =IF(AND(FL31>100%,FL31<>""),OCL_Saisie!E30&"/","") ->  | FQ31: =IF(OR(OCL_Saisie!AA30="col",OCL_Saisie!AA30="cu"),OCL_Saisie!DR30,"") ->  | FS31: =IF(AND(FR31>100%,FR31<>""),OCL_Saisie!E30&"/","") ->  | FW31: =IF(OR(OCL_Saisie!AA30="col",OCL_Saisie!AA30="cu"),OCL_Saisie!DS30,"") ->  | FY31: =IF(AND(FX31>100%,FX31<>""),OCL_Saisie!E30&"/","") ->  | GC31: =IF(OCL_Saisie!DT30="","",OCL_Saisie!DT30) ->  | GE31: =IF(AND(GD31>100%,GD31<>""),OCL_Saisie!E30&"/","") ->  | GJ31: =IF(OCL_Saisie!DN30="","",OCL_Saisie!DN30) ->  | GL31: =IF(AND(GK31>100%,GK31<>""),OCL_Saisie!E30&"/","") ->  | GP31: =IF(OR(OCL_Saisie!AA30="col",OCL_Saisie!AA30="cu",OCL_Saisie!AA30="mix"),OCL_Saisie!DB30,"") ->  | GQ31: =IF(AND(OCL_Saisie!AA30<>"col",OCL_Saisie!AA30<>"cu",OCL_Saisie!AA30<>"mix",OCL_Saisie!AA30<>""),OCL_Saisie!DB30,"") ->  | GT31: =IF(AND(GR31>100%,GR31<>""),OCL_Saisie!E30&"/","") ->  | GU31: =IF(AND(GS31>100%,GS31<>""),OCL_Saisie!E30&"/","") ->  | GZ31: =IF(OR(OCL_Saisie!AA30="col",OCL_Saisie!AA30="cu",OCL_Saisie!AA30="mix"),OCL_Saisie!DC30,"") ->  | HA31: =IF(AND(OCL_Saisie!AA30<>"col",OCL_Saisie!AA30<>"cu",OCL_Saisie!AA30<>"mix",OCL_Saisie!AA30<>""),OCL_Saisie!DC30,"") ->  | HD31: =IF(AND(HB31>100%,HB31<>""),OCL_Saisie!E30&"/","") ->  | HE31: =IF(AND(HC31>100%,HC31<>""),OCL_Saisie!E30&"/","") ->  | HJ31: =IF(OR(OCL_Saisie!AA30="col",OCL_Saisie!AA30="cu"),OCL_Saisie!DA30,"") ->  | HK31: =IF(AND(OCL_Saisie!AA30<>"col",OCL_Saisie!AA30<>"cu",OCL_Saisie!AA30<>""),OCL_Saisie!DA30,"") ->  | HN31: =IF(AND(HL31>100%,HL31<>""),OCL_Saisie!E30&"/","") ->  | HO31: =IF(AND(HM31>100%,HM31<>""),OCL_Saisie!E30&"/","") -> 
BD32: 0 | BE32: =IF(OCL_Saisie!W31="IND",OCL_Saisie!CW31,"") ->  | BF32: =IF(OCL_Saisie!W31="col",OCL_Saisie!CW31,"") ->  | BG32: =IF(OCL_Saisie!W31="mix",OCL_Saisie!CW31,"") ->  | BK32: =IF(AND(BH32>100%,BH32<>""),OCL_Saisie!E31&"/","") ->  | BL32: =IF(AND(BI32>100%,BI32<>""),OCL_Saisie!E31&"/","") ->  | BM32: =IF(AND(BJ32>100%,BJ32<>""),OCL_Saisie!E31&"/","") ->  | BS32: =IF(OCL_Saisie!W31="col",OCL_Saisie!CX31,"") ->  | BT32: =IF(AND(OCL_Saisie!W31<>"col",OCL_Saisie!W31<>""),OCL_Saisie!CX31,"") ->  | BW32: =IF(AND(BU32>100%,BU32<>""),OCL_Saisie!E31&"/","") ->  | BX32: =IF(AND(BV32>100%,BV32<>""),OCL_Saisie!E31&"/","") ->  | CC32: =IF(OCL_Saisie!CY31="","",OCL_Saisie!CY31) ->  | CE32: =IF(AND(CD32>100%,CD32<>""),OCL_Saisie!E31&"/","") ->  | CI32: =IF(OR(OCL_Saisie!AA31="col",OCL_Saisie!AA31="cu",OCL_Saisie!AA31="mix"),OCL_Saisie!CZ31,"") ->  | CJ32: =IF(AND(OCL_Saisie!AA31<>"col",OCL_Saisie!AA31<>"cu",OCL_Saisie!AA31<>"mix",OCL_Saisie!AA31<>""),OCL_Saisie!CZ31,"") ->  | CM32: =IF(AND(CK32>100%,CK32<>""),OCL_Saisie!E31&"/","") ->  | CN32: =IF(AND(CL32>100%,CL32<>""),OCL_Saisie!E31&"/","") ->  | CS32: =IF(OR(OCL_Saisie!AA31="col",OCL_Saisie!AA31="cu",OCL_Saisie!AA31="mix"),OCL_Saisie!DD31,"") ->  | CT32: =IF(AND(OCL_Saisie!AA31<>"col",OCL_Saisie!AA31<>"cu",OCL_Saisie!AA31<>"mix",OCL_Saisie!AA31<>""),OCL_Saisie!DD31,"") ->  | CW32: =IF(AND(CU32>100%,CU32<>""),OCL_Saisie!E31&"/","") ->  | CX32: =IF(AND(CV32>100%,CV32<>""),OCL_Saisie!E31&"/","") ->  | DC32: =IF(OCL_Saisie!DE31="","",OCL_Saisie!DE31) ->  | DE32: =IF(AND(DD32>100%,DD32<>""),OCL_Saisie!E31&"/","") ->  | DI32: =IF(OCL_Saisie!DF31="","",OCL_Saisie!DF31) ->  | DK32: =IF(AND(DJ32>100%,DJ32<>""),OCL_Saisie!E31&"/","") ->  | DO32: =IF(OCL_Saisie!DG31="","",OCL_Saisie!DG31) ->  | DQ32: =IF(AND(DP32>100%,DP32<>""),OCL_Saisie!E31&"/","") ->  | DU32: =IF(OCL_Saisie!DH31="","",OCL_Saisie!DH31) ->  | DW32: =IF(AND(DV32>100%,DV32<>""),OCL_Saisie!E31&"/","") ->  | EA32: =IF(OCL_Saisie!DI31="","",OCL_Saisie!DI31) ->  | EC32: =IF(AND(EB32>100%,EB32<>""),OCL_Saisie!E31&"/","") ->  | EG32: =IF(OCL_Saisie!DJ31="","",OCL_Saisie!DJ31) ->  | EI32: =IF(AND(EH32>100%,EH32<>""),OCL_Saisie!E31&"/","") ->  | EM32: =IF(OCL_Saisie!DK31="","",OCL_Saisie!DK31) ->  | EO32: =IF(AND(EN32>100%,EN32<>""),OCL_Saisie!E31&"/","") ->  | ES32: =IF(OCL_Saisie!DM31="","",OCL_Saisie!DM31) ->  | EU32: =IF(AND(ET32>100%,ET32<>""),OCL_Saisie!E31&"/","") ->  | EY32: =IF(OCL_Saisie!DO31="","",OCL_Saisie!DO31) ->  | FA32: =IF(AND(EZ32>100%,EZ32<>""),OCL_Saisie!E31&"/","") ->  | FE32: =IF(OCL_Saisie!DP31="","",OCL_Saisie!DP31) ->  | FG32: =IF(AND(FF32>100%,FF32<>""),OCL_Saisie!E31&"/","") ->  | FK32: =IF(OR(OCL_Saisie!AA31="col",OCL_Saisie!AA31="cu"),OCL_Saisie!DQ31,"") ->  | FM32: =IF(AND(FL32>100%,FL32<>""),OCL_Saisie!E31&"/","") ->  | FQ32: =IF(OR(OCL_Saisie!AA31="col",OCL_Saisie!AA31="cu"),OCL_Saisie!DR31,"") ->  | FS32: =IF(AND(FR32>100%,FR32<>""),OCL_Saisie!E31&"/","") ->  | FW32: =IF(OR(OCL_Saisie!AA31="col",OCL_Saisie!AA31="cu"),OCL_Saisie!DS31,"") ->  | FY32: =IF(AND(FX32>100%,FX32<>""),OCL_Saisie!E31&"/","") ->  | GC32: =IF(OCL_Saisie!DT31="","",OCL_Saisie!DT31) ->  | GE32: =IF(AND(GD32>100%,GD32<>""),OCL_Saisie!E31&"/","") ->  | GJ32: =IF(OCL_Saisie!DN31="","",OCL_Saisie!DN31) ->  | GL32: =IF(AND(GK32>100%,GK32<>""),OCL_Saisie!E31&"/","") ->  | GP32: =IF(OR(OCL_Saisie!AA31="col",OCL_Saisie!AA31="cu",OCL_Saisie!AA31="mix"),OCL_Saisie!DB31,"") ->  | GQ32: =IF(AND(OCL_Saisie!AA31<>"col",OCL_Saisie!AA31<>"cu",OCL_Saisie!AA31<>"mix",OCL_Saisie!AA31<>""),OCL_Saisie!DB31,"") ->  | GT32: =IF(AND(GR32>100%,GR32<>""),OCL_Saisie!E31&"/","") ->  | GU32: =IF(AND(GS32>100%,GS32<>""),OCL_Saisie!E31&"/","") ->  | GZ32: =IF(OR(OCL_Saisie!AA31="col",OCL_Saisie!AA31="cu",OCL_Saisie!AA31="mix"),OCL_Saisie!DC31,"") ->  | HA32: =IF(AND(OCL_Saisie!AA31<>"col",OCL_Saisie!AA31<>"cu",OCL_Saisie!AA31<>"mix",OCL_Saisie!AA31<>""),OCL_Saisie!DC31,"") ->  | HD32: =IF(AND(HB32>100%,HB32<>""),OCL_Saisie!E31&"/","") ->  | HE32: =IF(AND(HC32>100%,HC32<>""),OCL_Saisie!E31&"/","") ->  | HJ32: =IF(OR(OCL_Saisie!AA31="col",OCL_Saisie!AA31="cu"),OCL_Saisie!DA31,"") ->  | HK32: =IF(AND(OCL_Saisie!AA31<>"col",OCL_Saisie!AA31<>"cu",OCL_Saisie!AA31<>""),OCL_Saisie!DA31,"") ->  | HN32: =IF(AND(HL32>100%,HL32<>""),OCL_Saisie!E31&"/","") ->  | HO32: =IF(AND(HM32>100%,HM32<>""),OCL_Saisie!E31&"/","") -> 
BD33: 0 | BE33: =IF(OCL_Saisie!W32="IND",OCL_Saisie!CW32,"") ->  | BF33: =IF(OCL_Saisie!W32="col",OCL_Saisie!CW32,"") ->  | BG33: =IF(OCL_Saisie!W32="mix",OCL_Saisie!CW32,"") ->  | BK33: =IF(AND(BH33>100%,BH33<>""),OCL_Saisie!E32&"/","") ->  | BL33: =IF(AND(BI33>100%,BI33<>""),OCL_Saisie!E32&"/","") ->  | BM33: =IF(AND(BJ33>100%,BJ33<>""),OCL_Saisie!E32&"/","") ->  | BS33: =IF(OCL_Saisie!W32="col",OCL_Saisie!CX32,"") ->  | BT33: =IF(AND(OCL_Saisie!W32<>"col",OCL_Saisie!W32<>""),OCL_Saisie!CX32,"") ->  | BW33: =IF(AND(BU33>100%,BU33<>""),OCL_Saisie!E32&"/","") ->  | BX33: =IF(AND(BV33>100%,BV33<>""),OCL_Saisie!E32&"/","") ->  | CC33: =IF(OCL_Saisie!CY32="","",OCL_Saisie!CY32) ->  | CE33: =IF(AND(CD33>100%,CD33<>""),OCL_Saisie!E32&"/","") ->  | CI33: =IF(OR(OCL_Saisie!AA32="col",OCL_Saisie!AA32="cu",OCL_Saisie!AA32="mix"),OCL_Saisie!CZ32,"") ->  | CJ33: =IF(AND(OCL_Saisie!AA32<>"col",OCL_Saisie!AA32<>"cu",OCL_Saisie!AA32<>"mix",OCL_Saisie!AA32<>""),OCL_Saisie!CZ32,"") ->  | CM33: =IF(AND(CK33>100%,CK33<>""),OCL_Saisie!E32&"/","") ->  | CN33: =IF(AND(CL33>100%,CL33<>""),OCL_Saisie!E32&"/","") ->  | CS33: =IF(OR(OCL_Saisie!AA32="col",OCL_Saisie!AA32="cu",OCL_Saisie!AA32="mix"),OCL_Saisie!DD32,"") ->  | CT33: =IF(AND(OCL_Saisie!AA32<>"col",OCL_Saisie!AA32<>"cu",OCL_Saisie!AA32<>"mix",OCL_Saisie!AA32<>""),OCL_Saisie!DD32,"") ->  | CW33: =IF(AND(CU33>100%,CU33<>""),OCL_Saisie!E32&"/","") ->  | CX33: =IF(AND(CV33>100%,CV33<>""),OCL_Saisie!E32&"/","") ->  | DC33: =IF(OCL_Saisie!DE32="","",OCL_Saisie!DE32) ->  | DE33: =IF(AND(DD33>100%,DD33<>""),OCL_Saisie!E32&"/","") ->  | DI33: =IF(OCL_Saisie!DF32="","",OCL_Saisie!DF32) ->  | DK33: =IF(AND(DJ33>100%,DJ33<>""),OCL_Saisie!E32&"/","") ->  | DO33: =IF(OCL_Saisie!DG32="","",OCL_Saisie!DG32) ->  | DQ33: =IF(AND(DP33>100%,DP33<>""),OCL_Saisie!E32&"/","") ->  | DU33: =IF(OCL_Saisie!DH32="","",OCL_Saisie!DH32) ->  | DW33: =IF(AND(DV33>100%,DV33<>""),OCL_Saisie!E32&"/","") ->  | EA33: =IF(OCL_Saisie!DI32="","",OCL_Saisie!DI32) ->  | EC33: =IF(AND(EB33>100%,EB33<>""),OCL_Saisie!E32&"/","") ->  | EG33: =IF(OCL_Saisie!DJ32="","",OCL_Saisie!DJ32) ->  | EI33: =IF(AND(EH33>100%,EH33<>""),OCL_Saisie!E32&"/","") ->  | EM33: =IF(OCL_Saisie!DK32="","",OCL_Saisie!DK32) ->  | EO33: =IF(AND(EN33>100%,EN33<>""),OCL_Saisie!E32&"/","") ->  | ES33: =IF(OCL_Saisie!DM32="","",OCL_Saisie!DM32) ->  | EU33: =IF(AND(ET33>100%,ET33<>""),OCL_Saisie!E32&"/","") ->  | EY33: =IF(OCL_Saisie!DO32="","",OCL_Saisie!DO32) ->  | FA33: =IF(AND(EZ33>100%,EZ33<>""),OCL_Saisie!E32&"/","") ->  | FE33: =IF(OCL_Saisie!DP32="","",OCL_Saisie!DP32) ->  | FG33: =IF(AND(FF33>100%,FF33<>""),OCL_Saisie!E32&"/","") ->  | FK33: =IF(OR(OCL_Saisie!AA32="col",OCL_Saisie!AA32="cu"),OCL_Saisie!DQ32,"") ->  | FM33: =IF(AND(FL33>100%,FL33<>""),OCL_Saisie!E32&"/","") ->  | FQ33: =IF(OR(OCL_Saisie!AA32="col",OCL_Saisie!AA32="cu"),OCL_Saisie!DR32,"") ->  | FS33: =IF(AND(FR33>100%,FR33<>""),OCL_Saisie!E32&"/","") ->  | FW33: =IF(OR(OCL_Saisie!AA32="col",OCL_Saisie!AA32="cu"),OCL_Saisie!DS32,"") ->  | FY33: =IF(AND(FX33>100%,FX33<>""),OCL_Saisie!E32&"/","") ->  | GC33: =IF(OCL_Saisie!DT32="","",OCL_Saisie!DT32) ->  | GE33: =IF(AND(GD33>100%,GD33<>""),OCL_Saisie!E32&"/","") ->  | GJ33: =IF(OCL_Saisie!DN32="","",OCL_Saisie!DN32) ->  | GL33: =IF(AND(GK33>100%,GK33<>""),OCL_Saisie!E32&"/","") ->  | GP33: =IF(OR(OCL_Saisie!AA32="col",OCL_Saisie!AA32="cu",OCL_Saisie!AA32="mix"),OCL_Saisie!DB32,"") ->  | GQ33: =IF(AND(OCL_Saisie!AA32<>"col",OCL_Saisie!AA32<>"cu",OCL_Saisie!AA32<>"mix",OCL_Saisie!AA32<>""),OCL_Saisie!DB32,"") ->  | GT33: =IF(AND(GR33>100%,GR33<>""),OCL_Saisie!E32&"/","") ->  | GU33: =IF(AND(GS33>100%,GS33<>""),OCL_Saisie!E32&"/","") ->  | GZ33: =IF(OR(OCL_Saisie!AA32="col",OCL_Saisie!AA32="cu",OCL_Saisie!AA32="mix"),OCL_Saisie!DC32,"") ->  | HA33: =IF(AND(OCL_Saisie!AA32<>"col",OCL_Saisie!AA32<>"cu",OCL_Saisie!AA32<>"mix",OCL_Saisie!AA32<>""),OCL_Saisie!DC32,"") ->  | HD33: =IF(AND(HB33>100%,HB33<>""),OCL_Saisie!E32&"/","") ->  | HE33: =IF(AND(HC33>100%,HC33<>""),OCL_Saisie!E32&"/","") ->  | HJ33: =IF(OR(OCL_Saisie!AA32="col",OCL_Saisie!AA32="cu"),OCL_Saisie!DA32,"") ->  | HK33: =IF(AND(OCL_Saisie!AA32<>"col",OCL_Saisie!AA32<>"cu",OCL_Saisie!AA32<>""),OCL_Saisie!DA32,"") ->  | HN33: =IF(AND(HL33>100%,HL33<>""),OCL_Saisie!E32&"/","") ->  | HO33: =IF(AND(HM33>100%,HM33<>""),OCL_Saisie!E32&"/","") -> 
B34: MD_CP_CHA : Montant des dépenses de comptage et de répartition des frais de chauffage | C34: =HJ2 -> 0.1 | D34: =HJ1 -> 0.9 | E34: Si facturation du chauffage collective ou chauffage urbain | F34: =HJ6 -> - | G34: =HJ7 -> - | H34: =COUNTIF(HJ18:HJ2040,">-100") -> 0 | I34: =HJ3+HJ4 -> 0 | J34: =COUNTIF(HL18:HL2032,"<"&$J$1) -> 0 | K34: =I34-L34-J34 -> 0 | L34: =COUNTIF(HL18:HL2032,">1") -> 0 | M34: =IF(HP16="","-",HP16) -> - | N34: =HJ5 -> 0 | S34: =D34-C34 -> 0.8 | BD34: 0 | BE34: =IF(OCL_Saisie!W33="IND",OCL_Saisie!CW33,"") ->  | BF34: =IF(OCL_Saisie!W33="col",OCL_Saisie!CW33,"") ->  | BG34: =IF(OCL_Saisie!W33="mix",OCL_Saisie!CW33,"") ->  | BK34: =IF(AND(BH34>100%,BH34<>""),OCL_Saisie!E33&"/","") ->  | BL34: =IF(AND(BI34>100%,BI34<>""),OCL_Saisie!E33&"/","") ->  | BM34: =IF(AND(BJ34>100%,BJ34<>""),OCL_Saisie!E33&"/","") ->  | BS34: =IF(OCL_Saisie!W33="col",OCL_Saisie!CX33,"") ->  | BT34: =IF(AND(OCL_Saisie!W33<>"col",OCL_Saisie!W33<>""),OCL_Saisie!CX33,"") ->  | BW34: =IF(AND(BU34>100%,BU34<>""),OCL_Saisie!E33&"/","") ->  | BX34: =IF(AND(BV34>100%,BV34<>""),OCL_Saisie!E33&"/","") ->  | CC34: =IF(OCL_Saisie!CY33="","",OCL_Saisie!CY33) ->  | CE34: =IF(AND(CD34>100%,CD34<>""),OCL_Saisie!E33&"/","") ->  | CI34: =IF(OR(OCL_Saisie!AA33="col",OCL_Saisie!AA33="cu",OCL_Saisie!AA33="mix"),OCL_Saisie!CZ33,"") ->  | CJ34: =IF(AND(OCL_Saisie!AA33<>"col",OCL_Saisie!AA33<>"cu",OCL_Saisie!AA33<>"mix",OCL_Saisie!AA33<>""),OCL_Saisie!CZ33,"") ->  | CM34: =IF(AND(CK34>100%,CK34<>""),OCL_Saisie!E33&"/","") ->  | CN34: =IF(AND(CL34>100%,CL34<>""),OCL_Saisie!E33&"/","") ->  | CS34: =IF(OR(OCL_Saisie!AA33="col",OCL_Saisie!AA33="cu",OCL_Saisie!AA33="mix"),OCL_Saisie!DD33,"") ->  | CT34: =IF(AND(OCL_Saisie!AA33<>"col",OCL_Saisie!AA33<>"cu",OCL_Saisie!AA33<>"mix",OCL_Saisie!AA33<>""),OCL_Saisie!DD33,"") ->  | CW34: =IF(AND(CU34>100%,CU34<>""),OCL_Saisie!E33&"/","") ->  | CX34: =IF(AND(CV34>100%,CV34<>""),OCL_Saisie!E33&"/","") ->  | DC34: =IF(OCL_Saisie!DE33="","",OCL_Saisie!DE33) ->  | DE34: =IF(AND(DD34>100%,DD34<>""),OCL_Saisie!E33&"/","") ->  | DI34: =IF(OCL_Saisie!DF33="","",OCL_Saisie!DF33) ->  | DK34: =IF(AND(DJ34>100%,DJ34<>""),OCL_Saisie!E33&"/","") ->  | DO34: =IF(OCL_Saisie!DG33="","",OCL_Saisie!DG33) ->  | DQ34: =IF(AND(DP34>100%,DP34<>""),OCL_Saisie!E33&"/","") ->  | DU34: =IF(OCL_Saisie!DH33="","",OCL_Saisie!DH33) ->  | DW34: =IF(AND(DV34>100%,DV34<>""),OCL_Saisie!E33&"/","") ->  | EA34: =IF(OCL_Saisie!DI33="","",OCL_Saisie!DI33) ->  | EC34: =IF(AND(EB34>100%,EB34<>""),OCL_Saisie!E33&"/","") ->  | EG34: =IF(OCL_Saisie!DJ33="","",OCL_Saisie!DJ33) ->  | EI34: =IF(AND(EH34>100%,EH34<>""),OCL_Saisie!E33&"/","") ->  | EM34: =IF(OCL_Saisie!DK33="","",OCL_Saisie!DK33) ->  | EO34: =IF(AND(EN34>100%,EN34<>""),OCL_Saisie!E33&"/","") ->  | ES34: =IF(OCL_Saisie!DM33="","",OCL_Saisie!DM33) ->  | EU34: =IF(AND(ET34>100%,ET34<>""),OCL_Saisie!E33&"/","") ->  | EY34: =IF(OCL_Saisie!DO33="","",OCL_Saisie!DO33) ->  | FA34: =IF(AND(EZ34>100%,EZ34<>""),OCL_Saisie!E33&"/","") ->  | FE34: =IF(OCL_Saisie!DP33="","",OCL_Saisie!DP33) ->  | FG34: =IF(AND(FF34>100%,FF34<>""),OCL_Saisie!E33&"/","") ->  | FK34: =IF(OR(OCL_Saisie!AA33="col",OCL_Saisie!AA33="cu"),OCL_Saisie!DQ33,"") ->  | FM34: =IF(AND(FL34>100%,FL34<>""),OCL_Saisie!E33&"/","") ->  | FQ34: =IF(OR(OCL_Saisie!AA33="col",OCL_Saisie!AA33="cu"),OCL_Saisie!DR33,"") ->  | FS34: =IF(AND(FR34>100%,FR34<>""),OCL_Saisie!E33&"/","") ->  | FW34: =IF(OR(OCL_Saisie!AA33="col",OCL_Saisie!AA33="cu"),OCL_Saisie!DS33,"") ->  | FY34: =IF(AND(FX34>100%,FX34<>""),OCL_Saisie!E33&"/","") ->  | GC34: =IF(OCL_Saisie!DT33="","",OCL_Saisie!DT33) ->  | GE34: =IF(AND(GD34>100%,GD34<>""),OCL_Saisie!E33&"/","") ->  | GJ34: =IF(OCL_Saisie!DN33="","",OCL_Saisie!DN33) ->  | GL34: =IF(AND(GK34>100%,GK34<>""),OCL_Saisie!E33&"/","") ->  | GP34: =IF(OR(OCL_Saisie!AA33="col",OCL_Saisie!AA33="cu",OCL_Saisie!AA33="mix"),OCL_Saisie!DB33,"") ->  | GQ34: =IF(AND(OCL_Saisie!AA33<>"col",OCL_Saisie!AA33<>"cu",OCL_Saisie!AA33<>"mix",OCL_Saisie!AA33<>""),OCL_Saisie!DB33,"") ->  | GT34: =IF(AND(GR34>100%,GR34<>""),OCL_Saisie!E33&"/","") ->  | GU34: =IF(AND(GS34>100%,GS34<>""),OCL_Saisie!E33&"/","") ->  | GZ34: =IF(OR(OCL_Saisie!AA33="col",OCL_Saisie!AA33="cu",OCL_Saisie!AA33="mix"),OCL_Saisie!DC33,"") ->  | HA34: =IF(AND(OCL_Saisie!AA33<>"col",OCL_Saisie!AA33<>"cu",OCL_Saisie!AA33<>"mix",OCL_Saisie!AA33<>""),OCL_Saisie!DC33,"") ->  | HD34: =IF(AND(HB34>100%,HB34<>""),OCL_Saisie!E33&"/","") ->  | HE34: =IF(AND(HC34>100%,HC34<>""),OCL_Saisie!E33&"/","") ->  | HJ34: =IF(OR(OCL_Saisie!AA33="col",OCL_Saisie!AA33="cu"),OCL_Saisie!DA33,"") ->  | HK34: =IF(AND(OCL_Saisie!AA33<>"col",OCL_Saisie!AA33<>"cu",OCL_Saisie!AA33<>""),OCL_Saisie!DA33,"") ->  | HN34: =IF(AND(HL34>100%,HL34<>""),OCL_Saisie!E33&"/","") ->  | HO34: =IF(AND(HM34>100%,HM34<>""),OCL_Saisie!E33&"/","") -> 
C35: =HK2 -> 0.1 | D35: =HK1 -> 0.9 | E35: - | F35: =HK6 -> - | G35: =HK7 -> - | I35: =HK3+HK4 -> 0 | J35: =COUNTIF(HM18:HM2033,"<"&$J$1) -> 0 | K35: =I35-L35-J35 -> 0 | L35: =COUNTIF(HM18:HM2033,">1") -> 0 | M35: =IF(HQ16="","-",HQ16) -> - | N35: =CT10 -> 0 | S35: =D35-C35 -> 0.8 | BD35: 0 | BE35: =IF(OCL_Saisie!W34="IND",OCL_Saisie!CW34,"") ->  | BF35: =IF(OCL_Saisie!W34="col",OCL_Saisie!CW34,"") ->  | BG35: =IF(OCL_Saisie!W34="mix",OCL_Saisie!CW34,"") ->  | BK35: =IF(AND(BH35>100%,BH35<>""),OCL_Saisie!E34&"/","") ->  | BL35: =IF(AND(BI35>100%,BI35<>""),OCL_Saisie!E34&"/","") ->  | BM35: =IF(AND(BJ35>100%,BJ35<>""),OCL_Saisie!E34&"/","") ->  | BS35: =IF(OCL_Saisie!W34="col",OCL_Saisie!CX34,"") ->  | BT35: =IF(AND(OCL_Saisie!W34<>"col",OCL_Saisie!W34<>""),OCL_Saisie!CX34,"") ->  | BW35: =IF(AND(BU35>100%,BU35<>""),OCL_Saisie!E34&"/","") ->  | BX35: =IF(AND(BV35>100%,BV35<>""),OCL_Saisie!E34&"/","") ->  | CC35: =IF(OCL_Saisie!CY34="","",OCL_Saisie!CY34) ->  | CE35: =IF(AND(CD35>100%,CD35<>""),OCL_Saisie!E34&"/","") ->  | CI35: =IF(OR(OCL_Saisie!AA34="col",OCL_Saisie!AA34="cu",OCL_Saisie!AA34="mix"),OCL_Saisie!CZ34,"") ->  | CJ35: =IF(AND(OCL_Saisie!AA34<>"col",OCL_Saisie!AA34<>"cu",OCL_Saisie!AA34<>"mix",OCL_Saisie!AA34<>""),OCL_Saisie!CZ34,"") ->  | CM35: =IF(AND(CK35>100%,CK35<>""),OCL_Saisie!E34&"/","") ->  | CN35: =IF(AND(CL35>100%,CL35<>""),OCL_Saisie!E34&"/","") ->  | CS35: =IF(OR(OCL_Saisie!AA34="col",OCL_Saisie!AA34="cu",OCL_Saisie!AA34="mix"),OCL_Saisie!DD34,"") ->  | CT35: =IF(AND(OCL_Saisie!AA34<>"col",OCL_Saisie!AA34<>"cu",OCL_Saisie!AA34<>"mix",OCL_Saisie!AA34<>""),OCL_Saisie!DD34,"") ->  | CW35: =IF(AND(CU35>100%,CU35<>""),OCL_Saisie!E34&"/","") ->  | CX35: =IF(AND(CV35>100%,CV35<>""),OCL_Saisie!E34&"/","") ->  | DC35: =IF(OCL_Saisie!DE34="","",OCL_Saisie!DE34) ->  | DE35: =IF(AND(DD35>100%,DD35<>""),OCL_Saisie!E34&"/","") ->  | DI35: =IF(OCL_Saisie!DF34="","",OCL_Saisie!DF34) ->  | DK35: =IF(AND(DJ35>100%,DJ35<>""),OCL_Saisie!E34&"/","") ->  | DO35: =IF(OCL_Saisie!DG34="","",OCL_Saisie!DG34) ->  | DQ35: =IF(AND(DP35>100%,DP35<>""),OCL_Saisie!E34&"/","") ->  | DU35: =IF(OCL_Saisie!DH34="","",OCL_Saisie!DH34) ->  | DW35: =IF(AND(DV35>100%,DV35<>""),OCL_Saisie!E34&"/","") ->  | EA35: =IF(OCL_Saisie!DI34="","",OCL_Saisie!DI34) ->  | EC35: =IF(AND(EB35>100%,EB35<>""),OCL_Saisie!E34&"/","") ->  | EG35: =IF(OCL_Saisie!DJ34="","",OCL_Saisie!DJ34) ->  | EI35: =IF(AND(EH35>100%,EH35<>""),OCL_Saisie!E34&"/","") ->  | EM35: =IF(OCL_Saisie!DK34="","",OCL_Saisie!DK34) ->  | EO35: =IF(AND(EN35>100%,EN35<>""),OCL_Saisie!E34&"/","") ->  | ES35: =IF(OCL_Saisie!DM34="","",OCL_Saisie!DM34) ->  | EU35: =IF(AND(ET35>100%,ET35<>""),OCL_Saisie!E34&"/","") ->  | EY35: =IF(OCL_Saisie!DO34="","",OCL_Saisie!DO34) ->  | FA35: =IF(AND(EZ35>100%,EZ35<>""),OCL_Saisie!E34&"/","") ->  | FE35: =IF(OCL_Saisie!DP34="","",OCL_Saisie!DP34) ->  | FG35: =IF(AND(FF35>100%,FF35<>""),OCL_Saisie!E34&"/","") ->  | FK35: =IF(OR(OCL_Saisie!AA34="col",OCL_Saisie!AA34="cu"),OCL_Saisie!DQ34,"") ->  | FM35: =IF(AND(FL35>100%,FL35<>""),OCL_Saisie!E34&"/","") ->  | FQ35: =IF(OR(OCL_Saisie!AA34="col",OCL_Saisie!AA34="cu"),OCL_Saisie!DR34,"") ->  | FS35: =IF(AND(FR35>100%,FR35<>""),OCL_Saisie!E34&"/","") ->  | FW35: =IF(OR(OCL_Saisie!AA34="col",OCL_Saisie!AA34="cu"),OCL_Saisie!DS34,"") ->  | FY35: =IF(AND(FX35>100%,FX35<>""),OCL_Saisie!E34&"/","") ->  | GC35: =IF(OCL_Saisie!DT34="","",OCL_Saisie!DT34) ->  | GE35: =IF(AND(GD35>100%,GD35<>""),OCL_Saisie!E34&"/","") ->  | GJ35: =IF(OCL_Saisie!DN34="","",OCL_Saisie!DN34) ->  | GL35: =IF(AND(GK35>100%,GK35<>""),OCL_Saisie!E34&"/","") ->  | GP35: =IF(OR(OCL_Saisie!AA34="col",OCL_Saisie!AA34="cu",OCL_Saisie!AA34="mix"),OCL_Saisie!DB34,"") ->  | GQ35: =IF(AND(OCL_Saisie!AA34<>"col",OCL_Saisie!AA34<>"cu",OCL_Saisie!AA34<>"mix",OCL_Saisie!AA34<>""),OCL_Saisie!DB34,"") ->  | GT35: =IF(AND(GR35>100%,GR35<>""),OCL_Saisie!E34&"/","") ->  | GU35: =IF(AND(GS35>100%,GS35<>""),OCL_Saisie!E34&"/","") ->  | GZ35: =IF(OR(OCL_Saisie!AA34="col",OCL_Saisie!AA34="cu",OCL_Saisie!AA34="mix"),OCL_Saisie!DC34,"") ->  | HA35: =IF(AND(OCL_Saisie!AA34<>"col",OCL_Saisie!AA34<>"cu",OCL_Saisie!AA34<>"mix",OCL_Saisie!AA34<>""),OCL_Saisie!DC34,"") ->  | HD35: =IF(AND(HB35>100%,HB35<>""),OCL_Saisie!E34&"/","") ->  | HE35: =IF(AND(HC35>100%,HC35<>""),OCL_Saisie!E34&"/","") ->  | HJ35: =IF(OR(OCL_Saisie!AA34="col",OCL_Saisie!AA34="cu"),OCL_Saisie!DA34,"") ->  | HK35: =IF(AND(OCL_Saisie!AA34<>"col",OCL_Saisie!AA34<>"cu",OCL_Saisie!AA34<>""),OCL_Saisie!DA34,"") ->  | HN35: =IF(AND(HL35>100%,HL35<>""),OCL_Saisie!E34&"/","") ->  | HO35: =IF(AND(HM35>100%,HM35<>""),OCL_Saisie!E34&"/","") -> 
E36: TOTAL | I36: =SUM(I34:I35) -> 0 | N36: =IF(I36=0,,I36/COUNTIF(OCL_Saisie!DA19:DA444,">-10")) -> 0 | BD36: 0 | BE36: =IF(OCL_Saisie!W35="IND",OCL_Saisie!CW35,"") ->  | BF36: =IF(OCL_Saisie!W35="col",OCL_Saisie!CW35,"") ->  | BG36: =IF(OCL_Saisie!W35="mix",OCL_Saisie!CW35,"") ->  | BK36: =IF(AND(BH36>100%,BH36<>""),OCL_Saisie!E35&"/","") ->  | BL36: =IF(AND(BI36>100%,BI36<>""),OCL_Saisie!E35&"/","") ->  | BM36: =IF(AND(BJ36>100%,BJ36<>""),OCL_Saisie!E35&"/","") ->  | BS36: =IF(OCL_Saisie!W35="col",OCL_Saisie!CX35,"") ->  | BT36: =IF(AND(OCL_Saisie!W35<>"col",OCL_Saisie!W35<>""),OCL_Saisie!CX35,"") ->  | BW36: =IF(AND(BU36>100%,BU36<>""),OCL_Saisie!E35&"/","") ->  | BX36: =IF(AND(BV36>100%,BV36<>""),OCL_Saisie!E35&"/","") ->  | CC36: =IF(OCL_Saisie!CY35="","",OCL_Saisie!CY35) ->  | CE36: =IF(AND(CD36>100%,CD36<>""),OCL_Saisie!E35&"/","") ->  | CI36: =IF(OR(OCL_Saisie!AA35="col",OCL_Saisie!AA35="cu",OCL_Saisie!AA35="mix"),OCL_Saisie!CZ35,"") ->  | CJ36: =IF(AND(OCL_Saisie!AA35<>"col",OCL_Saisie!AA35<>"cu",OCL_Saisie!AA35<>"mix",OCL_Saisie!AA35<>""),OCL_Saisie!CZ35,"") ->  | CM36: =IF(AND(CK36>100%,CK36<>""),OCL_Saisie!E35&"/","") ->  | CN36: =IF(AND(CL36>100%,CL36<>""),OCL_Saisie!E35&"/","") ->  | CS36: =IF(OR(OCL_Saisie!AA35="col",OCL_Saisie!AA35="cu",OCL_Saisie!AA35="mix"),OCL_Saisie!DD35,"") ->  | CT36: =IF(AND(OCL_Saisie!AA35<>"col",OCL_Saisie!AA35<>"cu",OCL_Saisie!AA35<>"mix",OCL_Saisie!AA35<>""),OCL_Saisie!DD35,"") ->  | CW36: =IF(AND(CU36>100%,CU36<>""),OCL_Saisie!E35&"/","") ->  | CX36: =IF(AND(CV36>100%,CV36<>""),OCL_Saisie!E35&"/","") ->  | DC36: =IF(OCL_Saisie!DE35="","",OCL_Saisie!DE35) ->  | DE36: =IF(AND(DD36>100%,DD36<>""),OCL_Saisie!E35&"/","") ->  | DI36: =IF(OCL_Saisie!DF35="","",OCL_Saisie!DF35) ->  | DK36: =IF(AND(DJ36>100%,DJ36<>""),OCL_Saisie!E35&"/","") ->  | DO36: =IF(OCL_Saisie!DG35="","",OCL_Saisie!DG35) ->  | DQ36: =IF(AND(DP36>100%,DP36<>""),OCL_Saisie!E35&"/","") ->  | DU36: =IF(OCL_Saisie!DH35="","",OCL_Saisie!DH35) ->  | DW36: =IF(AND(DV36>100%,DV36<>""),OCL_Saisie!E35&"/","") ->  | EA36: =IF(OCL_Saisie!DI35="","",OCL_Saisie!DI35) ->  | EC36: =IF(AND(EB36>100%,EB36<>""),OCL_Saisie!E35&"/","") ->  | EG36: =IF(OCL_Saisie!DJ35="","",OCL_Saisie!DJ35) ->  | EI36: =IF(AND(EH36>100%,EH36<>""),OCL_Saisie!E35&"/","") ->  | EM36: =IF(OCL_Saisie!DK35="","",OCL_Saisie!DK35) ->  | EO36: =IF(AND(EN36>100%,EN36<>""),OCL_Saisie!E35&"/","") ->  | ES36: =IF(OCL_Saisie!DM35="","",OCL_Saisie!DM35) ->  | EU36: =IF(AND(ET36>100%,ET36<>""),OCL_Saisie!E35&"/","") ->  | EY36: =IF(OCL_Saisie!DO35="","",OCL_Saisie!DO35) ->  | FA36: =IF(AND(EZ36>100%,EZ36<>""),OCL_Saisie!E35&"/","") ->  | FE36: =IF(OCL_Saisie!DP35="","",OCL_Saisie!DP35) ->  | FG36: =IF(AND(FF36>100%,FF36<>""),OCL_Saisie!E35&"/","") ->  | FK36: =IF(OR(OCL_Saisie!AA35="col",OCL_Saisie!AA35="cu"),OCL_Saisie!DQ35,"") ->  | FM36: =IF(AND(FL36>100%,FL36<>""),OCL_Saisie!E35&"/","") ->  | FQ36: =IF(OR(OCL_Saisie!AA35="col",OCL_Saisie!AA35="cu"),OCL_Saisie!DR35,"") ->  | FS36: =IF(AND(FR36>100%,FR36<>""),OCL_Saisie!E35&"/","") ->  | FW36: =IF(OR(OCL_Saisie!AA35="col",OCL_Saisie!AA35="cu"),OCL_Saisie!DS35,"") ->  | FY36: =IF(AND(FX36>100%,FX36<>""),OCL_Saisie!E35&"/","") ->  | GC36: =IF(OCL_Saisie!DT35="","",OCL_Saisie!DT35) ->  | GE36: =IF(AND(GD36>100%,GD36<>""),OCL_Saisie!E35&"/","") ->  | GJ36: =IF(OCL_Saisie!DN35="","",OCL_Saisie!DN35) ->  | GL36: =IF(AND(GK36>100%,GK36<>""),OCL_Saisie!E35&"/","") ->  | GP36: =IF(OR(OCL_Saisie!AA35="col",OCL_Saisie!AA35="cu",OCL_Saisie!AA35="mix"),OCL_Saisie!DB35,"") ->  | GQ36: =IF(AND(OCL_Saisie!AA35<>"col",OCL_Saisie!AA35<>"cu",OCL_Saisie!AA35<>"mix",OCL_Saisie!AA35<>""),OCL_Saisie!DB35,"") ->  | GT36: =IF(AND(GR36>100%,GR36<>""),OCL_Saisie!E35&"/","") ->  | GU36: =IF(AND(GS36>100%,GS36<>""),OCL_Saisie!E35&"/","") ->  | GZ36: =IF(OR(OCL_Saisie!AA35="col",OCL_Saisie!AA35="cu",OCL_Saisie!AA35="mix"),OCL_Saisie!DC35,"") ->  | HA36: =IF(AND(OCL_Saisie!AA35<>"col",OCL_Saisie!AA35<>"cu",OCL_Saisie!AA35<>"mix",OCL_Saisie!AA35<>""),OCL_Saisie!DC35,"") ->  | HD36: =IF(AND(HB36>100%,HB36<>""),OCL_Saisie!E35&"/","") ->  | HE36: =IF(AND(HC36>100%,HC36<>""),OCL_Saisie!E35&"/","") ->  | HJ36: =IF(OR(OCL_Saisie!AA35="col",OCL_Saisie!AA35="cu"),OCL_Saisie!DA35,"") ->  | HK36: =IF(AND(OCL_Saisie!AA35<>"col",OCL_Saisie!AA35<>"cu",OCL_Saisie!AA35<>""),OCL_Saisie!DA35,"") ->  | HN36: =IF(AND(HL36>100%,HL36<>""),OCL_Saisie!E35&"/","") ->  | HO36: =IF(AND(HM36>100%,HM36<>""),OCL_Saisie!E35&"/","") -> 
BD37: 0 | BE37: =IF(OCL_Saisie!W36="IND",OCL_Saisie!CW36,"") ->  | BF37: =IF(OCL_Saisie!W36="col",OCL_Saisie!CW36,"") ->  | BG37: =IF(OCL_Saisie!W36="mix",OCL_Saisie!CW36,"") ->  | BK37: =IF(AND(BH37>100%,BH37<>""),OCL_Saisie!E36&"/","") ->  | BL37: =IF(AND(BI37>100%,BI37<>""),OCL_Saisie!E36&"/","") ->  | BM37: =IF(AND(BJ37>100%,BJ37<>""),OCL_Saisie!E36&"/","") ->  | BS37: =IF(OCL_Saisie!W36="col",OCL_Saisie!CX36,"") ->  | BT37: =IF(AND(OCL_Saisie!W36<>"col",OCL_Saisie!W36<>""),OCL_Saisie!CX36,"") ->  | BW37: =IF(AND(BU37>100%,BU37<>""),OCL_Saisie!E36&"/","") ->  | BX37: =IF(AND(BV37>100%,BV37<>""),OCL_Saisie!E36&"/","") ->  | CC37: =IF(OCL_Saisie!CY36="","",OCL_Saisie!CY36) ->  | CE37: =IF(AND(CD37>100%,CD37<>""),OCL_Saisie!E36&"/","") ->  | CI37: =IF(OR(OCL_Saisie!AA36="col",OCL_Saisie!AA36="cu",OCL_Saisie!AA36="mix"),OCL_Saisie!CZ36,"") ->  | CJ37: =IF(AND(OCL_Saisie!AA36<>"col",OCL_Saisie!AA36<>"cu",OCL_Saisie!AA36<>"mix",OCL_Saisie!AA36<>""),OCL_Saisie!CZ36,"") ->  | CM37: =IF(AND(CK37>100%,CK37<>""),OCL_Saisie!E36&"/","") ->  | CN37: =IF(AND(CL37>100%,CL37<>""),OCL_Saisie!E36&"/","") ->  | CS37: =IF(OR(OCL_Saisie!AA36="col",OCL_Saisie!AA36="cu",OCL_Saisie!AA36="mix"),OCL_Saisie!DD36,"") ->  | CT37: =IF(AND(OCL_Saisie!AA36<>"col",OCL_Saisie!AA36<>"cu",OCL_Saisie!AA36<>"mix",OCL_Saisie!AA36<>""),OCL_Saisie!DD36,"") ->  | CW37: =IF(AND(CU37>100%,CU37<>""),OCL_Saisie!E36&"/","") ->  | CX37: =IF(AND(CV37>100%,CV37<>""),OCL_Saisie!E36&"/","") ->  | DC37: =IF(OCL_Saisie!DE36="","",OCL_Saisie!DE36) ->  | DE37: =IF(AND(DD37>100%,DD37<>""),OCL_Saisie!E36&"/","") ->  | DI37: =IF(OCL_Saisie!DF36="","",OCL_Saisie!DF36) ->  | DK37: =IF(AND(DJ37>100%,DJ37<>""),OCL_Saisie!E36&"/","") ->  | DO37: =IF(OCL_Saisie!DG36="","",OCL_Saisie!DG36) ->  | DQ37: =IF(AND(DP37>100%,DP37<>""),OCL_Saisie!E36&"/","") ->  | DU37: =IF(OCL_Saisie!DH36="","",OCL_Saisie!DH36) ->  | DW37: =IF(AND(DV37>100%,DV37<>""),OCL_Saisie!E36&"/","") ->  | EA37: =IF(OCL_Saisie!DI36="","",OCL_Saisie!DI36) ->  | EC37: =IF(AND(EB37>100%,EB37<>""),OCL_Saisie!E36&"/","") ->  | EG37: =IF(OCL_Saisie!DJ36="","",OCL_Saisie!DJ36) ->  | EI37: =IF(AND(EH37>100%,EH37<>""),OCL_Saisie!E36&"/","") ->  | EM37: =IF(OCL_Saisie!DK36="","",OCL_Saisie!DK36) ->  | EO37: =IF(AND(EN37>100%,EN37<>""),OCL_Saisie!E36&"/","") ->  | ES37: =IF(OCL_Saisie!DM36="","",OCL_Saisie!DM36) ->  | EU37: =IF(AND(ET37>100%,ET37<>""),OCL_Saisie!E36&"/","") ->  | EY37: =IF(OCL_Saisie!DO36="","",OCL_Saisie!DO36) ->  | FA37: =IF(AND(EZ37>100%,EZ37<>""),OCL_Saisie!E36&"/","") ->  | FE37: =IF(OCL_Saisie!DP36="","",OCL_Saisie!DP36) ->  | FG37: =IF(AND(FF37>100%,FF37<>""),OCL_Saisie!E36&"/","") ->  | FK37: =IF(OR(OCL_Saisie!AA36="col",OCL_Saisie!AA36="cu"),OCL_Saisie!DQ36,"") ->  | FM37: =IF(AND(FL37>100%,FL37<>""),OCL_Saisie!E36&"/","") ->  | FQ37: =IF(OR(OCL_Saisie!AA36="col",OCL_Saisie!AA36="cu"),OCL_Saisie!DR36,"") ->  | FS37: =IF(AND(FR37>100%,FR37<>""),OCL_Saisie!E36&"/","") ->  | FW37: =IF(OR(OCL_Saisie!AA36="col",OCL_Saisie!AA36="cu"),OCL_Saisie!DS36,"") ->  | FY37: =IF(AND(FX37>100%,FX37<>""),OCL_Saisie!E36&"/","") ->  | GC37: =IF(OCL_Saisie!DT36="","",OCL_Saisie!DT36) ->  | GE37: =IF(AND(GD37>100%,GD37<>""),OCL_Saisie!E36&"/","") ->  | GJ37: =IF(OCL_Saisie!DN36="","",OCL_Saisie!DN36) ->  | GL37: =IF(AND(GK37>100%,GK37<>""),OCL_Saisie!E36&"/","") ->  | GP37: =IF(OR(OCL_Saisie!AA36="col",OCL_Saisie!AA36="cu",OCL_Saisie!AA36="mix"),OCL_Saisie!DB36,"") ->  | GQ37: =IF(AND(OCL_Saisie!AA36<>"col",OCL_Saisie!AA36<>"cu",OCL_Saisie!AA36<>"mix",OCL_Saisie!AA36<>""),OCL_Saisie!DB36,"") ->  | GT37: =IF(AND(GR37>100%,GR37<>""),OCL_Saisie!E36&"/","") ->  | GU37: =IF(AND(GS37>100%,GS37<>""),OCL_Saisie!E36&"/","") ->  | GZ37: =IF(OR(OCL_Saisie!AA36="col",OCL_Saisie!AA36="cu",OCL_Saisie!AA36="mix"),OCL_Saisie!DC36,"") ->  | HA37: =IF(AND(OCL_Saisie!AA36<>"col",OCL_Saisie!AA36<>"cu",OCL_Saisie!AA36<>"mix",OCL_Saisie!AA36<>""),OCL_Saisie!DC36,"") ->  | HD37: =IF(AND(HB37>100%,HB37<>""),OCL_Saisie!E36&"/","") ->  | HE37: =IF(AND(HC37>100%,HC37<>""),OCL_Saisie!E36&"/","") ->  | HJ37: =IF(OR(OCL_Saisie!AA36="col",OCL_Saisie!AA36="cu"),OCL_Saisie!DA36,"") ->  | HK37: =IF(AND(OCL_Saisie!AA36<>"col",OCL_Saisie!AA36<>"cu",OCL_Saisie!AA36<>""),OCL_Saisie!DA36,"") ->  | HN37: =IF(AND(HL37>100%,HL37<>""),OCL_Saisie!E36&"/","") ->  | HO37: =IF(AND(HM37>100%,HM37<>""),OCL_Saisie!E36&"/","") -> 
BD38: 0 | BE38: =IF(OCL_Saisie!W37="IND",OCL_Saisie!CW37,"") ->  | BF38: =IF(OCL_Saisie!W37="col",OCL_Saisie!CW37,"") ->  | BG38: =IF(OCL_Saisie!W37="mix",OCL_Saisie!CW37,"") ->  | BK38: =IF(AND(BH38>100%,BH38<>""),OCL_Saisie!E37&"/","") ->  | BL38: =IF(AND(BI38>100%,BI38<>""),OCL_Saisie!E37&"/","") ->  | BM38: =IF(AND(BJ38>100%,BJ38<>""),OCL_Saisie!E37&"/","") ->  | BS38: =IF(OCL_Saisie!W37="col",OCL_Saisie!CX37,"") ->  | BT38: =IF(AND(OCL_Saisie!W37<>"col",OCL_Saisie!W37<>""),OCL_Saisie!CX37,"") ->  | BW38: =IF(AND(BU38>100%,BU38<>""),OCL_Saisie!E37&"/","") ->  | BX38: =IF(AND(BV38>100%,BV38<>""),OCL_Saisie!E37&"/","") ->  | CC38: =IF(OCL_Saisie!CY37="","",OCL_Saisie!CY37) ->  | CE38: =IF(AND(CD38>100%,CD38<>""),OCL_Saisie!E37&"/","") ->  | CI38: =IF(OR(OCL_Saisie!AA37="col",OCL_Saisie!AA37="cu",OCL_Saisie!AA37="mix"),OCL_Saisie!CZ37,"") ->  | CJ38: =IF(AND(OCL_Saisie!AA37<>"col",OCL_Saisie!AA37<>"cu",OCL_Saisie!AA37<>"mix",OCL_Saisie!AA37<>""),OCL_Saisie!CZ37,"") ->  | CM38: =IF(AND(CK38>100%,CK38<>""),OCL_Saisie!E37&"/","") ->  | CN38: =IF(AND(CL38>100%,CL38<>""),OCL_Saisie!E37&"/","") ->  | CS38: =IF(OR(OCL_Saisie!AA37="col",OCL_Saisie!AA37="cu",OCL_Saisie!AA37="mix"),OCL_Saisie!DD37,"") ->  | CT38: =IF(AND(OCL_Saisie!AA37<>"col",OCL_Saisie!AA37<>"cu",OCL_Saisie!AA37<>"mix",OCL_Saisie!AA37<>""),OCL_Saisie!DD37,"") ->  | CW38: =IF(AND(CU38>100%,CU38<>""),OCL_Saisie!E37&"/","") ->  | CX38: =IF(AND(CV38>100%,CV38<>""),OCL_Saisie!E37&"/","") ->  | DC38: =IF(OCL_Saisie!DE37="","",OCL_Saisie!DE37) ->  | DE38: =IF(AND(DD38>100%,DD38<>""),OCL_Saisie!E37&"/","") ->  | DI38: =IF(OCL_Saisie!DF37="","",OCL_Saisie!DF37) ->  | DK38: =IF(AND(DJ38>100%,DJ38<>""),OCL_Saisie!E37&"/","") ->  | DO38: =IF(OCL_Saisie!DG37="","",OCL_Saisie!DG37) ->  | DQ38: =IF(AND(DP38>100%,DP38<>""),OCL_Saisie!E37&"/","") ->  | DU38: =IF(OCL_Saisie!DH37="","",OCL_Saisie!DH37) ->  | DW38: =IF(AND(DV38>100%,DV38<>""),OCL_Saisie!E37&"/","") ->  | EA38: =IF(OCL_Saisie!DI37="","",OCL_Saisie!DI37) ->  | EC38: =IF(AND(EB38>100%,EB38<>""),OCL_Saisie!E37&"/","") ->  | EG38: =IF(OCL_Saisie!DJ37="","",OCL_Saisie!DJ37) ->  | EI38: =IF(AND(EH38>100%,EH38<>""),OCL_Saisie!E37&"/","") ->  | EM38: =IF(OCL_Saisie!DK37="","",OCL_Saisie!DK37) ->  | EO38: =IF(AND(EN38>100%,EN38<>""),OCL_Saisie!E37&"/","") ->  | ES38: =IF(OCL_Saisie!DM37="","",OCL_Saisie!DM37) ->  | EU38: =IF(AND(ET38>100%,ET38<>""),OCL_Saisie!E37&"/","") ->  | EY38: =IF(OCL_Saisie!DO37="","",OCL_Saisie!DO37) ->  | FA38: =IF(AND(EZ38>100%,EZ38<>""),OCL_Saisie!E37&"/","") ->  | FE38: =IF(OCL_Saisie!DP37="","",OCL_Saisie!DP37) ->  | FG38: =IF(AND(FF38>100%,FF38<>""),OCL_Saisie!E37&"/","") ->  | FK38: =IF(OR(OCL_Saisie!AA37="col",OCL_Saisie!AA37="cu"),OCL_Saisie!DQ37,"") ->  | FM38: =IF(AND(FL38>100%,FL38<>""),OCL_Saisie!E37&"/","") ->  | FQ38: =IF(OR(OCL_Saisie!AA37="col",OCL_Saisie!AA37="cu"),OCL_Saisie!DR37,"") ->  | FS38: =IF(AND(FR38>100%,FR38<>""),OCL_Saisie!E37&"/","") ->  | FW38: =IF(OR(OCL_Saisie!AA37="col",OCL_Saisie!AA37="cu"),OCL_Saisie!DS37,"") ->  | FY38: =IF(AND(FX38>100%,FX38<>""),OCL_Saisie!E37&"/","") ->  | GC38: =IF(OCL_Saisie!DT37="","",OCL_Saisie!DT37) ->  | GE38: =IF(AND(GD38>100%,GD38<>""),OCL_Saisie!E37&"/","") ->  | GJ38: =IF(OCL_Saisie!DN37="","",OCL_Saisie!DN37) ->  | GL38: =IF(AND(GK38>100%,GK38<>""),OCL_Saisie!E37&"/","") ->  | GP38: =IF(OR(OCL_Saisie!AA37="col",OCL_Saisie!AA37="cu",OCL_Saisie!AA37="mix"),OCL_Saisie!DB37,"") ->  | GQ38: =IF(AND(OCL_Saisie!AA37<>"col",OCL_Saisie!AA37<>"cu",OCL_Saisie!AA37<>"mix",OCL_Saisie!AA37<>""),OCL_Saisie!DB37,"") ->  | GT38: =IF(AND(GR38>100%,GR38<>""),OCL_Saisie!E37&"/","") ->  | GU38: =IF(AND(GS38>100%,GS38<>""),OCL_Saisie!E37&"/","") ->  | GZ38: =IF(OR(OCL_Saisie!AA37="col",OCL_Saisie!AA37="cu",OCL_Saisie!AA37="mix"),OCL_Saisie!DC37,"") ->  | HA38: =IF(AND(OCL_Saisie!AA37<>"col",OCL_Saisie!AA37<>"cu",OCL_Saisie!AA37<>"mix",OCL_Saisie!AA37<>""),OCL_Saisie!DC37,"") ->  | HD38: =IF(AND(HB38>100%,HB38<>""),OCL_Saisie!E37&"/","") ->  | HE38: =IF(AND(HC38>100%,HC38<>""),OCL_Saisie!E37&"/","") ->  | HJ38: =IF(OR(OCL_Saisie!AA37="col",OCL_Saisie!AA37="cu"),OCL_Saisie!DA37,"") ->  | HK38: =IF(AND(OCL_Saisie!AA37<>"col",OCL_Saisie!AA37<>"cu",OCL_Saisie!AA37<>""),OCL_Saisie!DA37,"") ->  | HN38: =IF(AND(HL38>100%,HL38<>""),OCL_Saisie!E37&"/","") ->  | HO38: =IF(AND(HM38>100%,HM38<>""),OCL_Saisie!E37&"/","") -> 
BD39: 0 | BE39: =IF(OCL_Saisie!W38="IND",OCL_Saisie!CW38,"") ->  | BF39: =IF(OCL_Saisie!W38="col",OCL_Saisie!CW38,"") ->  | BG39: =IF(OCL_Saisie!W38="mix",OCL_Saisie!CW38,"") ->  | BK39: =IF(AND(BH39>100%,BH39<>""),OCL_Saisie!E38&"/","") ->  | BL39: =IF(AND(BI39>100%,BI39<>""),OCL_Saisie!E38&"/","") ->  | BM39: =IF(AND(BJ39>100%,BJ39<>""),OCL_Saisie!E38&"/","") ->  | BS39: =IF(OCL_Saisie!W38="col",OCL_Saisie!CX38,"") ->  | BT39: =IF(AND(OCL_Saisie!W38<>"col",OCL_Saisie!W38<>""),OCL_Saisie!CX38,"") ->  | BW39: =IF(AND(BU39>100%,BU39<>""),OCL_Saisie!E38&"/","") ->  | BX39: =IF(AND(BV39>100%,BV39<>""),OCL_Saisie!E38&"/","") ->  | CC39: =IF(OCL_Saisie!CY38="","",OCL_Saisie!CY38) ->  | CE39: =IF(AND(CD39>100%,CD39<>""),OCL_Saisie!E38&"/","") ->  | CI39: =IF(OR(OCL_Saisie!AA38="col",OCL_Saisie!AA38="cu",OCL_Saisie!AA38="mix"),OCL_Saisie!CZ38,"") ->  | CJ39: =IF(AND(OCL_Saisie!AA38<>"col",OCL_Saisie!AA38<>"cu",OCL_Saisie!AA38<>"mix",OCL_Saisie!AA38<>""),OCL_Saisie!CZ38,"") ->  | CM39: =IF(AND(CK39>100%,CK39<>""),OCL_Saisie!E38&"/","") ->  | CN39: =IF(AND(CL39>100%,CL39<>""),OCL_Saisie!E38&"/","") ->  | CS39: =IF(OR(OCL_Saisie!AA38="col",OCL_Saisie!AA38="cu",OCL_Saisie!AA38="mix"),OCL_Saisie!DD38,"") ->  | CT39: =IF(AND(OCL_Saisie!AA38<>"col",OCL_Saisie!AA38<>"cu",OCL_Saisie!AA38<>"mix",OCL_Saisie!AA38<>""),OCL_Saisie!DD38,"") ->  | CW39: =IF(AND(CU39>100%,CU39<>""),OCL_Saisie!E38&"/","") ->  | CX39: =IF(AND(CV39>100%,CV39<>""),OCL_Saisie!E38&"/","") ->  | DC39: =IF(OCL_Saisie!DE38="","",OCL_Saisie!DE38) ->  | DE39: =IF(AND(DD39>100%,DD39<>""),OCL_Saisie!E38&"/","") ->  | DI39: =IF(OCL_Saisie!DF38="","",OCL_Saisie!DF38) ->  | DK39: =IF(AND(DJ39>100%,DJ39<>""),OCL_Saisie!E38&"/","") ->  | DO39: =IF(OCL_Saisie!DG38="","",OCL_Saisie!DG38) ->  | DQ39: =IF(AND(DP39>100%,DP39<>""),OCL_Saisie!E38&"/","") ->  | DU39: =IF(OCL_Saisie!DH38="","",OCL_Saisie!DH38) ->  | DW39: =IF(AND(DV39>100%,DV39<>""),OCL_Saisie!E38&"/","") ->  | EA39: =IF(OCL_Saisie!DI38="","",OCL_Saisie!DI38) ->  | EC39: =IF(AND(EB39>100%,EB39<>""),OCL_Saisie!E38&"/","") ->  | EG39: =IF(OCL_Saisie!DJ38="","",OCL_Saisie!DJ38) ->  | EI39: =IF(AND(EH39>100%,EH39<>""),OCL_Saisie!E38&"/","") ->  | EM39: =IF(OCL_Saisie!DK38="","",OCL_Saisie!DK38) ->  | EO39: =IF(AND(EN39>100%,EN39<>""),OCL_Saisie!E38&"/","") ->  | ES39: =IF(OCL_Saisie!DM38="","",OCL_Saisie!DM38) ->  | EU39: =IF(AND(ET39>100%,ET39<>""),OCL_Saisie!E38&"/","") ->  | EY39: =IF(OCL_Saisie!DO38="","",OCL_Saisie!DO38) ->  | FA39: =IF(AND(EZ39>100%,EZ39<>""),OCL_Saisie!E38&"/","") ->  | FE39: =IF(OCL_Saisie!DP38="","",OCL_Saisie!DP38) ->  | FG39: =IF(AND(FF39>100%,FF39<>""),OCL_Saisie!E38&"/","") ->  | FK39: =IF(OR(OCL_Saisie!AA38="col",OCL_Saisie!AA38="cu"),OCL_Saisie!DQ38,"") ->  | FM39: =IF(AND(FL39>100%,FL39<>""),OCL_Saisie!E38&"/","") ->  | FQ39: =IF(OR(OCL_Saisie!AA38="col",OCL_Saisie!AA38="cu"),OCL_Saisie!DR38,"") ->  | FS39: =IF(AND(FR39>100%,FR39<>""),OCL_Saisie!E38&"/","") ->  | FW39: =IF(OR(OCL_Saisie!AA38="col",OCL_Saisie!AA38="cu"),OCL_Saisie!DS38,"") ->  | FY39: =IF(AND(FX39>100%,FX39<>""),OCL_Saisie!E38&"/","") ->  | GC39: =IF(OCL_Saisie!DT38="","",OCL_Saisie!DT38) ->  | GE39: =IF(AND(GD39>100%,GD39<>""),OCL_Saisie!E38&"/","") ->  | GJ39: =IF(OCL_Saisie!DN38="","",OCL_Saisie!DN38) ->  | GL39: =IF(AND(GK39>100%,GK39<>""),OCL_Saisie!E38&"/","") ->  | GP39: =IF(OR(OCL_Saisie!AA38="col",OCL_Saisie!AA38="cu",OCL_Saisie!AA38="mix"),OCL_Saisie!DB38,"") ->  | GQ39: =IF(AND(OCL_Saisie!AA38<>"col",OCL_Saisie!AA38<>"cu",OCL_Saisie!AA38<>"mix",OCL_Saisie!AA38<>""),OCL_Saisie!DB38,"") ->  | GT39: =IF(AND(GR39>100%,GR39<>""),OCL_Saisie!E38&"/","") ->  | GU39: =IF(AND(GS39>100%,GS39<>""),OCL_Saisie!E38&"/","") ->  | GZ39: =IF(OR(OCL_Saisie!AA38="col",OCL_Saisie!AA38="cu",OCL_Saisie!AA38="mix"),OCL_Saisie!DC38,"") ->  | HA39: =IF(AND(OCL_Saisie!AA38<>"col",OCL_Saisie!AA38<>"cu",OCL_Saisie!AA38<>"mix",OCL_Saisie!AA38<>""),OCL_Saisie!DC38,"") ->  | HD39: =IF(AND(HB39>100%,HB39<>""),OCL_Saisie!E38&"/","") ->  | HE39: =IF(AND(HC39>100%,HC39<>""),OCL_Saisie!E38&"/","") ->  | HJ39: =IF(OR(OCL_Saisie!AA38="col",OCL_Saisie!AA38="cu"),OCL_Saisie!DA38,"") ->  | HK39: =IF(AND(OCL_Saisie!AA38<>"col",OCL_Saisie!AA38<>"cu",OCL_Saisie!AA38<>""),OCL_Saisie!DA38,"") ->  | HN39: =IF(AND(HL39>100%,HL39<>""),OCL_Saisie!E38&"/","") ->  | HO39: =IF(AND(HM39>100%,HM39<>""),OCL_Saisie!E38&"/","") -> 
BD40: 0 | BE40: =IF(OCL_Saisie!W39="IND",OCL_Saisie!CW39,"") ->  | BF40: =IF(OCL_Saisie!W39="col",OCL_Saisie!CW39,"") ->  | BG40: =IF(OCL_Saisie!W39="mix",OCL_Saisie!CW39,"") ->  | BK40: =IF(AND(BH40>100%,BH40<>""),OCL_Saisie!E39&"/","") ->  | BL40: =IF(AND(BI40>100%,BI40<>""),OCL_Saisie!E39&"/","") ->  | BM40: =IF(AND(BJ40>100%,BJ40<>""),OCL_Saisie!E39&"/","") ->  | BS40: =IF(OCL_Saisie!W39="col",OCL_Saisie!CX39,"") ->  | BT40: =IF(AND(OCL_Saisie!W39<>"col",OCL_Saisie!W39<>""),OCL_Saisie!CX39,"") ->  | BW40: =IF(AND(BU40>100%,BU40<>""),OCL_Saisie!E39&"/","") ->  | BX40: =IF(AND(BV40>100%,BV40<>""),OCL_Saisie!E39&"/","") ->  | CC40: =IF(OCL_Saisie!CY39="","",OCL_Saisie!CY39) ->  | CE40: =IF(AND(CD40>100%,CD40<>""),OCL_Saisie!E39&"/","") ->  | CI40: =IF(OR(OCL_Saisie!AA39="col",OCL_Saisie!AA39="cu",OCL_Saisie!AA39="mix"),OCL_Saisie!CZ39,"") ->  | CJ40: =IF(AND(OCL_Saisie!AA39<>"col",OCL_Saisie!AA39<>"cu",OCL_Saisie!AA39<>"mix",OCL_Saisie!AA39<>""),OCL_Saisie!CZ39,"") ->  | CM40: =IF(AND(CK40>100%,CK40<>""),OCL_Saisie!E39&"/","") ->  | CN40: =IF(AND(CL40>100%,CL40<>""),OCL_Saisie!E39&"/","") ->  | CS40: =IF(OR(OCL_Saisie!AA39="col",OCL_Saisie!AA39="cu",OCL_Saisie!AA39="mix"),OCL_Saisie!DD39,"") ->  | CT40: =IF(AND(OCL_Saisie!AA39<>"col",OCL_Saisie!AA39<>"cu",OCL_Saisie!AA39<>"mix",OCL_Saisie!AA39<>""),OCL_Saisie!DD39,"") ->  | CW40: =IF(AND(CU40>100%,CU40<>""),OCL_Saisie!E39&"/","") ->  | CX40: =IF(AND(CV40>100%,CV40<>""),OCL_Saisie!E39&"/","") ->  | DC40: =IF(OCL_Saisie!DE39="","",OCL_Saisie!DE39) ->  | DE40: =IF(AND(DD40>100%,DD40<>""),OCL_Saisie!E39&"/","") ->  | DI40: =IF(OCL_Saisie!DF39="","",OCL_Saisie!DF39) ->  | DK40: =IF(AND(DJ40>100%,DJ40<>""),OCL_Saisie!E39&"/","") ->  | DO40: =IF(OCL_Saisie!DG39="","",OCL_Saisie!DG39) ->  | DQ40: =IF(AND(DP40>100%,DP40<>""),OCL_Saisie!E39&"/","") ->  | DU40: =IF(OCL_Saisie!DH39="","",OCL_Saisie!DH39) ->  | DW40: =IF(AND(DV40>100%,DV40<>""),OCL_Saisie!E39&"/","") ->  | EA40: =IF(OCL_Saisie!DI39="","",OCL_Saisie!DI39) ->  | EC40: =IF(AND(EB40>100%,EB40<>""),OCL_Saisie!E39&"/","") ->  | EG40: =IF(OCL_Saisie!DJ39="","",OCL_Saisie!DJ39) ->  | EI40: =IF(AND(EH40>100%,EH40<>""),OCL_Saisie!E39&"/","") ->  | EM40: =IF(OCL_Saisie!DK39="","",OCL_Saisie!DK39) ->  | EO40: =IF(AND(EN40>100%,EN40<>""),OCL_Saisie!E39&"/","") ->  | ES40: =IF(OCL_Saisie!DM39="","",OCL_Saisie!DM39) ->  | EU40: =IF(AND(ET40>100%,ET40<>""),OCL_Saisie!E39&"/","") ->  | EY40: =IF(OCL_Saisie!DO39="","",OCL_Saisie!DO39) ->  | FA40: =IF(AND(EZ40>100%,EZ40<>""),OCL_Saisie!E39&"/","") ->  | FE40: =IF(OCL_Saisie!DP39="","",OCL_Saisie!DP39) ->  | FG40: =IF(AND(FF40>100%,FF40<>""),OCL_Saisie!E39&"/","") ->  | FK40: =IF(OR(OCL_Saisie!AA39="col",OCL_Saisie!AA39="cu"),OCL_Saisie!DQ39,"") ->  | FM40: =IF(AND(FL40>100%,FL40<>""),OCL_Saisie!E39&"/","") ->  | FQ40: =IF(OR(OCL_Saisie!AA39="col",OCL_Saisie!AA39="cu"),OCL_Saisie!DR39,"") ->  | FS40: =IF(AND(FR40>100%,FR40<>""),OCL_Saisie!E39&"/","") ->  | FW40: =IF(OR(OCL_Saisie!AA39="col",OCL_Saisie!AA39="cu"),OCL_Saisie!DS39,"") ->  | FY40: =IF(AND(FX40>100%,FX40<>""),OCL_Saisie!E39&"/","") ->  | GC40: =IF(OCL_Saisie!DT39="","",OCL_Saisie!DT39) ->  | GE40: =IF(AND(GD40>100%,GD40<>""),OCL_Saisie!E39&"/","") ->  | GJ40: =IF(OCL_Saisie!DN39="","",OCL_Saisie!DN39) ->  | GL40: =IF(AND(GK40>100%,GK40<>""),OCL_Saisie!E39&"/","") ->  | GP40: =IF(OR(OCL_Saisie!AA39="col",OCL_Saisie!AA39="cu",OCL_Saisie!AA39="mix"),OCL_Saisie!DB39,"") ->  | GQ40: =IF(AND(OCL_Saisie!AA39<>"col",OCL_Saisie!AA39<>"cu",OCL_Saisie!AA39<>"mix",OCL_Saisie!AA39<>""),OCL_Saisie!DB39,"") ->  | GT40: =IF(AND(GR40>100%,GR40<>""),OCL_Saisie!E39&"/","") ->  | GU40: =IF(AND(GS40>100%,GS40<>""),OCL_Saisie!E39&"/","") ->  | GZ40: =IF(OR(OCL_Saisie!AA39="col",OCL_Saisie!AA39="cu",OCL_Saisie!AA39="mix"),OCL_Saisie!DC39,"") ->  | HA40: =IF(AND(OCL_Saisie!AA39<>"col",OCL_Saisie!AA39<>"cu",OCL_Saisie!AA39<>"mix",OCL_Saisie!AA39<>""),OCL_Saisie!DC39,"") ->  | HD40: =IF(AND(HB40>100%,HB40<>""),OCL_Saisie!E39&"/","") ->  | HE40: =IF(AND(HC40>100%,HC40<>""),OCL_Saisie!E39&"/","") ->  | HJ40: =IF(OR(OCL_Saisie!AA39="col",OCL_Saisie!AA39="cu"),OCL_Saisie!DA39,"") ->  | HK40: =IF(AND(OCL_Saisie!AA39<>"col",OCL_Saisie!AA39<>"cu",OCL_Saisie!AA39<>""),OCL_Saisie!DA39,"") ->  | HN40: =IF(AND(HL40>100%,HL40<>""),OCL_Saisie!E39&"/","") ->  | HO40: =IF(AND(HM40>100%,HM40<>""),OCL_Saisie!E39&"/","") -> 
B41: MD_TT_ASC : Montant des dépenses d'entretien des ascenseurs | C41: =DC2 -> 0.1 | D41: =DC1 -> 2.25 | E41: - | F41: =DC6 -> - | G41: =DC7 -> - | H41: =COUNTIF(DC18:DC2040,">-100") -> 0 | I41: =DC3+DC4 -> 0 | J41: =COUNTIF(DD18:DD2039,"<"&$J$1) -> 0 | K41: =I41-L41-J41 -> 0 | L41: =COUNTIF(DD18:DD2039,">1") -> 0 | M41: =IF(DF16="","-",DF16) -> - | N41: =DC5 -> 0 | S41: =D41-C41 -> 2.15 | BD41: 0 | BE41: =IF(OCL_Saisie!W40="IND",OCL_Saisie!CW40,"") ->  | BF41: =IF(OCL_Saisie!W40="col",OCL_Saisie!CW40,"") ->  | BG41: =IF(OCL_Saisie!W40="mix",OCL_Saisie!CW40,"") ->  | BK41: =IF(AND(BH41>100%,BH41<>""),OCL_Saisie!E40&"/","") ->  | BL41: =IF(AND(BI41>100%,BI41<>""),OCL_Saisie!E40&"/","") ->  | BM41: =IF(AND(BJ41>100%,BJ41<>""),OCL_Saisie!E40&"/","") ->  | BS41: =IF(OCL_Saisie!W40="col",OCL_Saisie!CX40,"") ->  | BT41: =IF(AND(OCL_Saisie!W40<>"col",OCL_Saisie!W40<>""),OCL_Saisie!CX40,"") ->  | BW41: =IF(AND(BU41>100%,BU41<>""),OCL_Saisie!E40&"/","") ->  | BX41: =IF(AND(BV41>100%,BV41<>""),OCL_Saisie!E40&"/","") ->  | CC41: =IF(OCL_Saisie!CY40="","",OCL_Saisie!CY40) ->  | CE41: =IF(AND(CD41>100%,CD41<>""),OCL_Saisie!E40&"/","") ->  | CI41: =IF(OR(OCL_Saisie!AA40="col",OCL_Saisie!AA40="cu",OCL_Saisie!AA40="mix"),OCL_Saisie!CZ40,"") ->  | CJ41: =IF(AND(OCL_Saisie!AA40<>"col",OCL_Saisie!AA40<>"cu",OCL_Saisie!AA40<>"mix",OCL_Saisie!AA40<>""),OCL_Saisie!CZ40,"") ->  | CM41: =IF(AND(CK41>100%,CK41<>""),OCL_Saisie!E40&"/","") ->  | CN41: =IF(AND(CL41>100%,CL41<>""),OCL_Saisie!E40&"/","") ->  | CS41: =IF(OR(OCL_Saisie!AA40="col",OCL_Saisie!AA40="cu",OCL_Saisie!AA40="mix"),OCL_Saisie!DD40,"") ->  | CT41: =IF(AND(OCL_Saisie!AA40<>"col",OCL_Saisie!AA40<>"cu",OCL_Saisie!AA40<>"mix",OCL_Saisie!AA40<>""),OCL_Saisie!DD40,"") ->  | CW41: =IF(AND(CU41>100%,CU41<>""),OCL_Saisie!E40&"/","") ->  | CX41: =IF(AND(CV41>100%,CV41<>""),OCL_Saisie!E40&"/","") ->  | DC41: =IF(OCL_Saisie!DE40="","",OCL_Saisie!DE40) ->  | DE41: =IF(AND(DD41>100%,DD41<>""),OCL_Saisie!E40&"/","") ->  | DI41: =IF(OCL_Saisie!DF40="","",OCL_Saisie!DF40) ->  | DK41: =IF(AND(DJ41>100%,DJ41<>""),OCL_Saisie!E40&"/","") ->  | DO41: =IF(OCL_Saisie!DG40="","",OCL_Saisie!DG40) ->  | DQ41: =IF(AND(DP41>100%,DP41<>""),OCL_Saisie!E40&"/","") ->  | DU41: =IF(OCL_Saisie!DH40="","",OCL_Saisie!DH40) ->  | DW41: =IF(AND(DV41>100%,DV41<>""),OCL_Saisie!E40&"/","") ->  | EA41: =IF(OCL_Saisie!DI40="","",OCL_Saisie!DI40) ->  | EC41: =IF(AND(EB41>100%,EB41<>""),OCL_Saisie!E40&"/","") ->  | EG41: =IF(OCL_Saisie!DJ40="","",OCL_Saisie!DJ40) ->  | EI41: =IF(AND(EH41>100%,EH41<>""),OCL_Saisie!E40&"/","") ->  | EM41: =IF(OCL_Saisie!DK40="","",OCL_Saisie!DK40) ->  | EO41: =IF(AND(EN41>100%,EN41<>""),OCL_Saisie!E40&"/","") ->  | ES41: =IF(OCL_Saisie!DM40="","",OCL_Saisie!DM40) ->  | EU41: =IF(AND(ET41>100%,ET41<>""),OCL_Saisie!E40&"/","") ->  | EY41: =IF(OCL_Saisie!DO40="","",OCL_Saisie!DO40) ->  | FA41: =IF(AND(EZ41>100%,EZ41<>""),OCL_Saisie!E40&"/","") ->  | FE41: =IF(OCL_Saisie!DP40="","",OCL_Saisie!DP40) ->  | FG41: =IF(AND(FF41>100%,FF41<>""),OCL_Saisie!E40&"/","") ->  | FK41: =IF(OR(OCL_Saisie!AA40="col",OCL_Saisie!AA40="cu"),OCL_Saisie!DQ40,"") ->  | FM41: =IF(AND(FL41>100%,FL41<>""),OCL_Saisie!E40&"/","") ->  | FQ41: =IF(OR(OCL_Saisie!AA40="col",OCL_Saisie!AA40="cu"),OCL_Saisie!DR40,"") ->  | FS41: =IF(AND(FR41>100%,FR41<>""),OCL_Saisie!E40&"/","") ->  | FW41: =IF(OR(OCL_Saisie!AA40="col",OCL_Saisie!AA40="cu"),OCL_Saisie!DS40,"") ->  | FY41: =IF(AND(FX41>100%,FX41<>""),OCL_Saisie!E40&"/","") ->  | GC41: =IF(OCL_Saisie!DT40="","",OCL_Saisie!DT40) ->  | GE41: =IF(AND(GD41>100%,GD41<>""),OCL_Saisie!E40&"/","") ->  | GJ41: =IF(OCL_Saisie!DN40="","",OCL_Saisie!DN40) ->  | GL41: =IF(AND(GK41>100%,GK41<>""),OCL_Saisie!E40&"/","") ->  | GP41: =IF(OR(OCL_Saisie!AA40="col",OCL_Saisie!AA40="cu",OCL_Saisie!AA40="mix"),OCL_Saisie!DB40,"") ->  | GQ41: =IF(AND(OCL_Saisie!AA40<>"col",OCL_Saisie!AA40<>"cu",OCL_Saisie!AA40<>"mix",OCL_Saisie!AA40<>""),OCL_Saisie!DB40,"") ->  | GT41: =IF(AND(GR41>100%,GR41<>""),OCL_Saisie!E40&"/","") ->  | GU41: =IF(AND(GS41>100%,GS41<>""),OCL_Saisie!E40&"/","") ->  | GZ41: =IF(OR(OCL_Saisie!AA40="col",OCL_Saisie!AA40="cu",OCL_Saisie!AA40="mix"),OCL_Saisie!DC40,"") ->  | HA41: =IF(AND(OCL_Saisie!AA40<>"col",OCL_Saisie!AA40<>"cu",OCL_Saisie!AA40<>"mix",OCL_Saisie!AA40<>""),OCL_Saisie!DC40,"") ->  | HD41: =IF(AND(HB41>100%,HB41<>""),OCL_Saisie!E40&"/","") ->  | HE41: =IF(AND(HC41>100%,HC41<>""),OCL_Saisie!E40&"/","") ->  | HJ41: =IF(OR(OCL_Saisie!AA40="col",OCL_Saisie!AA40="cu"),OCL_Saisie!DA40,"") ->  | HK41: =IF(AND(OCL_Saisie!AA40<>"col",OCL_Saisie!AA40<>"cu",OCL_Saisie!AA40<>""),OCL_Saisie!DA40,"") ->  | HN41: =IF(AND(HL41>100%,HL41<>""),OCL_Saisie!E40&"/","") ->  | HO41: =IF(AND(HM41>100%,HM41<>""),OCL_Saisie!E40&"/","") -> 
BD42: 0 | BE42: =IF(OCL_Saisie!W41="IND",OCL_Saisie!CW41,"") ->  | BF42: =IF(OCL_Saisie!W41="col",OCL_Saisie!CW41,"") ->  | BG42: =IF(OCL_Saisie!W41="mix",OCL_Saisie!CW41,"") ->  | BK42: =IF(AND(BH42>100%,BH42<>""),OCL_Saisie!E41&"/","") ->  | BL42: =IF(AND(BI42>100%,BI42<>""),OCL_Saisie!E41&"/","") ->  | BM42: =IF(AND(BJ42>100%,BJ42<>""),OCL_Saisie!E41&"/","") ->  | BS42: =IF(OCL_Saisie!W41="col",OCL_Saisie!CX41,"") ->  | BT42: =IF(AND(OCL_Saisie!W41<>"col",OCL_Saisie!W41<>""),OCL_Saisie!CX41,"") ->  | BW42: =IF(AND(BU42>100%,BU42<>""),OCL_Saisie!E41&"/","") ->  | BX42: =IF(AND(BV42>100%,BV42<>""),OCL_Saisie!E41&"/","") ->  | CC42: =IF(OCL_Saisie!CY41="","",OCL_Saisie!CY41) ->  | CE42: =IF(AND(CD42>100%,CD42<>""),OCL_Saisie!E41&"/","") ->  | CI42: =IF(OR(OCL_Saisie!AA41="col",OCL_Saisie!AA41="cu",OCL_Saisie!AA41="mix"),OCL_Saisie!CZ41,"") ->  | CJ42: =IF(AND(OCL_Saisie!AA41<>"col",OCL_Saisie!AA41<>"cu",OCL_Saisie!AA41<>"mix",OCL_Saisie!AA41<>""),OCL_Saisie!CZ41,"") ->  | CM42: =IF(AND(CK42>100%,CK42<>""),OCL_Saisie!E41&"/","") ->  | CN42: =IF(AND(CL42>100%,CL42<>""),OCL_Saisie!E41&"/","") ->  | CS42: =IF(OR(OCL_Saisie!AA41="col",OCL_Saisie!AA41="cu",OCL_Saisie!AA41="mix"),OCL_Saisie!DD41,"") ->  | CT42: =IF(AND(OCL_Saisie!AA41<>"col",OCL_Saisie!AA41<>"cu",OCL_Saisie!AA41<>"mix",OCL_Saisie!AA41<>""),OCL_Saisie!DD41,"") ->  | CW42: =IF(AND(CU42>100%,CU42<>""),OCL_Saisie!E41&"/","") ->  | CX42: =IF(AND(CV42>100%,CV42<>""),OCL_Saisie!E41&"/","") ->  | DC42: =IF(OCL_Saisie!DE41="","",OCL_Saisie!DE41) ->  | DE42: =IF(AND(DD42>100%,DD42<>""),OCL_Saisie!E41&"/","") ->  | DI42: =IF(OCL_Saisie!DF41="","",OCL_Saisie!DF41) ->  | DK42: =IF(AND(DJ42>100%,DJ42<>""),OCL_Saisie!E41&"/","") ->  | DO42: =IF(OCL_Saisie!DG41="","",OCL_Saisie!DG41) ->  | DQ42: =IF(AND(DP42>100%,DP42<>""),OCL_Saisie!E41&"/","") ->  | DU42: =IF(OCL_Saisie!DH41="","",OCL_Saisie!DH41) ->  | DW42: =IF(AND(DV42>100%,DV42<>""),OCL_Saisie!E41&"/","") ->  | EA42: =IF(OCL_Saisie!DI41="","",OCL_Saisie!DI41) ->  | EC42: =IF(AND(EB42>100%,EB42<>""),OCL_Saisie!E41&"/","") ->  | EG42: =IF(OCL_Saisie!DJ41="","",OCL_Saisie!DJ41) ->  | EI42: =IF(AND(EH42>100%,EH42<>""),OCL_Saisie!E41&"/","") ->  | EM42: =IF(OCL_Saisie!DK41="","",OCL_Saisie!DK41) ->  | EO42: =IF(AND(EN42>100%,EN42<>""),OCL_Saisie!E41&"/","") ->  | ES42: =IF(OCL_Saisie!DM41="","",OCL_Saisie!DM41) ->  | EU42: =IF(AND(ET42>100%,ET42<>""),OCL_Saisie!E41&"/","") ->  | EY42: =IF(OCL_Saisie!DO41="","",OCL_Saisie!DO41) ->  | FA42: =IF(AND(EZ42>100%,EZ42<>""),OCL_Saisie!E41&"/","") ->  | FE42: =IF(OCL_Saisie!DP41="","",OCL_Saisie!DP41) ->  | FG42: =IF(AND(FF42>100%,FF42<>""),OCL_Saisie!E41&"/","") ->  | FK42: =IF(OR(OCL_Saisie!AA41="col",OCL_Saisie!AA41="cu"),OCL_Saisie!DQ41,"") ->  | FM42: =IF(AND(FL42>100%,FL42<>""),OCL_Saisie!E41&"/","") ->  | FQ42: =IF(OR(OCL_Saisie!AA41="col",OCL_Saisie!AA41="cu"),OCL_Saisie!DR41,"") ->  | FS42: =IF(AND(FR42>100%,FR42<>""),OCL_Saisie!E41&"/","") ->  | FW42: =IF(OR(OCL_Saisie!AA41="col",OCL_Saisie!AA41="cu"),OCL_Saisie!DS41,"") ->  | FY42: =IF(AND(FX42>100%,FX42<>""),OCL_Saisie!E41&"/","") ->  | GC42: =IF(OCL_Saisie!DT41="","",OCL_Saisie!DT41) ->  | GE42: =IF(AND(GD42>100%,GD42<>""),OCL_Saisie!E41&"/","") ->  | GJ42: =IF(OCL_Saisie!DN41="","",OCL_Saisie!DN41) ->  | GL42: =IF(AND(GK42>100%,GK42<>""),OCL_Saisie!E41&"/","") ->  | GP42: =IF(OR(OCL_Saisie!AA41="col",OCL_Saisie!AA41="cu",OCL_Saisie!AA41="mix"),OCL_Saisie!DB41,"") ->  | GQ42: =IF(AND(OCL_Saisie!AA41<>"col",OCL_Saisie!AA41<>"cu",OCL_Saisie!AA41<>"mix",OCL_Saisie!AA41<>""),OCL_Saisie!DB41,"") ->  | GT42: =IF(AND(GR42>100%,GR42<>""),OCL_Saisie!E41&"/","") ->  | GU42: =IF(AND(GS42>100%,GS42<>""),OCL_Saisie!E41&"/","") ->  | GZ42: =IF(OR(OCL_Saisie!AA41="col",OCL_Saisie!AA41="cu",OCL_Saisie!AA41="mix"),OCL_Saisie!DC41,"") ->  | HA42: =IF(AND(OCL_Saisie!AA41<>"col",OCL_Saisie!AA41<>"cu",OCL_Saisie!AA41<>"mix",OCL_Saisie!AA41<>""),OCL_Saisie!DC41,"") ->  | HD42: =IF(AND(HB42>100%,HB42<>""),OCL_Saisie!E41&"/","") ->  | HE42: =IF(AND(HC42>100%,HC42<>""),OCL_Saisie!E41&"/","") ->  | HJ42: =IF(OR(OCL_Saisie!AA41="col",OCL_Saisie!AA41="cu"),OCL_Saisie!DA41,"") ->  | HK42: =IF(AND(OCL_Saisie!AA41<>"col",OCL_Saisie!AA41<>"cu",OCL_Saisie!AA41<>""),OCL_Saisie!DA41,"") ->  | HN42: =IF(AND(HL42>100%,HL42<>""),OCL_Saisie!E41&"/","") ->  | HO42: =IF(AND(HM42>100%,HM42<>""),OCL_Saisie!E41&"/","") -> 
A43: Dépenses du poste ENTRETIEN IMMO. | B43: MD_EV_AIM Montant des dépenses d'entretien des espaces verts et aire de jeux | C43: =DU2 -> 0 | D43: =DU1 -> 3 | F43: =DU6 -> - | G43: =DU7 -> - | H43: =COUNTIF(DU18:DU2040,">-100") -> 0 | I43: =DU3+DU4 -> 0 | J43: =COUNTIF(DV18:DV2039,"<"&$J$1) -> 0 | K43: =I43-L43-J43 -> 0 | L43: =COUNTIF(DV18:DV2039,">1") -> 0 | M43: =IF(DX16="","-",DX16) -> - | N43: =DU5 -> 0 | S43: =D47-C47 -> 2 | BD43: 0 | BE43: =IF(OCL_Saisie!W42="IND",OCL_Saisie!CW42,"") ->  | BF43: =IF(OCL_Saisie!W42="col",OCL_Saisie!CW42,"") ->  | BG43: =IF(OCL_Saisie!W42="mix",OCL_Saisie!CW42,"") ->  | BK43: =IF(AND(BH43>100%,BH43<>""),OCL_Saisie!E42&"/","") ->  | BL43: =IF(AND(BI43>100%,BI43<>""),OCL_Saisie!E42&"/","") ->  | BM43: =IF(AND(BJ43>100%,BJ43<>""),OCL_Saisie!E42&"/","") ->  | BS43: =IF(OCL_Saisie!W42="col",OCL_Saisie!CX42,"") ->  | BT43: =IF(AND(OCL_Saisie!W42<>"col",OCL_Saisie!W42<>""),OCL_Saisie!CX42,"") ->  | BW43: =IF(AND(BU43>100%,BU43<>""),OCL_Saisie!E42&"/","") ->  | BX43: =IF(AND(BV43>100%,BV43<>""),OCL_Saisie!E42&"/","") ->  | CC43: =IF(OCL_Saisie!CY42="","",OCL_Saisie!CY42) ->  | CE43: =IF(AND(CD43>100%,CD43<>""),OCL_Saisie!E42&"/","") ->  | CI43: =IF(OR(OCL_Saisie!AA42="col",OCL_Saisie!AA42="cu",OCL_Saisie!AA42="mix"),OCL_Saisie!CZ42,"") ->  | CJ43: =IF(AND(OCL_Saisie!AA42<>"col",OCL_Saisie!AA42<>"cu",OCL_Saisie!AA42<>"mix",OCL_Saisie!AA42<>""),OCL_Saisie!CZ42,"") ->  | CM43: =IF(AND(CK43>100%,CK43<>""),OCL_Saisie!E42&"/","") ->  | CN43: =IF(AND(CL43>100%,CL43<>""),OCL_Saisie!E42&"/","") ->  | CS43: =IF(OR(OCL_Saisie!AA42="col",OCL_Saisie!AA42="cu",OCL_Saisie!AA42="mix"),OCL_Saisie!DD42,"") ->  | CT43: =IF(AND(OCL_Saisie!AA42<>"col",OCL_Saisie!AA42<>"cu",OCL_Saisie!AA42<>"mix",OCL_Saisie!AA42<>""),OCL_Saisie!DD42,"") ->  | CW43: =IF(AND(CU43>100%,CU43<>""),OCL_Saisie!E42&"/","") ->  | CX43: =IF(AND(CV43>100%,CV43<>""),OCL_Saisie!E42&"/","") ->  | DC43: =IF(OCL_Saisie!DE42="","",OCL_Saisie!DE42) ->  | DE43: =IF(AND(DD43>100%,DD43<>""),OCL_Saisie!E42&"/","") ->  | DI43: =IF(OCL_Saisie!DF42="","",OCL_Saisie!DF42) ->  | DK43: =IF(AND(DJ43>100%,DJ43<>""),OCL_Saisie!E42&"/","") ->  | DO43: =IF(OCL_Saisie!DG42="","",OCL_Saisie!DG42) ->  | DQ43: =IF(AND(DP43>100%,DP43<>""),OCL_Saisie!E42&"/","") ->  | DU43: =IF(OCL_Saisie!DH42="","",OCL_Saisie!DH42) ->  | DW43: =IF(AND(DV43>100%,DV43<>""),OCL_Saisie!E42&"/","") ->  | EA43: =IF(OCL_Saisie!DI42="","",OCL_Saisie!DI42) ->  | EC43: =IF(AND(EB43>100%,EB43<>""),OCL_Saisie!E42&"/","") ->  | EG43: =IF(OCL_Saisie!DJ42="","",OCL_Saisie!DJ42) ->  | EI43: =IF(AND(EH43>100%,EH43<>""),OCL_Saisie!E42&"/","") ->  | EM43: =IF(OCL_Saisie!DK42="","",OCL_Saisie!DK42) ->  | EO43: =IF(AND(EN43>100%,EN43<>""),OCL_Saisie!E42&"/","") ->  | ES43: =IF(OCL_Saisie!DM42="","",OCL_Saisie!DM42) ->  | EU43: =IF(AND(ET43>100%,ET43<>""),OCL_Saisie!E42&"/","") ->  | EY43: =IF(OCL_Saisie!DO42="","",OCL_Saisie!DO42) ->  | FA43: =IF(AND(EZ43>100%,EZ43<>""),OCL_Saisie!E42&"/","") ->  | FE43: =IF(OCL_Saisie!DP42="","",OCL_Saisie!DP42) ->  | FG43: =IF(AND(FF43>100%,FF43<>""),OCL_Saisie!E42&"/","") ->  | FK43: =IF(OR(OCL_Saisie!AA42="col",OCL_Saisie!AA42="cu"),OCL_Saisie!DQ42,"") ->  | FM43: =IF(AND(FL43>100%,FL43<>""),OCL_Saisie!E42&"/","") ->  | FQ43: =IF(OR(OCL_Saisie!AA42="col",OCL_Saisie!AA42="cu"),OCL_Saisie!DR42,"") ->  | FS43: =IF(AND(FR43>100%,FR43<>""),OCL_Saisie!E42&"/","") ->  | FW43: =IF(OR(OCL_Saisie!AA42="col",OCL_Saisie!AA42="cu"),OCL_Saisie!DS42,"") ->  | FY43: =IF(AND(FX43>100%,FX43<>""),OCL_Saisie!E42&"/","") ->  | GC43: =IF(OCL_Saisie!DT42="","",OCL_Saisie!DT42) ->  | GE43: =IF(AND(GD43>100%,GD43<>""),OCL_Saisie!E42&"/","") ->  | GJ43: =IF(OCL_Saisie!DN42="","",OCL_Saisie!DN42) ->  | GL43: =IF(AND(GK43>100%,GK43<>""),OCL_Saisie!E42&"/","") ->  | GP43: =IF(OR(OCL_Saisie!AA42="col",OCL_Saisie!AA42="cu",OCL_Saisie!AA42="mix"),OCL_Saisie!DB42,"") ->  | GQ43: =IF(AND(OCL_Saisie!AA42<>"col",OCL_Saisie!AA42<>"cu",OCL_Saisie!AA42<>"mix",OCL_Saisie!AA42<>""),OCL_Saisie!DB42,"") ->  | GT43: =IF(AND(GR43>100%,GR43<>""),OCL_Saisie!E42&"/","") ->  | GU43: =IF(AND(GS43>100%,GS43<>""),OCL_Saisie!E42&"/","") ->  | GZ43: =IF(OR(OCL_Saisie!AA42="col",OCL_Saisie!AA42="cu",OCL_Saisie!AA42="mix"),OCL_Saisie!DC42,"") ->  | HA43: =IF(AND(OCL_Saisie!AA42<>"col",OCL_Saisie!AA42<>"cu",OCL_Saisie!AA42<>"mix",OCL_Saisie!AA42<>""),OCL_Saisie!DC42,"") ->  | HD43: =IF(AND(HB43>100%,HB43<>""),OCL_Saisie!E42&"/","") ->  | HE43: =IF(AND(HC43>100%,HC43<>""),OCL_Saisie!E42&"/","") ->  | HJ43: =IF(OR(OCL_Saisie!AA42="col",OCL_Saisie!AA42="cu"),OCL_Saisie!DA42,"") ->  | HK43: =IF(AND(OCL_Saisie!AA42<>"col",OCL_Saisie!AA42<>"cu",OCL_Saisie!AA42<>""),OCL_Saisie!DA42,"") ->  | HN43: =IF(AND(HL43>100%,HL43<>""),OCL_Saisie!E42&"/","") ->  | HO43: =IF(AND(HM43>100%,HM43<>""),OCL_Saisie!E42&"/","") -> 
BD44: 0 | BE44: =IF(OCL_Saisie!W43="IND",OCL_Saisie!CW43,"") ->  | BF44: =IF(OCL_Saisie!W43="col",OCL_Saisie!CW43,"") ->  | BG44: =IF(OCL_Saisie!W43="mix",OCL_Saisie!CW43,"") ->  | BK44: =IF(AND(BH44>100%,BH44<>""),OCL_Saisie!E43&"/","") ->  | BL44: =IF(AND(BI44>100%,BI44<>""),OCL_Saisie!E43&"/","") ->  | BM44: =IF(AND(BJ44>100%,BJ44<>""),OCL_Saisie!E43&"/","") ->  | BS44: =IF(OCL_Saisie!W43="col",OCL_Saisie!CX43,"") ->  | BT44: =IF(AND(OCL_Saisie!W43<>"col",OCL_Saisie!W43<>""),OCL_Saisie!CX43,"") ->  | BW44: =IF(AND(BU44>100%,BU44<>""),OCL_Saisie!E43&"/","") ->  | BX44: =IF(AND(BV44>100%,BV44<>""),OCL_Saisie!E43&"/","") ->  | CC44: =IF(OCL_Saisie!CY43="","",OCL_Saisie!CY43) ->  | CE44: =IF(AND(CD44>100%,CD44<>""),OCL_Saisie!E43&"/","") ->  | CI44: =IF(OR(OCL_Saisie!AA43="col",OCL_Saisie!AA43="cu",OCL_Saisie!AA43="mix"),OCL_Saisie!CZ43,"") ->  | CJ44: =IF(AND(OCL_Saisie!AA43<>"col",OCL_Saisie!AA43<>"cu",OCL_Saisie!AA43<>"mix",OCL_Saisie!AA43<>""),OCL_Saisie!CZ43,"") ->  | CM44: =IF(AND(CK44>100%,CK44<>""),OCL_Saisie!E43&"/","") ->  | CN44: =IF(AND(CL44>100%,CL44<>""),OCL_Saisie!E43&"/","") ->  | CS44: =IF(OR(OCL_Saisie!AA43="col",OCL_Saisie!AA43="cu",OCL_Saisie!AA43="mix"),OCL_Saisie!DD43,"") ->  | CT44: =IF(AND(OCL_Saisie!AA43<>"col",OCL_Saisie!AA43<>"cu",OCL_Saisie!AA43<>"mix",OCL_Saisie!AA43<>""),OCL_Saisie!DD43,"") ->  | CW44: =IF(AND(CU44>100%,CU44<>""),OCL_Saisie!E43&"/","") ->  | CX44: =IF(AND(CV44>100%,CV44<>""),OCL_Saisie!E43&"/","") ->  | DC44: =IF(OCL_Saisie!DE43="","",OCL_Saisie!DE43) ->  | DE44: =IF(AND(DD44>100%,DD44<>""),OCL_Saisie!E43&"/","") ->  | DI44: =IF(OCL_Saisie!DF43="","",OCL_Saisie!DF43) ->  | DK44: =IF(AND(DJ44>100%,DJ44<>""),OCL_Saisie!E43&"/","") ->  | DO44: =IF(OCL_Saisie!DG43="","",OCL_Saisie!DG43) ->  | DQ44: =IF(AND(DP44>100%,DP44<>""),OCL_Saisie!E43&"/","") ->  | DU44: =IF(OCL_Saisie!DH43="","",OCL_Saisie!DH43) ->  | DW44: =IF(AND(DV44>100%,DV44<>""),OCL_Saisie!E43&"/","") ->  | EA44: =IF(OCL_Saisie!DI43="","",OCL_Saisie!DI43) ->  | EC44: =IF(AND(EB44>100%,EB44<>""),OCL_Saisie!E43&"/","") ->  | EG44: =IF(OCL_Saisie!DJ43="","",OCL_Saisie!DJ43) ->  | EI44: =IF(AND(EH44>100%,EH44<>""),OCL_Saisie!E43&"/","") ->  | EM44: =IF(OCL_Saisie!DK43="","",OCL_Saisie!DK43) ->  | EO44: =IF(AND(EN44>100%,EN44<>""),OCL_Saisie!E43&"/","") ->  | ES44: =IF(OCL_Saisie!DM43="","",OCL_Saisie!DM43) ->  | EU44: =IF(AND(ET44>100%,ET44<>""),OCL_Saisie!E43&"/","") ->  | EY44: =IF(OCL_Saisie!DO43="","",OCL_Saisie!DO43) ->  | FA44: =IF(AND(EZ44>100%,EZ44<>""),OCL_Saisie!E43&"/","") ->  | FE44: =IF(OCL_Saisie!DP43="","",OCL_Saisie!DP43) ->  | FG44: =IF(AND(FF44>100%,FF44<>""),OCL_Saisie!E43&"/","") ->  | FK44: =IF(OR(OCL_Saisie!AA43="col",OCL_Saisie!AA43="cu"),OCL_Saisie!DQ43,"") ->  | FM44: =IF(AND(FL44>100%,FL44<>""),OCL_Saisie!E43&"/","") ->  | FQ44: =IF(OR(OCL_Saisie!AA43="col",OCL_Saisie!AA43="cu"),OCL_Saisie!DR43,"") ->  | FS44: =IF(AND(FR44>100%,FR44<>""),OCL_Saisie!E43&"/","") ->  | FW44: =IF(OR(OCL_Saisie!AA43="col",OCL_Saisie!AA43="cu"),OCL_Saisie!DS43,"") ->  | FY44: =IF(AND(FX44>100%,FX44<>""),OCL_Saisie!E43&"/","") ->  | GC44: =IF(OCL_Saisie!DT43="","",OCL_Saisie!DT43) ->  | GE44: =IF(AND(GD44>100%,GD44<>""),OCL_Saisie!E43&"/","") ->  | GJ44: =IF(OCL_Saisie!DN43="","",OCL_Saisie!DN43) ->  | GL44: =IF(AND(GK44>100%,GK44<>""),OCL_Saisie!E43&"/","") ->  | GP44: =IF(OR(OCL_Saisie!AA43="col",OCL_Saisie!AA43="cu",OCL_Saisie!AA43="mix"),OCL_Saisie!DB43,"") ->  | GQ44: =IF(AND(OCL_Saisie!AA43<>"col",OCL_Saisie!AA43<>"cu",OCL_Saisie!AA43<>"mix",OCL_Saisie!AA43<>""),OCL_Saisie!DB43,"") ->  | GT44: =IF(AND(GR44>100%,GR44<>""),OCL_Saisie!E43&"/","") ->  | GU44: =IF(AND(GS44>100%,GS44<>""),OCL_Saisie!E43&"/","") ->  | GZ44: =IF(OR(OCL_Saisie!AA43="col",OCL_Saisie!AA43="cu",OCL_Saisie!AA43="mix"),OCL_Saisie!DC43,"") ->  | HA44: =IF(AND(OCL_Saisie!AA43<>"col",OCL_Saisie!AA43<>"cu",OCL_Saisie!AA43<>"mix",OCL_Saisie!AA43<>""),OCL_Saisie!DC43,"") ->  | HD44: =IF(AND(HB44>100%,HB44<>""),OCL_Saisie!E43&"/","") ->  | HE44: =IF(AND(HC44>100%,HC44<>""),OCL_Saisie!E43&"/","") ->  | HJ44: =IF(OR(OCL_Saisie!AA43="col",OCL_Saisie!AA43="cu"),OCL_Saisie!DA43,"") ->  | HK44: =IF(AND(OCL_Saisie!AA43<>"col",OCL_Saisie!AA43<>"cu",OCL_Saisie!AA43<>""),OCL_Saisie!DA43,"") ->  | HN44: =IF(AND(HL44>100%,HL44<>""),OCL_Saisie!E43&"/","") ->  | HO44: =IF(AND(HM44>100%,HM44<>""),OCL_Saisie!E43&"/","") -> 
B45: MD_TT_EOM : Montant total des dépenses de personnel + produit entretien+ entreprises entretien | C45: =DO2 -> 1 | D45: =DO1 -> 11 | E45: - | F45: =DO6 -> - | G45: =DO7 -> - | H45: =COUNTIF(DO18:DO2040,">-100") -> 0 | I45: =DO3+DO4 -> 0 | J45: =COUNTIF(DP18:DP2039,"<"&$J$1) -> 0 | K45: =I45-L45-J45 -> 0 | L45: =COUNTIF(DP18:DP2039,">1") -> 0 | M45: =IF(DR16="","-",DR16) -> - | N45: =DO5 -> 0 | S45: =D45-C45 -> 10 | BD45: 0 | BE45: =IF(OCL_Saisie!W44="IND",OCL_Saisie!CW44,"") ->  | BF45: =IF(OCL_Saisie!W44="col",OCL_Saisie!CW44,"") ->  | BG45: =IF(OCL_Saisie!W44="mix",OCL_Saisie!CW44,"") ->  | BK45: =IF(AND(BH45>100%,BH45<>""),OCL_Saisie!E44&"/","") ->  | BL45: =IF(AND(BI45>100%,BI45<>""),OCL_Saisie!E44&"/","") ->  | BM45: =IF(AND(BJ45>100%,BJ45<>""),OCL_Saisie!E44&"/","") ->  | BS45: =IF(OCL_Saisie!W44="col",OCL_Saisie!CX44,"") ->  | BT45: =IF(AND(OCL_Saisie!W44<>"col",OCL_Saisie!W44<>""),OCL_Saisie!CX44,"") ->  | BW45: =IF(AND(BU45>100%,BU45<>""),OCL_Saisie!E44&"/","") ->  | BX45: =IF(AND(BV45>100%,BV45<>""),OCL_Saisie!E44&"/","") ->  | CC45: =IF(OCL_Saisie!CY44="","",OCL_Saisie!CY44) ->  | CE45: =IF(AND(CD45>100%,CD45<>""),OCL_Saisie!E44&"/","") ->  | CI45: =IF(OR(OCL_Saisie!AA44="col",OCL_Saisie!AA44="cu",OCL_Saisie!AA44="mix"),OCL_Saisie!CZ44,"") ->  | CJ45: =IF(AND(OCL_Saisie!AA44<>"col",OCL_Saisie!AA44<>"cu",OCL_Saisie!AA44<>"mix",OCL_Saisie!AA44<>""),OCL_Saisie!CZ44,"") ->  | CM45: =IF(AND(CK45>100%,CK45<>""),OCL_Saisie!E44&"/","") ->  | CN45: =IF(AND(CL45>100%,CL45<>""),OCL_Saisie!E44&"/","") ->  | CS45: =IF(OR(OCL_Saisie!AA44="col",OCL_Saisie!AA44="cu",OCL_Saisie!AA44="mix"),OCL_Saisie!DD44,"") ->  | CT45: =IF(AND(OCL_Saisie!AA44<>"col",OCL_Saisie!AA44<>"cu",OCL_Saisie!AA44<>"mix",OCL_Saisie!AA44<>""),OCL_Saisie!DD44,"") ->  | CW45: =IF(AND(CU45>100%,CU45<>""),OCL_Saisie!E44&"/","") ->  | CX45: =IF(AND(CV45>100%,CV45<>""),OCL_Saisie!E44&"/","") ->  | DC45: =IF(OCL_Saisie!DE44="","",OCL_Saisie!DE44) ->  | DE45: =IF(AND(DD45>100%,DD45<>""),OCL_Saisie!E44&"/","") ->  | DI45: =IF(OCL_Saisie!DF44="","",OCL_Saisie!DF44) ->  | DK45: =IF(AND(DJ45>100%,DJ45<>""),OCL_Saisie!E44&"/","") ->  | DO45: =IF(OCL_Saisie!DG44="","",OCL_Saisie!DG44) ->  | DQ45: =IF(AND(DP45>100%,DP45<>""),OCL_Saisie!E44&"/","") ->  | DU45: =IF(OCL_Saisie!DH44="","",OCL_Saisie!DH44) ->  | DW45: =IF(AND(DV45>100%,DV45<>""),OCL_Saisie!E44&"/","") ->  | EA45: =IF(OCL_Saisie!DI44="","",OCL_Saisie!DI44) ->  | EC45: =IF(AND(EB45>100%,EB45<>""),OCL_Saisie!E44&"/","") ->  | EG45: =IF(OCL_Saisie!DJ44="","",OCL_Saisie!DJ44) ->  | EI45: =IF(AND(EH45>100%,EH45<>""),OCL_Saisie!E44&"/","") ->  | EM45: =IF(OCL_Saisie!DK44="","",OCL_Saisie!DK44) ->  | EO45: =IF(AND(EN45>100%,EN45<>""),OCL_Saisie!E44&"/","") ->  | ES45: =IF(OCL_Saisie!DM44="","",OCL_Saisie!DM44) ->  | EU45: =IF(AND(ET45>100%,ET45<>""),OCL_Saisie!E44&"/","") ->  | EY45: =IF(OCL_Saisie!DO44="","",OCL_Saisie!DO44) ->  | FA45: =IF(AND(EZ45>100%,EZ45<>""),OCL_Saisie!E44&"/","") ->  | FE45: =IF(OCL_Saisie!DP44="","",OCL_Saisie!DP44) ->  | FG45: =IF(AND(FF45>100%,FF45<>""),OCL_Saisie!E44&"/","") ->  | FK45: =IF(OR(OCL_Saisie!AA44="col",OCL_Saisie!AA44="cu"),OCL_Saisie!DQ44,"") ->  | FM45: =IF(AND(FL45>100%,FL45<>""),OCL_Saisie!E44&"/","") ->  | FQ45: =IF(OR(OCL_Saisie!AA44="col",OCL_Saisie!AA44="cu"),OCL_Saisie!DR44,"") ->  | FS45: =IF(AND(FR45>100%,FR45<>""),OCL_Saisie!E44&"/","") ->  | FW45: =IF(OR(OCL_Saisie!AA44="col",OCL_Saisie!AA44="cu"),OCL_Saisie!DS44,"") ->  | FY45: =IF(AND(FX45>100%,FX45<>""),OCL_Saisie!E44&"/","") ->  | GC45: =IF(OCL_Saisie!DT44="","",OCL_Saisie!DT44) ->  | GE45: =IF(AND(GD45>100%,GD45<>""),OCL_Saisie!E44&"/","") ->  | GJ45: =IF(OCL_Saisie!DN44="","",OCL_Saisie!DN44) ->  | GL45: =IF(AND(GK45>100%,GK45<>""),OCL_Saisie!E44&"/","") ->  | GP45: =IF(OR(OCL_Saisie!AA44="col",OCL_Saisie!AA44="cu",OCL_Saisie!AA44="mix"),OCL_Saisie!DB44,"") ->  | GQ45: =IF(AND(OCL_Saisie!AA44<>"col",OCL_Saisie!AA44<>"cu",OCL_Saisie!AA44<>"mix",OCL_Saisie!AA44<>""),OCL_Saisie!DB44,"") ->  | GT45: =IF(AND(GR45>100%,GR45<>""),OCL_Saisie!E44&"/","") ->  | GU45: =IF(AND(GS45>100%,GS45<>""),OCL_Saisie!E44&"/","") ->  | GZ45: =IF(OR(OCL_Saisie!AA44="col",OCL_Saisie!AA44="cu",OCL_Saisie!AA44="mix"),OCL_Saisie!DC44,"") ->  | HA45: =IF(AND(OCL_Saisie!AA44<>"col",OCL_Saisie!AA44<>"cu",OCL_Saisie!AA44<>"mix",OCL_Saisie!AA44<>""),OCL_Saisie!DC44,"") ->  | HD45: =IF(AND(HB45>100%,HB45<>""),OCL_Saisie!E44&"/","") ->  | HE45: =IF(AND(HC45>100%,HC45<>""),OCL_Saisie!E44&"/","") ->  | HJ45: =IF(OR(OCL_Saisie!AA44="col",OCL_Saisie!AA44="cu"),OCL_Saisie!DA44,"") ->  | HK45: =IF(AND(OCL_Saisie!AA44<>"col",OCL_Saisie!AA44<>"cu",OCL_Saisie!AA44<>""),OCL_Saisie!DA44,"") ->  | HN45: =IF(AND(HL45>100%,HL45<>""),OCL_Saisie!E44&"/","") ->  | HO45: =IF(AND(HM45>100%,HM45<>""),OCL_Saisie!E44&"/","") -> 
BD46: 0 | BE46: =IF(OCL_Saisie!W45="IND",OCL_Saisie!CW45,"") ->  | BF46: =IF(OCL_Saisie!W45="col",OCL_Saisie!CW45,"") ->  | BG46: =IF(OCL_Saisie!W45="mix",OCL_Saisie!CW45,"") ->  | BK46: =IF(AND(BH46>100%,BH46<>""),OCL_Saisie!E45&"/","") ->  | BL46: =IF(AND(BI46>100%,BI46<>""),OCL_Saisie!E45&"/","") ->  | BM46: =IF(AND(BJ46>100%,BJ46<>""),OCL_Saisie!E45&"/","") ->  | BS46: =IF(OCL_Saisie!W45="col",OCL_Saisie!CX45,"") ->  | BT46: =IF(AND(OCL_Saisie!W45<>"col",OCL_Saisie!W45<>""),OCL_Saisie!CX45,"") ->  | BW46: =IF(AND(BU46>100%,BU46<>""),OCL_Saisie!E45&"/","") ->  | BX46: =IF(AND(BV46>100%,BV46<>""),OCL_Saisie!E45&"/","") ->  | CC46: =IF(OCL_Saisie!CY45="","",OCL_Saisie!CY45) ->  | CE46: =IF(AND(CD46>100%,CD46<>""),OCL_Saisie!E45&"/","") ->  | CI46: =IF(OR(OCL_Saisie!AA45="col",OCL_Saisie!AA45="cu",OCL_Saisie!AA45="mix"),OCL_Saisie!CZ45,"") ->  | CJ46: =IF(AND(OCL_Saisie!AA45<>"col",OCL_Saisie!AA45<>"cu",OCL_Saisie!AA45<>"mix",OCL_Saisie!AA45<>""),OCL_Saisie!CZ45,"") ->  | CM46: =IF(AND(CK46>100%,CK46<>""),OCL_Saisie!E45&"/","") ->  | CN46: =IF(AND(CL46>100%,CL46<>""),OCL_Saisie!E45&"/","") ->  | CS46: =IF(OR(OCL_Saisie!AA45="col",OCL_Saisie!AA45="cu",OCL_Saisie!AA45="mix"),OCL_Saisie!DD45,"") ->  | CT46: =IF(AND(OCL_Saisie!AA45<>"col",OCL_Saisie!AA45<>"cu",OCL_Saisie!AA45<>"mix",OCL_Saisie!AA45<>""),OCL_Saisie!DD45,"") ->  | CW46: =IF(AND(CU46>100%,CU46<>""),OCL_Saisie!E45&"/","") ->  | CX46: =IF(AND(CV46>100%,CV46<>""),OCL_Saisie!E45&"/","") ->  | DC46: =IF(OCL_Saisie!DE45="","",OCL_Saisie!DE45) ->  | DE46: =IF(AND(DD46>100%,DD46<>""),OCL_Saisie!E45&"/","") ->  | DI46: =IF(OCL_Saisie!DF45="","",OCL_Saisie!DF45) ->  | DK46: =IF(AND(DJ46>100%,DJ46<>""),OCL_Saisie!E45&"/","") ->  | DO46: =IF(OCL_Saisie!DG45="","",OCL_Saisie!DG45) ->  | DQ46: =IF(AND(DP46>100%,DP46<>""),OCL_Saisie!E45&"/","") ->  | DU46: =IF(OCL_Saisie!DH45="","",OCL_Saisie!DH45) ->  | DW46: =IF(AND(DV46>100%,DV46<>""),OCL_Saisie!E45&"/","") ->  | EA46: =IF(OCL_Saisie!DI45="","",OCL_Saisie!DI45) ->  | EC46: =IF(AND(EB46>100%,EB46<>""),OCL_Saisie!E45&"/","") ->  | EG46: =IF(OCL_Saisie!DJ45="","",OCL_Saisie!DJ45) ->  | EI46: =IF(AND(EH46>100%,EH46<>""),OCL_Saisie!E45&"/","") ->  | EM46: =IF(OCL_Saisie!DK45="","",OCL_Saisie!DK45) ->  | EO46: =IF(AND(EN46>100%,EN46<>""),OCL_Saisie!E45&"/","") ->  | ES46: =IF(OCL_Saisie!DM45="","",OCL_Saisie!DM45) ->  | EU46: =IF(AND(ET46>100%,ET46<>""),OCL_Saisie!E45&"/","") ->  | EY46: =IF(OCL_Saisie!DO45="","",OCL_Saisie!DO45) ->  | FA46: =IF(AND(EZ46>100%,EZ46<>""),OCL_Saisie!E45&"/","") ->  | FE46: =IF(OCL_Saisie!DP45="","",OCL_Saisie!DP45) ->  | FG46: =IF(AND(FF46>100%,FF46<>""),OCL_Saisie!E45&"/","") ->  | FK46: =IF(OR(OCL_Saisie!AA45="col",OCL_Saisie!AA45="cu"),OCL_Saisie!DQ45,"") ->  | FM46: =IF(AND(FL46>100%,FL46<>""),OCL_Saisie!E45&"/","") ->  | FQ46: =IF(OR(OCL_Saisie!AA45="col",OCL_Saisie!AA45="cu"),OCL_Saisie!DR45,"") ->  | FS46: =IF(AND(FR46>100%,FR46<>""),OCL_Saisie!E45&"/","") ->  | FW46: =IF(OR(OCL_Saisie!AA45="col",OCL_Saisie!AA45="cu"),OCL_Saisie!DS45,"") ->  | FY46: =IF(AND(FX46>100%,FX46<>""),OCL_Saisie!E45&"/","") ->  | GC46: =IF(OCL_Saisie!DT45="","",OCL_Saisie!DT45) ->  | GE46: =IF(AND(GD46>100%,GD46<>""),OCL_Saisie!E45&"/","") ->  | GJ46: =IF(OCL_Saisie!DN45="","",OCL_Saisie!DN45) ->  | GL46: =IF(AND(GK46>100%,GK46<>""),OCL_Saisie!E45&"/","") ->  | GP46: =IF(OR(OCL_Saisie!AA45="col",OCL_Saisie!AA45="cu",OCL_Saisie!AA45="mix"),OCL_Saisie!DB45,"") ->  | GQ46: =IF(AND(OCL_Saisie!AA45<>"col",OCL_Saisie!AA45<>"cu",OCL_Saisie!AA45<>"mix",OCL_Saisie!AA45<>""),OCL_Saisie!DB45,"") ->  | GT46: =IF(AND(GR46>100%,GR46<>""),OCL_Saisie!E45&"/","") ->  | GU46: =IF(AND(GS46>100%,GS46<>""),OCL_Saisie!E45&"/","") ->  | GZ46: =IF(OR(OCL_Saisie!AA45="col",OCL_Saisie!AA45="cu",OCL_Saisie!AA45="mix"),OCL_Saisie!DC45,"") ->  | HA46: =IF(AND(OCL_Saisie!AA45<>"col",OCL_Saisie!AA45<>"cu",OCL_Saisie!AA45<>"mix",OCL_Saisie!AA45<>""),OCL_Saisie!DC45,"") ->  | HD46: =IF(AND(HB46>100%,HB46<>""),OCL_Saisie!E45&"/","") ->  | HE46: =IF(AND(HC46>100%,HC46<>""),OCL_Saisie!E45&"/","") ->  | HJ46: =IF(OR(OCL_Saisie!AA45="col",OCL_Saisie!AA45="cu"),OCL_Saisie!DA45,"") ->  | HK46: =IF(AND(OCL_Saisie!AA45<>"col",OCL_Saisie!AA45<>"cu",OCL_Saisie!AA45<>""),OCL_Saisie!DA45,"") ->  | HN46: =IF(AND(HL46>100%,HL46<>""),OCL_Saisie!E45&"/","") ->  | HO46: =IF(AND(HM46>100%,HM46<>""),OCL_Saisie!E45&"/","") -> 
B47: MD_AU_AIM : Montant total des dépenses d'entretien immobilier | C47: =DI2 -> 0 | D47: =DI1 -> 2 | E47: - | F47: =DI6 -> - | G47: =DI7 -> - | H47: =COUNTIF(DI18:DI2040,">-100") -> 0 | I47: =DI3+DI4 -> 0 | J47: =COUNTIF(DJ18:DJ2039,"<"&$J$1) -> 0 | K47: =I47-L47-J47 -> 0 | L47: =COUNTIF(DJ18:DJ2039,">1") -> 0 | M47: =IF(DL16="","-",DL16) -> - | N47: =DI5 -> 0 | S47: =D43-C43 -> 3 | BD47: 0 | BE47: =IF(OCL_Saisie!W46="IND",OCL_Saisie!CW46,"") ->  | BF47: =IF(OCL_Saisie!W46="col",OCL_Saisie!CW46,"") ->  | BG47: =IF(OCL_Saisie!W46="mix",OCL_Saisie!CW46,"") ->  | BK47: =IF(AND(BH47>100%,BH47<>""),OCL_Saisie!E46&"/","") ->  | BL47: =IF(AND(BI47>100%,BI47<>""),OCL_Saisie!E46&"/","") ->  | BM47: =IF(AND(BJ47>100%,BJ47<>""),OCL_Saisie!E46&"/","") ->  | BS47: =IF(OCL_Saisie!W46="col",OCL_Saisie!CX46,"") ->  | BT47: =IF(AND(OCL_Saisie!W46<>"col",OCL_Saisie!W46<>""),OCL_Saisie!CX46,"") ->  | BW47: =IF(AND(BU47>100%,BU47<>""),OCL_Saisie!E46&"/","") ->  | BX47: =IF(AND(BV47>100%,BV47<>""),OCL_Saisie!E46&"/","") ->  | CC47: =IF(OCL_Saisie!CY46="","",OCL_Saisie!CY46) ->  | CE47: =IF(AND(CD47>100%,CD47<>""),OCL_Saisie!E46&"/","") ->  | CI47: =IF(OR(OCL_Saisie!AA46="col",OCL_Saisie!AA46="cu",OCL_Saisie!AA46="mix"),OCL_Saisie!CZ46,"") ->  | CJ47: =IF(AND(OCL_Saisie!AA46<>"col",OCL_Saisie!AA46<>"cu",OCL_Saisie!AA46<>"mix",OCL_Saisie!AA46<>""),OCL_Saisie!CZ46,"") ->  | CM47: =IF(AND(CK47>100%,CK47<>""),OCL_Saisie!E46&"/","") ->  | CN47: =IF(AND(CL47>100%,CL47<>""),OCL_Saisie!E46&"/","") ->  | CS47: =IF(OR(OCL_Saisie!AA46="col",OCL_Saisie!AA46="cu",OCL_Saisie!AA46="mix"),OCL_Saisie!DD46,"") ->  | CT47: =IF(AND(OCL_Saisie!AA46<>"col",OCL_Saisie!AA46<>"cu",OCL_Saisie!AA46<>"mix",OCL_Saisie!AA46<>""),OCL_Saisie!DD46,"") ->  | CW47: =IF(AND(CU47>100%,CU47<>""),OCL_Saisie!E46&"/","") ->  | CX47: =IF(AND(CV47>100%,CV47<>""),OCL_Saisie!E46&"/","") ->  | DC47: =IF(OCL_Saisie!DE46="","",OCL_Saisie!DE46) ->  | DE47: =IF(AND(DD47>100%,DD47<>""),OCL_Saisie!E46&"/","") ->  | DI47: =IF(OCL_Saisie!DF46="","",OCL_Saisie!DF46) ->  | DK47: =IF(AND(DJ47>100%,DJ47<>""),OCL_Saisie!E46&"/","") ->  | DO47: =IF(OCL_Saisie!DG46="","",OCL_Saisie!DG46) ->  | DQ47: =IF(AND(DP47>100%,DP47<>""),OCL_Saisie!E46&"/","") ->  | DU47: =IF(OCL_Saisie!DH46="","",OCL_Saisie!DH46) ->  | DW47: =IF(AND(DV47>100%,DV47<>""),OCL_Saisie!E46&"/","") ->  | EA47: =IF(OCL_Saisie!DI46="","",OCL_Saisie!DI46) ->  | EC47: =IF(AND(EB47>100%,EB47<>""),OCL_Saisie!E46&"/","") ->  | EG47: =IF(OCL_Saisie!DJ46="","",OCL_Saisie!DJ46) ->  | EI47: =IF(AND(EH47>100%,EH47<>""),OCL_Saisie!E46&"/","") ->  | EM47: =IF(OCL_Saisie!DK46="","",OCL_Saisie!DK46) ->  | EO47: =IF(AND(EN47>100%,EN47<>""),OCL_Saisie!E46&"/","") ->  | ES47: =IF(OCL_Saisie!DM46="","",OCL_Saisie!DM46) ->  | EU47: =IF(AND(ET47>100%,ET47<>""),OCL_Saisie!E46&"/","") ->  | EY47: =IF(OCL_Saisie!DO46="","",OCL_Saisie!DO46) ->  | FA47: =IF(AND(EZ47>100%,EZ47<>""),OCL_Saisie!E46&"/","") ->  | FE47: =IF(OCL_Saisie!DP46="","",OCL_Saisie!DP46) ->  | FG47: =IF(AND(FF47>100%,FF47<>""),OCL_Saisie!E46&"/","") ->  | FK47: =IF(OR(OCL_Saisie!AA46="col",OCL_Saisie!AA46="cu"),OCL_Saisie!DQ46,"") ->  | FM47: =IF(AND(FL47>100%,FL47<>""),OCL_Saisie!E46&"/","") ->  | FQ47: =IF(OR(OCL_Saisie!AA46="col",OCL_Saisie!AA46="cu"),OCL_Saisie!DR46,"") ->  | FS47: =IF(AND(FR47>100%,FR47<>""),OCL_Saisie!E46&"/","") ->  | FW47: =IF(OR(OCL_Saisie!AA46="col",OCL_Saisie!AA46="cu"),OCL_Saisie!DS46,"") ->  | FY47: =IF(AND(FX47>100%,FX47<>""),OCL_Saisie!E46&"/","") ->  | GC47: =IF(OCL_Saisie!DT46="","",OCL_Saisie!DT46) ->  | GE47: =IF(AND(GD47>100%,GD47<>""),OCL_Saisie!E46&"/","") ->  | GJ47: =IF(OCL_Saisie!DN46="","",OCL_Saisie!DN46) ->  | GL47: =IF(AND(GK47>100%,GK47<>""),OCL_Saisie!E46&"/","") ->  | GP47: =IF(OR(OCL_Saisie!AA46="col",OCL_Saisie!AA46="cu",OCL_Saisie!AA46="mix"),OCL_Saisie!DB46,"") ->  | GQ47: =IF(AND(OCL_Saisie!AA46<>"col",OCL_Saisie!AA46<>"cu",OCL_Saisie!AA46<>"mix",OCL_Saisie!AA46<>""),OCL_Saisie!DB46,"") ->  | GT47: =IF(AND(GR47>100%,GR47<>""),OCL_Saisie!E46&"/","") ->  | GU47: =IF(AND(GS47>100%,GS47<>""),OCL_Saisie!E46&"/","") ->  | GZ47: =IF(OR(OCL_Saisie!AA46="col",OCL_Saisie!AA46="cu",OCL_Saisie!AA46="mix"),OCL_Saisie!DC46,"") ->  | HA47: =IF(AND(OCL_Saisie!AA46<>"col",OCL_Saisie!AA46<>"cu",OCL_Saisie!AA46<>"mix",OCL_Saisie!AA46<>""),OCL_Saisie!DC46,"") ->  | HD47: =IF(AND(HB47>100%,HB47<>""),OCL_Saisie!E46&"/","") ->  | HE47: =IF(AND(HC47>100%,HC47<>""),OCL_Saisie!E46&"/","") ->  | HJ47: =IF(OR(OCL_Saisie!AA46="col",OCL_Saisie!AA46="cu"),OCL_Saisie!DA46,"") ->  | HK47: =IF(AND(OCL_Saisie!AA46<>"col",OCL_Saisie!AA46<>"cu",OCL_Saisie!AA46<>""),OCL_Saisie!DA46,"") ->  | HN47: =IF(AND(HL47>100%,HL47<>""),OCL_Saisie!E46&"/","") ->  | HO47: =IF(AND(HM47>100%,HM47<>""),OCL_Saisie!E46&"/","") -> 
BD48: 0 | BE48: =IF(OCL_Saisie!W47="IND",OCL_Saisie!CW47,"") ->  | BF48: =IF(OCL_Saisie!W47="col",OCL_Saisie!CW47,"") ->  | BG48: =IF(OCL_Saisie!W47="mix",OCL_Saisie!CW47,"") ->  | BK48: =IF(AND(BH48>100%,BH48<>""),OCL_Saisie!E47&"/","") ->  | BL48: =IF(AND(BI48>100%,BI48<>""),OCL_Saisie!E47&"/","") ->  | BM48: =IF(AND(BJ48>100%,BJ48<>""),OCL_Saisie!E47&"/","") ->  | BS48: =IF(OCL_Saisie!W47="col",OCL_Saisie!CX47,"") ->  | BT48: =IF(AND(OCL_Saisie!W47<>"col",OCL_Saisie!W47<>""),OCL_Saisie!CX47,"") ->  | BW48: =IF(AND(BU48>100%,BU48<>""),OCL_Saisie!E47&"/","") ->  | BX48: =IF(AND(BV48>100%,BV48<>""),OCL_Saisie!E47&"/","") ->  | CC48: =IF(OCL_Saisie!CY47="","",OCL_Saisie!CY47) ->  | CE48: =IF(AND(CD48>100%,CD48<>""),OCL_Saisie!E47&"/","") ->  | CI48: =IF(OR(OCL_Saisie!AA47="col",OCL_Saisie!AA47="cu",OCL_Saisie!AA47="mix"),OCL_Saisie!CZ47,"") ->  | CJ48: =IF(AND(OCL_Saisie!AA47<>"col",OCL_Saisie!AA47<>"cu",OCL_Saisie!AA47<>"mix",OCL_Saisie!AA47<>""),OCL_Saisie!CZ47,"") ->  | CM48: =IF(AND(CK48>100%,CK48<>""),OCL_Saisie!E47&"/","") ->  | CN48: =IF(AND(CL48>100%,CL48<>""),OCL_Saisie!E47&"/","") ->  | CS48: =IF(OR(OCL_Saisie!AA47="col",OCL_Saisie!AA47="cu",OCL_Saisie!AA47="mix"),OCL_Saisie!DD47,"") ->  | CT48: =IF(AND(OCL_Saisie!AA47<>"col",OCL_Saisie!AA47<>"cu",OCL_Saisie!AA47<>"mix",OCL_Saisie!AA47<>""),OCL_Saisie!DD47,"") ->  | CW48: =IF(AND(CU48>100%,CU48<>""),OCL_Saisie!E47&"/","") ->  | CX48: =IF(AND(CV48>100%,CV48<>""),OCL_Saisie!E47&"/","") ->  | DC48: =IF(OCL_Saisie!DE47="","",OCL_Saisie!DE47) ->  | DE48: =IF(AND(DD48>100%,DD48<>""),OCL_Saisie!E47&"/","") ->  | DI48: =IF(OCL_Saisie!DF47="","",OCL_Saisie!DF47) ->  | DK48: =IF(AND(DJ48>100%,DJ48<>""),OCL_Saisie!E47&"/","") ->  | DO48: =IF(OCL_Saisie!DG47="","",OCL_Saisie!DG47) ->  | DQ48: =IF(AND(DP48>100%,DP48<>""),OCL_Saisie!E47&"/","") ->  | DU48: =IF(OCL_Saisie!DH47="","",OCL_Saisie!DH47) ->  | DW48: =IF(AND(DV48>100%,DV48<>""),OCL_Saisie!E47&"/","") ->  | EA48: =IF(OCL_Saisie!DI47="","",OCL_Saisie!DI47) ->  | EC48: =IF(AND(EB48>100%,EB48<>""),OCL_Saisie!E47&"/","") ->  | EG48: =IF(OCL_Saisie!DJ47="","",OCL_Saisie!DJ47) ->  | EI48: =IF(AND(EH48>100%,EH48<>""),OCL_Saisie!E47&"/","") ->  | EM48: =IF(OCL_Saisie!DK47="","",OCL_Saisie!DK47) ->  | EO48: =IF(AND(EN48>100%,EN48<>""),OCL_Saisie!E47&"/","") ->  | ES48: =IF(OCL_Saisie!DM47="","",OCL_Saisie!DM47) ->  | EU48: =IF(AND(ET48>100%,ET48<>""),OCL_Saisie!E47&"/","") ->  | EY48: =IF(OCL_Saisie!DO47="","",OCL_Saisie!DO47) ->  | FA48: =IF(AND(EZ48>100%,EZ48<>""),OCL_Saisie!E47&"/","") ->  | FE48: =IF(OCL_Saisie!DP47="","",OCL_Saisie!DP47) ->  | FG48: =IF(AND(FF48>100%,FF48<>""),OCL_Saisie!E47&"/","") ->  | FK48: =IF(OR(OCL_Saisie!AA47="col",OCL_Saisie!AA47="cu"),OCL_Saisie!DQ47,"") ->  | FM48: =IF(AND(FL48>100%,FL48<>""),OCL_Saisie!E47&"/","") ->  | FQ48: =IF(OR(OCL_Saisie!AA47="col",OCL_Saisie!AA47="cu"),OCL_Saisie!DR47,"") ->  | FS48: =IF(AND(FR48>100%,FR48<>""),OCL_Saisie!E47&"/","") ->  | FW48: =IF(OR(OCL_Saisie!AA47="col",OCL_Saisie!AA47="cu"),OCL_Saisie!DS47,"") ->  | FY48: =IF(AND(FX48>100%,FX48<>""),OCL_Saisie!E47&"/","") ->  | GC48: =IF(OCL_Saisie!DT47="","",OCL_Saisie!DT47) ->  | GE48: =IF(AND(GD48>100%,GD48<>""),OCL_Saisie!E47&"/","") ->  | GJ48: =IF(OCL_Saisie!DN47="","",OCL_Saisie!DN47) ->  | GL48: =IF(AND(GK48>100%,GK48<>""),OCL_Saisie!E47&"/","") ->  | GP48: =IF(OR(OCL_Saisie!AA47="col",OCL_Saisie!AA47="cu",OCL_Saisie!AA47="mix"),OCL_Saisie!DB47,"") ->  | GQ48: =IF(AND(OCL_Saisie!AA47<>"col",OCL_Saisie!AA47<>"cu",OCL_Saisie!AA47<>"mix",OCL_Saisie!AA47<>""),OCL_Saisie!DB47,"") ->  | GT48: =IF(AND(GR48>100%,GR48<>""),OCL_Saisie!E47&"/","") ->  | GU48: =IF(AND(GS48>100%,GS48<>""),OCL_Saisie!E47&"/","") ->  | GZ48: =IF(OR(OCL_Saisie!AA47="col",OCL_Saisie!AA47="cu",OCL_Saisie!AA47="mix"),OCL_Saisie!DC47,"") ->  | HA48: =IF(AND(OCL_Saisie!AA47<>"col",OCL_Saisie!AA47<>"cu",OCL_Saisie!AA47<>"mix",OCL_Saisie!AA47<>""),OCL_Saisie!DC47,"") ->  | HD48: =IF(AND(HB48>100%,HB48<>""),OCL_Saisie!E47&"/","") ->  | HE48: =IF(AND(HC48>100%,HC48<>""),OCL_Saisie!E47&"/","") ->  | HJ48: =IF(OR(OCL_Saisie!AA47="col",OCL_Saisie!AA47="cu"),OCL_Saisie!DA47,"") ->  | HK48: =IF(AND(OCL_Saisie!AA47<>"col",OCL_Saisie!AA47<>"cu",OCL_Saisie!AA47<>""),OCL_Saisie!DA47,"") ->  | HN48: =IF(AND(HL48>100%,HL48<>""),OCL_Saisie!E47&"/","") ->  | HO48: =IF(AND(HM48>100%,HM48<>""),OCL_Saisie!E47&"/","") -> 
B49: MD_TT_ELC : Montant total des dépenses d'électricité des usages généraux | C49: =EA2 -> 0.05 | D49: =EA1 -> 3 | E49: - | F49: =EA6 -> - | G49: =EA7 -> - | H49: =COUNTIF(EA18:EA2040,">-100") -> 0 | I49: =EA3+EA4 -> 0 | J49: =COUNTIF(EB18:EB2039,"<"&$J$1) -> 0 | K49: =I49-L49-J49 -> 0 | L49: =COUNTIF(EB18:EB2039,">1") -> 0 | M49: =IF(ED16="","-",ED16) -> - | N49: =EA5 -> 0 | S49: =D49-C49 -> 2.95 | BD49: 0 | BE49: =IF(OCL_Saisie!W48="IND",OCL_Saisie!CW48,"") ->  | BF49: =IF(OCL_Saisie!W48="col",OCL_Saisie!CW48,"") ->  | BG49: =IF(OCL_Saisie!W48="mix",OCL_Saisie!CW48,"") ->  | BK49: =IF(AND(BH49>100%,BH49<>""),OCL_Saisie!E48&"/","") ->  | BL49: =IF(AND(BI49>100%,BI49<>""),OCL_Saisie!E48&"/","") ->  | BM49: =IF(AND(BJ49>100%,BJ49<>""),OCL_Saisie!E48&"/","") ->  | BS49: =IF(OCL_Saisie!W48="col",OCL_Saisie!CX48,"") ->  | BT49: =IF(AND(OCL_Saisie!W48<>"col",OCL_Saisie!W48<>""),OCL_Saisie!CX48,"") ->  | BW49: =IF(AND(BU49>100%,BU49<>""),OCL_Saisie!E48&"/","") ->  | BX49: =IF(AND(BV49>100%,BV49<>""),OCL_Saisie!E48&"/","") ->  | CC49: =IF(OCL_Saisie!CY48="","",OCL_Saisie!CY48) ->  | CE49: =IF(AND(CD49>100%,CD49<>""),OCL_Saisie!E48&"/","") ->  | CI49: =IF(OR(OCL_Saisie!AA48="col",OCL_Saisie!AA48="cu",OCL_Saisie!AA48="mix"),OCL_Saisie!CZ48,"") ->  | CJ49: =IF(AND(OCL_Saisie!AA48<>"col",OCL_Saisie!AA48<>"cu",OCL_Saisie!AA48<>"mix",OCL_Saisie!AA48<>""),OCL_Saisie!CZ48,"") ->  | CM49: =IF(AND(CK49>100%,CK49<>""),OCL_Saisie!E48&"/","") ->  | CN49: =IF(AND(CL49>100%,CL49<>""),OCL_Saisie!E48&"/","") ->  | CS49: =IF(OR(OCL_Saisie!AA48="col",OCL_Saisie!AA48="cu",OCL_Saisie!AA48="mix"),OCL_Saisie!DD48,"") ->  | CT49: =IF(AND(OCL_Saisie!AA48<>"col",OCL_Saisie!AA48<>"cu",OCL_Saisie!AA48<>"mix",OCL_Saisie!AA48<>""),OCL_Saisie!DD48,"") ->  | CW49: =IF(AND(CU49>100%,CU49<>""),OCL_Saisie!E48&"/","") ->  | CX49: =IF(AND(CV49>100%,CV49<>""),OCL_Saisie!E48&"/","") ->  | DC49: =IF(OCL_Saisie!DE48="","",OCL_Saisie!DE48) ->  | DE49: =IF(AND(DD49>100%,DD49<>""),OCL_Saisie!E48&"/","") ->  | DI49: =IF(OCL_Saisie!DF48="","",OCL_Saisie!DF48) ->  | DK49: =IF(AND(DJ49>100%,DJ49<>""),OCL_Saisie!E48&"/","") ->  | DO49: =IF(OCL_Saisie!DG48="","",OCL_Saisie!DG48) ->  | DQ49: =IF(AND(DP49>100%,DP49<>""),OCL_Saisie!E48&"/","") ->  | DU49: =IF(OCL_Saisie!DH48="","",OCL_Saisie!DH48) ->  | DW49: =IF(AND(DV49>100%,DV49<>""),OCL_Saisie!E48&"/","") ->  | EA49: =IF(OCL_Saisie!DI48="","",OCL_Saisie!DI48) ->  | EC49: =IF(AND(EB49>100%,EB49<>""),OCL_Saisie!E48&"/","") ->  | EG49: =IF(OCL_Saisie!DJ48="","",OCL_Saisie!DJ48) ->  | EI49: =IF(AND(EH49>100%,EH49<>""),OCL_Saisie!E48&"/","") ->  | EM49: =IF(OCL_Saisie!DK48="","",OCL_Saisie!DK48) ->  | EO49: =IF(AND(EN49>100%,EN49<>""),OCL_Saisie!E48&"/","") ->  | ES49: =IF(OCL_Saisie!DM48="","",OCL_Saisie!DM48) ->  | EU49: =IF(AND(ET49>100%,ET49<>""),OCL_Saisie!E48&"/","") ->  | EY49: =IF(OCL_Saisie!DO48="","",OCL_Saisie!DO48) ->  | FA49: =IF(AND(EZ49>100%,EZ49<>""),OCL_Saisie!E48&"/","") ->  | FE49: =IF(OCL_Saisie!DP48="","",OCL_Saisie!DP48) ->  | FG49: =IF(AND(FF49>100%,FF49<>""),OCL_Saisie!E48&"/","") ->  | FK49: =IF(OR(OCL_Saisie!AA48="col",OCL_Saisie!AA48="cu"),OCL_Saisie!DQ48,"") ->  | FM49: =IF(AND(FL49>100%,FL49<>""),OCL_Saisie!E48&"/","") ->  | FQ49: =IF(OR(OCL_Saisie!AA48="col",OCL_Saisie!AA48="cu"),OCL_Saisie!DR48,"") ->  | FS49: =IF(AND(FR49>100%,FR49<>""),OCL_Saisie!E48&"/","") ->  | FW49: =IF(OR(OCL_Saisie!AA48="col",OCL_Saisie!AA48="cu"),OCL_Saisie!DS48,"") ->  | FY49: =IF(AND(FX49>100%,FX49<>""),OCL_Saisie!E48&"/","") ->  | GC49: =IF(OCL_Saisie!DT48="","",OCL_Saisie!DT48) ->  | GE49: =IF(AND(GD49>100%,GD49<>""),OCL_Saisie!E48&"/","") ->  | GJ49: =IF(OCL_Saisie!DN48="","",OCL_Saisie!DN48) ->  | GL49: =IF(AND(GK49>100%,GK49<>""),OCL_Saisie!E48&"/","") ->  | GP49: =IF(OR(OCL_Saisie!AA48="col",OCL_Saisie!AA48="cu",OCL_Saisie!AA48="mix"),OCL_Saisie!DB48,"") ->  | GQ49: =IF(AND(OCL_Saisie!AA48<>"col",OCL_Saisie!AA48<>"cu",OCL_Saisie!AA48<>"mix",OCL_Saisie!AA48<>""),OCL_Saisie!DB48,"") ->  | GT49: =IF(AND(GR49>100%,GR49<>""),OCL_Saisie!E48&"/","") ->  | GU49: =IF(AND(GS49>100%,GS49<>""),OCL_Saisie!E48&"/","") ->  | GZ49: =IF(OR(OCL_Saisie!AA48="col",OCL_Saisie!AA48="cu",OCL_Saisie!AA48="mix"),OCL_Saisie!DC48,"") ->  | HA49: =IF(AND(OCL_Saisie!AA48<>"col",OCL_Saisie!AA48<>"cu",OCL_Saisie!AA48<>"mix",OCL_Saisie!AA48<>""),OCL_Saisie!DC48,"") ->  | HD49: =IF(AND(HB49>100%,HB49<>""),OCL_Saisie!E48&"/","") ->  | HE49: =IF(AND(HC49>100%,HC49<>""),OCL_Saisie!E48&"/","") ->  | HJ49: =IF(OR(OCL_Saisie!AA48="col",OCL_Saisie!AA48="cu"),OCL_Saisie!DA48,"") ->  | HK49: =IF(AND(OCL_Saisie!AA48<>"col",OCL_Saisie!AA48<>"cu",OCL_Saisie!AA48<>""),OCL_Saisie!DA48,"") ->  | HN49: =IF(AND(HL49>100%,HL49<>""),OCL_Saisie!E48&"/","") ->  | HO49: =IF(AND(HM49>100%,HM49<>""),OCL_Saisie!E48&"/","") -> 
BD50: 0 | BE50: =IF(OCL_Saisie!W49="IND",OCL_Saisie!CW49,"") ->  | BF50: =IF(OCL_Saisie!W49="col",OCL_Saisie!CW49,"") ->  | BG50: =IF(OCL_Saisie!W49="mix",OCL_Saisie!CW49,"") ->  | BK50: =IF(AND(BH50>100%,BH50<>""),OCL_Saisie!E49&"/","") ->  | BL50: =IF(AND(BI50>100%,BI50<>""),OCL_Saisie!E49&"/","") ->  | BM50: =IF(AND(BJ50>100%,BJ50<>""),OCL_Saisie!E49&"/","") ->  | BS50: =IF(OCL_Saisie!W49="col",OCL_Saisie!CX49,"") ->  | BT50: =IF(AND(OCL_Saisie!W49<>"col",OCL_Saisie!W49<>""),OCL_Saisie!CX49,"") ->  | BW50: =IF(AND(BU50>100%,BU50<>""),OCL_Saisie!E49&"/","") ->  | BX50: =IF(AND(BV50>100%,BV50<>""),OCL_Saisie!E49&"/","") ->  | CC50: =IF(OCL_Saisie!CY49="","",OCL_Saisie!CY49) ->  | CE50: =IF(AND(CD50>100%,CD50<>""),OCL_Saisie!E49&"/","") ->  | CI50: =IF(OR(OCL_Saisie!AA49="col",OCL_Saisie!AA49="cu",OCL_Saisie!AA49="mix"),OCL_Saisie!CZ49,"") ->  | CJ50: =IF(AND(OCL_Saisie!AA49<>"col",OCL_Saisie!AA49<>"cu",OCL_Saisie!AA49<>"mix",OCL_Saisie!AA49<>""),OCL_Saisie!CZ49,"") ->  | CM50: =IF(AND(CK50>100%,CK50<>""),OCL_Saisie!E49&"/","") ->  | CN50: =IF(AND(CL50>100%,CL50<>""),OCL_Saisie!E49&"/","") ->  | CS50: =IF(OR(OCL_Saisie!AA49="col",OCL_Saisie!AA49="cu",OCL_Saisie!AA49="mix"),OCL_Saisie!DD49,"") ->  | CT50: =IF(AND(OCL_Saisie!AA49<>"col",OCL_Saisie!AA49<>"cu",OCL_Saisie!AA49<>"mix",OCL_Saisie!AA49<>""),OCL_Saisie!DD49,"") ->  | CW50: =IF(AND(CU50>100%,CU50<>""),OCL_Saisie!E49&"/","") ->  | CX50: =IF(AND(CV50>100%,CV50<>""),OCL_Saisie!E49&"/","") ->  | DC50: =IF(OCL_Saisie!DE49="","",OCL_Saisie!DE49) ->  | DE50: =IF(AND(DD50>100%,DD50<>""),OCL_Saisie!E49&"/","") ->  | DI50: =IF(OCL_Saisie!DF49="","",OCL_Saisie!DF49) ->  | DK50: =IF(AND(DJ50>100%,DJ50<>""),OCL_Saisie!E49&"/","") ->  | DO50: =IF(OCL_Saisie!DG49="","",OCL_Saisie!DG49) ->  | DQ50: =IF(AND(DP50>100%,DP50<>""),OCL_Saisie!E49&"/","") ->  | DU50: =IF(OCL_Saisie!DH49="","",OCL_Saisie!DH49) ->  | DW50: =IF(AND(DV50>100%,DV50<>""),OCL_Saisie!E49&"/","") ->  | EA50: =IF(OCL_Saisie!DI49="","",OCL_Saisie!DI49) ->  | EC50: =IF(AND(EB50>100%,EB50<>""),OCL_Saisie!E49&"/","") ->  | EG50: =IF(OCL_Saisie!DJ49="","",OCL_Saisie!DJ49) ->  | EI50: =IF(AND(EH50>100%,EH50<>""),OCL_Saisie!E49&"/","") ->  | EM50: =IF(OCL_Saisie!DK49="","",OCL_Saisie!DK49) ->  | EO50: =IF(AND(EN50>100%,EN50<>""),OCL_Saisie!E49&"/","") ->  | ES50: =IF(OCL_Saisie!DM49="","",OCL_Saisie!DM49) ->  | EU50: =IF(AND(ET50>100%,ET50<>""),OCL_Saisie!E49&"/","") ->  | EY50: =IF(OCL_Saisie!DO49="","",OCL_Saisie!DO49) ->  | FA50: =IF(AND(EZ50>100%,EZ50<>""),OCL_Saisie!E49&"/","") ->  | FE50: =IF(OCL_Saisie!DP49="","",OCL_Saisie!DP49) ->  | FG50: =IF(AND(FF50>100%,FF50<>""),OCL_Saisie!E49&"/","") ->  | FK50: =IF(OR(OCL_Saisie!AA49="col",OCL_Saisie!AA49="cu"),OCL_Saisie!DQ49,"") ->  | FM50: =IF(AND(FL50>100%,FL50<>""),OCL_Saisie!E49&"/","") ->  | FQ50: =IF(OR(OCL_Saisie!AA49="col",OCL_Saisie!AA49="cu"),OCL_Saisie!DR49,"") ->  | FS50: =IF(AND(FR50>100%,FR50<>""),OCL_Saisie!E49&"/","") ->  | FW50: =IF(OR(OCL_Saisie!AA49="col",OCL_Saisie!AA49="cu"),OCL_Saisie!DS49,"") ->  | FY50: =IF(AND(FX50>100%,FX50<>""),OCL_Saisie!E49&"/","") ->  | GC50: =IF(OCL_Saisie!DT49="","",OCL_Saisie!DT49) ->  | GE50: =IF(AND(GD50>100%,GD50<>""),OCL_Saisie!E49&"/","") ->  | GJ50: =IF(OCL_Saisie!DN49="","",OCL_Saisie!DN49) ->  | GL50: =IF(AND(GK50>100%,GK50<>""),OCL_Saisie!E49&"/","") ->  | GP50: =IF(OR(OCL_Saisie!AA49="col",OCL_Saisie!AA49="cu",OCL_Saisie!AA49="mix"),OCL_Saisie!DB49,"") ->  | GQ50: =IF(AND(OCL_Saisie!AA49<>"col",OCL_Saisie!AA49<>"cu",OCL_Saisie!AA49<>"mix",OCL_Saisie!AA49<>""),OCL_Saisie!DB49,"") ->  | GT50: =IF(AND(GR50>100%,GR50<>""),OCL_Saisie!E49&"/","") ->  | GU50: =IF(AND(GS50>100%,GS50<>""),OCL_Saisie!E49&"/","") ->  | GZ50: =IF(OR(OCL_Saisie!AA49="col",OCL_Saisie!AA49="cu",OCL_Saisie!AA49="mix"),OCL_Saisie!DC49,"") ->  | HA50: =IF(AND(OCL_Saisie!AA49<>"col",OCL_Saisie!AA49<>"cu",OCL_Saisie!AA49<>"mix",OCL_Saisie!AA49<>""),OCL_Saisie!DC49,"") ->  | HD50: =IF(AND(HB50>100%,HB50<>""),OCL_Saisie!E49&"/","") ->  | HE50: =IF(AND(HC50>100%,HC50<>""),OCL_Saisie!E49&"/","") ->  | HJ50: =IF(OR(OCL_Saisie!AA49="col",OCL_Saisie!AA49="cu"),OCL_Saisie!DA49,"") ->  | HK50: =IF(AND(OCL_Saisie!AA49<>"col",OCL_Saisie!AA49<>"cu",OCL_Saisie!AA49<>""),OCL_Saisie!DA49,"") ->  | HN50: =IF(AND(HL50>100%,HL50<>""),OCL_Saisie!E49&"/","") ->  | HO50: =IF(AND(HM50>100%,HM50<>""),OCL_Saisie!E49&"/","") -> 
B51: MD_TT_TAX :Montant total des dépenses de taxes récupérables (OM + balayage) | C51: =EG2 -> 0.5 | D51: =EG1 -> 5 | E51: - | F51: =EG6 -> - | G51: =EG7 -> - | H51: =COUNTIF(EG18:EG2040,">-100") -> 0 | I51: =EG3+EG4 -> 0 | J51: =COUNTIF(EH18:EH2039,"<"&$J$1) -> 0 | K51: =I51-L51-J51 -> 0 | L51: =COUNTIF(EH18:EH2039,">1") -> 0 | M51: =IF(EJ16="","-",EJ16) -> - | N51: =EG5 -> 0 | S51: =D51-C51 -> 4.5 | BD51: 0 | BE51: =IF(OCL_Saisie!W50="IND",OCL_Saisie!CW50,"") ->  | BF51: =IF(OCL_Saisie!W50="col",OCL_Saisie!CW50,"") ->  | BG51: =IF(OCL_Saisie!W50="mix",OCL_Saisie!CW50,"") ->  | BK51: =IF(AND(BH51>100%,BH51<>""),OCL_Saisie!E50&"/","") ->  | BL51: =IF(AND(BI51>100%,BI51<>""),OCL_Saisie!E50&"/","") ->  | BM51: =IF(AND(BJ51>100%,BJ51<>""),OCL_Saisie!E50&"/","") ->  | BS51: =IF(OCL_Saisie!W50="col",OCL_Saisie!CX50,"") ->  | BT51: =IF(AND(OCL_Saisie!W50<>"col",OCL_Saisie!W50<>""),OCL_Saisie!CX50,"") ->  | BW51: =IF(AND(BU51>100%,BU51<>""),OCL_Saisie!E50&"/","") ->  | BX51: =IF(AND(BV51>100%,BV51<>""),OCL_Saisie!E50&"/","") ->  | CC51: =IF(OCL_Saisie!CY50="","",OCL_Saisie!CY50) ->  | CE51: =IF(AND(CD51>100%,CD51<>""),OCL_Saisie!E50&"/","") ->  | CI51: =IF(OR(OCL_Saisie!AA50="col",OCL_Saisie!AA50="cu",OCL_Saisie!AA50="mix"),OCL_Saisie!CZ50,"") ->  | CJ51: =IF(AND(OCL_Saisie!AA50<>"col",OCL_Saisie!AA50<>"cu",OCL_Saisie!AA50<>"mix",OCL_Saisie!AA50<>""),OCL_Saisie!CZ50,"") ->  | CM51: =IF(AND(CK51>100%,CK51<>""),OCL_Saisie!E50&"/","") ->  | CN51: =IF(AND(CL51>100%,CL51<>""),OCL_Saisie!E50&"/","") ->  | CS51: =IF(OR(OCL_Saisie!AA50="col",OCL_Saisie!AA50="cu",OCL_Saisie!AA50="mix"),OCL_Saisie!DD50,"") ->  | CT51: =IF(AND(OCL_Saisie!AA50<>"col",OCL_Saisie!AA50<>"cu",OCL_Saisie!AA50<>"mix",OCL_Saisie!AA50<>""),OCL_Saisie!DD50,"") ->  | CW51: =IF(AND(CU51>100%,CU51<>""),OCL_Saisie!E50&"/","") ->  | CX51: =IF(AND(CV51>100%,CV51<>""),OCL_Saisie!E50&"/","") ->  | DC51: =IF(OCL_Saisie!DE50="","",OCL_Saisie!DE50) ->  | DE51: =IF(AND(DD51>100%,DD51<>""),OCL_Saisie!E50&"/","") ->  | DI51: =IF(OCL_Saisie!DF50="","",OCL_Saisie!DF50) ->  | DK51: =IF(AND(DJ51>100%,DJ51<>""),OCL_Saisie!E50&"/","") ->  | DO51: =IF(OCL_Saisie!DG50="","",OCL_Saisie!DG50) ->  | DQ51: =IF(AND(DP51>100%,DP51<>""),OCL_Saisie!E50&"/","") ->  | DU51: =IF(OCL_Saisie!DH50="","",OCL_Saisie!DH50) ->  | DW51: =IF(AND(DV51>100%,DV51<>""),OCL_Saisie!E50&"/","") ->  | EA51: =IF(OCL_Saisie!DI50="","",OCL_Saisie!DI50) ->  | EC51: =IF(AND(EB51>100%,EB51<>""),OCL_Saisie!E50&"/","") ->  | EG51: =IF(OCL_Saisie!DJ50="","",OCL_Saisie!DJ50) ->  | EI51: =IF(AND(EH51>100%,EH51<>""),OCL_Saisie!E50&"/","") ->  | EM51: =IF(OCL_Saisie!DK50="","",OCL_Saisie!DK50) ->  | EO51: =IF(AND(EN51>100%,EN51<>""),OCL_Saisie!E50&"/","") ->  | ES51: =IF(OCL_Saisie!DM50="","",OCL_Saisie!DM50) ->  | EU51: =IF(AND(ET51>100%,ET51<>""),OCL_Saisie!E50&"/","") ->  | EY51: =IF(OCL_Saisie!DO50="","",OCL_Saisie!DO50) ->  | FA51: =IF(AND(EZ51>100%,EZ51<>""),OCL_Saisie!E50&"/","") ->  | FE51: =IF(OCL_Saisie!DP50="","",OCL_Saisie!DP50) ->  | FG51: =IF(AND(FF51>100%,FF51<>""),OCL_Saisie!E50&"/","") ->  | FK51: =IF(OR(OCL_Saisie!AA50="col",OCL_Saisie!AA50="cu"),OCL_Saisie!DQ50,"") ->  | FM51: =IF(AND(FL51>100%,FL51<>""),OCL_Saisie!E50&"/","") ->  | FQ51: =IF(OR(OCL_Saisie!AA50="col",OCL_Saisie!AA50="cu"),OCL_Saisie!DR50,"") ->  | FS51: =IF(AND(FR51>100%,FR51<>""),OCL_Saisie!E50&"/","") ->  | FW51: =IF(OR(OCL_Saisie!AA50="col",OCL_Saisie!AA50="cu"),OCL_Saisie!DS50,"") ->  | FY51: =IF(AND(FX51>100%,FX51<>""),OCL_Saisie!E50&"/","") ->  | GC51: =IF(OCL_Saisie!DT50="","",OCL_Saisie!DT50) ->  | GE51: =IF(AND(GD51>100%,GD51<>""),OCL_Saisie!E50&"/","") ->  | GJ51: =IF(OCL_Saisie!DN50="","",OCL_Saisie!DN50) ->  | GL51: =IF(AND(GK51>100%,GK51<>""),OCL_Saisie!E50&"/","") ->  | GP51: =IF(OR(OCL_Saisie!AA50="col",OCL_Saisie!AA50="cu",OCL_Saisie!AA50="mix"),OCL_Saisie!DB50,"") ->  | GQ51: =IF(AND(OCL_Saisie!AA50<>"col",OCL_Saisie!AA50<>"cu",OCL_Saisie!AA50<>"mix",OCL_Saisie!AA50<>""),OCL_Saisie!DB50,"") ->  | GT51: =IF(AND(GR51>100%,GR51<>""),OCL_Saisie!E50&"/","") ->  | GU51: =IF(AND(GS51>100%,GS51<>""),OCL_Saisie!E50&"/","") ->  | GZ51: =IF(OR(OCL_Saisie!AA50="col",OCL_Saisie!AA50="cu",OCL_Saisie!AA50="mix"),OCL_Saisie!DC50,"") ->  | HA51: =IF(AND(OCL_Saisie!AA50<>"col",OCL_Saisie!AA50<>"cu",OCL_Saisie!AA50<>"mix",OCL_Saisie!AA50<>""),OCL_Saisie!DC50,"") ->  | HD51: =IF(AND(HB51>100%,HB51<>""),OCL_Saisie!E50&"/","") ->  | HE51: =IF(AND(HC51>100%,HC51<>""),OCL_Saisie!E50&"/","") ->  | HJ51: =IF(OR(OCL_Saisie!AA50="col",OCL_Saisie!AA50="cu"),OCL_Saisie!DA50,"") ->  | HK51: =IF(AND(OCL_Saisie!AA50<>"col",OCL_Saisie!AA50<>"cu",OCL_Saisie!AA50<>""),OCL_Saisie!DA50,"") ->  | HN51: =IF(AND(HL51>100%,HL51<>""),OCL_Saisie!E50&"/","") ->  | HO51: =IF(AND(HM51>100%,HM51<>""),OCL_Saisie!E50&"/","") -> 
BD52: 0 | BE52: =IF(OCL_Saisie!W51="IND",OCL_Saisie!CW51,"") ->  | BF52: =IF(OCL_Saisie!W51="col",OCL_Saisie!CW51,"") ->  | BG52: =IF(OCL_Saisie!W51="mix",OCL_Saisie!CW51,"") ->  | BK52: =IF(AND(BH52>100%,BH52<>""),OCL_Saisie!E51&"/","") ->  | BL52: =IF(AND(BI52>100%,BI52<>""),OCL_Saisie!E51&"/","") ->  | BM52: =IF(AND(BJ52>100%,BJ52<>""),OCL_Saisie!E51&"/","") ->  | BS52: =IF(OCL_Saisie!W51="col",OCL_Saisie!CX51,"") ->  | BT52: =IF(AND(OCL_Saisie!W51<>"col",OCL_Saisie!W51<>""),OCL_Saisie!CX51,"") ->  | BW52: =IF(AND(BU52>100%,BU52<>""),OCL_Saisie!E51&"/","") ->  | BX52: =IF(AND(BV52>100%,BV52<>""),OCL_Saisie!E51&"/","") ->  | CC52: =IF(OCL_Saisie!CY51="","",OCL_Saisie!CY51) ->  | CE52: =IF(AND(CD52>100%,CD52<>""),OCL_Saisie!E51&"/","") ->  | CI52: =IF(OR(OCL_Saisie!AA51="col",OCL_Saisie!AA51="cu",OCL_Saisie!AA51="mix"),OCL_Saisie!CZ51,"") ->  | CJ52: =IF(AND(OCL_Saisie!AA51<>"col",OCL_Saisie!AA51<>"cu",OCL_Saisie!AA51<>"mix",OCL_Saisie!AA51<>""),OCL_Saisie!CZ51,"") ->  | CM52: =IF(AND(CK52>100%,CK52<>""),OCL_Saisie!E51&"/","") ->  | CN52: =IF(AND(CL52>100%,CL52<>""),OCL_Saisie!E51&"/","") ->  | CS52: =IF(OR(OCL_Saisie!AA51="col",OCL_Saisie!AA51="cu",OCL_Saisie!AA51="mix"),OCL_Saisie!DD51,"") ->  | CT52: =IF(AND(OCL_Saisie!AA51<>"col",OCL_Saisie!AA51<>"cu",OCL_Saisie!AA51<>"mix",OCL_Saisie!AA51<>""),OCL_Saisie!DD51,"") ->  | CW52: =IF(AND(CU52>100%,CU52<>""),OCL_Saisie!E51&"/","") ->  | CX52: =IF(AND(CV52>100%,CV52<>""),OCL_Saisie!E51&"/","") ->  | DC52: =IF(OCL_Saisie!DE51="","",OCL_Saisie!DE51) ->  | DE52: =IF(AND(DD52>100%,DD52<>""),OCL_Saisie!E51&"/","") ->  | DI52: =IF(OCL_Saisie!DF51="","",OCL_Saisie!DF51) ->  | DK52: =IF(AND(DJ52>100%,DJ52<>""),OCL_Saisie!E51&"/","") ->  | DO52: =IF(OCL_Saisie!DG51="","",OCL_Saisie!DG51) ->  | DQ52: =IF(AND(DP52>100%,DP52<>""),OCL_Saisie!E51&"/","") ->  | DU52: =IF(OCL_Saisie!DH51="","",OCL_Saisie!DH51) ->  | DW52: =IF(AND(DV52>100%,DV52<>""),OCL_Saisie!E51&"/","") ->  | EA52: =IF(OCL_Saisie!DI51="","",OCL_Saisie!DI51) ->  | EC52: =IF(AND(EB52>100%,EB52<>""),OCL_Saisie!E51&"/","") ->  | EG52: =IF(OCL_Saisie!DJ51="","",OCL_Saisie!DJ51) ->  | EI52: =IF(AND(EH52>100%,EH52<>""),OCL_Saisie!E51&"/","") ->  | EM52: =IF(OCL_Saisie!DK51="","",OCL_Saisie!DK51) ->  | EO52: =IF(AND(EN52>100%,EN52<>""),OCL_Saisie!E51&"/","") ->  | ES52: =IF(OCL_Saisie!DM51="","",OCL_Saisie!DM51) ->  | EU52: =IF(AND(ET52>100%,ET52<>""),OCL_Saisie!E51&"/","") ->  | EY52: =IF(OCL_Saisie!DO51="","",OCL_Saisie!DO51) ->  | FA52: =IF(AND(EZ52>100%,EZ52<>""),OCL_Saisie!E51&"/","") ->  | FE52: =IF(OCL_Saisie!DP51="","",OCL_Saisie!DP51) ->  | FG52: =IF(AND(FF52>100%,FF52<>""),OCL_Saisie!E51&"/","") ->  | FK52: =IF(OR(OCL_Saisie!AA51="col",OCL_Saisie!AA51="cu"),OCL_Saisie!DQ51,"") ->  | FM52: =IF(AND(FL52>100%,FL52<>""),OCL_Saisie!E51&"/","") ->  | FQ52: =IF(OR(OCL_Saisie!AA51="col",OCL_Saisie!AA51="cu"),OCL_Saisie!DR51,"") ->  | FS52: =IF(AND(FR52>100%,FR52<>""),OCL_Saisie!E51&"/","") ->  | FW52: =IF(OR(OCL_Saisie!AA51="col",OCL_Saisie!AA51="cu"),OCL_Saisie!DS51,"") ->  | FY52: =IF(AND(FX52>100%,FX52<>""),OCL_Saisie!E51&"/","") ->  | GC52: =IF(OCL_Saisie!DT51="","",OCL_Saisie!DT51) ->  | GE52: =IF(AND(GD52>100%,GD52<>""),OCL_Saisie!E51&"/","") ->  | GJ52: =IF(OCL_Saisie!DN51="","",OCL_Saisie!DN51) ->  | GL52: =IF(AND(GK52>100%,GK52<>""),OCL_Saisie!E51&"/","") ->  | GP52: =IF(OR(OCL_Saisie!AA51="col",OCL_Saisie!AA51="cu",OCL_Saisie!AA51="mix"),OCL_Saisie!DB51,"") ->  | GQ52: =IF(AND(OCL_Saisie!AA51<>"col",OCL_Saisie!AA51<>"cu",OCL_Saisie!AA51<>"mix",OCL_Saisie!AA51<>""),OCL_Saisie!DB51,"") ->  | GT52: =IF(AND(GR52>100%,GR52<>""),OCL_Saisie!E51&"/","") ->  | GU52: =IF(AND(GS52>100%,GS52<>""),OCL_Saisie!E51&"/","") ->  | GZ52: =IF(OR(OCL_Saisie!AA51="col",OCL_Saisie!AA51="cu",OCL_Saisie!AA51="mix"),OCL_Saisie!DC51,"") ->  | HA52: =IF(AND(OCL_Saisie!AA51<>"col",OCL_Saisie!AA51<>"cu",OCL_Saisie!AA51<>"mix",OCL_Saisie!AA51<>""),OCL_Saisie!DC51,"") ->  | HD52: =IF(AND(HB52>100%,HB52<>""),OCL_Saisie!E51&"/","") ->  | HE52: =IF(AND(HC52>100%,HC52<>""),OCL_Saisie!E51&"/","") ->  | HJ52: =IF(OR(OCL_Saisie!AA51="col",OCL_Saisie!AA51="cu"),OCL_Saisie!DA51,"") ->  | HK52: =IF(AND(OCL_Saisie!AA51<>"col",OCL_Saisie!AA51<>"cu",OCL_Saisie!AA51<>""),OCL_Saisie!DA51,"") ->  | HN52: =IF(AND(HL52>100%,HL52<>""),OCL_Saisie!E51&"/","") ->  | HO52: =IF(AND(HM52>100%,HM52<>""),OCL_Saisie!E51&"/","") -> 
B53: MD_TT_PKG : Montant total des dépenses affectées aux garages | C53: =EM2 -> 3.8 | D53: =EM1 -> 90 | E53: - | F53: =EM6 -> - | G53: =EM7 -> - | H53: =COUNTIF(EM18:EM2040,">-100") -> 0 | I53: =EM3+EM4 -> 0 | J53: =COUNTIF(EN18:EN2039,"<"&$J$1) -> 0 | K53: =I53-L53-J53 -> 0 | L53: =COUNTIF(EN18:EN2039,">1") -> 0 | M53: =IF(EP16="","-",EP16) -> - | N53: =EM5 -> 0 | S53: =D53-C53 -> 86.2 | BD53: 0 | BE53: =IF(OCL_Saisie!W52="IND",OCL_Saisie!CW52,"") ->  | BF53: =IF(OCL_Saisie!W52="col",OCL_Saisie!CW52,"") ->  | BG53: =IF(OCL_Saisie!W52="mix",OCL_Saisie!CW52,"") ->  | BK53: =IF(AND(BH53>100%,BH53<>""),OCL_Saisie!E52&"/","") ->  | BL53: =IF(AND(BI53>100%,BI53<>""),OCL_Saisie!E52&"/","") ->  | BM53: =IF(AND(BJ53>100%,BJ53<>""),OCL_Saisie!E52&"/","") ->  | BS53: =IF(OCL_Saisie!W52="col",OCL_Saisie!CX52,"") ->  | BT53: =IF(AND(OCL_Saisie!W52<>"col",OCL_Saisie!W52<>""),OCL_Saisie!CX52,"") ->  | BW53: =IF(AND(BU53>100%,BU53<>""),OCL_Saisie!E52&"/","") ->  | BX53: =IF(AND(BV53>100%,BV53<>""),OCL_Saisie!E52&"/","") ->  | CC53: =IF(OCL_Saisie!CY52="","",OCL_Saisie!CY52) ->  | CE53: =IF(AND(CD53>100%,CD53<>""),OCL_Saisie!E52&"/","") ->  | CI53: =IF(OR(OCL_Saisie!AA52="col",OCL_Saisie!AA52="cu",OCL_Saisie!AA52="mix"),OCL_Saisie!CZ52,"") ->  | CJ53: =IF(AND(OCL_Saisie!AA52<>"col",OCL_Saisie!AA52<>"cu",OCL_Saisie!AA52<>"mix",OCL_Saisie!AA52<>""),OCL_Saisie!CZ52,"") ->  | CM53: =IF(AND(CK53>100%,CK53<>""),OCL_Saisie!E52&"/","") ->  | CN53: =IF(AND(CL53>100%,CL53<>""),OCL_Saisie!E52&"/","") ->  | CS53: =IF(OR(OCL_Saisie!AA52="col",OCL_Saisie!AA52="cu",OCL_Saisie!AA52="mix"),OCL_Saisie!DD52,"") ->  | CT53: =IF(AND(OCL_Saisie!AA52<>"col",OCL_Saisie!AA52<>"cu",OCL_Saisie!AA52<>"mix",OCL_Saisie!AA52<>""),OCL_Saisie!DD52,"") ->  | CW53: =IF(AND(CU53>100%,CU53<>""),OCL_Saisie!E52&"/","") ->  | CX53: =IF(AND(CV53>100%,CV53<>""),OCL_Saisie!E52&"/","") ->  | DC53: =IF(OCL_Saisie!DE52="","",OCL_Saisie!DE52) ->  | DE53: =IF(AND(DD53>100%,DD53<>""),OCL_Saisie!E52&"/","") ->  | DI53: =IF(OCL_Saisie!DF52="","",OCL_Saisie!DF52) ->  | DK53: =IF(AND(DJ53>100%,DJ53<>""),OCL_Saisie!E52&"/","") ->  | DO53: =IF(OCL_Saisie!DG52="","",OCL_Saisie!DG52) ->  | DQ53: =IF(AND(DP53>100%,DP53<>""),OCL_Saisie!E52&"/","") ->  | DU53: =IF(OCL_Saisie!DH52="","",OCL_Saisie!DH52) ->  | DW53: =IF(AND(DV53>100%,DV53<>""),OCL_Saisie!E52&"/","") ->  | EA53: =IF(OCL_Saisie!DI52="","",OCL_Saisie!DI52) ->  | EC53: =IF(AND(EB53>100%,EB53<>""),OCL_Saisie!E52&"/","") ->  | EG53: =IF(OCL_Saisie!DJ52="","",OCL_Saisie!DJ52) ->  | EI53: =IF(AND(EH53>100%,EH53<>""),OCL_Saisie!E52&"/","") ->  | EM53: =IF(OCL_Saisie!DK52="","",OCL_Saisie!DK52) ->  | EO53: =IF(AND(EN53>100%,EN53<>""),OCL_Saisie!E52&"/","") ->  | ES53: =IF(OCL_Saisie!DM52="","",OCL_Saisie!DM52) ->  | EU53: =IF(AND(ET53>100%,ET53<>""),OCL_Saisie!E52&"/","") ->  | EY53: =IF(OCL_Saisie!DO52="","",OCL_Saisie!DO52) ->  | FA53: =IF(AND(EZ53>100%,EZ53<>""),OCL_Saisie!E52&"/","") ->  | FE53: =IF(OCL_Saisie!DP52="","",OCL_Saisie!DP52) ->  | FG53: =IF(AND(FF53>100%,FF53<>""),OCL_Saisie!E52&"/","") ->  | FK53: =IF(OR(OCL_Saisie!AA52="col",OCL_Saisie!AA52="cu"),OCL_Saisie!DQ52,"") ->  | FM53: =IF(AND(FL53>100%,FL53<>""),OCL_Saisie!E52&"/","") ->  | FQ53: =IF(OR(OCL_Saisie!AA52="col",OCL_Saisie!AA52="cu"),OCL_Saisie!DR52,"") ->  | FS53: =IF(AND(FR53>100%,FR53<>""),OCL_Saisie!E52&"/","") ->  | FW53: =IF(OR(OCL_Saisie!AA52="col",OCL_Saisie!AA52="cu"),OCL_Saisie!DS52,"") ->  | FY53: =IF(AND(FX53>100%,FX53<>""),OCL_Saisie!E52&"/","") ->  | GC53: =IF(OCL_Saisie!DT52="","",OCL_Saisie!DT52) ->  | GE53: =IF(AND(GD53>100%,GD53<>""),OCL_Saisie!E52&"/","") ->  | GJ53: =IF(OCL_Saisie!DN52="","",OCL_Saisie!DN52) ->  | GL53: =IF(AND(GK53>100%,GK53<>""),OCL_Saisie!E52&"/","") ->  | GP53: =IF(OR(OCL_Saisie!AA52="col",OCL_Saisie!AA52="cu",OCL_Saisie!AA52="mix"),OCL_Saisie!DB52,"") ->  | GQ53: =IF(AND(OCL_Saisie!AA52<>"col",OCL_Saisie!AA52<>"cu",OCL_Saisie!AA52<>"mix",OCL_Saisie!AA52<>""),OCL_Saisie!DB52,"") ->  | GT53: =IF(AND(GR53>100%,GR53<>""),OCL_Saisie!E52&"/","") ->  | GU53: =IF(AND(GS53>100%,GS53<>""),OCL_Saisie!E52&"/","") ->  | GZ53: =IF(OR(OCL_Saisie!AA52="col",OCL_Saisie!AA52="cu",OCL_Saisie!AA52="mix"),OCL_Saisie!DC52,"") ->  | HA53: =IF(AND(OCL_Saisie!AA52<>"col",OCL_Saisie!AA52<>"cu",OCL_Saisie!AA52<>"mix",OCL_Saisie!AA52<>""),OCL_Saisie!DC52,"") ->  | HD53: =IF(AND(HB53>100%,HB53<>""),OCL_Saisie!E52&"/","") ->  | HE53: =IF(AND(HC53>100%,HC53<>""),OCL_Saisie!E52&"/","") ->  | HJ53: =IF(OR(OCL_Saisie!AA52="col",OCL_Saisie!AA52="cu"),OCL_Saisie!DA52,"") ->  | HK53: =IF(AND(OCL_Saisie!AA52<>"col",OCL_Saisie!AA52<>"cu",OCL_Saisie!AA52<>""),OCL_Saisie!DA52,"") ->  | HN53: =IF(AND(HL53>100%,HL53<>""),OCL_Saisie!E52&"/","") ->  | HO53: =IF(AND(HM53>100%,HM53<>""),OCL_Saisie!E52&"/","") -> 
BD54: 0 | BE54: =IF(OCL_Saisie!W53="IND",OCL_Saisie!CW53,"") ->  | BF54: =IF(OCL_Saisie!W53="col",OCL_Saisie!CW53,"") ->  | BG54: =IF(OCL_Saisie!W53="mix",OCL_Saisie!CW53,"") ->  | BK54: =IF(AND(BH54>100%,BH54<>""),OCL_Saisie!E53&"/","") ->  | BL54: =IF(AND(BI54>100%,BI54<>""),OCL_Saisie!E53&"/","") ->  | BM54: =IF(AND(BJ54>100%,BJ54<>""),OCL_Saisie!E53&"/","") ->  | BS54: =IF(OCL_Saisie!W53="col",OCL_Saisie!CX53,"") ->  | BT54: =IF(AND(OCL_Saisie!W53<>"col",OCL_Saisie!W53<>""),OCL_Saisie!CX53,"") ->  | BW54: =IF(AND(BU54>100%,BU54<>""),OCL_Saisie!E53&"/","") ->  | BX54: =IF(AND(BV54>100%,BV54<>""),OCL_Saisie!E53&"/","") ->  | CC54: =IF(OCL_Saisie!CY53="","",OCL_Saisie!CY53) ->  | CE54: =IF(AND(CD54>100%,CD54<>""),OCL_Saisie!E53&"/","") ->  | CI54: =IF(OR(OCL_Saisie!AA53="col",OCL_Saisie!AA53="cu",OCL_Saisie!AA53="mix"),OCL_Saisie!CZ53,"") ->  | CJ54: =IF(AND(OCL_Saisie!AA53<>"col",OCL_Saisie!AA53<>"cu",OCL_Saisie!AA53<>"mix",OCL_Saisie!AA53<>""),OCL_Saisie!CZ53,"") ->  | CM54: =IF(AND(CK54>100%,CK54<>""),OCL_Saisie!E53&"/","") ->  | CN54: =IF(AND(CL54>100%,CL54<>""),OCL_Saisie!E53&"/","") ->  | CS54: =IF(OR(OCL_Saisie!AA53="col",OCL_Saisie!AA53="cu",OCL_Saisie!AA53="mix"),OCL_Saisie!DD53,"") ->  | CT54: =IF(AND(OCL_Saisie!AA53<>"col",OCL_Saisie!AA53<>"cu",OCL_Saisie!AA53<>"mix",OCL_Saisie!AA53<>""),OCL_Saisie!DD53,"") ->  | CW54: =IF(AND(CU54>100%,CU54<>""),OCL_Saisie!E53&"/","") ->  | CX54: =IF(AND(CV54>100%,CV54<>""),OCL_Saisie!E53&"/","") ->  | DC54: =IF(OCL_Saisie!DE53="","",OCL_Saisie!DE53) ->  | DE54: =IF(AND(DD54>100%,DD54<>""),OCL_Saisie!E53&"/","") ->  | DI54: =IF(OCL_Saisie!DF53="","",OCL_Saisie!DF53) ->  | DK54: =IF(AND(DJ54>100%,DJ54<>""),OCL_Saisie!E53&"/","") ->  | DO54: =IF(OCL_Saisie!DG53="","",OCL_Saisie!DG53) ->  | DQ54: =IF(AND(DP54>100%,DP54<>""),OCL_Saisie!E53&"/","") ->  | DU54: =IF(OCL_Saisie!DH53="","",OCL_Saisie!DH53) ->  | DW54: =IF(AND(DV54>100%,DV54<>""),OCL_Saisie!E53&"/","") ->  | EA54: =IF(OCL_Saisie!DI53="","",OCL_Saisie!DI53) ->  | EC54: =IF(AND(EB54>100%,EB54<>""),OCL_Saisie!E53&"/","") ->  | EG54: =IF(OCL_Saisie!DJ53="","",OCL_Saisie!DJ53) ->  | EI54: =IF(AND(EH54>100%,EH54<>""),OCL_Saisie!E53&"/","") ->  | EM54: =IF(OCL_Saisie!DK53="","",OCL_Saisie!DK53) ->  | EO54: =IF(AND(EN54>100%,EN54<>""),OCL_Saisie!E53&"/","") ->  | ES54: =IF(OCL_Saisie!DM53="","",OCL_Saisie!DM53) ->  | EU54: =IF(AND(ET54>100%,ET54<>""),OCL_Saisie!E53&"/","") ->  | EY54: =IF(OCL_Saisie!DO53="","",OCL_Saisie!DO53) ->  | FA54: =IF(AND(EZ54>100%,EZ54<>""),OCL_Saisie!E53&"/","") ->  | FE54: =IF(OCL_Saisie!DP53="","",OCL_Saisie!DP53) ->  | FG54: =IF(AND(FF54>100%,FF54<>""),OCL_Saisie!E53&"/","") ->  | FK54: =IF(OR(OCL_Saisie!AA53="col",OCL_Saisie!AA53="cu"),OCL_Saisie!DQ53,"") ->  | FM54: =IF(AND(FL54>100%,FL54<>""),OCL_Saisie!E53&"/","") ->  | FQ54: =IF(OR(OCL_Saisie!AA53="col",OCL_Saisie!AA53="cu"),OCL_Saisie!DR53,"") ->  | FS54: =IF(AND(FR54>100%,FR54<>""),OCL_Saisie!E53&"/","") ->  | FW54: =IF(OR(OCL_Saisie!AA53="col",OCL_Saisie!AA53="cu"),OCL_Saisie!DS53,"") ->  | FY54: =IF(AND(FX54>100%,FX54<>""),OCL_Saisie!E53&"/","") ->  | GC54: =IF(OCL_Saisie!DT53="","",OCL_Saisie!DT53) ->  | GE54: =IF(AND(GD54>100%,GD54<>""),OCL_Saisie!E53&"/","") ->  | GJ54: =IF(OCL_Saisie!DN53="","",OCL_Saisie!DN53) ->  | GL54: =IF(AND(GK54>100%,GK54<>""),OCL_Saisie!E53&"/","") ->  | GP54: =IF(OR(OCL_Saisie!AA53="col",OCL_Saisie!AA53="cu",OCL_Saisie!AA53="mix"),OCL_Saisie!DB53,"") ->  | GQ54: =IF(AND(OCL_Saisie!AA53<>"col",OCL_Saisie!AA53<>"cu",OCL_Saisie!AA53<>"mix",OCL_Saisie!AA53<>""),OCL_Saisie!DB53,"") ->  | GT54: =IF(AND(GR54>100%,GR54<>""),OCL_Saisie!E53&"/","") ->  | GU54: =IF(AND(GS54>100%,GS54<>""),OCL_Saisie!E53&"/","") ->  | GZ54: =IF(OR(OCL_Saisie!AA53="col",OCL_Saisie!AA53="cu",OCL_Saisie!AA53="mix"),OCL_Saisie!DC53,"") ->  | HA54: =IF(AND(OCL_Saisie!AA53<>"col",OCL_Saisie!AA53<>"cu",OCL_Saisie!AA53<>"mix",OCL_Saisie!AA53<>""),OCL_Saisie!DC53,"") ->  | HD54: =IF(AND(HB54>100%,HB54<>""),OCL_Saisie!E53&"/","") ->  | HE54: =IF(AND(HC54>100%,HC54<>""),OCL_Saisie!E53&"/","") ->  | HJ54: =IF(OR(OCL_Saisie!AA53="col",OCL_Saisie!AA53="cu"),OCL_Saisie!DA53,"") ->  | HK54: =IF(AND(OCL_Saisie!AA53<>"col",OCL_Saisie!AA53<>"cu",OCL_Saisie!AA53<>""),OCL_Saisie!DA53,"") ->  | HN54: =IF(AND(HL54>100%,HL54<>""),OCL_Saisie!E53&"/","") ->  | HO54: =IF(AND(HM54>100%,HM54<>""),OCL_Saisie!E53&"/","") -> 
BD55: 0 | BE55: =IF(OCL_Saisie!W54="IND",OCL_Saisie!CW54,"") ->  | BF55: =IF(OCL_Saisie!W54="col",OCL_Saisie!CW54,"") ->  | BG55: =IF(OCL_Saisie!W54="mix",OCL_Saisie!CW54,"") ->  | BK55: =IF(AND(BH55>100%,BH55<>""),OCL_Saisie!E54&"/","") ->  | BL55: =IF(AND(BI55>100%,BI55<>""),OCL_Saisie!E54&"/","") ->  | BM55: =IF(AND(BJ55>100%,BJ55<>""),OCL_Saisie!E54&"/","") ->  | BS55: =IF(OCL_Saisie!W54="col",OCL_Saisie!CX54,"") ->  | BT55: =IF(AND(OCL_Saisie!W54<>"col",OCL_Saisie!W54<>""),OCL_Saisie!CX54,"") ->  | BW55: =IF(AND(BU55>100%,BU55<>""),OCL_Saisie!E54&"/","") ->  | BX55: =IF(AND(BV55>100%,BV55<>""),OCL_Saisie!E54&"/","") ->  | CC55: =IF(OCL_Saisie!CY54="","",OCL_Saisie!CY54) ->  | CE55: =IF(AND(CD55>100%,CD55<>""),OCL_Saisie!E54&"/","") ->  | CI55: =IF(OR(OCL_Saisie!AA54="col",OCL_Saisie!AA54="cu",OCL_Saisie!AA54="mix"),OCL_Saisie!CZ54,"") ->  | CJ55: =IF(AND(OCL_Saisie!AA54<>"col",OCL_Saisie!AA54<>"cu",OCL_Saisie!AA54<>"mix",OCL_Saisie!AA54<>""),OCL_Saisie!CZ54,"") ->  | CM55: =IF(AND(CK55>100%,CK55<>""),OCL_Saisie!E54&"/","") ->  | CN55: =IF(AND(CL55>100%,CL55<>""),OCL_Saisie!E54&"/","") ->  | CS55: =IF(OR(OCL_Saisie!AA54="col",OCL_Saisie!AA54="cu",OCL_Saisie!AA54="mix"),OCL_Saisie!DD54,"") ->  | CT55: =IF(AND(OCL_Saisie!AA54<>"col",OCL_Saisie!AA54<>"cu",OCL_Saisie!AA54<>"mix",OCL_Saisie!AA54<>""),OCL_Saisie!DD54,"") ->  | CW55: =IF(AND(CU55>100%,CU55<>""),OCL_Saisie!E54&"/","") ->  | CX55: =IF(AND(CV55>100%,CV55<>""),OCL_Saisie!E54&"/","") ->  | DC55: =IF(OCL_Saisie!DE54="","",OCL_Saisie!DE54) ->  | DE55: =IF(AND(DD55>100%,DD55<>""),OCL_Saisie!E54&"/","") ->  | DI55: =IF(OCL_Saisie!DF54="","",OCL_Saisie!DF54) ->  | DK55: =IF(AND(DJ55>100%,DJ55<>""),OCL_Saisie!E54&"/","") ->  | DO55: =IF(OCL_Saisie!DG54="","",OCL_Saisie!DG54) ->  | DQ55: =IF(AND(DP55>100%,DP55<>""),OCL_Saisie!E54&"/","") ->  | DU55: =IF(OCL_Saisie!DH54="","",OCL_Saisie!DH54) ->  | DW55: =IF(AND(DV55>100%,DV55<>""),OCL_Saisie!E54&"/","") ->  | EA55: =IF(OCL_Saisie!DI54="","",OCL_Saisie!DI54) ->  | EC55: =IF(AND(EB55>100%,EB55<>""),OCL_Saisie!E54&"/","") ->  | EG55: =IF(OCL_Saisie!DJ54="","",OCL_Saisie!DJ54) ->  | EI55: =IF(AND(EH55>100%,EH55<>""),OCL_Saisie!E54&"/","") ->  | EM55: =IF(OCL_Saisie!DK54="","",OCL_Saisie!DK54) ->  | EO55: =IF(AND(EN55>100%,EN55<>""),OCL_Saisie!E54&"/","") ->  | ES55: =IF(OCL_Saisie!DM54="","",OCL_Saisie!DM54) ->  | EU55: =IF(AND(ET55>100%,ET55<>""),OCL_Saisie!E54&"/","") ->  | EY55: =IF(OCL_Saisie!DO54="","",OCL_Saisie!DO54) ->  | FA55: =IF(AND(EZ55>100%,EZ55<>""),OCL_Saisie!E54&"/","") ->  | FE55: =IF(OCL_Saisie!DP54="","",OCL_Saisie!DP54) ->  | FG55: =IF(AND(FF55>100%,FF55<>""),OCL_Saisie!E54&"/","") ->  | FK55: =IF(OR(OCL_Saisie!AA54="col",OCL_Saisie!AA54="cu"),OCL_Saisie!DQ54,"") ->  | FM55: =IF(AND(FL55>100%,FL55<>""),OCL_Saisie!E54&"/","") ->  | FQ55: =IF(OR(OCL_Saisie!AA54="col",OCL_Saisie!AA54="cu"),OCL_Saisie!DR54,"") ->  | FS55: =IF(AND(FR55>100%,FR55<>""),OCL_Saisie!E54&"/","") ->  | FW55: =IF(OR(OCL_Saisie!AA54="col",OCL_Saisie!AA54="cu"),OCL_Saisie!DS54,"") ->  | FY55: =IF(AND(FX55>100%,FX55<>""),OCL_Saisie!E54&"/","") ->  | GC55: =IF(OCL_Saisie!DT54="","",OCL_Saisie!DT54) ->  | GE55: =IF(AND(GD55>100%,GD55<>""),OCL_Saisie!E54&"/","") ->  | GJ55: =IF(OCL_Saisie!DN54="","",OCL_Saisie!DN54) ->  | GL55: =IF(AND(GK55>100%,GK55<>""),OCL_Saisie!E54&"/","") ->  | GP55: =IF(OR(OCL_Saisie!AA54="col",OCL_Saisie!AA54="cu",OCL_Saisie!AA54="mix"),OCL_Saisie!DB54,"") ->  | GQ55: =IF(AND(OCL_Saisie!AA54<>"col",OCL_Saisie!AA54<>"cu",OCL_Saisie!AA54<>"mix",OCL_Saisie!AA54<>""),OCL_Saisie!DB54,"") ->  | GT55: =IF(AND(GR55>100%,GR55<>""),OCL_Saisie!E54&"/","") ->  | GU55: =IF(AND(GS55>100%,GS55<>""),OCL_Saisie!E54&"/","") ->  | GZ55: =IF(OR(OCL_Saisie!AA54="col",OCL_Saisie!AA54="cu",OCL_Saisie!AA54="mix"),OCL_Saisie!DC54,"") ->  | HA55: =IF(AND(OCL_Saisie!AA54<>"col",OCL_Saisie!AA54<>"cu",OCL_Saisie!AA54<>"mix",OCL_Saisie!AA54<>""),OCL_Saisie!DC54,"") ->  | HD55: =IF(AND(HB55>100%,HB55<>""),OCL_Saisie!E54&"/","") ->  | HE55: =IF(AND(HC55>100%,HC55<>""),OCL_Saisie!E54&"/","") ->  | HJ55: =IF(OR(OCL_Saisie!AA54="col",OCL_Saisie!AA54="cu"),OCL_Saisie!DA54,"") ->  | HK55: =IF(AND(OCL_Saisie!AA54<>"col",OCL_Saisie!AA54<>"cu",OCL_Saisie!AA54<>""),OCL_Saisie!DA54,"") ->  | HN55: =IF(AND(HL55>100%,HL55<>""),OCL_Saisie!E54&"/","") ->  | HO55: =IF(AND(HM55>100%,HM55<>""),OCL_Saisie!E54&"/","") -> 
A56: Consommation du poste EAU | B56: VC_TT_EAU : Volume total d'eau facturée par le distributeur | C56: =ES2 -> 0.01 | D56: =ES1 -> 3 | E56: - | F56: =ES6 -> - | G56: =ES7 -> - | H56: =COUNTIF(ES18:ES2040,">-100") -> 0 | I56: =ES3+ES4 -> 0 | J56: =COUNTIF(ET18:ET2039,"<"&$J$1) -> 0 | K56: =I56-L56-J56 -> 0 | L56: =COUNTIF(ET18:ET2039,">1") -> 0 | M56: =IF(EV16="","-",EV16) -> - | N56: =ES5 -> 0 | S56: =D56-C56 -> 2.99 | BD56: 0 | BE56: =IF(OCL_Saisie!W55="IND",OCL_Saisie!CW55,"") ->  | BF56: =IF(OCL_Saisie!W55="col",OCL_Saisie!CW55,"") ->  | BG56: =IF(OCL_Saisie!W55="mix",OCL_Saisie!CW55,"") ->  | BK56: =IF(AND(BH56>100%,BH56<>""),OCL_Saisie!E55&"/","") ->  | BL56: =IF(AND(BI56>100%,BI56<>""),OCL_Saisie!E55&"/","") ->  | BM56: =IF(AND(BJ56>100%,BJ56<>""),OCL_Saisie!E55&"/","") ->  | BS56: =IF(OCL_Saisie!W55="col",OCL_Saisie!CX55,"") ->  | BT56: =IF(AND(OCL_Saisie!W55<>"col",OCL_Saisie!W55<>""),OCL_Saisie!CX55,"") ->  | BW56: =IF(AND(BU56>100%,BU56<>""),OCL_Saisie!E55&"/","") ->  | BX56: =IF(AND(BV56>100%,BV56<>""),OCL_Saisie!E55&"/","") ->  | CC56: =IF(OCL_Saisie!CY55="","",OCL_Saisie!CY55) ->  | CE56: =IF(AND(CD56>100%,CD56<>""),OCL_Saisie!E55&"/","") ->  | CI56: =IF(OR(OCL_Saisie!AA55="col",OCL_Saisie!AA55="cu",OCL_Saisie!AA55="mix"),OCL_Saisie!CZ55,"") ->  | CJ56: =IF(AND(OCL_Saisie!AA55<>"col",OCL_Saisie!AA55<>"cu",OCL_Saisie!AA55<>"mix",OCL_Saisie!AA55<>""),OCL_Saisie!CZ55,"") ->  | CM56: =IF(AND(CK56>100%,CK56<>""),OCL_Saisie!E55&"/","") ->  | CN56: =IF(AND(CL56>100%,CL56<>""),OCL_Saisie!E55&"/","") ->  | CS56: =IF(OR(OCL_Saisie!AA55="col",OCL_Saisie!AA55="cu",OCL_Saisie!AA55="mix"),OCL_Saisie!DD55,"") ->  | CT56: =IF(AND(OCL_Saisie!AA55<>"col",OCL_Saisie!AA55<>"cu",OCL_Saisie!AA55<>"mix",OCL_Saisie!AA55<>""),OCL_Saisie!DD55,"") ->  | CW56: =IF(AND(CU56>100%,CU56<>""),OCL_Saisie!E55&"/","") ->  | CX56: =IF(AND(CV56>100%,CV56<>""),OCL_Saisie!E55&"/","") ->  | DC56: =IF(OCL_Saisie!DE55="","",OCL_Saisie!DE55) ->  | DE56: =IF(AND(DD56>100%,DD56<>""),OCL_Saisie!E55&"/","") ->  | DI56: =IF(OCL_Saisie!DF55="","",OCL_Saisie!DF55) ->  | DK56: =IF(AND(DJ56>100%,DJ56<>""),OCL_Saisie!E55&"/","") ->  | DO56: =IF(OCL_Saisie!DG55="","",OCL_Saisie!DG55) ->  | DQ56: =IF(AND(DP56>100%,DP56<>""),OCL_Saisie!E55&"/","") ->  | DU56: =IF(OCL_Saisie!DH55="","",OCL_Saisie!DH55) ->  | DW56: =IF(AND(DV56>100%,DV56<>""),OCL_Saisie!E55&"/","") ->  | EA56: =IF(OCL_Saisie!DI55="","",OCL_Saisie!DI55) ->  | EC56: =IF(AND(EB56>100%,EB56<>""),OCL_Saisie!E55&"/","") ->  | EG56: =IF(OCL_Saisie!DJ55="","",OCL_Saisie!DJ55) ->  | EI56: =IF(AND(EH56>100%,EH56<>""),OCL_Saisie!E55&"/","") ->  | EM56: =IF(OCL_Saisie!DK55="","",OCL_Saisie!DK55) ->  | EO56: =IF(AND(EN56>100%,EN56<>""),OCL_Saisie!E55&"/","") ->  | ES56: =IF(OCL_Saisie!DM55="","",OCL_Saisie!DM55) ->  | EU56: =IF(AND(ET56>100%,ET56<>""),OCL_Saisie!E55&"/","") ->  | EY56: =IF(OCL_Saisie!DO55="","",OCL_Saisie!DO55) ->  | FA56: =IF(AND(EZ56>100%,EZ56<>""),OCL_Saisie!E55&"/","") ->  | FE56: =IF(OCL_Saisie!DP55="","",OCL_Saisie!DP55) ->  | FG56: =IF(AND(FF56>100%,FF56<>""),OCL_Saisie!E55&"/","") ->  | FK56: =IF(OR(OCL_Saisie!AA55="col",OCL_Saisie!AA55="cu"),OCL_Saisie!DQ55,"") ->  | FM56: =IF(AND(FL56>100%,FL56<>""),OCL_Saisie!E55&"/","") ->  | FQ56: =IF(OR(OCL_Saisie!AA55="col",OCL_Saisie!AA55="cu"),OCL_Saisie!DR55,"") ->  | FS56: =IF(AND(FR56>100%,FR56<>""),OCL_Saisie!E55&"/","") ->  | FW56: =IF(OR(OCL_Saisie!AA55="col",OCL_Saisie!AA55="cu"),OCL_Saisie!DS55,"") ->  | FY56: =IF(AND(FX56>100%,FX56<>""),OCL_Saisie!E55&"/","") ->  | GC56: =IF(OCL_Saisie!DT55="","",OCL_Saisie!DT55) ->  | GE56: =IF(AND(GD56>100%,GD56<>""),OCL_Saisie!E55&"/","") ->  | GJ56: =IF(OCL_Saisie!DN55="","",OCL_Saisie!DN55) ->  | GL56: =IF(AND(GK56>100%,GK56<>""),OCL_Saisie!E55&"/","") ->  | GP56: =IF(OR(OCL_Saisie!AA55="col",OCL_Saisie!AA55="cu",OCL_Saisie!AA55="mix"),OCL_Saisie!DB55,"") ->  | GQ56: =IF(AND(OCL_Saisie!AA55<>"col",OCL_Saisie!AA55<>"cu",OCL_Saisie!AA55<>"mix",OCL_Saisie!AA55<>""),OCL_Saisie!DB55,"") ->  | GT56: =IF(AND(GR56>100%,GR56<>""),OCL_Saisie!E55&"/","") ->  | GU56: =IF(AND(GS56>100%,GS56<>""),OCL_Saisie!E55&"/","") ->  | GZ56: =IF(OR(OCL_Saisie!AA55="col",OCL_Saisie!AA55="cu",OCL_Saisie!AA55="mix"),OCL_Saisie!DC55,"") ->  | HA56: =IF(AND(OCL_Saisie!AA55<>"col",OCL_Saisie!AA55<>"cu",OCL_Saisie!AA55<>"mix",OCL_Saisie!AA55<>""),OCL_Saisie!DC55,"") ->  | HD56: =IF(AND(HB56>100%,HB56<>""),OCL_Saisie!E55&"/","") ->  | HE56: =IF(AND(HC56>100%,HC56<>""),OCL_Saisie!E55&"/","") ->  | HJ56: =IF(OR(OCL_Saisie!AA55="col",OCL_Saisie!AA55="cu"),OCL_Saisie!DA55,"") ->  | HK56: =IF(AND(OCL_Saisie!AA55<>"col",OCL_Saisie!AA55<>"cu",OCL_Saisie!AA55<>""),OCL_Saisie!DA55,"") ->  | HN56: =IF(AND(HL56>100%,HL56<>""),OCL_Saisie!E55&"/","") ->  | HO56: =IF(AND(HM56>100%,HM56<>""),OCL_Saisie!E55&"/","") -> 
BD57: 0 | BE57: =IF(OCL_Saisie!W56="IND",OCL_Saisie!CW56,"") ->  | BF57: =IF(OCL_Saisie!W56="col",OCL_Saisie!CW56,"") ->  | BG57: =IF(OCL_Saisie!W56="mix",OCL_Saisie!CW56,"") ->  | BK57: =IF(AND(BH57>100%,BH57<>""),OCL_Saisie!E56&"/","") ->  | BL57: =IF(AND(BI57>100%,BI57<>""),OCL_Saisie!E56&"/","") ->  | BM57: =IF(AND(BJ57>100%,BJ57<>""),OCL_Saisie!E56&"/","") ->  | BS57: =IF(OCL_Saisie!W56="col",OCL_Saisie!CX56,"") ->  | BT57: =IF(AND(OCL_Saisie!W56<>"col",OCL_Saisie!W56<>""),OCL_Saisie!CX56,"") ->  | BW57: =IF(AND(BU57>100%,BU57<>""),OCL_Saisie!E56&"/","") ->  | BX57: =IF(AND(BV57>100%,BV57<>""),OCL_Saisie!E56&"/","") ->  | CC57: =IF(OCL_Saisie!CY56="","",OCL_Saisie!CY56) ->  | CE57: =IF(AND(CD57>100%,CD57<>""),OCL_Saisie!E56&"/","") ->  | CI57: =IF(OR(OCL_Saisie!AA56="col",OCL_Saisie!AA56="cu",OCL_Saisie!AA56="mix"),OCL_Saisie!CZ56,"") ->  | CJ57: =IF(AND(OCL_Saisie!AA56<>"col",OCL_Saisie!AA56<>"cu",OCL_Saisie!AA56<>"mix",OCL_Saisie!AA56<>""),OCL_Saisie!CZ56,"") ->  | CM57: =IF(AND(CK57>100%,CK57<>""),OCL_Saisie!E56&"/","") ->  | CN57: =IF(AND(CL57>100%,CL57<>""),OCL_Saisie!E56&"/","") ->  | CS57: =IF(OR(OCL_Saisie!AA56="col",OCL_Saisie!AA56="cu",OCL_Saisie!AA56="mix"),OCL_Saisie!DD56,"") ->  | CT57: =IF(AND(OCL_Saisie!AA56<>"col",OCL_Saisie!AA56<>"cu",OCL_Saisie!AA56<>"mix",OCL_Saisie!AA56<>""),OCL_Saisie!DD56,"") ->  | CW57: =IF(AND(CU57>100%,CU57<>""),OCL_Saisie!E56&"/","") ->  | CX57: =IF(AND(CV57>100%,CV57<>""),OCL_Saisie!E56&"/","") ->  | DC57: =IF(OCL_Saisie!DE56="","",OCL_Saisie!DE56) ->  | DE57: =IF(AND(DD57>100%,DD57<>""),OCL_Saisie!E56&"/","") ->  | DI57: =IF(OCL_Saisie!DF56="","",OCL_Saisie!DF56) ->  | DK57: =IF(AND(DJ57>100%,DJ57<>""),OCL_Saisie!E56&"/","") ->  | DO57: =IF(OCL_Saisie!DG56="","",OCL_Saisie!DG56) ->  | DQ57: =IF(AND(DP57>100%,DP57<>""),OCL_Saisie!E56&"/","") ->  | DU57: =IF(OCL_Saisie!DH56="","",OCL_Saisie!DH56) ->  | DW57: =IF(AND(DV57>100%,DV57<>""),OCL_Saisie!E56&"/","") ->  | EA57: =IF(OCL_Saisie!DI56="","",OCL_Saisie!DI56) ->  | EC57: =IF(AND(EB57>100%,EB57<>""),OCL_Saisie!E56&"/","") ->  | EG57: =IF(OCL_Saisie!DJ56="","",OCL_Saisie!DJ56) ->  | EI57: =IF(AND(EH57>100%,EH57<>""),OCL_Saisie!E56&"/","") ->  | EM57: =IF(OCL_Saisie!DK56="","",OCL_Saisie!DK56) ->  | EO57: =IF(AND(EN57>100%,EN57<>""),OCL_Saisie!E56&"/","") ->  | ES57: =IF(OCL_Saisie!DM56="","",OCL_Saisie!DM56) ->  | EU57: =IF(AND(ET57>100%,ET57<>""),OCL_Saisie!E56&"/","") ->  | EY57: =IF(OCL_Saisie!DO56="","",OCL_Saisie!DO56) ->  | FA57: =IF(AND(EZ57>100%,EZ57<>""),OCL_Saisie!E56&"/","") ->  | FE57: =IF(OCL_Saisie!DP56="","",OCL_Saisie!DP56) ->  | FG57: =IF(AND(FF57>100%,FF57<>""),OCL_Saisie!E56&"/","") ->  | FK57: =IF(OR(OCL_Saisie!AA56="col",OCL_Saisie!AA56="cu"),OCL_Saisie!DQ56,"") ->  | FM57: =IF(AND(FL57>100%,FL57<>""),OCL_Saisie!E56&"/","") ->  | FQ57: =IF(OR(OCL_Saisie!AA56="col",OCL_Saisie!AA56="cu"),OCL_Saisie!DR56,"") ->  | FS57: =IF(AND(FR57>100%,FR57<>""),OCL_Saisie!E56&"/","") ->  | FW57: =IF(OR(OCL_Saisie!AA56="col",OCL_Saisie!AA56="cu"),OCL_Saisie!DS56,"") ->  | FY57: =IF(AND(FX57>100%,FX57<>""),OCL_Saisie!E56&"/","") ->  | GC57: =IF(OCL_Saisie!DT56="","",OCL_Saisie!DT56) ->  | GE57: =IF(AND(GD57>100%,GD57<>""),OCL_Saisie!E56&"/","") ->  | GJ57: =IF(OCL_Saisie!DN56="","",OCL_Saisie!DN56) ->  | GL57: =IF(AND(GK57>100%,GK57<>""),OCL_Saisie!E56&"/","") ->  | GP57: =IF(OR(OCL_Saisie!AA56="col",OCL_Saisie!AA56="cu",OCL_Saisie!AA56="mix"),OCL_Saisie!DB56,"") ->  | GQ57: =IF(AND(OCL_Saisie!AA56<>"col",OCL_Saisie!AA56<>"cu",OCL_Saisie!AA56<>"mix",OCL_Saisie!AA56<>""),OCL_Saisie!DB56,"") ->  | GT57: =IF(AND(GR57>100%,GR57<>""),OCL_Saisie!E56&"/","") ->  | GU57: =IF(AND(GS57>100%,GS57<>""),OCL_Saisie!E56&"/","") ->  | GZ57: =IF(OR(OCL_Saisie!AA56="col",OCL_Saisie!AA56="cu",OCL_Saisie!AA56="mix"),OCL_Saisie!DC56,"") ->  | HA57: =IF(AND(OCL_Saisie!AA56<>"col",OCL_Saisie!AA56<>"cu",OCL_Saisie!AA56<>"mix",OCL_Saisie!AA56<>""),OCL_Saisie!DC56,"") ->  | HD57: =IF(AND(HB57>100%,HB57<>""),OCL_Saisie!E56&"/","") ->  | HE57: =IF(AND(HC57>100%,HC57<>""),OCL_Saisie!E56&"/","") ->  | HJ57: =IF(OR(OCL_Saisie!AA56="col",OCL_Saisie!AA56="cu"),OCL_Saisie!DA56,"") ->  | HK57: =IF(AND(OCL_Saisie!AA56<>"col",OCL_Saisie!AA56<>"cu",OCL_Saisie!AA56<>""),OCL_Saisie!DA56,"") ->  | HN57: =IF(AND(HL57>100%,HL57<>""),OCL_Saisie!E56&"/","") ->  | HO57: =IF(AND(HM57>100%,HM57<>""),OCL_Saisie!E56&"/","") -> 
B58: VC_EFR : Volume d'eau privative consommée pour l'eau froide | C58: 0.5 | D58: 2 | E58: - | F58: =GJ6 -> - | G58: =GJ7 -> - | H58: =COUNTIF(GJ18:GJ2040,">-100") -> 0 | I58: =GJ3+GJ4 -> 0 | J58: =COUNTIF(GK18:GK529,"<"&$J$1) -> 0 | K58: =I58-L58-J58 -> 0 | L58: =COUNTIF(GK18:GK529,">1") -> 0 | M58: =IF(GM16="","-",GM16) -> - | N58: =GJ5 -> 0 | S58: =D58-C58 -> 1.5 | BD58: 0 | BE58: =IF(OCL_Saisie!W57="IND",OCL_Saisie!CW57,"") ->  | BF58: =IF(OCL_Saisie!W57="col",OCL_Saisie!CW57,"") ->  | BG58: =IF(OCL_Saisie!W57="mix",OCL_Saisie!CW57,"") ->  | BK58: =IF(AND(BH58>100%,BH58<>""),OCL_Saisie!E57&"/","") ->  | BL58: =IF(AND(BI58>100%,BI58<>""),OCL_Saisie!E57&"/","") ->  | BM58: =IF(AND(BJ58>100%,BJ58<>""),OCL_Saisie!E57&"/","") ->  | BS58: =IF(OCL_Saisie!W57="col",OCL_Saisie!CX57,"") ->  | BT58: =IF(AND(OCL_Saisie!W57<>"col",OCL_Saisie!W57<>""),OCL_Saisie!CX57,"") ->  | BW58: =IF(AND(BU58>100%,BU58<>""),OCL_Saisie!E57&"/","") ->  | BX58: =IF(AND(BV58>100%,BV58<>""),OCL_Saisie!E57&"/","") ->  | CC58: =IF(OCL_Saisie!CY57="","",OCL_Saisie!CY57) ->  | CE58: =IF(AND(CD58>100%,CD58<>""),OCL_Saisie!E57&"/","") ->  | CI58: =IF(OR(OCL_Saisie!AA57="col",OCL_Saisie!AA57="cu",OCL_Saisie!AA57="mix"),OCL_Saisie!CZ57,"") ->  | CJ58: =IF(AND(OCL_Saisie!AA57<>"col",OCL_Saisie!AA57<>"cu",OCL_Saisie!AA57<>"mix",OCL_Saisie!AA57<>""),OCL_Saisie!CZ57,"") ->  | CM58: =IF(AND(CK58>100%,CK58<>""),OCL_Saisie!E57&"/","") ->  | CN58: =IF(AND(CL58>100%,CL58<>""),OCL_Saisie!E57&"/","") ->  | CS58: =IF(OR(OCL_Saisie!AA57="col",OCL_Saisie!AA57="cu",OCL_Saisie!AA57="mix"),OCL_Saisie!DD57,"") ->  | CT58: =IF(AND(OCL_Saisie!AA57<>"col",OCL_Saisie!AA57<>"cu",OCL_Saisie!AA57<>"mix",OCL_Saisie!AA57<>""),OCL_Saisie!DD57,"") ->  | CW58: =IF(AND(CU58>100%,CU58<>""),OCL_Saisie!E57&"/","") ->  | CX58: =IF(AND(CV58>100%,CV58<>""),OCL_Saisie!E57&"/","") ->  | DC58: =IF(OCL_Saisie!DE57="","",OCL_Saisie!DE57) ->  | DE58: =IF(AND(DD58>100%,DD58<>""),OCL_Saisie!E57&"/","") ->  | DI58: =IF(OCL_Saisie!DF57="","",OCL_Saisie!DF57) ->  | DK58: =IF(AND(DJ58>100%,DJ58<>""),OCL_Saisie!E57&"/","") ->  | DO58: =IF(OCL_Saisie!DG57="","",OCL_Saisie!DG57) ->  | DQ58: =IF(AND(DP58>100%,DP58<>""),OCL_Saisie!E57&"/","") ->  | DU58: =IF(OCL_Saisie!DH57="","",OCL_Saisie!DH57) ->  | DW58: =IF(AND(DV58>100%,DV58<>""),OCL_Saisie!E57&"/","") ->  | EA58: =IF(OCL_Saisie!DI57="","",OCL_Saisie!DI57) ->  | EC58: =IF(AND(EB58>100%,EB58<>""),OCL_Saisie!E57&"/","") ->  | EG58: =IF(OCL_Saisie!DJ57="","",OCL_Saisie!DJ57) ->  | EI58: =IF(AND(EH58>100%,EH58<>""),OCL_Saisie!E57&"/","") ->  | EM58: =IF(OCL_Saisie!DK57="","",OCL_Saisie!DK57) ->  | EO58: =IF(AND(EN58>100%,EN58<>""),OCL_Saisie!E57&"/","") ->  | ES58: =IF(OCL_Saisie!DM57="","",OCL_Saisie!DM57) ->  | EU58: =IF(AND(ET58>100%,ET58<>""),OCL_Saisie!E57&"/","") ->  | EY58: =IF(OCL_Saisie!DO57="","",OCL_Saisie!DO57) ->  | FA58: =IF(AND(EZ58>100%,EZ58<>""),OCL_Saisie!E57&"/","") ->  | FE58: =IF(OCL_Saisie!DP57="","",OCL_Saisie!DP57) ->  | FG58: =IF(AND(FF58>100%,FF58<>""),OCL_Saisie!E57&"/","") ->  | FK58: =IF(OR(OCL_Saisie!AA57="col",OCL_Saisie!AA57="cu"),OCL_Saisie!DQ57,"") ->  | FM58: =IF(AND(FL58>100%,FL58<>""),OCL_Saisie!E57&"/","") ->  | FQ58: =IF(OR(OCL_Saisie!AA57="col",OCL_Saisie!AA57="cu"),OCL_Saisie!DR57,"") ->  | FS58: =IF(AND(FR58>100%,FR58<>""),OCL_Saisie!E57&"/","") ->  | FW58: =IF(OR(OCL_Saisie!AA57="col",OCL_Saisie!AA57="cu"),OCL_Saisie!DS57,"") ->  | FY58: =IF(AND(FX58>100%,FX58<>""),OCL_Saisie!E57&"/","") ->  | GC58: =IF(OCL_Saisie!DT57="","",OCL_Saisie!DT57) ->  | GE58: =IF(AND(GD58>100%,GD58<>""),OCL_Saisie!E57&"/","") ->  | GJ58: =IF(OCL_Saisie!DN57="","",OCL_Saisie!DN57) ->  | GL58: =IF(AND(GK58>100%,GK58<>""),OCL_Saisie!E57&"/","") ->  | GP58: =IF(OR(OCL_Saisie!AA57="col",OCL_Saisie!AA57="cu",OCL_Saisie!AA57="mix"),OCL_Saisie!DB57,"") ->  | GQ58: =IF(AND(OCL_Saisie!AA57<>"col",OCL_Saisie!AA57<>"cu",OCL_Saisie!AA57<>"mix",OCL_Saisie!AA57<>""),OCL_Saisie!DB57,"") ->  | GT58: =IF(AND(GR58>100%,GR58<>""),OCL_Saisie!E57&"/","") ->  | GU58: =IF(AND(GS58>100%,GS58<>""),OCL_Saisie!E57&"/","") ->  | GZ58: =IF(OR(OCL_Saisie!AA57="col",OCL_Saisie!AA57="cu",OCL_Saisie!AA57="mix"),OCL_Saisie!DC57,"") ->  | HA58: =IF(AND(OCL_Saisie!AA57<>"col",OCL_Saisie!AA57<>"cu",OCL_Saisie!AA57<>"mix",OCL_Saisie!AA57<>""),OCL_Saisie!DC57,"") ->  | HD58: =IF(AND(HB58>100%,HB58<>""),OCL_Saisie!E57&"/","") ->  | HE58: =IF(AND(HC58>100%,HC58<>""),OCL_Saisie!E57&"/","") ->  | HJ58: =IF(OR(OCL_Saisie!AA57="col",OCL_Saisie!AA57="cu"),OCL_Saisie!DA57,"") ->  | HK58: =IF(AND(OCL_Saisie!AA57<>"col",OCL_Saisie!AA57<>"cu",OCL_Saisie!AA57<>""),OCL_Saisie!DA57,"") ->  | HN58: =IF(AND(HL58>100%,HL58<>""),OCL_Saisie!E57&"/","") ->  | HO58: =IF(AND(HM58>100%,HM58<>""),OCL_Saisie!E57&"/","") -> 
BD59: 0 | BE59: =IF(OCL_Saisie!W58="IND",OCL_Saisie!CW58,"") ->  | BF59: =IF(OCL_Saisie!W58="col",OCL_Saisie!CW58,"") ->  | BG59: =IF(OCL_Saisie!W58="mix",OCL_Saisie!CW58,"") ->  | BK59: =IF(AND(BH59>100%,BH59<>""),OCL_Saisie!E58&"/","") ->  | BL59: =IF(AND(BI59>100%,BI59<>""),OCL_Saisie!E58&"/","") ->  | BM59: =IF(AND(BJ59>100%,BJ59<>""),OCL_Saisie!E58&"/","") ->  | BS59: =IF(OCL_Saisie!W58="col",OCL_Saisie!CX58,"") ->  | BT59: =IF(AND(OCL_Saisie!W58<>"col",OCL_Saisie!W58<>""),OCL_Saisie!CX58,"") ->  | BW59: =IF(AND(BU59>100%,BU59<>""),OCL_Saisie!E58&"/","") ->  | BX59: =IF(AND(BV59>100%,BV59<>""),OCL_Saisie!E58&"/","") ->  | CC59: =IF(OCL_Saisie!CY58="","",OCL_Saisie!CY58) ->  | CE59: =IF(AND(CD59>100%,CD59<>""),OCL_Saisie!E58&"/","") ->  | CI59: =IF(OR(OCL_Saisie!AA58="col",OCL_Saisie!AA58="cu",OCL_Saisie!AA58="mix"),OCL_Saisie!CZ58,"") ->  | CJ59: =IF(AND(OCL_Saisie!AA58<>"col",OCL_Saisie!AA58<>"cu",OCL_Saisie!AA58<>"mix",OCL_Saisie!AA58<>""),OCL_Saisie!CZ58,"") ->  | CM59: =IF(AND(CK59>100%,CK59<>""),OCL_Saisie!E58&"/","") ->  | CN59: =IF(AND(CL59>100%,CL59<>""),OCL_Saisie!E58&"/","") ->  | CS59: =IF(OR(OCL_Saisie!AA58="col",OCL_Saisie!AA58="cu",OCL_Saisie!AA58="mix"),OCL_Saisie!DD58,"") ->  | CT59: =IF(AND(OCL_Saisie!AA58<>"col",OCL_Saisie!AA58<>"cu",OCL_Saisie!AA58<>"mix",OCL_Saisie!AA58<>""),OCL_Saisie!DD58,"") ->  | CW59: =IF(AND(CU59>100%,CU59<>""),OCL_Saisie!E58&"/","") ->  | CX59: =IF(AND(CV59>100%,CV59<>""),OCL_Saisie!E58&"/","") ->  | DC59: =IF(OCL_Saisie!DE58="","",OCL_Saisie!DE58) ->  | DE59: =IF(AND(DD59>100%,DD59<>""),OCL_Saisie!E58&"/","") ->  | DI59: =IF(OCL_Saisie!DF58="","",OCL_Saisie!DF58) ->  | DK59: =IF(AND(DJ59>100%,DJ59<>""),OCL_Saisie!E58&"/","") ->  | DO59: =IF(OCL_Saisie!DG58="","",OCL_Saisie!DG58) ->  | DQ59: =IF(AND(DP59>100%,DP59<>""),OCL_Saisie!E58&"/","") ->  | DU59: =IF(OCL_Saisie!DH58="","",OCL_Saisie!DH58) ->  | DW59: =IF(AND(DV59>100%,DV59<>""),OCL_Saisie!E58&"/","") ->  | EA59: =IF(OCL_Saisie!DI58="","",OCL_Saisie!DI58) ->  | EC59: =IF(AND(EB59>100%,EB59<>""),OCL_Saisie!E58&"/","") ->  | EG59: =IF(OCL_Saisie!DJ58="","",OCL_Saisie!DJ58) ->  | EI59: =IF(AND(EH59>100%,EH59<>""),OCL_Saisie!E58&"/","") ->  | EM59: =IF(OCL_Saisie!DK58="","",OCL_Saisie!DK58) ->  | EO59: =IF(AND(EN59>100%,EN59<>""),OCL_Saisie!E58&"/","") ->  | ES59: =IF(OCL_Saisie!DM58="","",OCL_Saisie!DM58) ->  | EU59: =IF(AND(ET59>100%,ET59<>""),OCL_Saisie!E58&"/","") ->  | EY59: =IF(OCL_Saisie!DO58="","",OCL_Saisie!DO58) ->  | FA59: =IF(AND(EZ59>100%,EZ59<>""),OCL_Saisie!E58&"/","") ->  | FE59: =IF(OCL_Saisie!DP58="","",OCL_Saisie!DP58) ->  | FG59: =IF(AND(FF59>100%,FF59<>""),OCL_Saisie!E58&"/","") ->  | FK59: =IF(OR(OCL_Saisie!AA58="col",OCL_Saisie!AA58="cu"),OCL_Saisie!DQ58,"") ->  | FM59: =IF(AND(FL59>100%,FL59<>""),OCL_Saisie!E58&"/","") ->  | FQ59: =IF(OR(OCL_Saisie!AA58="col",OCL_Saisie!AA58="cu"),OCL_Saisie!DR58,"") ->  | FS59: =IF(AND(FR59>100%,FR59<>""),OCL_Saisie!E58&"/","") ->  | FW59: =IF(OR(OCL_Saisie!AA58="col",OCL_Saisie!AA58="cu"),OCL_Saisie!DS58,"") ->  | FY59: =IF(AND(FX59>100%,FX59<>""),OCL_Saisie!E58&"/","") ->  | GC59: =IF(OCL_Saisie!DT58="","",OCL_Saisie!DT58) ->  | GE59: =IF(AND(GD59>100%,GD59<>""),OCL_Saisie!E58&"/","") ->  | GJ59: =IF(OCL_Saisie!DN58="","",OCL_Saisie!DN58) ->  | GL59: =IF(AND(GK59>100%,GK59<>""),OCL_Saisie!E58&"/","") ->  | GP59: =IF(OR(OCL_Saisie!AA58="col",OCL_Saisie!AA58="cu",OCL_Saisie!AA58="mix"),OCL_Saisie!DB58,"") ->  | GQ59: =IF(AND(OCL_Saisie!AA58<>"col",OCL_Saisie!AA58<>"cu",OCL_Saisie!AA58<>"mix",OCL_Saisie!AA58<>""),OCL_Saisie!DB58,"") ->  | GT59: =IF(AND(GR59>100%,GR59<>""),OCL_Saisie!E58&"/","") ->  | GU59: =IF(AND(GS59>100%,GS59<>""),OCL_Saisie!E58&"/","") ->  | GZ59: =IF(OR(OCL_Saisie!AA58="col",OCL_Saisie!AA58="cu",OCL_Saisie!AA58="mix"),OCL_Saisie!DC58,"") ->  | HA59: =IF(AND(OCL_Saisie!AA58<>"col",OCL_Saisie!AA58<>"cu",OCL_Saisie!AA58<>"mix",OCL_Saisie!AA58<>""),OCL_Saisie!DC58,"") ->  | HD59: =IF(AND(HB59>100%,HB59<>""),OCL_Saisie!E58&"/","") ->  | HE59: =IF(AND(HC59>100%,HC59<>""),OCL_Saisie!E58&"/","") ->  | HJ59: =IF(OR(OCL_Saisie!AA58="col",OCL_Saisie!AA58="cu"),OCL_Saisie!DA58,"") ->  | HK59: =IF(AND(OCL_Saisie!AA58<>"col",OCL_Saisie!AA58<>"cu",OCL_Saisie!AA58<>""),OCL_Saisie!DA58,"") ->  | HN59: =IF(AND(HL59>100%,HL59<>""),OCL_Saisie!E58&"/","") ->  | HO59: =IF(AND(HM59>100%,HM59<>""),OCL_Saisie!E58&"/","") -> 
B60: VC_ECH : Volume d'eau privative consommée pour l'eau chaude | C60: =EY2 -> 0.15 | D60: =EY1 -> 1 | E60: - | F60: =EY6 -> - | G60: =EY7 -> - | H60: =COUNTIF(EY18:EY2040,">-100") -> 0 | I60: =EY3+EY4 -> 0 | J60: =COUNTIF(EZ18:EZ2039,"<"&$J$1) -> 0 | K60: =I60-L60-J60 -> 0 | L60: =COUNTIF(EZ18:EZ2039,">1") -> 0 | M60: =IF(FB16="","-",FB16) -> - | N60: =EY5 -> 0 | S60: =D60-C60 -> 0.85 | BD60: 0 | BE60: =IF(OCL_Saisie!W59="IND",OCL_Saisie!CW59,"") ->  | BF60: =IF(OCL_Saisie!W59="col",OCL_Saisie!CW59,"") ->  | BG60: =IF(OCL_Saisie!W59="mix",OCL_Saisie!CW59,"") ->  | BK60: =IF(AND(BH60>100%,BH60<>""),OCL_Saisie!E59&"/","") ->  | BL60: =IF(AND(BI60>100%,BI60<>""),OCL_Saisie!E59&"/","") ->  | BM60: =IF(AND(BJ60>100%,BJ60<>""),OCL_Saisie!E59&"/","") ->  | BS60: =IF(OCL_Saisie!W59="col",OCL_Saisie!CX59,"") ->  | BT60: =IF(AND(OCL_Saisie!W59<>"col",OCL_Saisie!W59<>""),OCL_Saisie!CX59,"") ->  | BW60: =IF(AND(BU60>100%,BU60<>""),OCL_Saisie!E59&"/","") ->  | BX60: =IF(AND(BV60>100%,BV60<>""),OCL_Saisie!E59&"/","") ->  | CC60: =IF(OCL_Saisie!CY59="","",OCL_Saisie!CY59) ->  | CE60: =IF(AND(CD60>100%,CD60<>""),OCL_Saisie!E59&"/","") ->  | CI60: =IF(OR(OCL_Saisie!AA59="col",OCL_Saisie!AA59="cu",OCL_Saisie!AA59="mix"),OCL_Saisie!CZ59,"") ->  | CJ60: =IF(AND(OCL_Saisie!AA59<>"col",OCL_Saisie!AA59<>"cu",OCL_Saisie!AA59<>"mix",OCL_Saisie!AA59<>""),OCL_Saisie!CZ59,"") ->  | CM60: =IF(AND(CK60>100%,CK60<>""),OCL_Saisie!E59&"/","") ->  | CN60: =IF(AND(CL60>100%,CL60<>""),OCL_Saisie!E59&"/","") ->  | CS60: =IF(OR(OCL_Saisie!AA59="col",OCL_Saisie!AA59="cu",OCL_Saisie!AA59="mix"),OCL_Saisie!DD59,"") ->  | CT60: =IF(AND(OCL_Saisie!AA59<>"col",OCL_Saisie!AA59<>"cu",OCL_Saisie!AA59<>"mix",OCL_Saisie!AA59<>""),OCL_Saisie!DD59,"") ->  | CW60: =IF(AND(CU60>100%,CU60<>""),OCL_Saisie!E59&"/","") ->  | CX60: =IF(AND(CV60>100%,CV60<>""),OCL_Saisie!E59&"/","") ->  | DC60: =IF(OCL_Saisie!DE59="","",OCL_Saisie!DE59) ->  | DE60: =IF(AND(DD60>100%,DD60<>""),OCL_Saisie!E59&"/","") ->  | DI60: =IF(OCL_Saisie!DF59="","",OCL_Saisie!DF59) ->  | DK60: =IF(AND(DJ60>100%,DJ60<>""),OCL_Saisie!E59&"/","") ->  | DO60: =IF(OCL_Saisie!DG59="","",OCL_Saisie!DG59) ->  | DQ60: =IF(AND(DP60>100%,DP60<>""),OCL_Saisie!E59&"/","") ->  | DU60: =IF(OCL_Saisie!DH59="","",OCL_Saisie!DH59) ->  | DW60: =IF(AND(DV60>100%,DV60<>""),OCL_Saisie!E59&"/","") ->  | EA60: =IF(OCL_Saisie!DI59="","",OCL_Saisie!DI59) ->  | EC60: =IF(AND(EB60>100%,EB60<>""),OCL_Saisie!E59&"/","") ->  | EG60: =IF(OCL_Saisie!DJ59="","",OCL_Saisie!DJ59) ->  | EI60: =IF(AND(EH60>100%,EH60<>""),OCL_Saisie!E59&"/","") ->  | EM60: =IF(OCL_Saisie!DK59="","",OCL_Saisie!DK59) ->  | EO60: =IF(AND(EN60>100%,EN60<>""),OCL_Saisie!E59&"/","") ->  | ES60: =IF(OCL_Saisie!DM59="","",OCL_Saisie!DM59) ->  | EU60: =IF(AND(ET60>100%,ET60<>""),OCL_Saisie!E59&"/","") ->  | EY60: =IF(OCL_Saisie!DO59="","",OCL_Saisie!DO59) ->  | FA60: =IF(AND(EZ60>100%,EZ60<>""),OCL_Saisie!E59&"/","") ->  | FE60: =IF(OCL_Saisie!DP59="","",OCL_Saisie!DP59) ->  | FG60: =IF(AND(FF60>100%,FF60<>""),OCL_Saisie!E59&"/","") ->  | FK60: =IF(OR(OCL_Saisie!AA59="col",OCL_Saisie!AA59="cu"),OCL_Saisie!DQ59,"") ->  | FM60: =IF(AND(FL60>100%,FL60<>""),OCL_Saisie!E59&"/","") ->  | FQ60: =IF(OR(OCL_Saisie!AA59="col",OCL_Saisie!AA59="cu"),OCL_Saisie!DR59,"") ->  | FS60: =IF(AND(FR60>100%,FR60<>""),OCL_Saisie!E59&"/","") ->  | FW60: =IF(OR(OCL_Saisie!AA59="col",OCL_Saisie!AA59="cu"),OCL_Saisie!DS59,"") ->  | FY60: =IF(AND(FX60>100%,FX60<>""),OCL_Saisie!E59&"/","") ->  | GC60: =IF(OCL_Saisie!DT59="","",OCL_Saisie!DT59) ->  | GE60: =IF(AND(GD60>100%,GD60<>""),OCL_Saisie!E59&"/","") ->  | GJ60: =IF(OCL_Saisie!DN59="","",OCL_Saisie!DN59) ->  | GL60: =IF(AND(GK60>100%,GK60<>""),OCL_Saisie!E59&"/","") ->  | GP60: =IF(OR(OCL_Saisie!AA59="col",OCL_Saisie!AA59="cu",OCL_Saisie!AA59="mix"),OCL_Saisie!DB59,"") ->  | GQ60: =IF(AND(OCL_Saisie!AA59<>"col",OCL_Saisie!AA59<>"cu",OCL_Saisie!AA59<>"mix",OCL_Saisie!AA59<>""),OCL_Saisie!DB59,"") ->  | GT60: =IF(AND(GR60>100%,GR60<>""),OCL_Saisie!E59&"/","") ->  | GU60: =IF(AND(GS60>100%,GS60<>""),OCL_Saisie!E59&"/","") ->  | GZ60: =IF(OR(OCL_Saisie!AA59="col",OCL_Saisie!AA59="cu",OCL_Saisie!AA59="mix"),OCL_Saisie!DC59,"") ->  | HA60: =IF(AND(OCL_Saisie!AA59<>"col",OCL_Saisie!AA59<>"cu",OCL_Saisie!AA59<>"mix",OCL_Saisie!AA59<>""),OCL_Saisie!DC59,"") ->  | HD60: =IF(AND(HB60>100%,HB60<>""),OCL_Saisie!E59&"/","") ->  | HE60: =IF(AND(HC60>100%,HC60<>""),OCL_Saisie!E59&"/","") ->  | HJ60: =IF(OR(OCL_Saisie!AA59="col",OCL_Saisie!AA59="cu"),OCL_Saisie!DA59,"") ->  | HK60: =IF(AND(OCL_Saisie!AA59<>"col",OCL_Saisie!AA59<>"cu",OCL_Saisie!AA59<>""),OCL_Saisie!DA59,"") ->  | HN60: =IF(AND(HL60>100%,HL60<>""),OCL_Saisie!E59&"/","") ->  | HO60: =IF(AND(HM60>100%,HM60<>""),OCL_Saisie!E59&"/","") -> 
BD61: 0 | BE61: =IF(OCL_Saisie!W60="IND",OCL_Saisie!CW60,"") ->  | BF61: =IF(OCL_Saisie!W60="col",OCL_Saisie!CW60,"") ->  | BG61: =IF(OCL_Saisie!W60="mix",OCL_Saisie!CW60,"") ->  | BK61: =IF(AND(BH61>100%,BH61<>""),OCL_Saisie!E60&"/","") ->  | BL61: =IF(AND(BI61>100%,BI61<>""),OCL_Saisie!E60&"/","") ->  | BM61: =IF(AND(BJ61>100%,BJ61<>""),OCL_Saisie!E60&"/","") ->  | BS61: =IF(OCL_Saisie!W60="col",OCL_Saisie!CX60,"") ->  | BT61: =IF(AND(OCL_Saisie!W60<>"col",OCL_Saisie!W60<>""),OCL_Saisie!CX60,"") ->  | BW61: =IF(AND(BU61>100%,BU61<>""),OCL_Saisie!E60&"/","") ->  | BX61: =IF(AND(BV61>100%,BV61<>""),OCL_Saisie!E60&"/","") ->  | CC61: =IF(OCL_Saisie!CY60="","",OCL_Saisie!CY60) ->  | CE61: =IF(AND(CD61>100%,CD61<>""),OCL_Saisie!E60&"/","") ->  | CI61: =IF(OR(OCL_Saisie!AA60="col",OCL_Saisie!AA60="cu",OCL_Saisie!AA60="mix"),OCL_Saisie!CZ60,"") ->  | CJ61: =IF(AND(OCL_Saisie!AA60<>"col",OCL_Saisie!AA60<>"cu",OCL_Saisie!AA60<>"mix",OCL_Saisie!AA60<>""),OCL_Saisie!CZ60,"") ->  | CM61: =IF(AND(CK61>100%,CK61<>""),OCL_Saisie!E60&"/","") ->  | CN61: =IF(AND(CL61>100%,CL61<>""),OCL_Saisie!E60&"/","") ->  | CS61: =IF(OR(OCL_Saisie!AA60="col",OCL_Saisie!AA60="cu",OCL_Saisie!AA60="mix"),OCL_Saisie!DD60,"") ->  | CT61: =IF(AND(OCL_Saisie!AA60<>"col",OCL_Saisie!AA60<>"cu",OCL_Saisie!AA60<>"mix",OCL_Saisie!AA60<>""),OCL_Saisie!DD60,"") ->  | CW61: =IF(AND(CU61>100%,CU61<>""),OCL_Saisie!E60&"/","") ->  | CX61: =IF(AND(CV61>100%,CV61<>""),OCL_Saisie!E60&"/","") ->  | DC61: =IF(OCL_Saisie!DE60="","",OCL_Saisie!DE60) ->  | DE61: =IF(AND(DD61>100%,DD61<>""),OCL_Saisie!E60&"/","") ->  | DI61: =IF(OCL_Saisie!DF60="","",OCL_Saisie!DF60) ->  | DK61: =IF(AND(DJ61>100%,DJ61<>""),OCL_Saisie!E60&"/","") ->  | DO61: =IF(OCL_Saisie!DG60="","",OCL_Saisie!DG60) ->  | DQ61: =IF(AND(DP61>100%,DP61<>""),OCL_Saisie!E60&"/","") ->  | DU61: =IF(OCL_Saisie!DH60="","",OCL_Saisie!DH60) ->  | DW61: =IF(AND(DV61>100%,DV61<>""),OCL_Saisie!E60&"/","") ->  | EA61: =IF(OCL_Saisie!DI60="","",OCL_Saisie!DI60) ->  | EC61: =IF(AND(EB61>100%,EB61<>""),OCL_Saisie!E60&"/","") ->  | EG61: =IF(OCL_Saisie!DJ60="","",OCL_Saisie!DJ60) ->  | EI61: =IF(AND(EH61>100%,EH61<>""),OCL_Saisie!E60&"/","") ->  | EM61: =IF(OCL_Saisie!DK60="","",OCL_Saisie!DK60) ->  | EO61: =IF(AND(EN61>100%,EN61<>""),OCL_Saisie!E60&"/","") ->  | ES61: =IF(OCL_Saisie!DM60="","",OCL_Saisie!DM60) ->  | EU61: =IF(AND(ET61>100%,ET61<>""),OCL_Saisie!E60&"/","") ->  | EY61: =IF(OCL_Saisie!DO60="","",OCL_Saisie!DO60) ->  | FA61: =IF(AND(EZ61>100%,EZ61<>""),OCL_Saisie!E60&"/","") ->  | FE61: =IF(OCL_Saisie!DP60="","",OCL_Saisie!DP60) ->  | FG61: =IF(AND(FF61>100%,FF61<>""),OCL_Saisie!E60&"/","") ->  | FK61: =IF(OR(OCL_Saisie!AA60="col",OCL_Saisie!AA60="cu"),OCL_Saisie!DQ60,"") ->  | FM61: =IF(AND(FL61>100%,FL61<>""),OCL_Saisie!E60&"/","") ->  | FQ61: =IF(OR(OCL_Saisie!AA60="col",OCL_Saisie!AA60="cu"),OCL_Saisie!DR60,"") ->  | FS61: =IF(AND(FR61>100%,FR61<>""),OCL_Saisie!E60&"/","") ->  | FW61: =IF(OR(OCL_Saisie!AA60="col",OCL_Saisie!AA60="cu"),OCL_Saisie!DS60,"") ->  | FY61: =IF(AND(FX61>100%,FX61<>""),OCL_Saisie!E60&"/","") ->  | GC61: =IF(OCL_Saisie!DT60="","",OCL_Saisie!DT60) ->  | GE61: =IF(AND(GD61>100%,GD61<>""),OCL_Saisie!E60&"/","") ->  | GJ61: =IF(OCL_Saisie!DN60="","",OCL_Saisie!DN60) ->  | GL61: =IF(AND(GK61>100%,GK61<>""),OCL_Saisie!E60&"/","") ->  | GP61: =IF(OR(OCL_Saisie!AA60="col",OCL_Saisie!AA60="cu",OCL_Saisie!AA60="mix"),OCL_Saisie!DB60,"") ->  | GQ61: =IF(AND(OCL_Saisie!AA60<>"col",OCL_Saisie!AA60<>"cu",OCL_Saisie!AA60<>"mix",OCL_Saisie!AA60<>""),OCL_Saisie!DB60,"") ->  | GT61: =IF(AND(GR61>100%,GR61<>""),OCL_Saisie!E60&"/","") ->  | GU61: =IF(AND(GS61>100%,GS61<>""),OCL_Saisie!E60&"/","") ->  | GZ61: =IF(OR(OCL_Saisie!AA60="col",OCL_Saisie!AA60="cu",OCL_Saisie!AA60="mix"),OCL_Saisie!DC60,"") ->  | HA61: =IF(AND(OCL_Saisie!AA60<>"col",OCL_Saisie!AA60<>"cu",OCL_Saisie!AA60<>"mix",OCL_Saisie!AA60<>""),OCL_Saisie!DC60,"") ->  | HD61: =IF(AND(HB61>100%,HB61<>""),OCL_Saisie!E60&"/","") ->  | HE61: =IF(AND(HC61>100%,HC61<>""),OCL_Saisie!E60&"/","") ->  | HJ61: =IF(OR(OCL_Saisie!AA60="col",OCL_Saisie!AA60="cu"),OCL_Saisie!DA60,"") ->  | HK61: =IF(AND(OCL_Saisie!AA60<>"col",OCL_Saisie!AA60<>"cu",OCL_Saisie!AA60<>""),OCL_Saisie!DA60,"") ->  | HN61: =IF(AND(HL61>100%,HL61<>""),OCL_Saisie!E60&"/","") ->  | HO61: =IF(AND(HM61>100%,HM61<>""),OCL_Saisie!E60&"/","") -> 
